Workbook

Sheet Dati Generali CER 1 Sem. 2020
A1: Scheda n. 1 - Produzione di Rifiuti Urbani e Raccolta Differenziata 1° Semestre 2020.
A2: =COUNTA(E3:E110) -> 108 | B2: ID COMUNE | C2: COMUNE | D2: ABITANTI al 31/05/2020 | E2: R.S.U. + R.S.A. (Kg/1°Sem.) 200301 | F2: Toner per stampa esauriti, contenenti sostanze pericolose 080317* | G2: Altri oli per motori, ingranaggi e lubrificazione 130208* | H2: Legno da demolizione 170201 | I2: Miscele bituminose (diverse da quelle 170301*) 170302 | J2: Alluminio 170402 | K2: Ferro e acciaio 170405 | L2: Materiali da costruzione contenenti amianto 170605* | M2: Percolato di discarica,(diverso dalla voce 190702) 190703 | N2: Residui di vagliatura 190801 | O2: FANGHI DI DEPURAZIONE (Kg/anno) prodotti dal trattamento delle acque reflue urbane 190805 | P2: altri rifiuti (compresi materiali misti) prodotti dal trattamento meccanico dei rifiuti,(diversi dalla voce 191211) 191212 | Q2: Rifiuti della pulizia delle fognature 200306 | R2: Residui della pulizia stradale 200303 Smaltimento | S2: Ingombranti - 200307 Smaltimento | T2: Rifiuti urbani non specificati altrimenti 200399 | U2: RACCOL. DIFFEREN. (Kg/1°Sem.) | V2: R.S.U. + R.S.A. + RACC. DIFF. (Kg/1°Sem.) | W2: % RACC. DIFF. (1°Sem.) | X2: Compostaggio Domestico | Y2: Toner per stampa esauriti,(diversi dalla voce 080317) 080318 | Z2: Imballaggi Carta e Cartone (Raccolta Selettiva) 150101 | AA2: Imballaggi in Plastica 150102 | AB2: Imballaggi in Legno 150103 | AC2: Imballaaggi in metallo 150104 | AD2: Imball. in materiali misti 150106 | AE2: Imballaggi in Vetro 150107 | AF2: Imballaggi contenenti residui di sostanze pericolose o contaminati da tali sostanze 150110* | AG2: Imballaggi metallici contenenti matrici solide porose pericolose (ad esempio amianto) 150111* | AH2: Pneumatici usati 160103 | AI2: Filtri dell'olio 160107* | AJ2: Apparecchiature fuori uso, contenenti clorofluorocarburi, HCFC, HFC 160211* | AK2: Componenti rimossi da apparecchiature fuori uso,(diversi dalla voce 160215) 160216 | AL2: Miscugli o frazioni separate di cemento, mattoni, mattonelle e ceramiche(diverse dalla voce 170106) 170107 | AM2: Rifiuti misti dell'attività di costruzione e demolizione, (diversi dalle voci 170901, 170902 e 170903) 170904 | AN2: Carta e Cartone (Raccolta Congiunta) 200101 | AO2: Vetro 200102 | AP2: Rifiuti biodegradabili di cucine e mense 200108 | AQ2: Abbigliamento 200110 | AR2: Prodotti tessili 200111 | AS2: Tubi fluorescenti ed altri rifiuti contenenti Mercurio 200121* | AT2: Apparec. Fuori uso conten. CFC e mat. peric. 200123* | AU2: Oli e Grassi commestibili 200125 | AV2: Oli e grassi (diversi dalla voce 200125) 200126* | AW2: Medicinali citotossici e citostatici 200131* | AX2: Medicinali (diversi dlla voce 200131*) 200132 | AY2: Batterie ed Accumulatori (diversi dalle voci 160601, 160602 e 160603) 200133* | AZ2: Batterie ed accumulatori (diversi dlla voce 200133*) 200134 | BA2: Apparecc. elettr. ed elettroniche fuori uso contenenti Mat. Peric. 200135* | BB2: Apparecc. eletr. ed elettroniche fuori uso(diverse da 200121, 200123 e 200135 200136 | BC2: Legno 200138 | BD2: Plastica 200139 | BE2: Metallo 200140 | BF2: Rifiuti biodegradabili 200201 | BG2: Residui della pulizia stradale - 200303 Recupero | BH2: Ingombranti - 200307 Recupero | BI2: TOTALE RD (Kg/1°Sem.) | BJ2: R.S.U. + R.S.A.+ R.D. - (R.T. Kg. pro capite/g) | BK2: R.S.U. + R.S.A. 200301 - (R.I. Kg. pro capite/g) | BL2: R.D. - (Kg. pro capite/g)
A3: 1 | B3: M211 | C3: ACQUEDOLCI | D3: 5553 | E3: 223480 | U3: =IF(BI3=0,"",BI3) -> 564130 | V3: =IF(E3=0,"",SUM(U3,E3,R3,S3,T3)) -> 787610 | W3: =IFERROR(IF(E3<>0,IF(U3=0,0,(U3/V3*100)/100),IF(U3=0,"","")),0) -> 0.7162555072 | AA3: 87930 | AB3: 190 | AE3: 107900 | AN3: 108300 | AP3: 239560 | AQ3: 800 | AT3: 1800 | BA3: 1600 | BB3: 700 | BH3: 15350 | BI3: =IF(SUM(X3:BH3)=0,"",SUM(X3:BH3)) -> 564130 | BJ3: =IF(SUM(E3)=0,"",V3/D3/181) -> 0.7836190283 | BK3: =IF(E3=0,"",E3/D3/181) -> 0.2223475838 | BL3: =IF(SUM(Y3:BH3)=0,"",BI3/D3/181) -> 0.5612714445 | BN3: 2020-07-15T09:00:39
A4: 2 | B4: A177 | C4: ALCARA LI FUSI | D4: 1799 | E4: 34300 | U4: =IF(BI4=0,"",BI4) -> 153701 | V4: 188001 | W4: 0.8175541619 | AA4: 19250 | AD4: 890 | AE4: 31870 | AN4: 22020 | AP4: 69150 | AQ4: 5291 | AT4: 1370 | BA4: 1640 | BB4: 1420 | BH4: 800 | BI4: =IF(SUM(X4:BH4)=0,"",SUM(X4:BH4)) -> 153701 | BJ4: 0.5773649572 | BK4: =IF(E4=0,"",E4/D4/181) -> 0.1053378335 | BL4: 0.4720271237 | BN4: 2020-08-24T11:10:06
A5: 3 | B5: A194 | C5: ALI' | D5: 701 | E5: 46320 | U5: 36630 | V5: 82950 | W5: 0.4415913201 | AD5: 9110 | AE5: 7040 | AN5: 7970 | AP5: 8780 | BF5: 2830 | BH5: 900 | BI5: 36630 | BJ5: 0.6537621866 | BK5: 0.3650664796 | BL5: 0.288695707 | BN5: 2020-07-22T19:19:42
A6: 4 | B6: A201 | C6: ALI' TERME | D6: 2442 | E6: 244940 | U6: 170579 | V6: 415519 | W6: 0.4105203372 | Z6: 8940 | AD6: 36220 | AE6: 33030 | AN6: 35850 | AP6: 41110 | AX6: 259 | BF6: 2520 | BH6: 12650 | BI6: 170579 | BJ6: 0.9400839815 | BK6: 0.5541603884 | BL6: 0.3859235931 | BN6: 2020-07-20T19:30:07
A7: 5 | B7: A313 | C7: ANTILLO | D7: 847 | E7: 21440 | U7: 58732 | V7: 80172 | W7: 0.7325749638 | X7: 3292 | AD7: 9060 | AE7: 5390 | AH7: 550 | AN7: 7650 | AP7: 27000 | AT7: 190 | BA7: 140 | BB7: 2270 | BH7: 3190 | BI7: 58732 | BJ7: 0.5229506807 | BK7: 0.1398501047 | BL7: 0.383100576 | BN7: 2020-09-29T12:07:20
A8: 6 | B8: A638 | C8: BARCELLONA P.G. | D8: 40940 | E8: 6631030 | U8: 1802502 | V8: 8433532 | W8: 0.2137303801 | X8: 122440 | Z8: 300490 | AA8: 314310 | AC8: 10900 | AE8: 284360 | AG8: 940 | AH8: 8120 | AN8: 367870 | AQ8: 13580 | AS8: 850 | AT8: 15940 | AU8: 1270 | AX8: 1140 | AY8: 4410 | AZ8: 970 | BA8: 19080 | BB8: 36522 | BC8: 67120 | BD8: 6940 | BE8: 33800 | BF8: 133230 | BH8: 58220 | BI8: 1802502 | BJ8: 1.138106972 | BK8: 0.8948589365 | BL8: 0.2432480358 | BN8: 2020-07-31T20:29:36
A9: 7 | B9: A698 | C9: BASICO' | D9: 574 | E9: 49780 | U9: 44588 | V9: 94368 | W9: 0.4724906748 | X9: 10848 | AA9: 10700 | AE9: 12460 | AN9: 10580 | BI9: 44588 | BJ9: 0.9083103933 | BK9: 0.4791422026 | BL9: 0.4291681907 | BN9: 2020-09-18T18:06:37
A10: 8 | B10: B198 | C10: BROLO | D10: 5814 | E10: 762090 | R10: 24080 | U10: 454290 | V10: 1240460 | W10: 0.3662270448 | X10: 45570 | Z10: 91980 | AA10: 80090 | AE10: 74660 | AK10: 480 | AN10: 60970 | AT10: 2100 | AX10: 70 | BA10: 3600 | BB10: 10100 | BC10: 20790 | BE10: 7670 | BF10: 43780 | BH10: 12430 | BI10: 454290 | BJ10: 1.178770238 | BK10: 0.7241902286 | BL10: 0.4316975409 | BN10: 2020-09-11T12:29:23
A11: 9 | B11: B660 | C11: CAPIZZI | D11: 2954 | E11: 149480 | U11: 243200 | V11: 392680 | W11: 0.6193338087 | X11: 62000 | AA11: 25380 | AE11: 33120 | AN11: 31660 | AP11: 85840 | AQ11: 320 | AT11: 200 | BA11: 200 | BB11: 1000 | BD11: 1220 | BH11: 2260 | BI11: 243200 | BJ11: 0.7344288295 | BK11: 0.2795722253 | BL11: 0.4548566042 | BN11: 2020-07-20T19:34:32
A12: 10 | B12: B666 | C12: CAPO D'ORLANDO | D12: 13222 | E12: 1331460 | K12: 28360 | O12: 59140 | Q12: 16500 | U12: 1446390 | V12: 2777850 | W12: 0.5206868621 | Z12: 119340 | AA12: 188180 | AB12: 12500 | AE12: 269740 | AH12: 5300 | AN12: 320150 | AP12: 384540 | AS12: 320 | AT12: 12000 | AU12: 1700 | BA12: 7400 | BB12: 12900 | BF12: 64770 | BH12: 47550 | BI12: 1446390 | BJ12: 1.160734955 | BK12: 0.5563555133 | BL12: 0.6043794413 | BN12: 2020-09-07T12:30:56
A13: 11 | B13: B695 | C13: CAPRILEONE | D13: 4401 | E13: 321250 | U13: 198430 | V13: 519680 | W13: 0.3818311268 | Z13: 19080 | AA13: 40800 | AE13: 51440 | AN13: 60690 | BH13: 26420 | BI13: 198430 | BJ13: 0.6523881438 | BK13: 0.4032860437 | BL13: 0.2491021001 | BN13: 2020-07-15T16:59:58
A14: 12 | B14: B804 | C14: CARONIA | D14: 3122 | E14: 223460 | U14: 417250 | V14: 640710 | W14: 0.651230666 | Z14: 33630 | AA14: 17640 | AD14: 79040 | AE14: 47220 | AP14: 211680 | BH14: 28040 | BI14: 417250 | BJ14: 1.133835443 | BK14: 0.3954470325 | BL14: 0.7383884109 | BN14: 2020-09-11T12:06:42
A15: 13 | B15: B918 | C15: CASALVECCHIO SICULO | D15: 768 | E15: 48640 | K15: 300 | U15: 20590 | V15: 69230 | W15: 0.2974144157 | AD15: 8690 | AE15: 7460 | AN15: 3660 | AT15: 220 | BH15: 560 | BI15: 20590 | BJ15: 0.4980288904 | BK15: 0.349907919 | BL15: 0.1481209715 | BN15: 2020-07-23T19:00:44
A16: 14 | B16: C094 | C16: CASTEL DI LUCIO | D16: 1248 | E16: 13060 | U16: 70330 | V16: 83390 | W16: 0.8433864972 | Y16: 20 | AA16: 9800 | AE16: 8740 | AN16: 14820 | AP16: 36870 | AX16: 40 | AZ16: 40 | BI16: 70330 | BJ16: 0.36916525 | BK16: 0.05781626293 | BL16: 0.3113489871 | BN16: 2020-07-15T09:27:38
A17: 15 | B17: C051 | C17: CASTELL'UMBERTO | D17: 2965 | E17: 227700 | U17: 182520 | V17: 410220 | W17: 0.4449319877 | AA17: 19950 | AE17: 40950 | AN17: 31620 | AP17: 81160 | AT17: 250 | BA17: 350 | BC17: 5260 | BH17: 2980 | BI17: 182520 | BJ17: 0.764387467 | BK17: 0.4242870319 | BL17: 0.3401004351 | BN17: 2020-07-15T09:44:22
A18: 16 | B18: C210 | C18: CASTELMOLA | D18: 1100 | E18: 68350 | U18: 59930 | V18: 128280 | W18: 0.4671811662 | AD18: 7960 | AE18: 14700 | AN18: 7560 | AP18: 21770 | AT18: 220 | BB18: 1010 | BC18: 430 | BH18: 6280 | BI18: 59930 | BJ18: 0.6442993471 | BK18: 0.3432948267 | BL18: 0.3010045203 | BN18: 2020-09-24T18:34:35
A19: 17 | B19: C347 | C19: CASTROREALE | D19: 2295 | E19: 133300 | K19: 1960 | U19: 131920 | V19: 265220 | W19: 0.4973983862 | Z19: 8340 | AA19: 36900 | AE19: 25710 | AN19: 23800 | AP19: 32720 | AT19: 390 | BA19: 1050 | BB19: 1450 | BH19: 1560 | BI19: 131920 | BJ19: 0.6384766307 | BK19: 0.3208993849 | BL19: 0.3175772458 | BN19: 2020-09-07T12:42:07
A20: 18 | B20: C568 | C20: CESARO' | D20: 2252 | E20: 136900 | U20: 147600 | V20: 284500 | W20: 0.5188049209 | AA20: 16780 | AE20: 26200 | AN20: 26300 | AP20: 76320 | AQ20: 2000 | BI20: 147600 | BJ20: 0.6979676751 | BK20: 0.3358586106 | BL20: 0.3621090645 | BN20: 2020-07-23T19:08:42
A21: 19 | B21: C956 | C21: CONDRO' | D21: 487 | E21: 88000 | U21: 18310 | V21: 106310 | W21: 0.1722321513 | AA21: 5020 | AE21: 3680 | AN21: 6220 | AT21: 770 | BA21: 920 | BB21: 370 | BH21: 1330 | BI21: 18310 | BJ21: 1.206053524 | BK21: 0.9983323312 | BL21: 0.207721193 | BN21: 2020-07-23T19:11:49
A22: 20 | B22: D474 | C22: FALCONE | D22: 2724 | E22: 378870 | U22: 124500 | V22: 503370 | W22: 0.2473329757 | AA22: 27480 | AE22: 37960 | AN22: 49140 | BH22: 9920 | BI22: 124500 | BJ22: 1.020943364 | BK22: 0.7684304038 | BL22: 0.2525129603 | BN22: 2020-07-31T20:38:05
A23: 21 | B23: D569 | C23: FICARRA | D23: 1367 | E23: 130620 | U23: 66000 | V23: 196620 | W23: 0.3356728715 | X23: 10000 | Z23: 4070 | AA23: 13510 | AE23: 21270 | AN23: 11890 | AQ23: 180 | AT23: 300 | BH23: 4780 | BI23: 66000 | BJ23: 0.7946586266 | BK23: 0.5279132835 | BL23: 0.2667453431 | BN23: 2020-07-21T10:45:15
A24: 22 | B24: D622 | C24: FIUMEDINISI | D24: 1323 | E24: 95950 | U24: 70370 | V24: 166320 | W24: 0.4231000481 | AD24: 17920 | AE24: 12790 | AN24: 17000 | AP24: 15980 | AX24: 20 | BH24: 6660 | BI24: 70370 | BJ24: 0.6945540647 | BK24: 0.4006882065 | BL24: 0.2938658582 | BN24: 2020-09-11T12:34:05
A25: 23 | B25: D635 | C25: FLORESTA | D25: 454 | E25: 69440 | U25: 17170 | V25: 86610 | W25: 0.1982450064 | AA25: 5520 | AE25: 7060 | AN25: 3880 | BH25: 710 | BI25: 17170 | BJ25: 1.053983012 | BK25: 0.8450361428 | BL25: 0.2089468688 | BN25: 2020-09-04T11:17:03
A26: 24 | B26: D661 | C26: FONDACHELLI FANTINA | D26: 1020 | E26: 82960 | U26: 39350 | V26: 122310 | W26: 0.3217234895 | AA26: 3560 | AE26: 8280 | AN26: 5510 | AP26: 22000 | BI26: 39350 | BJ26: 0.6624959376 | BK26: 0.4493554328 | BL26: 0.2131405048 | BN26: 2020-07-15T17:04:03
A27: 25 | B27: D733 | C27: FORZA D'AGRO' | D27: 890 | E27: 89590 | U27: 126410 | V27: 216000 | W27: 0.5852314815 | AD27: 16830 | AE27: 13860 | AN27: 15690 | AP27: 72770 | AT27: 780 | BA27: 470 | BB27: 1230 | BC27: 1240 | BH27: 3540 | BI27: 126410 | BJ27: 1.340865355 | BK27: 0.5561487367 | BL27: 0.784716618 | BN27: 2020-09-21T17:01:37
A28: 26 | B28: D765 | C28: FRANCAVILLA DI SICILIA | D28: 3704 | E28: 386520 | U28: 227420 | V28: 613940 | W28: 0.3704270776 | X28: 58500 | AD28: 74860 | AE28: 43820 | AN28: 40060 | AQ28: 1240 | BH28: 8940 | BI28: 227420 | BJ28: 0.9157488395 | BK28: 0.5765306731 | BL28: 0.3392181664 | BN28: 2020-09-15T19:18:09
A29: 27 | B29: D793 | C29: FRAZZANO' | D29: 613 | E29: 29080 | U29: 34910 | V29: 63990 | W29: 0.5455539928 | Z29: 3030 | AA29: 3260 | AE29: 10710 | AN29: 470 | AP29: 15480 | BH29: 1960 | BI29: 34910 | BJ29: 0.5767306878 | BK29: 0.2620929583 | BL29: 0.3146377295 | BN29: 2020-07-15T09:49:44
A30: 28 | B30: D824 | C30: FURCI SICULO | D30: 3239 | E30: 136940 | U30: 383520 | V30: 520460 | W30: 0.7368866003 | Z30: 10810 | AD30: 48040 | AE30: 43510 | AN30: 47090 | AP30: 192710 | AX30: 20 | BF30: 2650 | BH30: 38690 | BI30: 383520 | BJ30: 0.8877646228 | BK30: 0.233582768 | BL30: 0.6541818548 | BN30: 2020-07-28T11:30:01
A31: 29 | B31: D825 | C31: FURNARI | D31: 3835 | E31: 452520 | U31: 319910 | V31: 772430 | W31: 0.4141605065 | Z31: 13910 | AA31: 7980 | AD31: 49580 | AE31: 67820 | AN31: 73180 | AU31: 200 | BF31: 61670 | BH31: 45570 | BI31: 319910 | BJ31: 1.112795061 | BK31: 0.6519192952 | BL31: 0.4608757662 | BN31: 2020-09-22T13:55:59
A32: 30 | B32: D844 | C32: GAGGI | D32: 3171 | E32: 239610 | U32: 262801 | V32: 502411 | W32: 0.5230797096 | Z32: 14239 | AB32: 270 | AD32: 31590 | AE32: 31610 | AN32: 33530 | AP32: 136950 | AT32: 710 | BA32: 500 | BB32: 1080 | BC32: 2480 | BH32: 9842 | BI32: 262801 | BJ32: 0.8753552132 | BK32: 0.4174746625 | BL32: 0.4578805508 | BN32: 2020-09-18T18:09:53
A33: 31 | B33: D861 | C33: GALATI MAMERTINO | D33: 2396 | E33: 205840 | U33: 139970 | V33: 345810 | W33: 0.4047598392 | Z33: 6560 | AA33: 17820 | AE33: 31880 | AN33: 14360 | AP33: 62550 | BH33: 6800 | BI33: 139970 | BJ33: 0.7973925235 | BK33: 0.4746400539 | BL33: 0.3227524696 | BN33: 2020-07-09T08:09:05
A34: 32 | B34: D885 | C34: GALLODORO | D34: 347 | E34: 22130 | U34: 33060 | V34: 55190 | W34: 0.5990215619 | AD34: 5780 | AE34: 6120 | AN34: 3280 | AP34: 16060 | AT34: 90 | BA34: 30 | BB34: 640 | BH34: 1060 | BI34: 33060 | BJ34: 0.8787237091 | BK34: 0.3523492604 | BL34: 0.5263744487 | BN34: 2020-09-23T10:00:46
A35: 33 | B35: E014 | C35: GIARDINI NAXOS | D35: 9316 | E35: 818120 | U35: 1420665 | V35: =IF(E35=0,"",SUM(U35,E35,R35,S35,T35)) -> 2238785 | W35: =IFERROR(IF(E35<>0,IF(U35=0,0,(U35/V35*100)/100),IF(U35=0,"","")),0) -> 0.6345696438 | Z35: 16730 | AA35: 124020 | AE35: 545760 | AN35: 160000 | AP35: 385380 | AT35: 3460 | AX35: 95 | BA35: 6940 | BF35: 11600 | BH35: 166680 | BI35: 1420665 | BJ35: =IF(SUM(E35)=0,"",V35/D35/181) -> 1.327713386 | BK35: =IF(E35=0,"",E35/D35/181) -> 0.4851867754 | BL35: =IF(SUM(Y35:BH35)=0,"",BI35/D35/181) -> 0.8425266102 | BN35: 2020-11-03T16:48:51
A36: 34 | B36: E043 | C36: GIOIOSA MAREA | D36: 6869 | E36: 761840 | U36: 405330 | V36: 1167170 | W36: 0.3472758895 | Z36: 51490 | AA36: 10160 | AD36: 32790 | AE36: 88710 | AN36: 119240 | AQ36: 390 | AS36: 100 | AT36: 1200 | AU36: 360 | AY36: 50 | BA36: 2560 | BB36: 8920 | BC36: 1640 | BF36: 84100 | BH36: 3620 | BI36: 405330 | BJ36: 0.9387761011 | BK36: 0.6127617955 | BL36: 0.3260143056 | BN36: 2020-09-09T11:57:04
A37: 35 | B37: E142 | C37: GRANITI | D37: 1458 | E37: 126237 | U37: 67510 | V37: 193747 | W37: 0.3484441049 | Z37: 1800 | AD37: 10110 | AE37: 11890 | AN37: 8060 | AP37: 27500 | AT37: 540 | BA37: 210 | BB37: 210 | BC37: 1760 | BH37: 5430 | BI37: 67510 | BJ37: 0.7341738096 | BK37: 0.4783552736 | BL37: 0.2558185359 | BN37: 2020-07-28T18:53:44
A38: 36 | B38: E233 | C38: GUALTIERI SICAMINO | D38: 1660 | E38: 85800 | U38: 82480 | V38: 168280 | W38: 0.4901354885 | X38: 15360 | AD38: 18200 | AE38: 26860 | AN38: 20460 | BD38: 400 | BH38: 1200 | BI38: 82480 | BJ38: 0.5600745524 | BK38: 0.2855621381 | BL38: 0.2745124143 | BN38: 2020-07-31T20:54:06
A39: 37 | B39: E374 | C39: ITALA | D39: 1559 | E39: 83880 | U39: 144209 | V39: 228089 | W39: 0.6322488152 | Z39: 1180 | AD39: 23050 | AE39: 18630 | AN39: 20830 | AP39: 72759 | AT39: 690 | BA39: 790 | BB39: 470 | BC39: 740 | BH39: 5070 | BI39: 144209 | BJ39: 0.8083131629 | BK39: 0.2972581234 | BL39: 0.5110550395 | BN39: 2020-09-29T09:12:30
A40: 38 | B40: E523 | C40: LENI | D40: 685 | E40: 89080 | U40: 30020 | V40: 119100 | W40: 0.2520570949 | Z40: 7880 | AA40: 2160 | AB40: 10500 | AT40: 1900 | BA40: 1500 | BC40: 1300 | BE40: 4780 | BI40: 30020 | BJ40: 0.9606000726 | BK40: 0.718474009 | BL40: 0.2421260636 | BN40: 2020-08-06T16:54:33
A41: 39 | B41: E555 | C41: LETOJANNI | D41: 2827 | E41: 400100 | U41: 315060 | V41: 715160 | W41: 0.4405447732 | Z41: 860 | AD41: 37100 | AE41: 56400 | AN41: 52380 | AP41: 136480 | AT41: 1480 | BA41: 170 | BB41: 750 | BC41: 730 | BF41: 11780 | BH41: 16930 | BI41: 315060 | BJ41: 1.397651299 | BK41: 0.7819233242 | BL41: 0.6157279743 | BN41: 2020-09-11T12:15:35
A42: 40 | B42: E571 | C42: LIBRIZZI | D42: 1603 | E42: 166300 | U42: 106780 | V42: 273080 | W42: 0.3910209462 | X42: 54390 | Z42: 17730 | AA42: 14660 | AE42: 17380 | BB42: 580 | BH42: 2040 | BI42: 106780 | BJ42: 0.9411910679 | BK42: 0.5731656459 | BL42: 0.3680254219 | BN42: 2020-08-03T19:12:42
A43: 41 | B43: E594 | C43: LIMINA | D43: 739 | E43: 37340 | U43: 46520 | V43: 83860 | W43: 0.5547340806 | AA43: 7090 | AE43: 5160 | AN43: 6950 | AP43: 24460 | BH43: 2860 | BI43: 46520 | BJ43: 0.626948467 | BK43: 0.2791587856 | BL43: 0.3477896814 | BN43: 2020-08-03T19:16:44
A44: 42 | B44: E606 | C44: LIPARI | D44: 12775 | E44: 2539620 | U44: 678070 | V44: 3217690 | W44: 0.2107319226 | Z44: 198710 | AA44: 66620 | AE44: 87640 | AH44: 5240 | AT44: 18760 | BA44: 15200 | BB44: 33920 | BC44: 77420 | BE44: 77700 | BF44: 69620 | BH44: 27240 | BI44: 678070 | BJ44: 1.391568909 | BK44: 1.098320918 | BL44: 0.2932479917 | BN44: 2020-09-04T11:24:17
A45: 43 | B45: E674 | C45: LONGI | D45: 1371 | E45: 11820 | K45: 1050 | U45: 146433 | V45: 158253 | W45: 0.9253094728 | AA45: 18040 | AE45: 28770 | AN45: 18960 | AP45: 67920 | AQ45: 4303 | BB45: 2060 | BH45: 6380 | BI45: 146433 | BJ45: 0.637728641 | BK45: 0.04763228841 | BL45: 0.5900963526 | BN45: 2020-09-04T11:29:00
A46: 44 | B46: E855 | C46: MALFA | D46: 996 | E46: 69640 | U46: 91320 | V46: 160960 | W46: 0.5673459245 | Z46: 9480 | AA46: 7200 | AC46: 1320 | AE46: 41360 | AN46: 7000 | AP46: 8860 | AT46: 2600 | BB46: 1700 | BC46: 3640 | BD46: 2280 | BE46: 4400 | BH46: 1480 | BI46: 91320 | BJ46: 0.8928531807 | BK46: 0.3862965675 | BL46: 0.5065566132 | BN46: 2020-07-22T19:22:00
A47: 45 | B47: E869 | C47: MALVAGNA | D47: 661 | E47: 74840 | U47: 19240 | V47: 94080 | W47: 0.2045068027 | AA47: 5410 | AE47: 5600 | AN47: 5190 | AT47: 380 | BA47: 420 | BH47: 2240 | BI47: 19240 | BJ47: 0.7863525046 | BK47: 0.6255380681 | BL47: 0.1608144365 | BN47: 2020-07-27T21:45:33
A48: 46 | B48: E876 | C48: MANDANICI | D48: 557 | E48: 24360 | U48: 51940 | V48: 76300 | W48: 0.680733945 | AD48: 6570 | AE48: 7200 | AN48: 5400 | AP48: 28310 | AT48: 160 | BA48: 270 | BB48: 750 | BH48: 3280 | BI48: 51940 | BJ48: 0.7568168067 | BK48: 0.2416259163 | BL48: 0.5151908904 | BN48: 2020-10-08T16:00:53
A49: 47 | B49: F066 | C49: MAZZARRA' S. ANDREA | D49: 1459 | E49: 47360 | U49: 115540 | V49: 162900 | W49: 0.7092694905 | AA49: 17770 | AE49: 17820 | AN49: 15330 | AP49: 62060 | AT49: 130 | BA49: 250 | BH49: 2180 | BI49: 115540 | BJ49: 0.6168608636 | BK49: 0.1793402732 | BL49: 0.4375205904 | BN49: 2020-09-24T18:44:12
A50: 48 | B50: F147 | C50: MERI' | D50: 2368 | E50: 362380 | U50: 65010 | V50: 427390 | W50: 0.1521093147 | AA50: 19500 | AE50: 21220 | AN50: 21960 | AT50: 920 | BA50: 130 | BB50: 210 | BH50: 1070 | BI50: 65010 | BJ50: 0.9971582425 | BK50: 0.8454811856 | BL50: 0.1516770569 | BN50: 2020-09-22T10:54:21
A51: 49 | B51: F158 | C51: MESSINA | D51: 228660 | E51: 36034214 | U51: 14467010 | V51: 50501224 | W51: 0.2864685022 | X51: 510000 | Y51: 1609 | Z51: 2468133 | AA51: 1165936 | AC51: 15269 | AE51: 1409204 | AH51: 12602 | AM51: 74200 | AN51: 1171689 | AP51: 4793866 | AQ51: 32700 | AS51: 863 | AT51: 54063 | AU51: 9349 | AV51: 5033 | AX51: 4754 | AY51: 11180 | AZ51: 776 | BA51: 63790 | BB51: 69524 | BC51: 725654 | BE51: 66600 | BF51: 901555 | BG51: 898661 | BI51: 14467010 | BJ51: 1.220205927 | BK51: 0.8706553628 | BL51: 0.3495505643 | BN51: 2020-08-24T17:54:57
A52: 50 | B52: F206 | C52: MILAZZO | D52: 30775 | E52: 6182900 | U52: 1351030 | V52: 7533930 | W52: 0.1793260622 | Z52: 181940 | AA52: 221840 | AE52: 238040 | AN52: 201780 | AP52: 67380 | AT52: 6120 | BA52: 7380 | BB52: 2720 | BC52: 54170 | BD52: 14880 | BF52: 270980 | BH52: 83800 | BI52: 1351030 | BJ52: 1.352523888 | BK52: 1.109981105 | BL52: 0.2425427829 | BN52: 2020-09-04T11:41:19
A53: 51 | B53: F210 | C53: MILITELLO ROSMARINO | D53: 1238 | E53: 98860 | S53: 900 | U53: 62460 | V53: 162220 | W53: 0.3850326717 | Z53: 2280 | AA53: 10320 | AE53: 14390 | AN53: 8010 | AP53: 25590 | BH53: 1870 | BI53: 62460 | BJ53: 0.7239443408 | BK53: 0.4411856586 | BL53: 0.2787422237 | BN53: 2020-07-20T19:45:11
A54: 52 | B54: F242 | C54: MIRTO | D54: 929 | E54: 58860 | U54: 100730 | V54: 159590 | W54: 0.6311798985 | Z54: 3860 | AA54: 11480 | AE54: 21920 | AN54: 13850 | AP54: 43770 | BH54: 5850 | BI54: 100730 | BJ54: 0.949098716 | BK54: 0.3500466848 | BL54: 0.5990520312 | BN54: 2020-07-21T10:50:07
A55: 53 | B55: F251 | C55: MISTRETTA | D55: 4539 | E55: 527360 | U55: 194980 | V55: 722340 | W55: 0.2699282886 | Z55: 26770 | AA55: 34920 | AE55: 65020 | AN55: 30780 | AP55: 10100 | AU55: 200 | BA55: 5060 | BB55: 1840 | BH55: 20290 | BI55: 194980 | BJ55: 0.8792308282 | BK55: 0.6419015555 | BL55: 0.2373292728 | BN55: 2020-09-01T09:27:56
A56: 54 | B56: F277 | C56: MOJO ALCANTARA | D56: 677 | E56: 98540 | U56: 15510 | V56: 114050 | W56: 0.1359929855 | AA56: 5450 | AE56: 6240 | AN56: 3820 | BI56: 15510 | BJ56: 0.9307392869 | BK56: 0.8041652725 | BL56: 0.1265740144 | BN56: 2020-07-15T17:07:48
A57: 55 | B57: F359 | C57: MONFORTE S. GIORGIO | D57: 2626 | E57: 319480 | R57: 13020 | U57: 197350 | V57: 529850 | W57: 0.3724639049 | X57: 90210 | AA57: 27040 | AE57: 30320 | AN57: 34240 | AT57: 680 | AU57: 150 | AZ57: 50 | BA57: 1250 | BB57: 7710 | BE57: 430 | BH57: 5270 | BI57: 197350 | BJ57: 1.114755547 | BK57: 0.6721564634 | BL57: 0.415206204 | BN57: 2020-09-17T12:32:40
A58: 56 | B58: F368 | C58: MONGIUFFI MELIA | D58: 558 | E58: 23730 | U58: 43280 | V58: 67010 | W58: 0.6458737502 | AD58: 6910 | AE58: 6700 | AN58: 5510 | AP58: 21620 | AT58: 150 | BA58: 100 | BB58: 560 | BH58: 1730 | BI58: 43280 | BJ58: 0.6634784847 | BK58: 0.2349551476 | BL58: 0.4285233371 | BN58: 2020-09-30T10:21:29
A59: 57 | B59: F395 | C59: MONTAGNAREALE | D59: 1473 | E59: 187000 | U59: 86880 | V59: 273880 | W59: 0.3172192201 | AA59: 23160 | AE59: 30560 | AN59: 22070 | BB59: 980 | BC59: 560 | BE59: 730 | BH59: 8820 | BI59: 86880 | BJ59: 1.027256735 | BK59: 0.701391155 | BL59: 0.3258655804 | BN59: 2020-10-22T11:49:58
A60: 58 | B60: F400 | C60: MONTALBANO ELICONA | D60: 2096 | E60: 67660 | U60: 189562 | V60: 257222 | W60: 0.736958736 | Y60: 15 | Z60: 5770 | AA60: 30660 | AC60: 2000 | AE60: 24890 | AN60: 20060 | AP60: 101302 | AQ60: 2000 | AX60: 15 | AZ60: 10 | BH60: 2840 | BI60: 189562 | BJ60: 0.6780133693 | BK60: 0.1783454937 | BL60: 0.4996678757 | BN60: 2020-07-15T10:50:10
A61: 59 | B61: F772 | C61: MOTTA CAMASTRA | D61: 817 | E61: 78312 | U61: 39630 | V61: 117942 | W61: 0.3360126164 | Z61: 2490 | AD61: 9530 | AE61: 7650 | AN61: 3180 | AP61: 15560 | BA61: 30 | BB61: 240 | BC61: 140 | BH61: 810 | BI61: 39630 | BJ61: 0.7975682493 | BK61: 0.5295752551 | BL61: 0.2679929942 | BN61: 2020-10-09T12:28:43
A62: 60 | B62: F773 | C62: MOTTA D'AFFERMO | D62: 681 | E62: 50900 | U62: 18490 | V62: 69390 | W62: 0.2664649085 | AA62: 6100 | AE62: 5350 | AN62: 5490 | AT62: 400 | BH62: 1150 | BI62: 18490 | BJ62: 0.5629517852 | BK62: 0.4129448893 | BL62: 0.1500068959 | BN62: 2020-07-28T18:58:49
A63: 61 | B63: F848 | C63: NASO | D63: 3620 | E63: 169950 | U63: 350904 | V63: 520854 | W63: 0.6737089472 | X63: 32004 | AA63: 56090 | AE63: 55890 | AN63: 59450 | AP63: 137570 | AT63: 1200 | BH63: 8700 | BI63: 350904 | BJ63: 0.7949299472 | BK63: 0.2593785293 | BL63: 0.5355514178 | BN63: 2020-09-29T12:33:57
A64: 62 | B64: F901 | C64: NIZZA DI SICILIA | D64: 3582 | E64: 284870 | U64: 223690 | V64: 508560 | W64: 0.4398497719 | Z64: 3030 | AD64: 45890 | AE64: 41100 | AN64: 45840 | AP64: 49850 | AX64: 9180 | BF64: 19430 | BH64: 9370 | BI64: 223690 | BJ64: 0.7844008255 | BK64: 0.4393823013 | BL64: 0.3450185242 | BN64: 2020-09-14T11:36:57
A65: 63 | B65: F951 | C65: NOVARA DI SICILIA | D65: 1221 | E65: 136260 | U65: 64940 | V65: 201200 | W65: 0.3227634195 | AA65: 7180 | AD65: 9430 | AE65: 17860 | AN65: 18080 | BH65: 12390 | BI65: 64940 | BJ65: 0.9104031203 | BK65: 0.6165582961 | BL65: 0.2938448242 | BN65: 2020-09-29T18:17:43
A66: 64 | B66: G036 | C66: OLIVERI | D66: 2097 | E66: 261420 | K66: 980 | U66: 166568 | V66: 427988 | W66: 0.3891884819 | X66: 10848 | Z66: 3000 | AA66: 32810 | AB66: 6750 | AE66: 52470 | AN66: 36910 | AQ66: 750 | BB66: 2970 | BC66: 8350 | BH66: 11710 | BI66: 166568 | BJ66: 1.127598753 | BK66: 0.6887503063 | BL66: 0.438848447 | BN66: 2020-09-23T18:34:54
A67: 65 | B67: G209 | C67: PACE DEL MELA | D67: 6204 | E67: 599860 | U67: 835430 | V67: =IF(E67=0,"",SUM(U67,E67,R67,S67,T67)) -> 1435290 | W67: =IFERROR(IF(E67<>0,IF(U67=0,0,(U67/V67*100)/100),IF(U67=0,"","")),0) -> 0.5820635551 | AD67: 101980 | AE67: 60620 | AN67: 400560 | AP67: 192200 | AT67: 4330 | AX67: 200 | AZ67: 40 | BA67: 4200 | BB67: 12700 | BC67: 22480 | BD67: 7460 | BE67: 3960 | BF67: 12340 | BH67: 12360 | BI67: 835430 | BJ67: =IF(SUM(E67)=0,"",V67/D67/181) -> 1.278171987 | BK67: 0.5341946561 | BL67: =IF(SUM(Y67:BH67)=0,"",BI67/D67/181) -> 0.7439773306 | BN67: 2020-10-16T18:20:42
A68: 66 | B68: G234 | C68: PAGLIARA | D68: 1134 | E68: 42270 | U68: =IF(BI68=0,"",BI68) -> 103440 | V68: 145710 | W68: 0.7099032324 | AD68: 15490 | AE68: 13200 | AH68: 190 | AN68: 12800 | AP68: 55950 | AT68: 340 | BA68: 330 | BB68: 1090 | BH68: 4050 | BI68: =IF(SUM(X68:BH68)=0,"",SUM(X68:BH68)) -> 103440 | BJ68: 0.7099009033 | BK68: =IF(E68=0,"",E68/D68/181) -> 0.2059399573 | BL68: 0.5039609459 | BN68: 2020-09-18T16:57:22
A69: 67 | B69: G377 | C69: PATTI | D69: 13000 | E69: 1596970 | U69: 1243990 | V69: 2840960 | W69: 0.4378766333 | Z69: 114530 | AB69: 19700 | AD69: 270240 | AE69: 221970 | AN69: 256550 | AP69: 233580 | AX69: 20 | BB69: 5970 | BC69: 10030 | BE69: 1560 | BF69: 62260 | BH69: 47580 | BI69: 1243990 | BJ69: 1.207377816 | BK69: 0.6786952826 | BL69: 0.5286825329 | BN69: 2020-07-28T19:20:33
A70: 68 | B70: G522 | C70: PETTINEO | D70: 1272 | E70: 50560 | U70: 81740 | V70: 132300 | W70: 0.6178382464 | AA70: 14160 | AE70: 18920 | AP70: 40940 | BC70: 6220 | BH70: 1500 | BI70: 81740 | BJ70: 0.5746377567 | BK70: 0.2196045728 | BL70: 0.3550331839 | BN70: 2020-09-23T18:42:55
A71: 69 | B71: G699 | C71: PIRAINO | D71: 3872 | E71: 450580 | U71: 206252 | V71: 656832 | W71: 0.3140102796 | X71: 23877 | Z71: 22710 | AA71: 44390 | AE71: 48560 | AN71: 47190 | AQ71: 275 | AT71: 1970 | AU71: 190 | BA71: 4120 | BB71: 1830 | BH71: 11140 | BI71: 206252 | BJ71: 0.9372174787 | BK71: 0.6429215561 | BL71: 0.2942959226 | BN71: 2020-09-23T18:57:23
A72: 70 | B72: H151 | C72: RACCUJA | D72: 921 | E72: 92520 | U72: 26340 | V72: 118860 | W72: 0.2216052499 | Z72: 5100 | AA72: 5780 | AE72: 12920 | AN72: 680 | BB72: 520 | BC72: 600 | BH72: 740 | BI72: 26340 | BJ72: 0.7130131193 | BK72: 0.5550056688 | BL72: 0.1580074505 | BN72: 2020-09-24T10:44:41
A73: 71 | B73: H228 | C73: REITANO | D73: 742 | E73: 147050 | U73: 147050 | V73: 294100 | W73: 0.5 | Z73: 10670 | AA73: 4020 | AD73: 30640 | AE73: 22320 | AP73: 62160 | BH73: 17240 | BI73: 147050 | BJ73: 2.189840807 | BK73: 1.094920403 | BL73: 1.094920403 | BN73: 2020-09-22T14:14:41
A74: 72 | B74: H405 | C74: ROCCAFIORITA | D74: 185 | E74: 9210 | U74: 13630 | V74: 22840 | W74: 0.5967600701 | AA74: 2170 | AE74: 990 | AN74: 1570 | AP74: 7500 | BF74: 1400 | BI74: 13630 | BJ74: 0.6820964611 | BK74: 0.2750485292 | BL74: 0.4070479319 | BN74: 2020-09-07T12:46:08
A75: 73 | B75: H418 | C75: ROCCALUMERA | D75: 4052 | E75: 225130 | U75: 591700 | V75: 816830 | W75: 0.7243857351 | Z75: 40020 | AD75: 68340 | AE75: 62470 | AH75: 140 | AN75: 66880 | AP75: 301890 | AX75: 80 | BA75: 1200 | BB75: 2000 | BF75: 1890 | BH75: 46790 | BI75: 591700 | BJ75: 1.113739617 | BK75: 0.3069625258 | BL75: 0.8067770912 | BN75: 2020-07-09T15:44:01
A76: 74 | B76: H380 | C76: ROCCAVALDINA | D76: 1054 | E76: 93660 | U76: 60951 | V76: 154611 | W76: 0.3942216272 | Z76: 1520 | AA76: 11040 | AE76: 7100 | AN76: 9260 | AP76: 28200 | AT76: 360 | AX76: 11 | AZ76: 20 | BA76: 500 | BB76: 700 | BH76: 2240 | BI76: 60951 | BJ76: 0.8104406261 | BK76: 0.4909474037 | BL76: 0.3194932223 | BN76: 2020-07-20T19:53:48
A77: 75 | B77: H455 | C77: ROCCELLA VALDEMONE | D77: 597 | E77: 48450 | U77: 35290 | V77: 83740 | W77: 0.4214234535 | Z77: 70 | AD77: 5850 | AE77: 5280 | AN77: 3940 | AP77: 17830 | AT77: 50 | BA77: 320 | BB77: 100 | BH77: 1850 | BI77: 35290 | BJ77: 0.774961363 | BK77: 0.448374469 | BL77: 0.326586894 | BN77: 2020-07-20T19:58:23
A78: 76 | B78: H479 | C78: RODI' MILICI | D78: 1987 | E78: 113800 | U78: 160560 | V78: 274360 | W78: 0.5852165039 | X78: 37860 | Z78: 5110 | AA78: 34940 | AE78: 24020 | AN78: 19460 | AP78: 29300 | AT78: 1460 | AX78: 50 | BA78: 2740 | BB78: 2230 | BH78: 3390 | BI78: 160560 | BJ78: 0.7628591369 | BK78: 0.3164213799 | BL78: 0.446437757 | BN78: 2020-07-22T19:26:20
A79: 77 | B79: H519 | C79: ROMETTA | D79: 6496 | E79: 171030 | U79: 1010358 | V79: 1181388 | W79: 0.8552296113 | X79: 327798 | Z79: 41320 | AA79: 78130 | AE79: 110140 | AN79: 103840 | AP79: 261400 | AQ79: 1240 | AU79: 260 | BF79: 37010 | BG79: 49220 | BI79: 1010358 | BJ79: 1.004773018 | BK79: 0.1454613804 | BL79: 0.8593116376 | BN79: 2020-09-22T10:54:58
A80: 78 | B80: I184 | C80: S. DOMENICA VITTORIA | D80: 888 | E80: 67181 | U80: 77309 | V80: 144490 | W80: 0.5350474081 | Z80: 110 | AD80: 11400 | AE80: 10800 | AN80: 10070 | AP80: 38669 | AT80: 280 | BA80: 640 | BB80: 370 | BC80: 880 | BH80: 4090 | BI80: 77309 | BJ80: 0.8989721766 | BK80: 0.4179794435 | BL80: 0.4809927331 | BN80: 2020-07-20T20:11:35
A81: 79 | B81: I370 | C81: S. STEF. DI CAMASTRA | D81: 4583 | E81: 331560 | K81: 2000 | U81: 662470 | V81: 994030 | W81: 0.6664486987 | Z81: 91490 | AA81: 33000 | AD81: 79860 | AE81: 85500 | AM81: 12660 | AN81: 12710 | AP81: 284320 | AQ81: 1380 | AT81: 2650 | AU81: 250 | BA81: 2550 | BF81: 15940 | BH81: 40160 | BI81: 662470 | BJ81: 1.198315176 | BK81: 0.3996995864 | BL81: 0.7986155899 | BN81: 2020-07-23T19:54:41
A82: 80 | B82: I199 | C82: S. AGATA DI MILITELLO | D82: 12164 | E82: 1712310 | U82: 642473 | V82: 2354783 | W82: 0.2728374547 | Z82: 57900 | AA82: 132680 | AB82: 1460 | AE82: 161650 | AN82: 123550 | AQ82: 2500 | AS82: 130 | AT82: 12740 | AU82: 140 | BA82: 18380 | BB82: 10993 | BF82: 46710 | BH82: 73640 | BI82: 642473 | BJ82: 1.069537227 | BK82: 0.7777274123 | BL82: 0.2918098147 | BN82: 2020-09-07T13:07:16
A83: 81 | B83: I220 | C83: SANTA LUCIA DEL MELA | D83: 4519 | E83: 207920 | U83: 371433 | V83: 579353 | W83: 0.6411169011 | X83: 66078 | Z83: 24370 | AA83: 56830 | AN83: 37260 | AO83: 41340 | AP83: 136500 | AQ83: 270 | AT83: 1750 | AU83: 75 | BA83: 1660 | BB83: 1780 | BH83: 3520 | BI83: 371433 | BJ83: 0.7083083213 | BK83: 0.2541998853 | BL83: 0.454108436
A84: 82 | B84: I311 | C84: S. TERESA DI RIVA | D84: 9455 | E84: 453760 | U84: 1118509 | V84: 1572269 | W84: 0.711397986 | Z84: 86190 | AD84: 167680 | AE84: 114330 | AN84: 152640 | AP84: 483134 | AQ84: 2100 | AT84: 3660 | AU84: 165 | BA84: 3540 | BB84: 2900 | BC84: 2260 | BD84: 6510 | BE84: 1560 | BF84: 53040 | BH84: 38800 | BI84: 1118509 | BJ84: 0.918727558 | BK84: 0.2651466236 | BL84: 0.6535809344 | BN84: 2020-10-16T18:44:08
A85: 83 | B85: H842 | C85: S. FILIPPO DEL MELA | D85: 6876 | E85: 1067800 | U85: 288140 | V85: 1355940 | W85: 0.2125020281 | Z85: 49430 | AA85: 91840 | AE85: 52160 | AN85: 64340 | AQ85: 280 | AT85: 820 | AU85: 210 | AX85: 70 | BA85: 910 | BB85: 1250 | BD85: 690 | BE85: 4330 | BF85: 3020 | BG85: 15400 | BH85: 3390 | BI85: 288140 | BJ85: 1.089496977 | BK85: 0.8579766599 | BL85: 0.2315203173 | BN85: 2020-09-29T18:25:03
A86: 84 | B86: H850 | C86: SAN FRATELLO | D86: 3431 | E86: 182040 | U86: 240600 | V86: 422640 | W86: 0.5692788189 | Z86: 37720 | AD86: 33240 | AE86: 38460 | AP86: 122840 | BH86: 8340 | BI86: 240600 | BJ86: 0.680567655 | BK86: 0.2931349042 | BL86: 0.3874327508 | BN86: 2020-07-23T19:17:30
A87: 85 | B87: H982 | C87: SAN MARCO D'ALUNZIO | D87: 1847 | E87: 68680 | U87: 211690 | V87: 280370 | W87: 0.7550379855 | Z87: 9700 | AA87: 28620 | AE87: 34940 | AN87: 25810 | AP87: 83910 | AQ87: 150 | AT87: 1700 | BA87: 1620 | BE87: 17000 | BH87: 8240 | BI87: 211690 | BJ87: 0.8386602733 | BK87: 0.20543991 | BL87: 0.6332203633 | BN87: 2020-07-15T17:11:52
A88: 86 | B88: I084 | C88: SAN PIER NICETO | D88: 2686 | E88: 258480 | U88: 329954 | V88: 588434 | W88: 0.5607323846 | X88: 248004 | AA88: 25420 | AE88: 25120 | AN88: 24720 | AQ88: 600 | AT88: 520 | AU88: 490 | BA88: 970 | BB88: 840 | BD88: 480 | BH88: 2790 | BI88: 329954 | BJ88: 1.210356134 | BK88: 0.5316702525 | BL88: 0.678685881 | BN88: 2020-07-23T19:22:36
A89: 87 | B89: I086 | C89: SAN PIERO PATTI | D89: 2703 | E89: 262680 | R89: 18280 | U89: 231917 | V89: 512877 | W89: 0.4521883415 | X89: 106927 | Z89: 2980 | AA89: 25640 | AD89: 10620 | AE89: 37160 | AH89: 440 | AN89: 34850 | BB89: 1530 | BC89: 4570 | BE89: 2230 | BH89: 4970 | BI89: 231917 | BJ89: 1.048307283 | BK89: 0.5369111055 | BL89: 0.4740323316 | BN89: 2020-07-31T20:21:53
A90: 88 | B90: I147 | C90: S. SALVAT. DI FITALIA | D90: 1197 | E90: 91300 | U90: 157640 | V90: 248940 | W90: 0.6332449586 | Z90: 470 | AA90: 9910 | AE90: 12850 | AM90: 43280 | AN90: 9460 | AP90: 6300 | AT90: 4260 | BA90: 2940 | BB90: 1240 | BC90: 3940 | BF90: 3600 | BH90: 59390 | BI90: 157640 | BJ90: 1.149005109 | BK90: 0.4214034165 | BL90: 0.727601693 | BN90: 2020-07-22T22:52:27
A91: 89 | B91: I328 | C91: SAN TEODORO | D91: 1300 | E91: 135080 | U91: 73680 | V91: 208760 | W91: 0.3529411765 | AA91: 13260 | AE91: 24040 | AN91: 19580 | AQ91: 1880 | BH91: 14920 | BI91: 73680 | BJ91: 0.8872078198 | BK91: 0.5740756481 | BL91: 0.3131321717 | BN91: 2020-07-20T20:18:29
A92: 90 | B92: I283 | C92: S. ANGELO DI BROLO | D92: 2898 | E92: 459220 | U92: 128000 | V92: 587220 | W92: 0.217976227 | Z92: 14350 | AA92: 26590 | AE92: 24020 | AN92: 33240 | BB92: 5340 | BC92: 6750 | BH92: 17710 | BI92: 128000 | BJ92: 1.119499445 | BK92: 0.8754751801 | BL92: 0.2440242652 | BN92: 2020-09-14T11:51:41
A93: 91 | B93: I215 | C93: S. ALESSIO SICULO | D93: 1488 | E93: 179080 | U93: 160729 | V93: 339809 | W93: 0.4729980666 | Z93: 1990 | AD93: 23200 | AE93: 21200 | AH93: 890 | AN93: 21130 | AP93: 69809 | AT93: 420 | BA93: 380 | BB93: 1470 | BC93: 500 | BF93: 12760 | BH93: 6980 | BI93: 160729 | BJ93: 1.261692063 | BK93: 0.6649141567 | BL93: 0.5967779065 | BN93: 2020-10-06T13:15:58
A94: 92 | B94: I254 | C94: SANTA MARINA SALINA | D94: 860 | E94: 94420 | U94: 59130 | V94: 153550 | W94: 0.3850862911 | Z94: 16480 | AA94: 5640 | AE94: 17880 | AT94: 1550 | BA94: 700 | BB94: 2700 | BC94: 6400 | BD94: 1120 | BE94: 2820 | BH94: 3840 | BI94: 59130 | BJ94: 0.9864448156 | BK94: 0.6065784402 | BL94: 0.3798663754 | BN94: 2020-08-24T17:57:57
A95: 93 | B95: I420 | C95: SAPONARA | D95: 3790 | E95: 385290 | U95: 222190 | V95: 607480 | W95: 0.3657568973 | Z95: 6010 | AA95: 54710 | AE95: 43850 | AN95: 69840 | AQ95: 550 | AU95: 150 | BF95: 29460 | BH95: 17620 | BI95: 222190 | BJ95: 0.8855522675 | BK95: 0.5616554177 | BL95: 0.3238968498 | BN95: 2020-09-23T19:04:22
A96: 94 | B96: I477 | C96: SAVOCA | D96: 1720 | E96: 119220 | U96: 139640 | V96: 258860 | W96: 0.5394421695 | AD96: 25450 | AE96: 19870 | AN96: 18910 | AP96: 63820 | AT96: 210 | BA96: 320 | BB96: 880 | BC96: 1320 | BF96: 4350 | BH96: 4510 | BI96: 139640 | BJ96: 0.8314917127 | BK96: 0.3829500193 | BL96: 0.4485416934 | BN96: 2020-09-22T18:40:46
A97: 95 | B97: I492 | C97: SCALETTA ZANCLEA | D97: 1963 | E97: 108960 | U97: 206630 | V97: 315590 | W97: 0.654741912 | Z97: 2670 | AD97: 29190 | AE97: 27910 | AN97: 31160 | AP97: 101010 | AT97: 420 | BA97: 270 | BB97: 1290 | BC97: 1140 | BH97: 11570 | BI97: 206630 | BJ97: 0.8882277943 | BK97: 0.30666783 | BL97: 0.5815599643 | BN97: 2020-07-31T11:19:38
A98: 96 | B98: I747 | C98: SINAGRA | D98: 2580 | E98: 108680 | U98: 289620 | V98: 398300 | W98: 0.7271403465 | Z98: 14240 | AA98: 25180 | AB98: 8000 | AE98: 49660 | AN98: 19520 | AP98: 128220 | AQ98: 5360 | BH98: 39440 | BI98: 289620 | BJ98: 0.8529273202 | BK98: 0.2327294531 | BL98: 0.6201978671 | BN98: 2020-07-15T10:55:32
A99: 97 | B99: I881 | C99: SPADAFORA | D99: 4781 | E99: 328528 | S99: 5178 | U99: 543902 | V99: =IF(E99=0,"",SUM(U99,E99,R99,S99,T99)) -> 877608 | W99: =IFERROR(IF(E99<>0,IF(U99=0,0,(U99/V99*100)/100),IF(U99=0,"","")),0) -> 0.6197550615 | Z99: 36680 | AA99: 68890 | AE99: 101510 | AN99: 93280 | AP99: 215340 | AQ99: 1020 | BH99: 27182 | BI99: 543902 | BJ99: =IF(SUM(E99)=0,"",V99/D99/181) -> 1.014152475 | BK99: 0.3796427156 | BL99: =IF(SUM(Y99:BH99)=0,"",BI99/D99/181) -> 0.6285261296 | BN99: 2020-07-17T12:09:37
A100: 98 | B100: L042 | C100: TAORMINA | D100: 10820 | E100: 1005540 | U100: 1536486 | V100: 2542026 | W100: 0.6044336289 | Z100: 88110 | AD100: 205720 | AE100: 211610 | AH100: 460 | AN100: 179920 | AP100: 655100 | AS100: 200 | AT100: 2980 | AU100: 600 | AX100: 447 | AZ100: 159 | BA100: 5940 | BB100: 6080 | BC100: 43300 | BF100: 87640 | BH100: 48220 | BI100: 1536486 | BJ100: 1.297998386 | BK100: 0.5134445114 | BL100: 0.7845538751 | BN100: 2020-08-24T18:09:00
A101: 99 | B101: M210 | C101: TERME VIGLIATORE | D101: 7357 | E101: 419620 | R101: 32060 | U101: 902520 | V101: 1354200 | W101: 0.6664599025 | X101: 77980 | Z101: 94510 | AA101: 128480 | AE101: 103600 | AN101: 69500 | AP101: 381100 | AX101: 100 | BA101: 3000 | BB101: 1820 | BC101: 10150 | BE101: 4080 | BF101: 18860 | BH101: 9340 | BI101: 902520 | BJ101: 1.016959081 | BK101: 0.315120639 | BL101: 0.6777624497 | BN101: 2020-07-15T10:58:32
A102: 100 | B102: L271 | C102: TORREGROTTA | D102: 7330 | E102: 974500 | R102: 9360 | S102: 1850 | U102: 383812 | V102: 1369522 | W102: 0.2802525261 | X102: 24887 | Z102: 64820 | AA102: 98260 | AE102: 48960 | AH102: 510 | AN102: 114660 | AQ102: 5130 | AT102: 800 | AU102: 1895 | BA102: 2120 | BB102: 1220 | BF102: 10840 | BH102: 9710 | BI102: 383812 | BJ102: 1.032253737 | BK102: 0.734512674 | BL102: 0.2892917172 | BN102: 2020-09-09T12:08:54
A103: 101 | B103: M286 | C103: TORRENOVA | D103: 4487 | E103: 213280 | U103: 619750 | V103: 833030 | W103: 0.7439708054 | Z103: 56150 | AA103: 96060 | AE103: 76530 | AH103: 860 | AN103: 102790 | AP103: 272920 | BH103: 14440 | BI103: 619750 | BJ103: 1.025713325 | BK103: 0.2626125566 | BL103: 0.7631007687 | BN103: 2020-09-23T19:08:21
A104: 102 | B104: L308 | C104: TORTORICI | D104: 6020 | E104: 363120 | K104: 1390 | U104: 287870 | V104: 650990 | W104: 0.4422034133 | Z104: 1430 | AA104: 46250 | AE104: 71010 | AN104: 53360 | AP104: 90550 | AU104: 300 | AX104: 110 | AZ104: 70 | BA104: 4300 | BB104: 9110 | BC104: 3380 | BH104: 8000 | BI104: 287870 | BJ104: 0.5974468163 | BK104: 0.3332537949 | BL104: 0.2641930214 | BN104: 2020-09-15T19:36:22
A105: 103 | B105: L431 | C105: TRIPI | D105: 807 | E105: 74940 | U105: 40378 | V105: 115318 | W105: 0.3501448169 | AA105: 1010 | AD105: 5960 | AE105: 6950 | AN105: 6540 | AP105: 19298 | BH105: 620 | BI105: 40378 | BJ105: 0.7894870162 | BK105: 0.5130522295 | BL105: 0.2764347868 | BN105: 2020-07-28T19:24:09
A106: 104 | B106: L478 | C106: TUSA | D106: 2703 | E106: 127400 | U106: 288760 | V106: 416160 | W106: 0.6938677432 | AA106: 24210 | AE106: 45750 | AN106: 39460 | AP106: 154700 | BH106: 24640 | BI106: 288760 | BJ106: 0.8506202439 | BK106: 0.260402295 | BL106: 0.590217949 | BN106: 2020-07-23T19:57:38
A107: 105 | B107: L482 | C107: UCRIA | D107: 950 | E107: 79160 | U107: 61080 | V107: 140240 | W107: 0.4355390759 | X107: 26200 | Y107: 20 | AA107: 7000 | AB107: 760 | AE107: 14160 | AN107: 7980 | BB107: 1380 | BH107: 3580 | BI107: 61080 | BJ107: 0.8155859261 | BK107: 0.4603663856 | BL107: 0.3552195406 | BN107: 2020-07-20T20:25:33
A108: 106 | B108: L561 | C108: VALDINA | D108: 1309 | E108: 117300 | U108: 56390 | V108: 173690 | W108: 0.324658875 | Z108: 20580 | AA108: 16740 | AD108: 17440 | AX108: 10 | AZ108: 40 | BH108: 1580 | BI108: 56390 | BJ108: 0.7330888156 | BK108: 0.4950850255 | BL108: 0.2380037902 | BN108: 2020-10-06T12:07:24
A109: 107 | B109: L735 | C109: VENETICO | D109: 4014 | E109: 418500 | R109: 15600 | U109: 212327 | V109: 646427 | W109: 0.3284624559 | Z109: 14400 | AA109: 65062 | AE109: 39460 | AN109: 78770 | AX109: 15 | BA109: 1880 | BB109: 3080 | BH109: 9660 | BI109: 212327 | BJ109: 0.8897408793 | BK109: 0.576022595 | BL109: 0.2922464744 | BN109: 2020-07-20T20:46:42
A110: 108 | B110: L950 | C110: VILLAFRANCA TIRRENA | D110: 8358 | E110: 329100 | U110: 1142611 | V110: 1471711 | W110: 0.7763827273 | X110: 8306 | Z110: 111750 | AA110: 142720 | AE110: 113250 | AN110: 117670 | AP110: 478380 | AQ110: 10215 | AT110: 3460 | AU110: 1190 | AX110: 160 | BA110: 4600 | BB110: 1580 | BC110: 34130 | BF110: 80900 | BH110: 34300 | BI110: 1142611 | BJ110: 0.9728403924 | BK110: 0.2175439153 | BL110: 0.7552964771 | BN110: 2020-07-20T20:36:40
C111: T O T A L I | D111: =SUM(D3:D110) -> 618459 | E111: =SUM(E3:E110) -> 77739822 | F111: 0 | G111: 0 | H111: 0 | I111: 0 | J111: 0 | K111: 36040 | L111: 0 | M111: =SUM(M3:M110) -> 0 | N111: 0 | O111: 59140 | P111: =SUM(P3:P110) -> 0 | Q111: =SUM(Q3:Q110) -> 16500 | R111: =SUM(R3:R110) -> 112400 | S111: =SUM(S3:S110) -> 7928 | T111: =SUM(T3:T110) -> 0 | U111: 45630525 | V111: =SUM(U111,E111) -> 123370347 | W111: =IF(BI111=0,"",(U111/V111*100)/100) -> 0.3698662289 | X111: =SUM(X3:X110) -> 1973379 | Y111: =SUM(Y3:Y110) -> 1664 | Z111: 4783132 | AA111: 4296108 | AB111: 60130 | AC111: 29489 | AD111: 1697450 | AE111: 6673064 | AF111: 0 | AG111: 940 | AH111: =SUM(AH3:AH110) -> 35302 | AI111: 0 | AJ111: 0 | AK111: 480 | AL111: =SUM(AL3:AL110) -> 0 | AM111: =SUM(AM3:AM110) -> 130140 | AN111: 6100739 | AO111: 41340 | AP111: 12948207 | AQ111: 96504 | AR111: 0 | AS111: 2463 | AT111: 178893 | AU111: 19144 | AV111: 5033 | AW111: 0 | AX111: 16866 | AY111: 15640 | AZ111: 2175 | BA111: 213160 | BB111: 290799 | BC111: 1131474 | BD111: 41980 | BE111: 233650 | BF111: =SUM(BF3:BF110) -> 2162535 | BG111: =SUM(BG3:BG110) -> 963281 | BH111: 1485364 | BI111: =SUM(BI3:BI110) -> 45630525

Sheet Riep. Dati RSU e RD 1 Sem. 2020
B3: CITTA' METROPOLITANA DI MESSINA
B4: DATI RIFIUTI SOLIDI URBANI E RACCOLTA DIFFERENZIATA
B5: PRIMO SEMESTRE ANNO 2020
A6: ='Dati Generali CER 1 Sem. 2020'!A2 -> 108 | B6: COMUNE | C6: QUANTITA' (KG) | D6: QUANTITA' (KG) | E6: PERCENTUALE | F6: RSU+RSA+RD | G6: RSU+RSA | H6: R.D. | I6: ='Dati Generali CER 1 Sem. 2020'!D2 -> ABITANTI al 31/05/2020
C7: R.S.U. (Cod.200301) | D7: RACCOLTA | E7: RACCOLTA | F7: R.T. (Kg.) | G7: 200301 (kg.) | H7: (Kg.)
C8: PRODOTTI | D8: DIFFERENZIATA | E8: DIFFERENZIATA | F8: Pro Capite/g | G8: RI Pro Capite/g | H8: Pro Capite/g
B9: CTRL + "x" per ordinare in % | D9: CTRL + "h" per Alfabetico
A10: 1 | B10: ='Dati Generali CER 1 Sem. 2020'!C3 -> ACQUEDOLCI | C10: =IF('Dati Generali CER 1 Sem. 2020'!E3="","",'Dati Generali CER 1 Sem. 2020'!E3) -> 223480 | D10: =IF(C10="","",'Dati Generali CER 1 Sem. 2020'!BI3) -> 564130 | E10: ='Dati Generali CER 1 Sem. 2020'!W3 -> 0.7162555072 | F10: =IF('Dati Generali CER 1 Sem. 2020'!BJ3="","",'Dati Generali CER 1 Sem. 2020'!BJ3) -> 0.7836190283 | G10: =IF('Dati Generali CER 1 Sem. 2020'!BK3="","",'Dati Generali CER 1 Sem. 2020'!BK3) -> 0.2223475838 | H10: =IF('Dati Generali CER 1 Sem. 2020'!BL3="","",'Dati Generali CER 1 Sem. 2020'!BL3) -> 0.5612714445 | I10: ='Dati Generali CER 1 Sem. 2020'!D3 -> 5553 | J10: =IF('Dati Generali CER 1 Sem. 2020'!BN3="","",'Dati Generali CER 1 Sem. 2020'!BN3) -> 2020-07-15T09:00:39
A11: 2 | B11: ='Dati Generali CER 1 Sem. 2020'!C4 -> ALCARA LI FUSI | C11: =IF('Dati Generali CER 1 Sem. 2020'!E4="","",'Dati Generali CER 1 Sem. 2020'!E4) -> 34300 | D11: =IF(C11="","",'Dati Generali CER 1 Sem. 2020'!BI4) -> 153701 | E11: ='Dati Generali CER 1 Sem. 2020'!W4 -> 0.8175541619 | F11: =IF('Dati Generali CER 1 Sem. 2020'!BJ4="","",'Dati Generali CER 1 Sem. 2020'!BJ4) -> 0.5773649572 | G11: =IF('Dati Generali CER 1 Sem. 2020'!BK4="","",'Dati Generali CER 1 Sem. 2020'!BK4) -> 0.1053378335 | H11: =IF('Dati Generali CER 1 Sem. 2020'!BL4="","",'Dati Generali CER 1 Sem. 2020'!BL4) -> 0.4720271237 | I11: ='Dati Generali CER 1 Sem. 2020'!D4 -> 1799 | J11: =IF('Dati Generali CER 1 Sem. 2020'!BN4="","",'Dati Generali CER 1 Sem. 2020'!BN4) -> 2020-08-24T11:10:06
A12: 3 | B12: ='Dati Generali CER 1 Sem. 2020'!C5 -> ALI' | C12: =IF('Dati Generali CER 1 Sem. 2020'!E5="","",'Dati Generali CER 1 Sem. 2020'!E5) -> 46320 | D12: =IF(C12="","",'Dati Generali CER 1 Sem. 2020'!BI5) -> 36630 | E12: ='Dati Generali CER 1 Sem. 2020'!W5 -> 0.4415913201 | F12: =IF('Dati Generali CER 1 Sem. 2020'!BJ5="","",'Dati Generali CER 1 Sem. 2020'!BJ5) -> 0.6537621866 | G12: =IF('Dati Generali CER 1 Sem. 2020'!BK5="","",'Dati Generali CER 1 Sem. 2020'!BK5) -> 0.3650664796 | H12: =IF('Dati Generali CER 1 Sem. 2020'!BL5="","",'Dati Generali CER 1 Sem. 2020'!BL5) -> 0.288695707 | I12: ='Dati Generali CER 1 Sem. 2020'!D5 -> 701 | J12: =IF('Dati Generali CER 1 Sem. 2020'!BN5="","",'Dati Generali CER 1 Sem. 2020'!BN5) -> 2020-07-22T19:19:42
A13: 4 | B13: ='Dati Generali CER 1 Sem. 2020'!C6 -> ALI' TERME | C13: =IF('Dati Generali CER 1 Sem. 2020'!E6="","",'Dati Generali CER 1 Sem. 2020'!E6) -> 244940 | D13: =IF(C13="","",'Dati Generali CER 1 Sem. 2020'!BI6) -> 170579 | E13: ='Dati Generali CER 1 Sem. 2020'!W6 -> 0.4105203372 | F13: =IF('Dati Generali CER 1 Sem. 2020'!BJ6="","",'Dati Generali CER 1 Sem. 2020'!BJ6) -> 0.9400839815 | G13: =IF('Dati Generali CER 1 Sem. 2020'!BK6="","",'Dati Generali CER 1 Sem. 2020'!BK6) -> 0.5541603884 | H13: =IF('Dati Generali CER 1 Sem. 2020'!BL6="","",'Dati Generali CER 1 Sem. 2020'!BL6) -> 0.3859235931 | I13: ='Dati Generali CER 1 Sem. 2020'!D6 -> 2442 | J13: =IF('Dati Generali CER 1 Sem. 2020'!BN6="","",'Dati Generali CER 1 Sem. 2020'!BN6) -> 2020-07-20T19:30:07
A14: 5 | B14: ='Dati Generali CER 1 Sem. 2020'!C7 -> ANTILLO | C14: =IF('Dati Generali CER 1 Sem. 2020'!E7="","",'Dati Generali CER 1 Sem. 2020'!E7) -> 21440 | D14: =IF(C14="","",'Dati Generali CER 1 Sem. 2020'!BI7) -> 58732 | E14: ='Dati Generali CER 1 Sem. 2020'!W7 -> 0.7325749638 | F14: =IF('Dati Generali CER 1 Sem. 2020'!BJ7="","",'Dati Generali CER 1 Sem. 2020'!BJ7) -> 0.5229506807 | G14: =IF('Dati Generali CER 1 Sem. 2020'!BK7="","",'Dati Generali CER 1 Sem. 2020'!BK7) -> 0.1398501047 | H14: =IF('Dati Generali CER 1 Sem. 2020'!BL7="","",'Dati Generali CER 1 Sem. 2020'!BL7) -> 0.383100576 | I14: ='Dati Generali CER 1 Sem. 2020'!D7 -> 847 | J14: =IF('Dati Generali CER 1 Sem. 2020'!BN7="","",'Dati Generali CER 1 Sem. 2020'!BN7) -> 2020-09-29T12:07:20
A15: 6 | B15: ='Dati Generali CER 1 Sem. 2020'!C8 -> BARCELLONA P.G. | C15: =IF('Dati Generali CER 1 Sem. 2020'!E8="","",'Dati Generali CER 1 Sem. 2020'!E8) -> 6631030 | D15: =IF(C15="","",'Dati Generali CER 1 Sem. 2020'!BI8) -> 1802502 | E15: ='Dati Generali CER 1 Sem. 2020'!W8 -> 0.2137303801 | F15: =IF('Dati Generali CER 1 Sem. 2020'!BJ8="","",'Dati Generali CER 1 Sem. 2020'!BJ8) -> 1.138106972 | G15: =IF('Dati Generali CER 1 Sem. 2020'!BK8="","",'Dati Generali CER 1 Sem. 2020'!BK8) -> 0.8948589365 | H15: =IF('Dati Generali CER 1 Sem. 2020'!BL8="","",'Dati Generali CER 1 Sem. 2020'!BL8) -> 0.2432480358 | I15: ='Dati Generali CER 1 Sem. 2020'!D8 -> 40940 | J15: =IF('Dati Generali CER 1 Sem. 2020'!BN8="","",'Dati Generali CER 1 Sem. 2020'!BN8) -> 2020-07-31T20:29:36
A16: 7 | B16: ='Dati Generali CER 1 Sem. 2020'!C9 -> BASICO' | C16: =IF('Dati Generali CER 1 Sem. 2020'!E9="","",'Dati Generali CER 1 Sem. 2020'!E9) -> 49780 | D16: =IF(C16="","",'Dati Generali CER 1 Sem. 2020'!BI9) -> 44588 | E16: ='Dati Generali CER 1 Sem. 2020'!W9 -> 0.4724906748 | F16: =IF('Dati Generali CER 1 Sem. 2020'!BJ9="","",'Dati Generali CER 1 Sem. 2020'!BJ9) -> 0.9083103933 | G16: =IF('Dati Generali CER 1 Sem. 2020'!BK9="","",'Dati Generali CER 1 Sem. 2020'!BK9) -> 0.4791422026 | H16: =IF('Dati Generali CER 1 Sem. 2020'!BL9="","",'Dati Generali CER 1 Sem. 2020'!BL9) -> 0.4291681907 | I16: ='Dati Generali CER 1 Sem. 2020'!D9 -> 574 | J16: =IF('Dati Generali CER 1 Sem. 2020'!BN9="","",'Dati Generali CER 1 Sem. 2020'!BN9) -> 2020-09-18T18:06:37
A17: 8 | B17: ='Dati Generali CER 1 Sem. 2020'!C10 -> BROLO | C17: =IF('Dati Generali CER 1 Sem. 2020'!E10="","",'Dati Generali CER 1 Sem. 2020'!E10) -> 762090 | D17: =IF(C17="","",'Dati Generali CER 1 Sem. 2020'!BI10) -> 454290 | E17: ='Dati Generali CER 1 Sem. 2020'!W10 -> 0.3662270448 | F17: =IF('Dati Generali CER 1 Sem. 2020'!BJ10="","",'Dati Generali CER 1 Sem. 2020'!BJ10) -> 1.178770238 | G17: =IF('Dati Generali CER 1 Sem. 2020'!BK10="","",'Dati Generali CER 1 Sem. 2020'!BK10) -> 0.7241902286 | H17: =IF('Dati Generali CER 1 Sem. 2020'!BL10="","",'Dati Generali CER 1 Sem. 2020'!BL10) -> 0.4316975409 | I17: ='Dati Generali CER 1 Sem. 2020'!D10 -> 5814 | J17: =IF('Dati Generali CER 1 Sem. 2020'!BN10="","",'Dati Generali CER 1 Sem. 2020'!BN10) -> 2020-09-11T12:29:23
A18: 9 | B18: ='Dati Generali CER 1 Sem. 2020'!C11 -> CAPIZZI | C18: =IF('Dati Generali CER 1 Sem. 2020'!E11="","",'Dati Generali CER 1 Sem. 2020'!E11) -> 149480 | D18: =IF(C18="","",'Dati Generali CER 1 Sem. 2020'!BI11) -> 243200 | E18: ='Dati Generali CER 1 Sem. 2020'!W11 -> 0.6193338087 | F18: =IF('Dati Generali CER 1 Sem. 2020'!BJ11="","",'Dati Generali CER 1 Sem. 2020'!BJ11) -> 0.7344288295 | G18: =IF('Dati Generali CER 1 Sem. 2020'!BK11="","",'Dati Generali CER 1 Sem. 2020'!BK11) -> 0.2795722253 | H18: =IF('Dati Generali CER 1 Sem. 2020'!BL11="","",'Dati Generali CER 1 Sem. 2020'!BL11) -> 0.4548566042 | I18: ='Dati Generali CER 1 Sem. 2020'!D11 -> 2954 | J18: =IF('Dati Generali CER 1 Sem. 2020'!BN11="","",'Dati Generali CER 1 Sem. 2020'!BN11) -> 2020-07-20T19:34:32
A19: 10 | B19: ='Dati Generali CER 1 Sem. 2020'!C12 -> CAPO D'ORLANDO | C19: =IF('Dati Generali CER 1 Sem. 2020'!E12="","",'Dati Generali CER 1 Sem. 2020'!E12) -> 1331460 | D19: =IF(C19="","",'Dati Generali CER 1 Sem. 2020'!BI12) -> 1446390 | E19: ='Dati Generali CER 1 Sem. 2020'!W12 -> 0.5206868621 | F19: =IF('Dati Generali CER 1 Sem. 2020'!BJ12="","",'Dati Generali CER 1 Sem. 2020'!BJ12) -> 1.160734955 | G19: =IF('Dati Generali CER 1 Sem. 2020'!BK12="","",'Dati Generali CER 1 Sem. 2020'!BK12) -> 0.5563555133 | H19: =IF('Dati Generali CER 1 Sem. 2020'!BL12="","",'Dati Generali CER 1 Sem. 2020'!BL12) -> 0.6043794413 | I19: ='Dati Generali CER 1 Sem. 2020'!D12 -> 13222 | J19: =IF('Dati Generali CER 1 Sem. 2020'!BN12="","",'Dati Generali CER 1 Sem. 2020'!BN12) -> 2020-09-07T12:30:56
A20: 11 | B20: ='Dati Generali CER 1 Sem. 2020'!C13 -> CAPRILEONE | C20: =IF('Dati Generali CER 1 Sem. 2020'!E13="","",'Dati Generali CER 1 Sem. 2020'!E13) -> 321250 | D20: =IF(C20="","",'Dati Generali CER 1 Sem. 2020'!BI13) -> 198430 | E20: ='Dati Generali CER 1 Sem. 2020'!W13 -> 0.3818311268 | F20: =IF('Dati Generali CER 1 Sem. 2020'!BJ13="","",'Dati Generali CER 1 Sem. 2020'!BJ13) -> 0.6523881438 | G20: =IF('Dati Generali CER 1 Sem. 2020'!BK13="","",'Dati Generali CER 1 Sem. 2020'!BK13) -> 0.4032860437 | H20: =IF('Dati Generali CER 1 Sem. 2020'!BL13="","",'Dati Generali CER 1 Sem. 2020'!BL13) -> 0.2491021001 | I20: ='Dati Generali CER 1 Sem. 2020'!D13 -> 4401 | J20: =IF('Dati Generali CER 1 Sem. 2020'!BN13="","",'Dati Generali CER 1 Sem. 2020'!BN13) -> 2020-07-15T16:59:58
A21: 12 | B21: ='Dati Generali CER 1 Sem. 2020'!C14 -> CARONIA | C21: =IF('Dati Generali CER 1 Sem. 2020'!E14="","",'Dati Generali CER 1 Sem. 2020'!E14) -> 223460 | D21: =IF(C21="","",'Dati Generali CER 1 Sem. 2020'!BI14) -> 417250 | E21: ='Dati Generali CER 1 Sem. 2020'!W14 -> 0.651230666 | F21: =IF('Dati Generali CER 1 Sem. 2020'!BJ14="","",'Dati Generali CER 1 Sem. 2020'!BJ14) -> 1.133835443 | G21: =IF('Dati Generali CER 1 Sem. 2020'!BK14="","",'Dati Generali CER 1 Sem. 2020'!BK14) -> 0.3954470325 | H21: =IF('Dati Generali CER 1 Sem. 2020'!BL14="","",'Dati Generali CER 1 Sem. 2020'!BL14) -> 0.7383884109 | I21: ='Dati Generali CER 1 Sem. 2020'!D14 -> 3122 | J21: =IF('Dati Generali CER 1 Sem. 2020'!BN14="","",'Dati Generali CER 1 Sem. 2020'!BN14) -> 2020-09-11T12:06:42
A22: 13 | B22: ='Dati Generali CER 1 Sem. 2020'!C15 -> CASALVECCHIO SICULO | C22: =IF('Dati Generali CER 1 Sem. 2020'!E15="","",'Dati Generali CER 1 Sem. 2020'!E15) -> 48640 | D22: =IF(C22="","",'Dati Generali CER 1 Sem. 2020'!BI15) -> 20590 | E22: ='Dati Generali CER 1 Sem. 2020'!W15 -> 0.2974144157 | F22: =IF('Dati Generali CER 1 Sem. 2020'!BJ15="","",'Dati Generali CER 1 Sem. 2020'!BJ15) -> 0.4980288904 | G22: =IF('Dati Generali CER 1 Sem. 2020'!BK15="","",'Dati Generali CER 1 Sem. 2020'!BK15) -> 0.349907919 | H22: =IF('Dati Generali CER 1 Sem. 2020'!BL15="","",'Dati Generali CER 1 Sem. 2020'!BL15) -> 0.1481209715 | I22: ='Dati Generali CER 1 Sem. 2020'!D15 -> 768 | J22: =IF('Dati Generali CER 1 Sem. 2020'!BN15="","",'Dati Generali CER 1 Sem. 2020'!BN15) -> 2020-07-23T19:00:44
A23: 14 | B23: ='Dati Generali CER 1 Sem. 2020'!C16 -> CASTEL DI LUCIO | C23: =IF('Dati Generali CER 1 Sem. 2020'!E16="","",'Dati Generali CER 1 Sem. 2020'!E16) -> 13060 | D23: =IF(C23="","",'Dati Generali CER 1 Sem. 2020'!BI16) -> 70330 | E23: ='Dati Generali CER 1 Sem. 2020'!W16 -> 0.8433864972 | F23: =IF('Dati Generali CER 1 Sem. 2020'!BJ16="","",'Dati Generali CER 1 Sem. 2020'!BJ16) -> 0.36916525 | G23: =IF('Dati Generali CER 1 Sem. 2020'!BK16="","",'Dati Generali CER 1 Sem. 2020'!BK16) -> 0.05781626293 | H23: =IF('Dati Generali CER 1 Sem. 2020'!BL16="","",'Dati Generali CER 1 Sem. 2020'!BL16) -> 0.3113489871 | I23: ='Dati Generali CER 1 Sem. 2020'!D16 -> 1248 | J23: =IF('Dati Generali CER 1 Sem. 2020'!BN16="","",'Dati Generali CER 1 Sem. 2020'!BN16) -> 2020-07-15T09:27:38
A24: 15 | B24: ='Dati Generali CER 1 Sem. 2020'!C17 -> CASTELL'UMBERTO | C24: =IF('Dati Generali CER 1 Sem. 2020'!E17="","",'Dati Generali CER 1 Sem. 2020'!E17) -> 227700 | D24: =IF(C24="","",'Dati Generali CER 1 Sem. 2020'!BI17) -> 182520 | E24: ='Dati Generali CER 1 Sem. 2020'!W17 -> 0.4449319877 | F24: =IF('Dati Generali CER 1 Sem. 2020'!BJ17="","",'Dati Generali CER 1 Sem. 2020'!BJ17) -> 0.764387467 | G24: =IF('Dati Generali CER 1 Sem. 2020'!BK17="","",'Dati Generali CER 1 Sem. 2020'!BK17) -> 0.4242870319 | H24: =IF('Dati Generali CER 1 Sem. 2020'!BL17="","",'Dati Generali CER 1 Sem. 2020'!BL17) -> 0.3401004351 | I24: ='Dati Generali CER 1 Sem. 2020'!D17 -> 2965 | J24: =IF('Dati Generali CER 1 Sem. 2020'!BN17="","",'Dati Generali CER 1 Sem. 2020'!BN17) -> 2020-07-15T09:44:22
A25: 16 | B25: ='Dati Generali CER 1 Sem. 2020'!C18 -> CASTELMOLA | C25: =IF('Dati Generali CER 1 Sem. 2020'!E18="","",'Dati Generali CER 1 Sem. 2020'!E18) -> 68350 | D25: =IF(C25="","",'Dati Generali CER 1 Sem. 2020'!BI18) -> 59930 | E25: ='Dati Generali CER 1 Sem. 2020'!W18 -> 0.4671811662 | F25: =IF('Dati Generali CER 1 Sem. 2020'!BJ18="","",'Dati Generali CER 1 Sem. 2020'!BJ18) -> 0.6442993471 | G25: =IF('Dati Generali CER 1 Sem. 2020'!BK18="","",'Dati Generali CER 1 Sem. 2020'!BK18) -> 0.3432948267 | H25: =IF('Dati Generali CER 1 Sem. 2020'!BL18="","",'Dati Generali CER 1 Sem. 2020'!BL18) -> 0.3010045203 | I25: ='Dati Generali CER 1 Sem. 2020'!D18 -> 1100 | J25: =IF('Dati Generali CER 1 Sem. 2020'!BN18="","",'Dati Generali CER 1 Sem. 2020'!BN18) -> 2020-09-24T18:34:35
A26: 17 | B26: ='Dati Generali CER 1 Sem. 2020'!C19 -> CASTROREALE | C26: =IF('Dati Generali CER 1 Sem. 2020'!E19="","",'Dati Generali CER 1 Sem. 2020'!E19) -> 133300 | D26: =IF(C26="","",'Dati Generali CER 1 Sem. 2020'!BI19) -> 131920 | E26: ='Dati Generali CER 1 Sem. 2020'!W19 -> 0.4973983862 | F26: =IF('Dati Generali CER 1 Sem. 2020'!BJ19="","",'Dati Generali CER 1 Sem. 2020'!BJ19) -> 0.6384766307 | G26: =IF('Dati Generali CER 1 Sem. 2020'!BK19="","",'Dati Generali CER 1 Sem. 2020'!BK19) -> 0.3208993849 | H26: =IF('Dati Generali CER 1 Sem. 2020'!BL19="","",'Dati Generali CER 1 Sem. 2020'!BL19) -> 0.3175772458 | I26: ='Dati Generali CER 1 Sem. 2020'!D19 -> 2295 | J26: =IF('Dati Generali CER 1 Sem. 2020'!BN19="","",'Dati Generali CER 1 Sem. 2020'!BN19) -> 2020-09-07T12:42:07
A27: 18 | B27: ='Dati Generali CER 1 Sem. 2020'!C20 -> CESARO' | C27: =IF('Dati Generali CER 1 Sem. 2020'!E20="","",'Dati Generali CER 1 Sem. 2020'!E20) -> 136900 | D27: =IF(C27="","",'Dati Generali CER 1 Sem. 2020'!BI20) -> 147600 | E27: ='Dati Generali CER 1 Sem. 2020'!W20 -> 0.5188049209 | F27: =IF('Dati Generali CER 1 Sem. 2020'!BJ20="","",'Dati Generali CER 1 Sem. 2020'!BJ20) -> 0.6979676751 | G27: =IF('Dati Generali CER 1 Sem. 2020'!BK20="","",'Dati Generali CER 1 Sem. 2020'!BK20) -> 0.3358586106 | H27: =IF('Dati Generali CER 1 Sem. 2020'!BL20="","",'Dati Generali CER 1 Sem. 2020'!BL20) -> 0.3621090645 | I27: ='Dati Generali CER 1 Sem. 2020'!D20 -> 2252 | J27: =IF('Dati Generali CER 1 Sem. 2020'!BN20="","",'Dati Generali CER 1 Sem. 2020'!BN20) -> 2020-07-23T19:08:42
A28: 19 | B28: ='Dati Generali CER 1 Sem. 2020'!C21 -> CONDRO' | C28: =IF('Dati Generali CER 1 Sem. 2020'!E21="","",'Dati Generali CER 1 Sem. 2020'!E21) -> 88000 | D28: =IF(C28="","",'Dati Generali CER 1 Sem. 2020'!BI21) -> 18310 | E28: ='Dati Generali CER 1 Sem. 2020'!W21 -> 0.1722321513 | F28: =IF('Dati Generali CER 1 Sem. 2020'!BJ21="","",'Dati Generali CER 1 Sem. 2020'!BJ21) -> 1.206053524 | G28: =IF('Dati Generali CER 1 Sem. 2020'!BK21="","",'Dati Generali CER 1 Sem. 2020'!BK21) -> 0.9983323312 | H28: =IF('Dati Generali CER 1 Sem. 2020'!BL21="","",'Dati Generali CER 1 Sem. 2020'!BL21) -> 0.207721193 | I28: ='Dati Generali CER 1 Sem. 2020'!D21 -> 487 | J28: =IF('Dati Generali CER 1 Sem. 2020'!BN21="","",'Dati Generali CER 1 Sem. 2020'!BN21) -> 2020-07-23T19:11:49
A29: 20 | B29: ='Dati Generali CER 1 Sem. 2020'!C22 -> FALCONE | C29: =IF('Dati Generali CER 1 Sem. 2020'!E22="","",'Dati Generali CER 1 Sem. 2020'!E22) -> 378870 | D29: =IF(C29="","",'Dati Generali CER 1 Sem. 2020'!BI22) -> 124500 | E29: ='Dati Generali CER 1 Sem. 2020'!W22 -> 0.2473329757 | F29: =IF('Dati Generali CER 1 Sem. 2020'!BJ22="","",'Dati Generali CER 1 Sem. 2020'!BJ22) -> 1.020943364 | G29: =IF('Dati Generali CER 1 Sem. 2020'!BK22="","",'Dati Generali CER 1 Sem. 2020'!BK22) -> 0.7684304038 | H29: =IF('Dati Generali CER 1 Sem. 2020'!BL22="","",'Dati Generali CER 1 Sem. 2020'!BL22) -> 0.2525129603 | I29: ='Dati Generali CER 1 Sem. 2020'!D22 -> 2724 | J29: =IF('Dati Generali CER 1 Sem. 2020'!BN22="","",'Dati Generali CER 1 Sem. 2020'!BN22) -> 2020-07-31T20:38:05
A30: 21 | B30: ='Dati Generali CER 1 Sem. 2020'!C23 -> FICARRA | C30: =IF('Dati Generali CER 1 Sem. 2020'!E23="","",'Dati Generali CER 1 Sem. 2020'!E23) -> 130620 | D30: =IF(C30="","",'Dati Generali CER 1 Sem. 2020'!BI23) -> 66000 | E30: ='Dati Generali CER 1 Sem. 2020'!W23 -> 0.3356728715 | F30: =IF('Dati Generali CER 1 Sem. 2020'!BJ23="","",'Dati Generali CER 1 Sem. 2020'!BJ23) -> 0.7946586266 | G30: =IF('Dati Generali CER 1 Sem. 2020'!BK23="","",'Dati Generali CER 1 Sem. 2020'!BK23) -> 0.5279132835 | H30: =IF('Dati Generali CER 1 Sem. 2020'!BL23="","",'Dati Generali CER 1 Sem. 2020'!BL23) -> 0.2667453431 | I30: ='Dati Generali CER 1 Sem. 2020'!D23 -> 1367 | J30: =IF('Dati Generali CER 1 Sem. 2020'!BN23="","",'Dati Generali CER 1 Sem. 2020'!BN23) -> 2020-07-21T10:45:15
A31: 22 | B31: ='Dati Generali CER 1 Sem. 2020'!C24 -> FIUMEDINISI | C31: =IF('Dati Generali CER 1 Sem. 2020'!E24="","",'Dati Generali CER 1 Sem. 2020'!E24) -> 95950 | D31: =IF(C31="","",'Dati Generali CER 1 Sem. 2020'!BI24) -> 70370 | E31: ='Dati Generali CER 1 Sem. 2020'!W24 -> 0.4231000481 | F31: =IF('Dati Generali CER 1 Sem. 2020'!BJ24="","",'Dati Generali CER 1 Sem. 2020'!BJ24) -> 0.6945540647 | G31: =IF('Dati Generali CER 1 Sem. 2020'!BK24="","",'Dati Generali CER 1 Sem. 2020'!BK24) -> 0.4006882065 | H31: =IF('Dati Generali CER 1 Sem. 2020'!BL24="","",'Dati Generali CER 1 Sem. 2020'!BL24) -> 0.2938658582 | I31: ='Dati Generali CER 1 Sem. 2020'!D24 -> 1323 | J31: =IF('Dati Generali CER 1 Sem. 2020'!BN24="","",'Dati Generali CER 1 Sem. 2020'!BN24) -> 2020-09-11T12:34:05
A32: 23 | B32: ='Dati Generali CER 1 Sem. 2020'!C25 -> FLORESTA | C32: =IF('Dati Generali CER 1 Sem. 2020'!E25="","",'Dati Generali CER 1 Sem. 2020'!E25) -> 69440 | D32: =IF(C32="","",'Dati Generali CER 1 Sem. 2020'!BI25) -> 17170 | E32: ='Dati Generali CER 1 Sem. 2020'!W25 -> 0.1982450064 | F32: =IF('Dati Generali CER 1 Sem. 2020'!BJ25="","",'Dati Generali CER 1 Sem. 2020'!BJ25) -> 1.053983012 | G32: =IF('Dati Generali CER 1 Sem. 2020'!BK25="","",'Dati Generali CER 1 Sem. 2020'!BK25) -> 0.8450361428 | H32: =IF('Dati Generali CER 1 Sem. 2020'!BL25="","",'Dati Generali CER 1 Sem. 2020'!BL25) -> 0.2089468688 | I32: ='Dati Generali CER 1 Sem. 2020'!D25 -> 454 | J32: =IF('Dati Generali CER 1 Sem. 2020'!BN25="","",'Dati Generali CER 1 Sem. 2020'!BN25) -> 2020-09-04T11:17:03
A33: 24 | B33: ='Dati Generali CER 1 Sem. 2020'!C26 -> FONDACHELLI FANTINA | C33: =IF('Dati Generali CER 1 Sem. 2020'!E26="","",'Dati Generali CER 1 Sem. 2020'!E26) -> 82960 | D33: =IF(C33="","",'Dati Generali CER 1 Sem. 2020'!BI26) -> 39350 | E33: ='Dati Generali CER 1 Sem. 2020'!W26 -> 0.3217234895 | F33: =IF('Dati Generali CER 1 Sem. 2020'!BJ26="","",'Dati Generali CER 1 Sem. 2020'!BJ26) -> 0.6624959376 | G33: =IF('Dati Generali CER 1 Sem. 2020'!BK26="","",'Dati Generali CER 1 Sem. 2020'!BK26) -> 0.4493554328 | H33: =IF('Dati Generali CER 1 Sem. 2020'!BL26="","",'Dati Generali CER 1 Sem. 2020'!BL26) -> 0.2131405048 | I33: ='Dati Generali CER 1 Sem. 2020'!D26 -> 1020 | J33: =IF('Dati Generali CER 1 Sem. 2020'!BN26="","",'Dati Generali CER 1 Sem. 2020'!BN26) -> 2020-07-15T17:04:03
A34: 25 | B34: ='Dati Generali CER 1 Sem. 2020'!C27 -> FORZA D'AGRO' | C34: =IF('Dati Generali CER 1 Sem. 2020'!E27="","",'Dati Generali CER 1 Sem. 2020'!E27) -> 89590 | D34: =IF(C34="","",'Dati Generali CER 1 Sem. 2020'!BI27) -> 126410 | E34: ='Dati Generali CER 1 Sem. 2020'!W27 -> 0.5852314815 | F34: =IF('Dati Generali CER 1 Sem. 2020'!BJ27="","",'Dati Generali CER 1 Sem. 2020'!BJ27) -> 1.340865355 | G34: =IF('Dati Generali CER 1 Sem. 2020'!BK27="","",'Dati Generali CER 1 Sem. 2020'!BK27) -> 0.5561487367 | H34: =IF('Dati Generali CER 1 Sem. 2020'!BL27="","",'Dati Generali CER 1 Sem. 2020'!BL27) -> 0.784716618 | I34: ='Dati Generali CER 1 Sem. 2020'!D27 -> 890 | J34: =IF('Dati Generali CER 1 Sem. 2020'!BN27="","",'Dati Generali CER 1 Sem. 2020'!BN27) -> 2020-09-21T17:01:37
A35: 26 | B35: ='Dati Generali CER 1 Sem. 2020'!C28 -> FRANCAVILLA DI SICILIA | C35: =IF('Dati Generali CER 1 Sem. 2020'!E28="","",'Dati Generali CER 1 Sem. 2020'!E28) -> 386520 | D35: =IF(C35="","",'Dati Generali CER 1 Sem. 2020'!BI28) -> 227420 | E35: ='Dati Generali CER 1 Sem. 2020'!W28 -> 0.3704270776 | F35: =IF('Dati Generali CER 1 Sem. 2020'!BJ28="","",'Dati Generali CER 1 Sem. 2020'!BJ28) -> 0.9157488395 | G35: =IF('Dati Generali CER 1 Sem. 2020'!BK28="","",'Dati Generali CER 1 Sem. 2020'!BK28) -> 0.5765306731 | H35: =IF('Dati Generali CER 1 Sem. 2020'!BL28="","",'Dati Generali CER 1 Sem. 2020'!BL28) -> 0.3392181664 | I35: ='Dati Generali CER 1 Sem. 2020'!D28 -> 3704 | J35: =IF('Dati Generali CER 1 Sem. 2020'!BN28="","",'Dati Generali CER 1 Sem. 2020'!BN28) -> 2020-09-15T19:18:09
A36: 27 | B36: ='Dati Generali CER 1 Sem. 2020'!C29 -> FRAZZANO' | C36: =IF('Dati Generali CER 1 Sem. 2020'!E29="","",'Dati Generali CER 1 Sem. 2020'!E29) -> 29080 | D36: =IF(C36="","",'Dati Generali CER 1 Sem. 2020'!BI29) -> 34910 | E36: ='Dati Generali CER 1 Sem. 2020'!W29 -> 0.5455539928 | F36: =IF('Dati Generali CER 1 Sem. 2020'!BJ29="","",'Dati Generali CER 1 Sem. 2020'!BJ29) -> 0.5767306878 | G36: =IF('Dati Generali CER 1 Sem. 2020'!BK29="","",'Dati Generali CER 1 Sem. 2020'!BK29) -> 0.2620929583 | H36: =IF('Dati Generali CER 1 Sem. 2020'!BL29="","",'Dati Generali CER 1 Sem. 2020'!BL29) -> 0.3146377295 | I36: ='Dati Generali CER 1 Sem. 2020'!D29 -> 613 | J36: =IF('Dati Generali CER 1 Sem. 2020'!BN29="","",'Dati Generali CER 1 Sem. 2020'!BN29) -> 2020-07-15T09:49:44
A37: 28 | B37: ='Dati Generali CER 1 Sem. 2020'!C30 -> FURCI SICULO | C37: =IF('Dati Generali CER 1 Sem. 2020'!E30="","",'Dati Generali CER 1 Sem. 2020'!E30) -> 136940 | D37: =IF(C37="","",'Dati Generali CER 1 Sem. 2020'!BI30) -> 383520 | E37: ='Dati Generali CER 1 Sem. 2020'!W30 -> 0.7368866003 | F37: =IF('Dati Generali CER 1 Sem. 2020'!BJ30="","",'Dati Generali CER 1 Sem. 2020'!BJ30) -> 0.8877646228 | G37: =IF('Dati Generali CER 1 Sem. 2020'!BK30="","",'Dati Generali CER 1 Sem. 2020'!BK30) -> 0.233582768 | H37: =IF('Dati Generali CER 1 Sem. 2020'!BL30="","",'Dati Generali CER 1 Sem. 2020'!BL30) -> 0.6541818548 | I37: ='Dati Generali CER 1 Sem. 2020'!D30 -> 3239 | J37: =IF('Dati Generali CER 1 Sem. 2020'!BN30="","",'Dati Generali CER 1 Sem. 2020'!BN30) -> 2020-07-28T11:30:01
A38: 29 | B38: ='Dati Generali CER 1 Sem. 2020'!C31 -> FURNARI | C38: =IF('Dati Generali CER 1 Sem. 2020'!E31="","",'Dati Generali CER 1 Sem. 2020'!E31) -> 452520 | D38: =IF(C38="","",'Dati Generali CER 1 Sem. 2020'!BI31) -> 319910 | E38: ='Dati Generali CER 1 Sem. 2020'!W31 -> 0.4141605065 | F38: =IF('Dati Generali CER 1 Sem. 2020'!BJ31="","",'Dati Generali CER 1 Sem. 2020'!BJ31) -> 1.112795061 | G38: =IF('Dati Generali CER 1 Sem. 2020'!BK31="","",'Dati Generali CER 1 Sem. 2020'!BK31) -> 0.6519192952 | H38: =IF('Dati Generali CER 1 Sem. 2020'!BL31="","",'Dati Generali CER 1 Sem. 2020'!BL31) -> 0.4608757662 | I38: ='Dati Generali CER 1 Sem. 2020'!D31 -> 3835 | J38: =IF('Dati Generali CER 1 Sem. 2020'!BN31="","",'Dati Generali CER 1 Sem. 2020'!BN31) -> 2020-09-22T13:55:59
A39: 30 | B39: ='Dati Generali CER 1 Sem. 2020'!C32 -> GAGGI | C39: =IF('Dati Generali CER 1 Sem. 2020'!E32="","",'Dati Generali CER 1 Sem. 2020'!E32) -> 239610 | D39: =IF(C39="","",'Dati Generali CER 1 Sem. 2020'!BI32) -> 262801 | E39: ='Dati Generali CER 1 Sem. 2020'!W32 -> 0.5230797096 | F39: =IF('Dati Generali CER 1 Sem. 2020'!BJ32="","",'Dati Generali CER 1 Sem. 2020'!BJ32) -> 0.8753552132 | G39: =IF('Dati Generali CER 1 Sem. 2020'!BK32="","",'Dati Generali CER 1 Sem. 2020'!BK32) -> 0.4174746625 | H39: =IF('Dati Generali CER 1 Sem. 2020'!BL32="","",'Dati Generali CER 1 Sem. 2020'!BL32) -> 0.4578805508 | I39: ='Dati Generali CER 1 Sem. 2020'!D32 -> 3171 | J39: =IF('Dati Generali CER 1 Sem. 2020'!BN32="","",'Dati Generali CER 1 Sem. 2020'!BN32) -> 2020-09-18T18:09:53
A40: 31 | B40: ='Dati Generali CER 1 Sem. 2020'!C33 -> GALATI MAMERTINO | C40: =IF('Dati Generali CER 1 Sem. 2020'!E33="","",'Dati Generali CER 1 Sem. 2020'!E33) -> 205840 | D40: =IF(C40="","",'Dati Generali CER 1 Sem. 2020'!BI33) -> 139970 | E40: ='Dati Generali CER 1 Sem. 2020'!W33 -> 0.4047598392 | F40: =IF('Dati Generali CER 1 Sem. 2020'!BJ33="","",'Dati Generali CER 1 Sem. 2020'!BJ33) -> 0.7973925235 | G40: =IF('Dati Generali CER 1 Sem. 2020'!BK33="","",'Dati Generali CER 1 Sem. 2020'!BK33) -> 0.4746400539 | H40: =IF('Dati Generali CER 1 Sem. 2020'!BL33="","",'Dati Generali CER 1 Sem. 2020'!BL33) -> 0.3227524696 | I40: ='Dati Generali CER 1 Sem. 2020'!D33 -> 2396 | J40: =IF('Dati Generali CER 1 Sem. 2020'!BN33="","",'Dati Generali CER 1 Sem. 2020'!BN33) -> 2020-07-09T08:09:05
A41: 32 | B41: ='Dati Generali CER 1 Sem. 2020'!C34 -> GALLODORO | C41: =IF('Dati Generali CER 1 Sem. 2020'!E34="","",'Dati Generali CER 1 Sem. 2020'!E34) -> 22130 | D41: =IF(C41="","",'Dati Generali CER 1 Sem. 2020'!BI34) -> 33060 | E41: ='Dati Generali CER 1 Sem. 2020'!W34 -> 0.5990215619 | F41: =IF('Dati Generali CER 1 Sem. 2020'!BJ34="","",'Dati Generali CER 1 Sem. 2020'!BJ34) -> 0.8787237091 | G41: =IF('Dati Generali CER 1 Sem. 2020'!BK34="","",'Dati Generali CER 1 Sem. 2020'!BK34) -> 0.3523492604 | H41: =IF('Dati Generali CER 1 Sem. 2020'!BL34="","",'Dati Generali CER 1 Sem. 2020'!BL34) -> 0.5263744487 | I41: ='Dati Generali CER 1 Sem. 2020'!D34 -> 347 | J41: =IF('Dati Generali CER 1 Sem. 2020'!BN34="","",'Dati Generali CER 1 Sem. 2020'!BN34) -> 2020-09-23T10:00:46
A42: 33 | B42: ='Dati Generali CER 1 Sem. 2020'!C35 -> GIARDINI NAXOS | C42: =IF('Dati Generali CER 1 Sem. 2020'!E35="","",'Dati Generali CER 1 Sem. 2020'!E35) -> 818120 | D42: =IF(C42="","",'Dati Generali CER 1 Sem. 2020'!BI35) -> 1420665 | E42: ='Dati Generali CER 1 Sem. 2020'!W35 -> 0.6345696438 | F42: =IF('Dati Generali CER 1 Sem. 2020'!BJ35="","",'Dati Generali CER 1 Sem. 2020'!BJ35) -> 1.327713386 | G42: =IF('Dati Generali CER 1 Sem. 2020'!BK35="","",'Dati Generali CER 1 Sem. 2020'!BK35) -> 0.4851867754 | H42: =IF('Dati Generali CER 1 Sem. 2020'!BL35="","",'Dati Generali CER 1 Sem. 2020'!BL35) -> 0.8425266102 | I42: ='Dati Generali CER 1 Sem. 2020'!D35 -> 9316 | J42: =IF('Dati Generali CER 1 Sem. 2020'!BN35="","",'Dati Generali CER 1 Sem. 2020'!BN35) -> 2020-11-03T16:48:51
A43: 34 | B43: ='Dati Generali CER 1 Sem. 2020'!C36 -> GIOIOSA MAREA | C43: =IF('Dati Generali CER 1 Sem. 2020'!E36="","",'Dati Generali CER 1 Sem. 2020'!E36) -> 761840 | D43: =IF(C43="","",'Dati Generali CER 1 Sem. 2020'!BI36) -> 405330 | E43: ='Dati Generali CER 1 Sem. 2020'!W36 -> 0.3472758895 | F43: =IF('Dati Generali CER 1 Sem. 2020'!BJ36="","",'Dati Generali CER 1 Sem. 2020'!BJ36) -> 0.9387761011 | G43: =IF('Dati Generali CER 1 Sem. 2020'!BK36="","",'Dati Generali CER 1 Sem. 2020'!BK36) -> 0.6127617955 | H43: =IF('Dati Generali CER 1 Sem. 2020'!BL36="","",'Dati Generali CER 1 Sem. 2020'!BL36) -> 0.3260143056 | I43: ='Dati Generali CER 1 Sem. 2020'!D36 -> 6869 | J43: =IF('Dati Generali CER 1 Sem. 2020'!BN36="","",'Dati Generali CER 1 Sem. 2020'!BN36) -> 2020-09-09T11:57:04
A44: 35 | B44: ='Dati Generali CER 1 Sem. 2020'!C37 -> GRANITI | C44: =IF('Dati Generali CER 1 Sem. 2020'!E37="","",'Dati Generali CER 1 Sem. 2020'!E37) -> 126237 | D44: =IF(C44="","",'Dati Generali CER 1 Sem. 2020'!BI37) -> 67510 | E44: ='Dati Generali CER 1 Sem. 2020'!W37 -> 0.3484441049 | F44: =IF('Dati Generali CER 1 Sem. 2020'!BJ37="","",'Dati Generali CER 1 Sem. 2020'!BJ37) -> 0.7341738096 | G44: =IF('Dati Generali CER 1 Sem. 2020'!BK37="","",'Dati Generali CER 1 Sem. 2020'!BK37) -> 0.4783552736 | H44: =IF('Dati Generali CER 1 Sem. 2020'!BL37="","",'Dati Generali CER 1 Sem. 2020'!BL37) -> 0.2558185359 | I44: ='Dati Generali CER 1 Sem. 2020'!D37 -> 1458 | J44: =IF('Dati Generali CER 1 Sem. 2020'!BN37="","",'Dati Generali CER 1 Sem. 2020'!BN37) -> 2020-07-28T18:53:44
A45: 36 | B45: ='Dati Generali CER 1 Sem. 2020'!C38 -> GUALTIERI SICAMINO | C45: =IF('Dati Generali CER 1 Sem. 2020'!E38="","",'Dati Generali CER 1 Sem. 2020'!E38) -> 85800 | D45: =IF(C45="","",'Dati Generali CER 1 Sem. 2020'!BI38) -> 82480 | E45: ='Dati Generali CER 1 Sem. 2020'!W38 -> 0.4901354885 | F45: =IF('Dati Generali CER 1 Sem. 2020'!BJ38="","",'Dati Generali CER 1 Sem. 2020'!BJ38) -> 0.5600745524 | G45: =IF('Dati Generali CER 1 Sem. 2020'!BK38="","",'Dati Generali CER 1 Sem. 2020'!BK38) -> 0.2855621381 | H45: =IF('Dati Generali CER 1 Sem. 2020'!BL38="","",'Dati Generali CER 1 Sem. 2020'!BL38) -> 0.2745124143 | I45: ='Dati Generali CER 1 Sem. 2020'!D38 -> 1660 | J45: =IF('Dati Generali CER 1 Sem. 2020'!BN38="","",'Dati Generali CER 1 Sem. 2020'!BN38) -> 2020-07-31T20:54:06
A46: 37 | B46: ='Dati Generali CER 1 Sem. 2020'!C39 -> ITALA | C46: =IF('Dati Generali CER 1 Sem. 2020'!E39="","",'Dati Generali CER 1 Sem. 2020'!E39) -> 83880 | D46: =IF(C46="","",'Dati Generali CER 1 Sem. 2020'!BI39) -> 144209 | E46: ='Dati Generali CER 1 Sem. 2020'!W39 -> 0.6322488152 | F46: =IF('Dati Generali CER 1 Sem. 2020'!BJ39="","",'Dati Generali CER 1 Sem. 2020'!BJ39) -> 0.8083131629 | G46: =IF('Dati Generali CER 1 Sem. 2020'!BK39="","",'Dati Generali CER 1 Sem. 2020'!BK39) -> 0.2972581234 | H46: =IF('Dati Generali CER 1 Sem. 2020'!BL39="","",'Dati Generali CER 1 Sem. 2020'!BL39) -> 0.5110550395 | I46: ='Dati Generali CER 1 Sem. 2020'!D39 -> 1559 | J46: =IF('Dati Generali CER 1 Sem. 2020'!BN39="","",'Dati Generali CER 1 Sem. 2020'!BN39) -> 2020-09-29T09:12:30
A47: 38 | B47: ='Dati Generali CER 1 Sem. 2020'!C40 -> LENI | C47: =IF('Dati Generali CER 1 Sem. 2020'!E40="","",'Dati Generali CER 1 Sem. 2020'!E40) -> 89080 | D47: =IF(C47="","",'Dati Generali CER 1 Sem. 2020'!BI40) -> 30020 | E47: ='Dati Generali CER 1 Sem. 2020'!W40 -> 0.2520570949 | F47: =IF('Dati Generali CER 1 Sem. 2020'!BJ40="","",'Dati Generali CER 1 Sem. 2020'!BJ40) -> 0.9606000726 | G47: =IF('Dati Generali CER 1 Sem. 2020'!BK40="","",'Dati Generali CER 1 Sem. 2020'!BK40) -> 0.718474009 | H47: =IF('Dati Generali CER 1 Sem. 2020'!BL40="","",'Dati Generali CER 1 Sem. 2020'!BL40) -> 0.2421260636 | I47: ='Dati Generali CER 1 Sem. 2020'!D40 -> 685 | J47: =IF('Dati Generali CER 1 Sem. 2020'!BN40="","",'Dati Generali CER 1 Sem. 2020'!BN40) -> 2020-08-06T16:54:33
A48: 39 | B48: ='Dati Generali CER 1 Sem. 2020'!C41 -> LETOJANNI | C48: =IF('Dati Generali CER 1 Sem. 2020'!E41="","",'Dati Generali CER 1 Sem. 2020'!E41) -> 400100 | D48: =IF(C48="","",'Dati Generali CER 1 Sem. 2020'!BI41) -> 315060 | E48: ='Dati Generali CER 1 Sem. 2020'!W41 -> 0.4405447732 | F48: =IF('Dati Generali CER 1 Sem. 2020'!BJ41="","",'Dati Generali CER 1 Sem. 2020'!BJ41) -> 1.397651299 | G48: =IF('Dati Generali CER 1 Sem. 2020'!BK41="","",'Dati Generali CER 1 Sem. 2020'!BK41) -> 0.7819233242 | H48: =IF('Dati Generali CER 1 Sem. 2020'!BL41="","",'Dati Generali CER 1 Sem. 2020'!BL41) -> 0.6157279743 | I48: ='Dati Generali CER 1 Sem. 2020'!D41 -> 2827 | J48: =IF('Dati Generali CER 1 Sem. 2020'!BN41="","",'Dati Generali CER 1 Sem. 2020'!BN41) -> 2020-09-11T12:15:35
A49: 40 | B49: ='Dati Generali CER 1 Sem. 2020'!C42 -> LIBRIZZI | C49: =IF('Dati Generali CER 1 Sem. 2020'!E42="","",'Dati Generali CER 1 Sem. 2020'!E42) -> 166300 | D49: =IF(C49="","",'Dati Generali CER 1 Sem. 2020'!BI42) -> 106780 | E49: ='Dati Generali CER 1 Sem. 2020'!W42 -> 0.3910209462 | F49: =IF('Dati Generali CER 1 Sem. 2020'!BJ42="","",'Dati Generali CER 1 Sem. 2020'!BJ42) -> 0.9411910679 | G49: =IF('Dati Generali CER 1 Sem. 2020'!BK42="","",'Dati Generali CER 1 Sem. 2020'!BK42) -> 0.5731656459 | H49: =IF('Dati Generali CER 1 Sem. 2020'!BL42="","",'Dati Generali CER 1 Sem. 2020'!BL42) -> 0.3680254219 | I49: ='Dati Generali CER 1 Sem. 2020'!D42 -> 1603 | J49: =IF('Dati Generali CER 1 Sem. 2020'!BN42="","",'Dati Generali CER 1 Sem. 2020'!BN42) -> 2020-08-03T19:12:42
A50: 41 | B50: ='Dati Generali CER 1 Sem. 2020'!C43 -> LIMINA | C50: =IF('Dati Generali CER 1 Sem. 2020'!E43="","",'Dati Generali CER 1 Sem. 2020'!E43) -> 37340 | D50: =IF(C50="","",'Dati Generali CER 1 Sem. 2020'!BI43) -> 46520 | E50: ='Dati Generali CER 1 Sem. 2020'!W43 -> 0.5547340806 | F50: =IF('Dati Generali CER 1 Sem. 2020'!BJ43="","",'Dati Generali CER 1 Sem. 2020'!BJ43) -> 0.626948467 | G50: =IF('Dati Generali CER 1 Sem. 2020'!BK43="","",'Dati Generali CER 1 Sem. 2020'!BK43) -> 0.2791587856 | H50: =IF('Dati Generali CER 1 Sem. 2020'!BL43="","",'Dati Generali CER 1 Sem. 2020'!BL43) -> 0.3477896814 | I50: ='Dati Generali CER 1 Sem. 2020'!D43 -> 739 | J50: =IF('Dati Generali CER 1 Sem. 2020'!BN43="","",'Dati Generali CER 1 Sem. 2020'!BN43) -> 2020-08-03T19:16:44
A51: 42 | B51: ='Dati Generali CER 1 Sem. 2020'!C44 -> LIPARI | C51: =IF('Dati Generali CER 1 Sem. 2020'!E44="","",'Dati Generali CER 1 Sem. 2020'!E44) -> 2539620 | D51: =IF(C51="","",'Dati Generali CER 1 Sem. 2020'!BI44) -> 678070 | E51: ='Dati Generali CER 1 Sem. 2020'!W44 -> 0.2107319226 | F51: =IF('Dati Generali CER 1 Sem. 2020'!BJ44="","",'Dati Generali CER 1 Sem. 2020'!BJ44) -> 1.391568909 | G51: =IF('Dati Generali CER 1 Sem. 2020'!BK44="","",'Dati Generali CER 1 Sem. 2020'!BK44) -> 1.098320918 | H51: =IF('Dati Generali CER 1 Sem. 2020'!BL44="","",'Dati Generali CER 1 Sem. 2020'!BL44) -> 0.2932479917 | I51: ='Dati Generali CER 1 Sem. 2020'!D44 -> 12775 | J51: =IF('Dati Generali CER 1 Sem. 2020'!BN44="","",'Dati Generali CER 1 Sem. 2020'!BN44) -> 2020-09-04T11:24:17
A52: 43 | B52: ='Dati Generali CER 1 Sem. 2020'!C45 -> LONGI | C52: =IF('Dati Generali CER 1 Sem. 2020'!E45="","",'Dati Generali CER 1 Sem. 2020'!E45) -> 11820 | D52: =IF(C52="","",'Dati Generali CER 1 Sem. 2020'!BI45) -> 146433 | E52: ='Dati Generali CER 1 Sem. 2020'!W45 -> 0.9253094728 | F52: =IF('Dati Generali CER 1 Sem. 2020'!BJ45="","",'Dati Generali CER 1 Sem. 2020'!BJ45) -> 0.637728641 | G52: =IF('Dati Generali CER 1 Sem. 2020'!BK45="","",'Dati Generali CER 1 Sem. 2020'!BK45) -> 0.04763228841 | H52: =IF('Dati Generali CER 1 Sem. 2020'!BL45="","",'Dati Generali CER 1 Sem. 2020'!BL45) -> 0.5900963526 | I52: ='Dati Generali CER 1 Sem. 2020'!D45 -> 1371 | J52: =IF('Dati Generali CER 1 Sem. 2020'!BN45="","",'Dati Generali CER 1 Sem. 2020'!BN45) -> 2020-09-04T11:29:00
A53: 44 | B53: ='Dati Generali CER 1 Sem. 2020'!C46 -> MALFA | C53: =IF('Dati Generali CER 1 Sem. 2020'!E46="","",'Dati Generali CER 1 Sem. 2020'!E46) -> 69640 | D53: =IF(C53="","",'Dati Generali CER 1 Sem. 2020'!BI46) -> 91320 | E53: ='Dati Generali CER 1 Sem. 2020'!W46 -> 0.5673459245 | F53: =IF('Dati Generali CER 1 Sem. 2020'!BJ46="","",'Dati Generali CER 1 Sem. 2020'!BJ46) -> 0.8928531807 | G53: =IF('Dati Generali CER 1 Sem. 2020'!BK46="","",'Dati Generali CER 1 Sem. 2020'!BK46) -> 0.3862965675 | H53: =IF('Dati Generali CER 1 Sem. 2020'!BL46="","",'Dati Generali CER 1 Sem. 2020'!BL46) -> 0.5065566132 | I53: ='Dati Generali CER 1 Sem. 2020'!D46 -> 996 | J53: =IF('Dati Generali CER 1 Sem. 2020'!BN46="","",'Dati Generali CER 1 Sem. 2020'!BN46) -> 2020-07-22T19:22:00
A54: 45 | B54: ='Dati Generali CER 1 Sem. 2020'!C47 -> MALVAGNA | C54: =IF('Dati Generali CER 1 Sem. 2020'!E47="","",'Dati Generali CER 1 Sem. 2020'!E47) -> 74840 | D54: =IF(C54="","",'Dati Generali CER 1 Sem. 2020'!BI47) -> 19240 | E54: ='Dati Generali CER 1 Sem. 2020'!W47 -> 0.2045068027 | F54: =IF('Dati Generali CER 1 Sem. 2020'!BJ47="","",'Dati Generali CER 1 Sem. 2020'!BJ47) -> 0.7863525046 | G54: =IF('Dati Generali CER 1 Sem. 2020'!BK47="","",'Dati Generali CER 1 Sem. 2020'!BK47) -> 0.6255380681 | H54: =IF('Dati Generali CER 1 Sem. 2020'!BL47="","",'Dati Generali CER 1 Sem. 2020'!BL47) -> 0.1608144365 | I54: ='Dati Generali CER 1 Sem. 2020'!D47 -> 661 | J54: =IF('Dati Generali CER 1 Sem. 2020'!BN47="","",'Dati Generali CER 1 Sem. 2020'!BN47) -> 2020-07-27T21:45:33
A55: 46 | B55: ='Dati Generali CER 1 Sem. 2020'!C48 -> MANDANICI | C55: =IF('Dati Generali CER 1 Sem. 2020'!E48="","",'Dati Generali CER 1 Sem. 2020'!E48) -> 24360 | D55: =IF(C55="","",'Dati Generali CER 1 Sem. 2020'!BI48) -> 51940 | E55: ='Dati Generali CER 1 Sem. 2020'!W48 -> 0.680733945 | F55: =IF('Dati Generali CER 1 Sem. 2020'!BJ48="","",'Dati Generali CER 1 Sem. 2020'!BJ48) -> 0.7568168067 | G55: =IF('Dati Generali CER 1 Sem. 2020'!BK48="","",'Dati Generali CER 1 Sem. 2020'!BK48) -> 0.2416259163 | H55: =IF('Dati Generali CER 1 Sem. 2020'!BL48="","",'Dati Generali CER 1 Sem. 2020'!BL48) -> 0.5151908904 | I55: ='Dati Generali CER 1 Sem. 2020'!D48 -> 557 | J55: =IF('Dati Generali CER 1 Sem. 2020'!BN48="","",'Dati Generali CER 1 Sem. 2020'!BN48) -> 2020-10-08T16:00:53
A56: 47 | B56: ='Dati Generali CER 1 Sem. 2020'!C49 -> MAZZARRA' S. ANDREA | C56: =IF('Dati Generali CER 1 Sem. 2020'!E49="","",'Dati Generali CER 1 Sem. 2020'!E49) -> 47360 | D56: =IF(C56="","",'Dati Generali CER 1 Sem. 2020'!BI49) -> 115540 | E56: ='Dati Generali CER 1 Sem. 2020'!W49 -> 0.7092694905 | F56: =IF('Dati Generali CER 1 Sem. 2020'!BJ49="","",'Dati Generali CER 1 Sem. 2020'!BJ49) -> 0.6168608636 | G56: =IF('Dati Generali CER 1 Sem. 2020'!BK49="","",'Dati Generali CER 1 Sem. 2020'!BK49) -> 0.1793402732 | H56: =IF('Dati Generali CER 1 Sem. 2020'!BL49="","",'Dati Generali CER 1 Sem. 2020'!BL49) -> 0.4375205904 | I56: ='Dati Generali CER 1 Sem. 2020'!D49 -> 1459 | J56: =IF('Dati Generali CER 1 Sem. 2020'!BN49="","",'Dati Generali CER 1 Sem. 2020'!BN49) -> 2020-09-24T18:44:12
A57: 48 | B57: ='Dati Generali CER 1 Sem. 2020'!C50 -> MERI' | C57: =IF('Dati Generali CER 1 Sem. 2020'!E50="","",'Dati Generali CER 1 Sem. 2020'!E50) -> 362380 | D57: =IF(C57="","",'Dati Generali CER 1 Sem. 2020'!BI50) -> 65010 | E57: ='Dati Generali CER 1 Sem. 2020'!W50 -> 0.1521093147 | F57: =IF('Dati Generali CER 1 Sem. 2020'!BJ50="","",'Dati Generali CER 1 Sem. 2020'!BJ50) -> 0.9971582425 | G57: =IF('Dati Generali CER 1 Sem. 2020'!BK50="","",'Dati Generali CER 1 Sem. 2020'!BK50) -> 0.8454811856 | H57: =IF('Dati Generali CER 1 Sem. 2020'!BL50="","",'Dati Generali CER 1 Sem. 2020'!BL50) -> 0.1516770569 | I57: ='Dati Generali CER 1 Sem. 2020'!D50 -> 2368 | J57: =IF('Dati Generali CER 1 Sem. 2020'!BN50="","",'Dati Generali CER 1 Sem. 2020'!BN50) -> 2020-09-22T10:54:21
A58: 49 | B58: ='Dati Generali CER 1 Sem. 2020'!C51 -> MESSINA | C58: =IF('Dati Generali CER 1 Sem. 2020'!E51="","",'Dati Generali CER 1 Sem. 2020'!E51) -> 36034214 | D58: =IF(C58="","",'Dati Generali CER 1 Sem. 2020'!BI51) -> 14467010 | E58: ='Dati Generali CER 1 Sem. 2020'!W51 -> 0.2864685022 | F58: =IF('Dati Generali CER 1 Sem. 2020'!BJ51="","",'Dati Generali CER 1 Sem. 2020'!BJ51) -> 1.220205927 | G58: =IF('Dati Generali CER 1 Sem. 2020'!BK51="","",'Dati Generali CER 1 Sem. 2020'!BK51) -> 0.8706553628 | H58: =IF('Dati Generali CER 1 Sem. 2020'!BL51="","",'Dati Generali CER 1 Sem. 2020'!BL51) -> 0.3495505643 | I58: ='Dati Generali CER 1 Sem. 2020'!D51 -> 228660 | J58: =IF('Dati Generali CER 1 Sem. 2020'!BN51="","",'Dati Generali CER 1 Sem. 2020'!BN51) -> 2020-08-24T17:54:57
A59: 50 | B59: ='Dati Generali CER 1 Sem. 2020'!C52 -> MILAZZO | C59: =IF('Dati Generali CER 1 Sem. 2020'!E52="","",'Dati Generali CER 1 Sem. 2020'!E52) -> 6182900 | D59: =IF(C59="","",'Dati Generali CER 1 Sem. 2020'!BI52) -> 1351030 | E59: ='Dati Generali CER 1 Sem. 2020'!W52 -> 0.1793260622 | F59: =IF('Dati Generali CER 1 Sem. 2020'!BJ52="","",'Dati Generali CER 1 Sem. 2020'!BJ52) -> 1.352523888 | G59: =IF('Dati Generali CER 1 Sem. 2020'!BK52="","",'Dati Generali CER 1 Sem. 2020'!BK52) -> 1.109981105 | H59: =IF('Dati Generali CER 1 Sem. 2020'!BL52="","",'Dati Generali CER 1 Sem. 2020'!BL52) -> 0.2425427829 | I59: ='Dati Generali CER 1 Sem. 2020'!D52 -> 30775 | J59: =IF('Dati Generali CER 1 Sem. 2020'!BN52="","",'Dati Generali CER 1 Sem. 2020'!BN52) -> 2020-09-04T11:41:19
A60: 51 | B60: ='Dati Generali CER 1 Sem. 2020'!C53 -> MILITELLO ROSMARINO | C60: =IF('Dati Generali CER 1 Sem. 2020'!E53="","",'Dati Generali CER 1 Sem. 2020'!E53) -> 98860 | D60: =IF(C60="","",'Dati Generali CER 1 Sem. 2020'!BI53) -> 62460 | E60: ='Dati Generali CER 1 Sem. 2020'!W53 -> 0.3850326717 | F60: =IF('Dati Generali CER 1 Sem. 2020'!BJ53="","",'Dati Generali CER 1 Sem. 2020'!BJ53) -> 0.7239443408 | G60: =IF('Dati Generali CER 1 Sem. 2020'!BK53="","",'Dati Generali CER 1 Sem. 2020'!BK53) -> 0.4411856586 | H60: =IF('Dati Generali CER 1 Sem. 2020'!BL53="","",'Dati Generali CER 1 Sem. 2020'!BL53) -> 0.2787422237 | I60: ='Dati Generali CER 1 Sem. 2020'!D53 -> 1238 | J60: =IF('Dati Generali CER 1 Sem. 2020'!BN53="","",'Dati Generali CER 1 Sem. 2020'!BN53) -> 2020-07-20T19:45:11
A61: 52 | B61: ='Dati Generali CER 1 Sem. 2020'!C54 -> MIRTO | C61: =IF('Dati Generali CER 1 Sem. 2020'!E54="","",'Dati Generali CER 1 Sem. 2020'!E54) -> 58860 | D61: =IF(C61="","",'Dati Generali CER 1 Sem. 2020'!BI54) -> 100730 | E61: ='Dati Generali CER 1 Sem. 2020'!W54 -> 0.6311798985 | F61: =IF('Dati Generali CER 1 Sem. 2020'!BJ54="","",'Dati Generali CER 1 Sem. 2020'!BJ54) -> 0.949098716 | G61: =IF('Dati Generali CER 1 Sem. 2020'!BK54="","",'Dati Generali CER 1 Sem. 2020'!BK54) -> 0.3500466848 | H61: =IF('Dati Generali CER 1 Sem. 2020'!BL54="","",'Dati Generali CER 1 Sem. 2020'!BL54) -> 0.5990520312 | I61: ='Dati Generali CER 1 Sem. 2020'!D54 -> 929 | J61: =IF('Dati Generali CER 1 Sem. 2020'!BN54="","",'Dati Generali CER 1 Sem. 2020'!BN54) -> 2020-07-21T10:50:07
A62: 53 | B62: ='Dati Generali CER 1 Sem. 2020'!C55 -> MISTRETTA | C62: =IF('Dati Generali CER 1 Sem. 2020'!E55="","",'Dati Generali CER 1 Sem. 2020'!E55) -> 527360 | D62: =IF(C62="","",'Dati Generali CER 1 Sem. 2020'!BI55) -> 194980 | E62: ='Dati Generali CER 1 Sem. 2020'!W55 -> 0.2699282886 | F62: =IF('Dati Generali CER 1 Sem. 2020'!BJ55="","",'Dati Generali CER 1 Sem. 2020'!BJ55) -> 0.8792308282 | G62: =IF('Dati Generali CER 1 Sem. 2020'!BK55="","",'Dati Generali CER 1 Sem. 2020'!BK55) -> 0.6419015555 | H62: =IF('Dati Generali CER 1 Sem. 2020'!BL55="","",'Dati Generali CER 1 Sem. 2020'!BL55) -> 0.2373292728 | I62: ='Dati Generali CER 1 Sem. 2020'!D55 -> 4539 | J62: =IF('Dati Generali CER 1 Sem. 2020'!BN55="","",'Dati Generali CER 1 Sem. 2020'!BN55) -> 2020-09-01T09:27:56
A63: 54 | B63: ='Dati Generali CER 1 Sem. 2020'!C56 -> MOJO ALCANTARA | C63: =IF('Dati Generali CER 1 Sem. 2020'!E56="","",'Dati Generali CER 1 Sem. 2020'!E56) -> 98540 | D63: =IF(C63="","",'Dati Generali CER 1 Sem. 2020'!BI56) -> 15510 | E63: ='Dati Generali CER 1 Sem. 2020'!W56 -> 0.1359929855 | F63: =IF('Dati Generali CER 1 Sem. 2020'!BJ56="","",'Dati Generali CER 1 Sem. 2020'!BJ56) -> 0.9307392869 | G63: =IF('Dati Generali CER 1 Sem. 2020'!BK56="","",'Dati Generali CER 1 Sem. 2020'!BK56) -> 0.8041652725 | H63: =IF('Dati Generali CER 1 Sem. 2020'!BL56="","",'Dati Generali CER 1 Sem. 2020'!BL56) -> 0.1265740144 | I63: ='Dati Generali CER 1 Sem. 2020'!D56 -> 677 | J63: =IF('Dati Generali CER 1 Sem. 2020'!BN56="","",'Dati Generali CER 1 Sem. 2020'!BN56) -> 2020-07-15T17:07:48
A64: 55 | B64: ='Dati Generali CER 1 Sem. 2020'!C57 -> MONFORTE S. GIORGIO | C64: =IF('Dati Generali CER 1 Sem. 2020'!E57="","",'Dati Generali CER 1 Sem. 2020'!E57) -> 319480 | D64: =IF(C64="","",'Dati Generali CER 1 Sem. 2020'!BI57) -> 197350 | E64: ='Dati Generali CER 1 Sem. 2020'!W57 -> 0.3724639049 | F64: =IF('Dati Generali CER 1 Sem. 2020'!BJ57="","",'Dati Generali CER 1 Sem. 2020'!BJ57) -> 1.114755547 | G64: =IF('Dati Generali CER 1 Sem. 2020'!BK57="","",'Dati Generali CER 1 Sem. 2020'!BK57) -> 0.6721564634 | H64: =IF('Dati Generali CER 1 Sem. 2020'!BL57="","",'Dati Generali CER 1 Sem. 2020'!BL57) -> 0.415206204 | I64: ='Dati Generali CER 1 Sem. 2020'!D57 -> 2626 | J64: =IF('Dati Generali CER 1 Sem. 2020'!BN57="","",'Dati Generali CER 1 Sem. 2020'!BN57) -> 2020-09-17T12:32:40
A65: 56 | B65: ='Dati Generali CER 1 Sem. 2020'!C58 -> MONGIUFFI MELIA | C65: =IF('Dati Generali CER 1 Sem. 2020'!E58="","",'Dati Generali CER 1 Sem. 2020'!E58) -> 23730 | D65: =IF(C65="","",'Dati Generali CER 1 Sem. 2020'!BI58) -> 43280 | E65: ='Dati Generali CER 1 Sem. 2020'!W58 -> 0.6458737502 | F65: =IF('Dati Generali CER 1 Sem. 2020'!BJ58="","",'Dati Generali CER 1 Sem. 2020'!BJ58) -> 0.6634784847 | G65: =IF('Dati Generali CER 1 Sem. 2020'!BK58="","",'Dati Generali CER 1 Sem. 2020'!BK58) -> 0.2349551476 | H65: =IF('Dati Generali CER 1 Sem. 2020'!BL58="","",'Dati Generali CER 1 Sem. 2020'!BL58) -> 0.4285233371 | I65: ='Dati Generali CER 1 Sem. 2020'!D58 -> 558 | J65: =IF('Dati Generali CER 1 Sem. 2020'!BN58="","",'Dati Generali CER 1 Sem. 2020'!BN58) -> 2020-09-30T10:21:29
A66: 57 | B66: ='Dati Generali CER 1 Sem. 2020'!C59 -> MONTAGNAREALE | C66: =IF('Dati Generali CER 1 Sem. 2020'!E59="","",'Dati Generali CER 1 Sem. 2020'!E59) -> 187000 | D66: =IF(C66="","",'Dati Generali CER 1 Sem. 2020'!BI59) -> 86880 | E66: ='Dati Generali CER 1 Sem. 2020'!W59 -> 0.3172192201 | F66: =IF('Dati Generali CER 1 Sem. 2020'!BJ59="","",'Dati Generali CER 1 Sem. 2020'!BJ59) -> 1.027256735 | G66: =IF('Dati Generali CER 1 Sem. 2020'!BK59="","",'Dati Generali CER 1 Sem. 2020'!BK59) -> 0.701391155 | H66: =IF('Dati Generali CER 1 Sem. 2020'!BL59="","",'Dati Generali CER 1 Sem. 2020'!BL59) -> 0.3258655804 | I66: ='Dati Generali CER 1 Sem. 2020'!D59 -> 1473 | J66: =IF('Dati Generali CER 1 Sem. 2020'!BN59="","",'Dati Generali CER 1 Sem. 2020'!BN59) -> 2020-10-22T11:49:58
A67: 58 | B67: ='Dati Generali CER 1 Sem. 2020'!C60 -> MONTALBANO ELICONA | C67: =IF('Dati Generali CER 1 Sem. 2020'!E60="","",'Dati Generali CER 1 Sem. 2020'!E60) -> 67660 | D67: =IF(C67="","",'Dati Generali CER 1 Sem. 2020'!BI60) -> 189562 | E67: ='Dati Generali CER 1 Sem. 2020'!W60 -> 0.736958736 | F67: =IF('Dati Generali CER 1 Sem. 2020'!BJ60="","",'Dati Generali CER 1 Sem. 2020'!BJ60) -> 0.6780133693 | G67: =IF('Dati Generali CER 1 Sem. 2020'!BK60="","",'Dati Generali CER 1 Sem. 2020'!BK60) -> 0.1783454937 | H67: =IF('Dati Generali CER 1 Sem. 2020'!BL60="","",'Dati Generali CER 1 Sem. 2020'!BL60) -> 0.4996678757 | I67: ='Dati Generali CER 1 Sem. 2020'!D60 -> 2096 | J67: =IF('Dati Generali CER 1 Sem. 2020'!BN60="","",'Dati Generali CER 1 Sem. 2020'!BN60) -> 2020-07-15T10:50:10
A68: 59 | B68: ='Dati Generali CER 1 Sem. 2020'!C61 -> MOTTA CAMASTRA | C68: =IF('Dati Generali CER 1 Sem. 2020'!E61="","",'Dati Generali CER 1 Sem. 2020'!E61) -> 78312 | D68: =IF(C68="","",'Dati Generali CER 1 Sem. 2020'!BI61) -> 39630 | E68: ='Dati Generali CER 1 Sem. 2020'!W61 -> 0.3360126164 | F68: =IF('Dati Generali CER 1 Sem. 2020'!BJ61="","",'Dati Generali CER 1 Sem. 2020'!BJ61) -> 0.7975682493 | G68: =IF('Dati Generali CER 1 Sem. 2020'!BK61="","",'Dati Generali CER 1 Sem. 2020'!BK61) -> 0.5295752551 | H68: =IF('Dati Generali CER 1 Sem. 2020'!BL61="","",'Dati Generali CER 1 Sem. 2020'!BL61) -> 0.2679929942 | I68: ='Dati Generali CER 1 Sem. 2020'!D61 -> 817 | J68: =IF('Dati Generali CER 1 Sem. 2020'!BN61="","",'Dati Generali CER 1 Sem. 2020'!BN61) -> 2020-10-09T12:28:43
A69: 60 | B69: ='Dati Generali CER 1 Sem. 2020'!C62 -> MOTTA D'AFFERMO | C69: =IF('Dati Generali CER 1 Sem. 2020'!E62="","",'Dati Generali CER 1 Sem. 2020'!E62) -> 50900 | D69: =IF(C69="","",'Dati Generali CER 1 Sem. 2020'!BI62) -> 18490 | E69: ='Dati Generali CER 1 Sem. 2020'!W62 -> 0.2664649085 | F69: =IF('Dati Generali CER 1 Sem. 2020'!BJ62="","",'Dati Generali CER 1 Sem. 2020'!BJ62) -> 0.5629517852 | G69: =IF('Dati Generali CER 1 Sem. 2020'!BK62="","",'Dati Generali CER 1 Sem. 2020'!BK62) -> 0.4129448893 | H69: =IF('Dati Generali CER 1 Sem. 2020'!BL62="","",'Dati Generali CER 1 Sem. 2020'!BL62) -> 0.1500068959 | I69: ='Dati Generali CER 1 Sem. 2020'!D62 -> 681 | J69: =IF('Dati Generali CER 1 Sem. 2020'!BN62="","",'Dati Generali CER 1 Sem. 2020'!BN62) -> 2020-07-28T18:58:49
A70: 61 | B70: ='Dati Generali CER 1 Sem. 2020'!C63 -> NASO | C70: =IF('Dati Generali CER 1 Sem. 2020'!E63="","",'Dati Generali CER 1 Sem. 2020'!E63) -> 169950 | D70: =IF(C70="","",'Dati Generali CER 1 Sem. 2020'!BI63) -> 350904 | E70: ='Dati Generali CER 1 Sem. 2020'!W63 -> 0.6737089472 | F70: =IF('Dati Generali CER 1 Sem. 2020'!BJ63="","",'Dati Generali CER 1 Sem. 2020'!BJ63) -> 0.7949299472 | G70: =IF('Dati Generali CER 1 Sem. 2020'!BK63="","",'Dati Generali CER 1 Sem. 2020'!BK63) -> 0.2593785293 | H70: =IF('Dati Generali CER 1 Sem. 2020'!BL63="","",'Dati Generali CER 1 Sem. 2020'!BL63) -> 0.5355514178 | I70: ='Dati Generali CER 1 Sem. 2020'!D63 -> 3620 | J70: =IF('Dati Generali CER 1 Sem. 2020'!BN63="","",'Dati Generali CER 1 Sem. 2020'!BN63) -> 2020-09-29T12:33:57
A71: 62 | B71: ='Dati Generali CER 1 Sem. 2020'!C64 -> NIZZA DI SICILIA | C71: =IF('Dati Generali CER 1 Sem. 2020'!E64="","",'Dati Generali CER 1 Sem. 2020'!E64) -> 284870 | D71: =IF(C71="","",'Dati Generali CER 1 Sem. 2020'!BI64) -> 223690 | E71: ='Dati Generali CER 1 Sem. 2020'!W64 -> 0.4398497719 | F71: =IF('Dati Generali CER 1 Sem. 2020'!BJ64="","",'Dati Generali CER 1 Sem. 2020'!BJ64) -> 0.7844008255 | G71: =IF('Dati Generali CER 1 Sem. 2020'!BK64="","",'Dati Generali CER 1 Sem. 2020'!BK64) -> 0.4393823013 | H71: =IF('Dati Generali CER 1 Sem. 2020'!BL64="","",'Dati Generali CER 1 Sem. 2020'!BL64) -> 0.3450185242 | I71: ='Dati Generali CER 1 Sem. 2020'!D64 -> 3582 | J71: =IF('Dati Generali CER 1 Sem. 2020'!BN64="","",'Dati Generali CER 1 Sem. 2020'!BN64) -> 2020-09-14T11:36:57
A72: 63 | B72: ='Dati Generali CER 1 Sem. 2020'!C65 -> NOVARA DI SICILIA | C72: =IF('Dati Generali CER 1 Sem. 2020'!E65="","",'Dati Generali CER 1 Sem. 2020'!E65) -> 136260 | D72: =IF(C72="","",'Dati Generali CER 1 Sem. 2020'!BI65) -> 64940 | E72: ='Dati Generali CER 1 Sem. 2020'!W65 -> 0.3227634195 | F72: =IF('Dati Generali CER 1 Sem. 2020'!BJ65="","",'Dati Generali CER 1 Sem. 2020'!BJ65) -> 0.9104031203 | G72: =IF('Dati Generali CER 1 Sem. 2020'!BK65="","",'Dati Generali CER 1 Sem. 2020'!BK65) -> 0.6165582961 | H72: =IF('Dati Generali CER 1 Sem. 2020'!BL65="","",'Dati Generali CER 1 Sem. 2020'!BL65) -> 0.2938448242 | I72: ='Dati Generali CER 1 Sem. 2020'!D65 -> 1221 | J72: =IF('Dati Generali CER 1 Sem. 2020'!BN65="","",'Dati Generali CER 1 Sem. 2020'!BN65) -> 2020-09-29T18:17:43
A73: 64 | B73: ='Dati Generali CER 1 Sem. 2020'!C66 -> OLIVERI | C73: =IF('Dati Generali CER 1 Sem. 2020'!E66="","",'Dati Generali CER 1 Sem. 2020'!E66) -> 261420 | D73: =IF(C73="","",'Dati Generali CER 1 Sem. 2020'!BI66) -> 166568 | E73: ='Dati Generali CER 1 Sem. 2020'!W66 -> 0.3891884819 | F73: =IF('Dati Generali CER 1 Sem. 2020'!BJ66="","",'Dati Generali CER 1 Sem. 2020'!BJ66) -> 1.127598753 | G73: =IF('Dati Generali CER 1 Sem. 2020'!BK66="","",'Dati Generali CER 1 Sem. 2020'!BK66) -> 0.6887503063 | H73: =IF('Dati Generali CER 1 Sem. 2020'!BL66="","",'Dati Generali CER 1 Sem. 2020'!BL66) -> 0.438848447 | I73: ='Dati Generali CER 1 Sem. 2020'!D66 -> 2097 | J73: =IF('Dati Generali CER 1 Sem. 2020'!BN66="","",'Dati Generali CER 1 Sem. 2020'!BN66) -> 2020-09-23T18:34:54
A74: 65 | B74: ='Dati Generali CER 1 Sem. 2020'!C67 -> PACE DEL MELA | C74: =IF('Dati Generali CER 1 Sem. 2020'!E67="","",'Dati Generali CER 1 Sem. 2020'!E67) -> 599860 | D74: =IF(C74="","",'Dati Generali CER 1 Sem. 2020'!BI67) -> 835430 | E74: ='Dati Generali CER 1 Sem. 2020'!W67 -> 0.5820635551 | F74: =IF('Dati Generali CER 1 Sem. 2020'!BJ67="","",'Dati Generali CER 1 Sem. 2020'!BJ67) -> 1.278171987 | G74: =IF('Dati Generali CER 1 Sem. 2020'!BK67="","",'Dati Generali CER 1 Sem. 2020'!BK67) -> 0.5341946561 | H74: =IF('Dati Generali CER 1 Sem. 2020'!BL67="","",'Dati Generali CER 1 Sem. 2020'!BL67) -> 0.7439773306 | I74: ='Dati Generali CER 1 Sem. 2020'!D67 -> 6204 | J74: =IF('Dati Generali CER 1 Sem. 2020'!BN67="","",'Dati Generali CER 1 Sem. 2020'!BN67) -> 2020-10-16T18:20:42
A75: 66 | B75: ='Dati Generali CER 1 Sem. 2020'!C68 -> PAGLIARA | C75: =IF('Dati Generali CER 1 Sem. 2020'!E68="","",'Dati Generali CER 1 Sem. 2020'!E68) -> 42270 | D75: =IF(C75="","",'Dati Generali CER 1 Sem. 2020'!BI68) -> 103440 | E75: ='Dati Generali CER 1 Sem. 2020'!W68 -> 0.7099032324 | F75: =IF('Dati Generali CER 1 Sem. 2020'!BJ68="","",'Dati Generali CER 1 Sem. 2020'!BJ68) -> 0.7099009033 | G75: =IF('Dati Generali CER 1 Sem. 2020'!BK68="","",'Dati Generali CER 1 Sem. 2020'!BK68) -> 0.2059399573 | H75: =IF('Dati Generali CER 1 Sem. 2020'!BL68="","",'Dati Generali CER 1 Sem. 2020'!BL68) -> 0.5039609459 | I75: ='Dati Generali CER 1 Sem. 2020'!D68 -> 1134 | J75: =IF('Dati Generali CER 1 Sem. 2020'!BN68="","",'Dati Generali CER 1 Sem. 2020'!BN68) -> 2020-09-18T16:57:22
A76: 67 | B76: ='Dati Generali CER 1 Sem. 2020'!C69 -> PATTI | C76: =IF('Dati Generali CER 1 Sem. 2020'!E69="","",'Dati Generali CER 1 Sem. 2020'!E69) -> 1596970 | D76: =IF(C76="","",'Dati Generali CER 1 Sem. 2020'!BI69) -> 1243990 | E76: ='Dati Generali CER 1 Sem. 2020'!W69 -> 0.4378766333 | F76: =IF('Dati Generali CER 1 Sem. 2020'!BJ69="","",'Dati Generali CER 1 Sem. 2020'!BJ69) -> 1.207377816 | G76: =IF('Dati Generali CER 1 Sem. 2020'!BK69="","",'Dati Generali CER 1 Sem. 2020'!BK69) -> 0.6786952826 | H76: =IF('Dati Generali CER 1 Sem. 2020'!BL69="","",'Dati Generali CER 1 Sem. 2020'!BL69) -> 0.5286825329 | I76: ='Dati Generali CER 1 Sem. 2020'!D69 -> 13000 | J76: =IF('Dati Generali CER 1 Sem. 2020'!BN69="","",'Dati Generali CER 1 Sem. 2020'!BN69) -> 2020-07-28T19:20:33
A77: 68 | B77: ='Dati Generali CER 1 Sem. 2020'!C70 -> PETTINEO | C77: =IF('Dati Generali CER 1 Sem. 2020'!E70="","",'Dati Generali CER 1 Sem. 2020'!E70) -> 50560 | D77: =IF(C77="","",'Dati Generali CER 1 Sem. 2020'!BI70) -> 81740 | E77: ='Dati Generali CER 1 Sem. 2020'!W70 -> 0.6178382464 | F77: =IF('Dati Generali CER 1 Sem. 2020'!BJ70="","",'Dati Generali CER 1 Sem. 2020'!BJ70) -> 0.5746377567 | G77: =IF('Dati Generali CER 1 Sem. 2020'!BK70="","",'Dati Generali CER 1 Sem. 2020'!BK70) -> 0.2196045728 | H77: =IF('Dati Generali CER 1 Sem. 2020'!BL70="","",'Dati Generali CER 1 Sem. 2020'!BL70) -> 0.3550331839 | I77: ='Dati Generali CER 1 Sem. 2020'!D70 -> 1272 | J77: =IF('Dati Generali CER 1 Sem. 2020'!BN70="","",'Dati Generali CER 1 Sem. 2020'!BN70) -> 2020-09-23T18:42:55
A78: 69 | B78: ='Dati Generali CER 1 Sem. 2020'!C71 -> PIRAINO | C78: =IF('Dati Generali CER 1 Sem. 2020'!E71="","",'Dati Generali CER 1 Sem. 2020'!E71) -> 450580 | D78: =IF(C78="","",'Dati Generali CER 1 Sem. 2020'!BI71) -> 206252 | E78: ='Dati Generali CER 1 Sem. 2020'!W71 -> 0.3140102796 | F78: =IF('Dati Generali CER 1 Sem. 2020'!BJ71="","",'Dati Generali CER 1 Sem. 2020'!BJ71) -> 0.9372174787 | G78: =IF('Dati Generali CER 1 Sem. 2020'!BK71="","",'Dati Generali CER 1 Sem. 2020'!BK71) -> 0.6429215561 | H78: =IF('Dati Generali CER 1 Sem. 2020'!BL71="","",'Dati Generali CER 1 Sem. 2020'!BL71) -> 0.2942959226 | I78: ='Dati Generali CER 1 Sem. 2020'!D71 -> 3872 | J78: =IF('Dati Generali CER 1 Sem. 2020'!BN71="","",'Dati Generali CER 1 Sem. 2020'!BN71) -> 2020-09-23T18:57:23
A79: 70 | B79: ='Dati Generali CER 1 Sem. 2020'!C72 -> RACCUJA | C79: =IF('Dati Generali CER 1 Sem. 2020'!E72="","",'Dati Generali CER 1 Sem. 2020'!E72) -> 92520 | D79: =IF(C79="","",'Dati Generali CER 1 Sem. 2020'!BI72) -> 26340 | E79: ='Dati Generali CER 1 Sem. 2020'!W72 -> 0.2216052499 | F79: =IF('Dati Generali CER 1 Sem. 2020'!BJ72="","",'Dati Generali CER 1 Sem. 2020'!BJ72) -> 0.7130131193 | G79: =IF('Dati Generali CER 1 Sem. 2020'!BK72="","",'Dati Generali CER 1 Sem. 2020'!BK72) -> 0.5550056688 | H79: =IF('Dati Generali CER 1 Sem. 2020'!BL72="","",'Dati Generali CER 1 Sem. 2020'!BL72) -> 0.1580074505 | I79: ='Dati Generali CER 1 Sem. 2020'!D72 -> 921 | J79: =IF('Dati Generali CER 1 Sem. 2020'!BN72="","",'Dati Generali CER 1 Sem. 2020'!BN72) -> 2020-09-24T10:44:41
A80: 71 | B80: ='Dati Generali CER 1 Sem. 2020'!C73 -> REITANO | C80: =IF('Dati Generali CER 1 Sem. 2020'!E73="","",'Dati Generali CER 1 Sem. 2020'!E73) -> 147050 | D80: =IF(C80="","",'Dati Generali CER 1 Sem. 2020'!BI73) -> 147050 | E80: ='Dati Generali CER 1 Sem. 2020'!W73 -> 0.5 | F80: =IF('Dati Generali CER 1 Sem. 2020'!BJ73="","",'Dati Generali CER 1 Sem. 2020'!BJ73) -> 2.189840807 | G80: =IF('Dati Generali CER 1 Sem. 2020'!BK73="","",'Dati Generali CER 1 Sem. 2020'!BK73) -> 1.094920403 | H80: =IF('Dati Generali CER 1 Sem. 2020'!BL73="","",'Dati Generali CER 1 Sem. 2020'!BL73) -> 1.094920403 | I80: ='Dati Generali CER 1 Sem. 2020'!D73 -> 742 | J80: =IF('Dati Generali CER 1 Sem. 2020'!BN73="","",'Dati Generali CER 1 Sem. 2020'!BN73) -> 2020-09-22T14:14:41
A81: 72 | B81: ='Dati Generali CER 1 Sem. 2020'!C74 -> ROCCAFIORITA | C81: =IF('Dati Generali CER 1 Sem. 2020'!E74="","",'Dati Generali CER 1 Sem. 2020'!E74) -> 9210 | D81: =IF(C81="","",'Dati Generali CER 1 Sem. 2020'!BI74) -> 13630 | E81: ='Dati Generali CER 1 Sem. 2020'!W74 -> 0.5967600701 | F81: =IF('Dati Generali CER 1 Sem. 2020'!BJ74="","",'Dati Generali CER 1 Sem. 2020'!BJ74) -> 0.6820964611 | G81: =IF('Dati Generali CER 1 Sem. 2020'!BK74="","",'Dati Generali CER 1 Sem. 2020'!BK74) -> 0.2750485292 | H81: =IF('Dati Generali CER 1 Sem. 2020'!BL74="","",'Dati Generali CER 1 Sem. 2020'!BL74) -> 0.4070479319 | I81: ='Dati Generali CER 1 Sem. 2020'!D74 -> 185 | J81: =IF('Dati Generali CER 1 Sem. 2020'!BN74="","",'Dati Generali CER 1 Sem. 2020'!BN74) -> 2020-09-07T12:46:08
A82: 73 | B82: ='Dati Generali CER 1 Sem. 2020'!C75 -> ROCCALUMERA | C82: =IF('Dati Generali CER 1 Sem. 2020'!E75="","",'Dati Generali CER 1 Sem. 2020'!E75) -> 225130 | D82: =IF(C82="","",'Dati Generali CER 1 Sem. 2020'!BI75) -> 591700 | E82: ='Dati Generali CER 1 Sem. 2020'!W75 -> 0.7243857351 | F82: =IF('Dati Generali CER 1 Sem. 2020'!BJ75="","",'Dati Generali CER 1 Sem. 2020'!BJ75) -> 1.113739617 | G82: =IF('Dati Generali CER 1 Sem. 2020'!BK75="","",'Dati Generali CER 1 Sem. 2020'!BK75) -> 0.3069625258 | H82: =IF('Dati Generali CER 1 Sem. 2020'!BL75="","",'Dati Generali CER 1 Sem. 2020'!BL75) -> 0.8067770912 | I82: ='Dati Generali CER 1 Sem. 2020'!D75 -> 4052 | J82: =IF('Dati Generali CER 1 Sem. 2020'!BN75="","",'Dati Generali CER 1 Sem. 2020'!BN75) -> 2020-07-09T15:44:01
A83: 74 | B83: ='Dati Generali CER 1 Sem. 2020'!C76 -> ROCCAVALDINA | C83: =IF('Dati Generali CER 1 Sem. 2020'!E76="","",'Dati Generali CER 1 Sem. 2020'!E76) -> 93660 | D83: =IF(C83="","",'Dati Generali CER 1 Sem. 2020'!BI76) -> 60951 | E83: ='Dati Generali CER 1 Sem. 2020'!W76 -> 0.3942216272 | F83: =IF('Dati Generali CER 1 Sem. 2020'!BJ76="","",'Dati Generali CER 1 Sem. 2020'!BJ76) -> 0.8104406261 | G83: =IF('Dati Generali CER 1 Sem. 2020'!BK76="","",'Dati Generali CER 1 Sem. 2020'!BK76) -> 0.4909474037 | H83: =IF('Dati Generali CER 1 Sem. 2020'!BL76="","",'Dati Generali CER 1 Sem. 2020'!BL76) -> 0.3194932223 | I83: ='Dati Generali CER 1 Sem. 2020'!D76 -> 1054 | J83: =IF('Dati Generali CER 1 Sem. 2020'!BN76="","",'Dati Generali CER 1 Sem. 2020'!BN76) -> 2020-07-20T19:53:48
A84: 75 | B84: ='Dati Generali CER 1 Sem. 2020'!C77 -> ROCCELLA VALDEMONE | C84: =IF('Dati Generali CER 1 Sem. 2020'!E77="","",'Dati Generali CER 1 Sem. 2020'!E77) -> 48450 | D84: =IF(C84="","",'Dati Generali CER 1 Sem. 2020'!BI77) -> 35290 | E84: ='Dati Generali CER 1 Sem. 2020'!W77 -> 0.4214234535 | F84: =IF('Dati Generali CER 1 Sem. 2020'!BJ77="","",'Dati Generali CER 1 Sem. 2020'!BJ77) -> 0.774961363 | G84: =IF('Dati Generali CER 1 Sem. 2020'!BK77="","",'Dati Generali CER 1 Sem. 2020'!BK77) -> 0.448374469 | H84: =IF('Dati Generali CER 1 Sem. 2020'!BL77="","",'Dati Generali CER 1 Sem. 2020'!BL77) -> 0.326586894 | I84: ='Dati Generali CER 1 Sem. 2020'!D77 -> 597 | J84: =IF('Dati Generali CER 1 Sem. 2020'!BN77="","",'Dati Generali CER 1 Sem. 2020'!BN77) -> 2020-07-20T19:58:23
A85: 76 | B85: ='Dati Generali CER 1 Sem. 2020'!C78 -> RODI' MILICI | C85: =IF('Dati Generali CER 1 Sem. 2020'!E78="","",'Dati Generali CER 1 Sem. 2020'!E78) -> 113800 | D85: =IF(C85="","",'Dati Generali CER 1 Sem. 2020'!BI78) -> 160560 | E85: ='Dati Generali CER 1 Sem. 2020'!W78 -> 0.5852165039 | F85: =IF('Dati Generali CER 1 Sem. 2020'!BJ78="","",'Dati Generali CER 1 Sem. 2020'!BJ78) -> 0.7628591369 | G85: =IF('Dati Generali CER 1 Sem. 2020'!BK78="","",'Dati Generali CER 1 Sem. 2020'!BK78) -> 0.3164213799 | H85: =IF('Dati Generali CER 1 Sem. 2020'!BL78="","",'Dati Generali CER 1 Sem. 2020'!BL78) -> 0.446437757 | I85: ='Dati Generali CER 1 Sem. 2020'!D78 -> 1987 | J85: =IF('Dati Generali CER 1 Sem. 2020'!BN78="","",'Dati Generali CER 1 Sem. 2020'!BN78) -> 2020-07-22T19:26:20
A86: 77 | B86: ='Dati Generali CER 1 Sem. 2020'!C79 -> ROMETTA | C86: =IF('Dati Generali CER 1 Sem. 2020'!E79="","",'Dati Generali CER 1 Sem. 2020'!E79) -> 171030 | D86: =IF(C86="","",'Dati Generali CER 1 Sem. 2020'!BI79) -> 1010358 | E86: ='Dati Generali CER 1 Sem. 2020'!W79 -> 0.8552296113 | F86: =IF('Dati Generali CER 1 Sem. 2020'!BJ79="","",'Dati Generali CER 1 Sem. 2020'!BJ79) -> 1.004773018 | G86: =IF('Dati Generali CER 1 Sem. 2020'!BK79="","",'Dati Generali CER 1 Sem. 2020'!BK79) -> 0.1454613804 | H86: =IF('Dati Generali CER 1 Sem. 2020'!BL79="","",'Dati Generali CER 1 Sem. 2020'!BL79) -> 0.8593116376 | I86: ='Dati Generali CER 1 Sem. 2020'!D79 -> 6496 | J86: =IF('Dati Generali CER 1 Sem. 2020'!BN79="","",'Dati Generali CER 1 Sem. 2020'!BN79) -> 2020-09-22T10:54:58
A87: 78 | B87: ='Dati Generali CER 1 Sem. 2020'!C82 -> S. AGATA DI MILITELLO | C87: =IF('Dati Generali CER 1 Sem. 2020'!E82="","",'Dati Generali CER 1 Sem. 2020'!E82) -> 1712310 | D87: =IF(C87="","",'Dati Generali CER 1 Sem. 2020'!BI82) -> 642473 | E87: ='Dati Generali CER 1 Sem. 2020'!W82 -> 0.2728374547 | F87: =IF('Dati Generali CER 1 Sem. 2020'!BJ82="","",'Dati Generali CER 1 Sem. 2020'!BJ82) -> 1.069537227 | G87: =IF('Dati Generali CER 1 Sem. 2020'!BK82="","",'Dati Generali CER 1 Sem. 2020'!BK82) -> 0.7777274123 | H87: =IF('Dati Generali CER 1 Sem. 2020'!BL82="","",'Dati Generali CER 1 Sem. 2020'!BL82) -> 0.2918098147 | I87: ='Dati Generali CER 1 Sem. 2020'!D82 -> 12164 | J87: =IF('Dati Generali CER 1 Sem. 2020'!BN82="","",'Dati Generali CER 1 Sem. 2020'!BN82) -> 2020-09-07T13:07:16
A88: 79 | B88: ='Dati Generali CER 1 Sem. 2020'!C93 -> S. ALESSIO SICULO | C88: =IF('Dati Generali CER 1 Sem. 2020'!E93="","",'Dati Generali CER 1 Sem. 2020'!E93) -> 179080 | D88: =IF(C88="","",'Dati Generali CER 1 Sem. 2020'!BI93) -> 160729 | E88: ='Dati Generali CER 1 Sem. 2020'!W93 -> 0.4729980666 | F88: =IF('Dati Generali CER 1 Sem. 2020'!BJ93="","",'Dati Generali CER 1 Sem. 2020'!BJ93) -> 1.261692063 | G88: =IF('Dati Generali CER 1 Sem. 2020'!BK93="","",'Dati Generali CER 1 Sem. 2020'!BK93) -> 0.6649141567 | H88: =IF('Dati Generali CER 1 Sem. 2020'!BL93="","",'Dati Generali CER 1 Sem. 2020'!BL93) -> 0.5967779065 | I88: ='Dati Generali CER 1 Sem. 2020'!D93 -> 1488 | J88: =IF('Dati Generali CER 1 Sem. 2020'!BN93="","",'Dati Generali CER 1 Sem. 2020'!BN93) -> 2020-10-06T13:15:58
A89: 80 | B89: ='Dati Generali CER 1 Sem. 2020'!C92 -> S. ANGELO DI BROLO | C89: =IF('Dati Generali CER 1 Sem. 2020'!E92="","",'Dati Generali CER 1 Sem. 2020'!E92) -> 459220 | D89: =IF(C89="","",'Dati Generali CER 1 Sem. 2020'!BI92) -> 128000 | E89: ='Dati Generali CER 1 Sem. 2020'!W92 -> 0.217976227 | F89: =IF('Dati Generali CER 1 Sem. 2020'!BJ92="","",'Dati Generali CER 1 Sem. 2020'!BJ92) -> 1.119499445 | G89: =IF('Dati Generali CER 1 Sem. 2020'!BK92="","",'Dati Generali CER 1 Sem. 2020'!BK92) -> 0.8754751801 | H89: =IF('Dati Generali CER 1 Sem. 2020'!BL92="","",'Dati Generali CER 1 Sem. 2020'!BL92) -> 0.2440242652 | I89: ='Dati Generali CER 1 Sem. 2020'!D92 -> 2898 | J89: =IF('Dati Generali CER 1 Sem. 2020'!BN92="","",'Dati Generali CER 1 Sem. 2020'!BN92) -> 2020-09-14T11:51:41
A90: 81 | B90: ='Dati Generali CER 1 Sem. 2020'!C80 -> S. DOMENICA VITTORIA | C90: =IF('Dati Generali CER 1 Sem. 2020'!E80="","",'Dati Generali CER 1 Sem. 2020'!E80) -> 67181 | D90: =IF(C90="","",'Dati Generali CER 1 Sem. 2020'!BI80) -> 77309 | E90: ='Dati Generali CER 1 Sem. 2020'!W80 -> 0.5350474081 | F90: =IF('Dati Generali CER 1 Sem. 2020'!BJ80="","",'Dati Generali CER 1 Sem. 2020'!BJ80) -> 0.8989721766 | G90: =IF('Dati Generali CER 1 Sem. 2020'!BK80="","",'Dati Generali CER 1 Sem. 2020'!BK80) -> 0.4179794435 | H90: =IF('Dati Generali CER 1 Sem. 2020'!BL80="","",'Dati Generali CER 1 Sem. 2020'!BL80) -> 0.4809927331 | I90: ='Dati Generali CER 1 Sem. 2020'!D80 -> 888 | J90: =IF('Dati Generali CER 1 Sem. 2020'!BN80="","",'Dati Generali CER 1 Sem. 2020'!BN80) -> 2020-07-20T20:11:35
A91: 82 | B91: ='Dati Generali CER 1 Sem. 2020'!C85 -> S. FILIPPO DEL MELA | C91: =IF('Dati Generali CER 1 Sem. 2020'!E85="","",'Dati Generali CER 1 Sem. 2020'!E85) -> 1067800 | D91: =IF(C91="","",'Dati Generali CER 1 Sem. 2020'!BI85) -> 288140 | E91: ='Dati Generali CER 1 Sem. 2020'!W85 -> 0.2125020281 | F91: =IF('Dati Generali CER 1 Sem. 2020'!BJ85="","",'Dati Generali CER 1 Sem. 2020'!BJ85) -> 1.089496977 | G91: =IF('Dati Generali CER 1 Sem. 2020'!BK85="","",'Dati Generali CER 1 Sem. 2020'!BK85) -> 0.8579766599 | H91: =IF('Dati Generali CER 1 Sem. 2020'!BL85="","",'Dati Generali CER 1 Sem. 2020'!BL85) -> 0.2315203173 | I91: ='Dati Generali CER 1 Sem. 2020'!D85 -> 6876 | J91: =IF('Dati Generali CER 1 Sem. 2020'!BN85="","",'Dati Generali CER 1 Sem. 2020'!BN85) -> 2020-09-29T18:25:03
A92: 83 | B92: ='Dati Generali CER 1 Sem. 2020'!C90 -> S. SALVAT. DI FITALIA | C92: =IF('Dati Generali CER 1 Sem. 2020'!E90="","",'Dati Generali CER 1 Sem. 2020'!E90) -> 91300 | D92: =IF(C92="","",'Dati Generali CER 1 Sem. 2020'!BI90) -> 157640 | E92: ='Dati Generali CER 1 Sem. 2020'!W90 -> 0.6332449586 | F92: =IF('Dati Generali CER 1 Sem. 2020'!BJ90="","",'Dati Generali CER 1 Sem. 2020'!BJ90) -> 1.149005109 | G92: =IF('Dati Generali CER 1 Sem. 2020'!BK90="","",'Dati Generali CER 1 Sem. 2020'!BK90) -> 0.4214034165 | H92: =IF('Dati Generali CER 1 Sem. 2020'!BL90="","",'Dati Generali CER 1 Sem. 2020'!BL90) -> 0.727601693 | I92: ='Dati Generali CER 1 Sem. 2020'!D90 -> 1197 | J92: =IF('Dati Generali CER 1 Sem. 2020'!BN90="","",'Dati Generali CER 1 Sem. 2020'!BN90) -> 2020-07-22T22:52:27
A93: 84 | B93: ='Dati Generali CER 1 Sem. 2020'!C81 -> S. STEF. DI CAMASTRA | C93: =IF('Dati Generali CER 1 Sem. 2020'!E81="","",'Dati Generali CER 1 Sem. 2020'!E81) -> 331560 | D93: =IF(C93="","",'Dati Generali CER 1 Sem. 2020'!BI81) -> 662470 | E93: ='Dati Generali CER 1 Sem. 2020'!W81 -> 0.6664486987 | F93: =IF('Dati Generali CER 1 Sem. 2020'!BJ81="","",'Dati Generali CER 1 Sem. 2020'!BJ81) -> 1.198315176 | G93: =IF('Dati Generali CER 1 Sem. 2020'!BK81="","",'Dati Generali CER 1 Sem. 2020'!BK81) -> 0.3996995864 | H93: =IF('Dati Generali CER 1 Sem. 2020'!BL81="","",'Dati Generali CER 1 Sem. 2020'!BL81) -> 0.7986155899 | I93: ='Dati Generali CER 1 Sem. 2020'!D81 -> 4583 | J93: =IF('Dati Generali CER 1 Sem. 2020'!BN81="","",'Dati Generali CER 1 Sem. 2020'!BN81) -> 2020-07-23T19:54:41
A94: 85 | B94: ='Dati Generali CER 1 Sem. 2020'!C84 -> S. TERESA DI RIVA | C94: =IF('Dati Generali CER 1 Sem. 2020'!E84="","",'Dati Generali CER 1 Sem. 2020'!E84) -> 453760 | D94: =IF(C94="","",'Dati Generali CER 1 Sem. 2020'!BI84) -> 1118509 | E94: ='Dati Generali CER 1 Sem. 2020'!W84 -> 0.711397986 | F94: =IF('Dati Generali CER 1 Sem. 2020'!BJ84="","",'Dati Generali CER 1 Sem. 2020'!BJ84) -> 0.918727558 | G94: =IF('Dati Generali CER 1 Sem. 2020'!BK84="","",'Dati Generali CER 1 Sem. 2020'!BK84) -> 0.2651466236 | H94: =IF('Dati Generali CER 1 Sem. 2020'!BL84="","",'Dati Generali CER 1 Sem. 2020'!BL84) -> 0.6535809344 | I94: ='Dati Generali CER 1 Sem. 2020'!D84 -> 9455 | J94: =IF('Dati Generali CER 1 Sem. 2020'!BN84="","",'Dati Generali CER 1 Sem. 2020'!BN84) -> 2020-10-16T18:44:08
A95: 86 | B95: ='Dati Generali CER 1 Sem. 2020'!C86 -> SAN FRATELLO | C95: =IF('Dati Generali CER 1 Sem. 2020'!E86="","",'Dati Generali CER 1 Sem. 2020'!E86) -> 182040 | D95: =IF(C95="","",'Dati Generali CER 1 Sem. 2020'!BI86) -> 240600 | E95: ='Dati Generali CER 1 Sem. 2020'!W86 -> 0.5692788189 | F95: =IF('Dati Generali CER 1 Sem. 2020'!BJ86="","",'Dati Generali CER 1 Sem. 2020'!BJ86) -> 0.680567655 | G95: =IF('Dati Generali CER 1 Sem. 2020'!BK86="","",'Dati Generali CER 1 Sem. 2020'!BK86) -> 0.2931349042 | H95: =IF('Dati Generali CER 1 Sem. 2020'!BL86="","",'Dati Generali CER 1 Sem. 2020'!BL86) -> 0.3874327508 | I95: ='Dati Generali CER 1 Sem. 2020'!D86 -> 3431 | J95: =IF('Dati Generali CER 1 Sem. 2020'!BN86="","",'Dati Generali CER 1 Sem. 2020'!BN86) -> 2020-07-23T19:17:30
A96: 87 | B96: ='Dati Generali CER 1 Sem. 2020'!C87 -> SAN MARCO D'ALUNZIO | C96: =IF('Dati Generali CER 1 Sem. 2020'!E87="","",'Dati Generali CER 1 Sem. 2020'!E87) -> 68680 | D96: =IF(C96="","",'Dati Generali CER 1 Sem. 2020'!BI87) -> 211690 | E96: ='Dati Generali CER 1 Sem. 2020'!W87 -> 0.7550379855 | F96: =IF('Dati Generali CER 1 Sem. 2020'!BJ87="","",'Dati Generali CER 1 Sem. 2020'!BJ87) -> 0.8386602733 | G96: =IF('Dati Generali CER 1 Sem. 2020'!BK87="","",'Dati Generali CER 1 Sem. 2020'!BK87) -> 0.20543991 | H96: =IF('Dati Generali CER 1 Sem. 2020'!BL87="","",'Dati Generali CER 1 Sem. 2020'!BL87) -> 0.6332203633 | I96: ='Dati Generali CER 1 Sem. 2020'!D87 -> 1847 | J96: =IF('Dati Generali CER 1 Sem. 2020'!BN87="","",'Dati Generali CER 1 Sem. 2020'!BN87) -> 2020-07-15T17:11:52
A97: 88 | B97: ='Dati Generali CER 1 Sem. 2020'!C88 -> SAN PIER NICETO | C97: =IF('Dati Generali CER 1 Sem. 2020'!E88="","",'Dati Generali CER 1 Sem. 2020'!E88) -> 258480 | D97: =IF(C97="","",'Dati Generali CER 1 Sem. 2020'!BI88) -> 329954 | E97: ='Dati Generali CER 1 Sem. 2020'!W88 -> 0.5607323846 | F97: =IF('Dati Generali CER 1 Sem. 2020'!BJ88="","",'Dati Generali CER 1 Sem. 2020'!BJ88) -> 1.210356134 | G97: =IF('Dati Generali CER 1 Sem. 2020'!BK88="","",'Dati Generali CER 1 Sem. 2020'!BK88) -> 0.5316702525 | H97: =IF('Dati Generali CER 1 Sem. 2020'!BL88="","",'Dati Generali CER 1 Sem. 2020'!BL88) -> 0.678685881 | I97: ='Dati Generali CER 1 Sem. 2020'!D88 -> 2686 | J97: =IF('Dati Generali CER 1 Sem. 2020'!BN88="","",'Dati Generali CER 1 Sem. 2020'!BN88) -> 2020-07-23T19:22:36
A98: 89 | B98: ='Dati Generali CER 1 Sem. 2020'!C89 -> SAN PIERO PATTI | C98: =IF('Dati Generali CER 1 Sem. 2020'!E89="","",'Dati Generali CER 1 Sem. 2020'!E89) -> 262680 | D98: =IF(C98="","",'Dati Generali CER 1 Sem. 2020'!BI89) -> 231917 | E98: ='Dati Generali CER 1 Sem. 2020'!W89 -> 0.4521883415 | F98: =IF('Dati Generali CER 1 Sem. 2020'!BJ89="","",'Dati Generali CER 1 Sem. 2020'!BJ89) -> 1.048307283 | G98: =IF('Dati Generali CER 1 Sem. 2020'!BK89="","",'Dati Generali CER 1 Sem. 2020'!BK89) -> 0.5369111055 | H98: =IF('Dati Generali CER 1 Sem. 2020'!BL89="","",'Dati Generali CER 1 Sem. 2020'!BL89) -> 0.4740323316 | I98: ='Dati Generali CER 1 Sem. 2020'!D89 -> 2703 | J98: =IF('Dati Generali CER 1 Sem. 2020'!BN89="","",'Dati Generali CER 1 Sem. 2020'!BN89) -> 2020-07-31T20:21:53
A99: 90 | B99: ='Dati Generali CER 1 Sem. 2020'!C91 -> SAN TEODORO | C99: =IF('Dati Generali CER 1 Sem. 2020'!E91="","",'Dati Generali CER 1 Sem. 2020'!E91) -> 135080 | D99: =IF(C99="","",'Dati Generali CER 1 Sem. 2020'!BI91) -> 73680 | E99: ='Dati Generali CER 1 Sem. 2020'!W91 -> 0.3529411765 | F99: =IF('Dati Generali CER 1 Sem. 2020'!BJ91="","",'Dati Generali CER 1 Sem. 2020'!BJ91) -> 0.8872078198 | G99: =IF('Dati Generali CER 1 Sem. 2020'!BK91="","",'Dati Generali CER 1 Sem. 2020'!BK91) -> 0.5740756481 | H99: =IF('Dati Generali CER 1 Sem. 2020'!BL91="","",'Dati Generali CER 1 Sem. 2020'!BL91) -> 0.3131321717 | I99: ='Dati Generali CER 1 Sem. 2020'!D91 -> 1300 | J99: =IF('Dati Generali CER 1 Sem. 2020'!BN91="","",'Dati Generali CER 1 Sem. 2020'!BN91) -> 2020-07-20T20:18:29
A100: 91 | B100: ='Dati Generali CER 1 Sem. 2020'!C83 -> SANTA LUCIA DEL MELA | C100: =IF('Dati Generali CER 1 Sem. 2020'!E83="","",'Dati Generali CER 1 Sem. 2020'!E83) -> 207920 | D100: =IF(C100="","",'Dati Generali CER 1 Sem. 2020'!BI83) -> 371433 | E100: ='Dati Generali CER 1 Sem. 2020'!W83 -> 0.6411169011 | F100: =IF('Dati Generali CER 1 Sem. 2020'!BJ83="","",'Dati Generali CER 1 Sem. 2020'!BJ83) -> 0.7083083213 | G100: =IF('Dati Generali CER 1 Sem. 2020'!BK83="","",'Dati Generali CER 1 Sem. 2020'!BK83) -> 0.2541998853 | H100: =IF('Dati Generali CER 1 Sem. 2020'!BL83="","",'Dati Generali CER 1 Sem. 2020'!BL83) -> 0.454108436 | I100: ='Dati Generali CER 1 Sem. 2020'!D83 -> 4519 | J100: =IF('Dati Generali CER 1 Sem. 2020'!BN83="","",'Dati Generali CER 1 Sem. 2020'!BN83) -> 
A101: 92 | B101: ='Dati Generali CER 1 Sem. 2020'!C94 -> SANTA MARINA SALINA | C101: =IF('Dati Generali CER 1 Sem. 2020'!E94="","",'Dati Generali CER 1 Sem. 2020'!E94) -> 94420 | D101: =IF(C101="","",'Dati Generali CER 1 Sem. 2020'!BI94) -> 59130 | E101: ='Dati Generali CER 1 Sem. 2020'!W94 -> 0.3850862911 | F101: =IF('Dati Generali CER 1 Sem. 2020'!BJ94="","",'Dati Generali CER 1 Sem. 2020'!BJ94) -> 0.9864448156 | G101: =IF('Dati Generali CER 1 Sem. 2020'!BK94="","",'Dati Generali CER 1 Sem. 2020'!BK94) -> 0.6065784402 | H101: =IF('Dati Generali CER 1 Sem. 2020'!BL94="","",'Dati Generali CER 1 Sem. 2020'!BL94) -> 0.3798663754 | I101: ='Dati Generali CER 1 Sem. 2020'!D94 -> 860 | J101: =IF('Dati Generali CER 1 Sem. 2020'!BN94="","",'Dati Generali CER 1 Sem. 2020'!BN94) -> 2020-08-24T17:57:57
A102: 93 | B102: ='Dati Generali CER 1 Sem. 2020'!C95 -> SAPONARA | C102: =IF('Dati Generali CER 1 Sem. 2020'!E95="","",'Dati Generali CER 1 Sem. 2020'!E95) -> 385290 | D102: =IF(C102="","",'Dati Generali CER 1 Sem. 2020'!BI95) -> 222190 | E102: ='Dati Generali CER 1 Sem. 2020'!W95 -> 0.3657568973 | F102: =IF('Dati Generali CER 1 Sem. 2020'!BJ95="","",'Dati Generali CER 1 Sem. 2020'!BJ95) -> 0.8855522675 | G102: =IF('Dati Generali CER 1 Sem. 2020'!BK95="","",'Dati Generali CER 1 Sem. 2020'!BK95) -> 0.5616554177 | H102: =IF('Dati Generali CER 1 Sem. 2020'!BL95="","",'Dati Generali CER 1 Sem. 2020'!BL95) -> 0.3238968498 | I102: ='Dati Generali CER 1 Sem. 2020'!D95 -> 3790 | J102: =IF('Dati Generali CER 1 Sem. 2020'!BN95="","",'Dati Generali CER 1 Sem. 2020'!BN95) -> 2020-09-23T19:04:22
A103: 94 | B103: ='Dati Generali CER 1 Sem. 2020'!C96 -> SAVOCA | C103: =IF('Dati Generali CER 1 Sem. 2020'!E96="","",'Dati Generali CER 1 Sem. 2020'!E96) -> 119220 | D103: =IF(C103="","",'Dati Generali CER 1 Sem. 2020'!BI96) -> 139640 | E103: ='Dati Generali CER 1 Sem. 2020'!W96 -> 0.5394421695 | F103: =IF('Dati Generali CER 1 Sem. 2020'!BJ96="","",'Dati Generali CER 1 Sem. 2020'!BJ96) -> 0.8314917127 | G103: =IF('Dati Generali CER 1 Sem. 2020'!BK96="","",'Dati Generali CER 1 Sem. 2020'!BK96) -> 0.3829500193 | H103: =IF('Dati Generali CER 1 Sem. 2020'!BL96="","",'Dati Generali CER 1 Sem. 2020'!BL96) -> 0.4485416934 | I103: ='Dati Generali CER 1 Sem. 2020'!D96 -> 1720 | J103: =IF('Dati Generali CER 1 Sem. 2020'!BN96="","",'Dati Generali CER 1 Sem. 2020'!BN96) -> 2020-09-22T18:40:46
A104: 95 | B104: ='Dati Generali CER 1 Sem. 2020'!C97 -> SCALETTA ZANCLEA | C104: =IF('Dati Generali CER 1 Sem. 2020'!E97="","",'Dati Generali CER 1 Sem. 2020'!E97) -> 108960 | D104: =IF(C104="","",'Dati Generali CER 1 Sem. 2020'!BI97) -> 206630 | E104: ='Dati Generali CER 1 Sem. 2020'!W97 -> 0.654741912 | F104: =IF('Dati Generali CER 1 Sem. 2020'!BJ97="","",'Dati Generali CER 1 Sem. 2020'!BJ97) -> 0.8882277943 | G104: =IF('Dati Generali CER 1 Sem. 2020'!BK97="","",'Dati Generali CER 1 Sem. 2020'!BK97) -> 0.30666783 | H104: =IF('Dati Generali CER 1 Sem. 2020'!BL97="","",'Dati Generali CER 1 Sem. 2020'!BL97) -> 0.5815599643 | I104: ='Dati Generali CER 1 Sem. 2020'!D97 -> 1963 | J104: =IF('Dati Generali CER 1 Sem. 2020'!BN97="","",'Dati Generali CER 1 Sem. 2020'!BN97) -> 2020-07-31T11:19:38
A105: 96 | B105: ='Dati Generali CER 1 Sem. 2020'!C98 -> SINAGRA | C105: =IF('Dati Generali CER 1 Sem. 2020'!E98="","",'Dati Generali CER 1 Sem. 2020'!E98) -> 108680 | D105: =IF(C105="","",'Dati Generali CER 1 Sem. 2020'!BI98) -> 289620 | E105: ='Dati Generali CER 1 Sem. 2020'!W98 -> 0.7271403465 | F105: =IF('Dati Generali CER 1 Sem. 2020'!BJ98="","",'Dati Generali CER 1 Sem. 2020'!BJ98) -> 0.8529273202 | G105: =IF('Dati Generali CER 1 Sem. 2020'!BK98="","",'Dati Generali CER 1 Sem. 2020'!BK98) -> 0.2327294531 | H105: =IF('Dati Generali CER 1 Sem. 2020'!BL98="","",'Dati Generali CER 1 Sem. 2020'!BL98) -> 0.6201978671 | I105: ='Dati Generali CER 1 Sem. 2020'!D98 -> 2580 | J105: =IF('Dati Generali CER 1 Sem. 2020'!BN98="","",'Dati Generali CER 1 Sem. 2020'!BN98) -> 2020-07-15T10:55:32
A106: 97 | B106: ='Dati Generali CER 1 Sem. 2020'!C99 -> SPADAFORA | C106: =IF('Dati Generali CER 1 Sem. 2020'!E99="","",'Dati Generali CER 1 Sem. 2020'!E99) -> 328528 | D106: =IF(C106="","",'Dati Generali CER 1 Sem. 2020'!BI99) -> 543902 | E106: ='Dati Generali CER 1 Sem. 2020'!W99 -> 0.6197550615 | F106: =IF('Dati Generali CER 1 Sem. 2020'!BJ99="","",'Dati Generali CER 1 Sem. 2020'!BJ99) -> 1.014152475 | G106: =IF('Dati Generali CER 1 Sem. 2020'!BK99="","",'Dati Generali CER 1 Sem. 2020'!BK99) -> 0.3796427156 | H106: =IF('Dati Generali CER 1 Sem. 2020'!BL99="","",'Dati Generali CER 1 Sem. 2020'!BL99) -> 0.6285261296 | I106: ='Dati Generali CER 1 Sem. 2020'!D99 -> 4781 | J106: =IF('Dati Generali CER 1 Sem. 2020'!BN99="","",'Dati Generali CER 1 Sem. 2020'!BN99) -> 2020-07-17T12:09:37
A107: 98 | B107: ='Dati Generali CER 1 Sem. 2020'!C100 -> TAORMINA | C107: =IF('Dati Generali CER 1 Sem. 2020'!E100="","",'Dati Generali CER 1 Sem. 2020'!E100) -> 1005540 | D107: =IF(C107="","",'Dati Generali CER 1 Sem. 2020'!BI100) -> 1536486 | E107: ='Dati Generali CER 1 Sem. 2020'!W100 -> 0.6044336289 | F107: =IF('Dati Generali CER 1 Sem. 2020'!BJ100="","",'Dati Generali CER 1 Sem. 2020'!BJ100) -> 1.297998386 | G107: =IF('Dati Generali CER 1 Sem. 2020'!BK100="","",'Dati Generali CER 1 Sem. 2020'!BK100) -> 0.5134445114 | H107: =IF('Dati Generali CER 1 Sem. 2020'!BL100="","",'Dati Generali CER 1 Sem. 2020'!BL100) -> 0.7845538751 | I107: ='Dati Generali CER 1 Sem. 2020'!D100 -> 10820 | J107: =IF('Dati Generali CER 1 Sem. 2020'!BN100="","",'Dati Generali CER 1 Sem. 2020'!BN100) -> 2020-08-24T18:09:00
A108: 99 | B108: ='Dati Generali CER 1 Sem. 2020'!C101 -> TERME VIGLIATORE | C108: =IF('Dati Generali CER 1 Sem. 2020'!E101="","",'Dati Generali CER 1 Sem. 2020'!E101) -> 419620 | D108: =IF(C108="","",'Dati Generali CER 1 Sem. 2020'!BI101) -> 902520 | E108: ='Dati Generali CER 1 Sem. 2020'!W101 -> 0.6664599025 | F108: =IF('Dati Generali CER 1 Sem. 2020'!BJ101="","",'Dati Generali CER 1 Sem. 2020'!BJ101) -> 1.016959081 | G108: =IF('Dati Generali CER 1 Sem. 2020'!BK101="","",'Dati Generali CER 1 Sem. 2020'!BK101) -> 0.315120639 | H108: =IF('Dati Generali CER 1 Sem. 2020'!BL101="","",'Dati Generali CER 1 Sem. 2020'!BL101) -> 0.6777624497 | I108: ='Dati Generali CER 1 Sem. 2020'!D101 -> 7357 | J108: =IF('Dati Generali CER 1 Sem. 2020'!BN101="","",'Dati Generali CER 1 Sem. 2020'!BN101) -> 2020-07-15T10:58:32
A109: 100 | B109: ='Dati Generali CER 1 Sem. 2020'!C102 -> TORREGROTTA | C109: =IF('Dati Generali CER 1 Sem. 2020'!E102="","",'Dati Generali CER 1 Sem. 2020'!E102) -> 974500 | D109: =IF(C109="","",'Dati Generali CER 1 Sem. 2020'!BI102) -> 383812 | E109: ='Dati Generali CER 1 Sem. 2020'!W102 -> 0.2802525261 | F109: =IF('Dati Generali CER 1 Sem. 2020'!BJ102="","",'Dati Generali CER 1 Sem. 2020'!BJ102) -> 1.032253737 | G109: =IF('Dati Generali CER 1 Sem. 2020'!BK102="","",'Dati Generali CER 1 Sem. 2020'!BK102) -> 0.734512674 | H109: =IF('Dati Generali CER 1 Sem. 2020'!BL102="","",'Dati Generali CER 1 Sem. 2020'!BL102) -> 0.2892917172 | I109: ='Dati Generali CER 1 Sem. 2020'!D102 -> 7330 | J109: =IF('Dati Generali CER 1 Sem. 2020'!BN102="","",'Dati Generali CER 1 Sem. 2020'!BN102) -> 2020-09-09T12:08:54
A110: 101 | B110: ='Dati Generali CER 1 Sem. 2020'!C103 -> TORRENOVA | C110: =IF('Dati Generali CER 1 Sem. 2020'!E103="","",'Dati Generali CER 1 Sem. 2020'!E103) -> 213280 | D110: =IF(C110="","",'Dati Generali CER 1 Sem. 2020'!BI103) -> 619750 | E110: ='Dati Generali CER 1 Sem. 2020'!W103 -> 0.7439708054 | F110: =IF('Dati Generali CER 1 Sem. 2020'!BJ103="","",'Dati Generali CER 1 Sem. 2020'!BJ103) -> 1.025713325 | G110: =IF('Dati Generali CER 1 Sem. 2020'!BK103="","",'Dati Generali CER 1 Sem. 2020'!BK103) -> 0.2626125566 | H110: =IF('Dati Generali CER 1 Sem. 2020'!BL103="","",'Dati Generali CER 1 Sem. 2020'!BL103) -> 0.7631007687 | I110: ='Dati Generali CER 1 Sem. 2020'!D103 -> 4487 | J110: =IF('Dati Generali CER 1 Sem. 2020'!BN103="","",'Dati Generali CER 1 Sem. 2020'!BN103) -> 2020-09-23T19:08:21
A111: 102 | B111: ='Dati Generali CER 1 Sem. 2020'!C104 -> TORTORICI | C111: =IF('Dati Generali CER 1 Sem. 2020'!E104="","",'Dati Generali CER 1 Sem. 2020'!E104) -> 363120 | D111: =IF(C111="","",'Dati Generali CER 1 Sem. 2020'!BI104) -> 287870 | E111: ='Dati Generali CER 1 Sem. 2020'!W104 -> 0.4422034133 | F111: =IF('Dati Generali CER 1 Sem. 2020'!BJ104="","",'Dati Generali CER 1 Sem. 2020'!BJ104) -> 0.5974468163 | G111: =IF('Dati Generali CER 1 Sem. 2020'!BK104="","",'Dati Generali CER 1 Sem. 2020'!BK104) -> 0.3332537949 | H111: =IF('Dati Generali CER 1 Sem. 2020'!BL104="","",'Dati Generali CER 1 Sem. 2020'!BL104) -> 0.2641930214 | I111: ='Dati Generali CER 1 Sem. 2020'!D104 -> 6020 | J111: =IF('Dati Generali CER 1 Sem. 2020'!BN104="","",'Dati Generali CER 1 Sem. 2020'!BN104) -> 2020-09-15T19:36:22
A112: 103 | B112: ='Dati Generali CER 1 Sem. 2020'!C105 -> TRIPI | C112: =IF('Dati Generali CER 1 Sem. 2020'!E105="","",'Dati Generali CER 1 Sem. 2020'!E105) -> 74940 | D112: =IF(C112="","",'Dati Generali CER 1 Sem. 2020'!BI105) -> 40378 | E112: ='Dati Generali CER 1 Sem. 2020'!W105 -> 0.3501448169 | F112: =IF('Dati Generali CER 1 Sem. 2020'!BJ105="","",'Dati Generali CER 1 Sem. 2020'!BJ105) -> 0.7894870162 | G112: =IF('Dati Generali CER 1 Sem. 2020'!BK105="","",'Dati Generali CER 1 Sem. 2020'!BK105) -> 0.5130522295 | H112: =IF('Dati Generali CER 1 Sem. 2020'!BL105="","",'Dati Generali CER 1 Sem. 2020'!BL105) -> 0.2764347868 | I112: ='Dati Generali CER 1 Sem. 2020'!D105 -> 807 | J112: =IF('Dati Generali CER 1 Sem. 2020'!BN105="","",'Dati Generali CER 1 Sem. 2020'!BN105) -> 2020-07-28T19:24:09
A113: 104 | B113: ='Dati Generali CER 1 Sem. 2020'!C106 -> TUSA | C113: =IF('Dati Generali CER 1 Sem. 2020'!E106="","",'Dati Generali CER 1 Sem. 2020'!E106) -> 127400 | D113: =IF(C113="","",'Dati Generali CER 1 Sem. 2020'!BI106) -> 288760 | E113: ='Dati Generali CER 1 Sem. 2020'!W106 -> 0.6938677432 | F113: =IF('Dati Generali CER 1 Sem. 2020'!BJ106="","",'Dati Generali CER 1 Sem. 2020'!BJ106) -> 0.8506202439 | G113: =IF('Dati Generali CER 1 Sem. 2020'!BK106="","",'Dati Generali CER 1 Sem. 2020'!BK106) -> 0.260402295 | H113: =IF('Dati Generali CER 1 Sem. 2020'!BL106="","",'Dati Generali CER 1 Sem. 2020'!BL106) -> 0.590217949 | I113: ='Dati Generali CER 1 Sem. 2020'!D106 -> 2703 | J113: =IF('Dati Generali CER 1 Sem. 2020'!BN106="","",'Dati Generali CER 1 Sem. 2020'!BN106) -> 2020-07-23T19:57:38
A114: 105 | B114: ='Dati Generali CER 1 Sem. 2020'!C107 -> UCRIA | C114: =IF('Dati Generali CER 1 Sem. 2020'!E107="","",'Dati Generali CER 1 Sem. 2020'!E107) -> 79160 | D114: =IF(C114="","",'Dati Generali CER 1 Sem. 2020'!BI107) -> 61080 | E114: ='Dati Generali CER 1 Sem. 2020'!W107 -> 0.4355390759 | F114: =IF('Dati Generali CER 1 Sem. 2020'!BJ107="","",'Dati Generali CER 1 Sem. 2020'!BJ107) -> 0.8155859261 | G114: =IF('Dati Generali CER 1 Sem. 2020'!BK107="","",'Dati Generali CER 1 Sem. 2020'!BK107) -> 0.4603663856 | H114: =IF('Dati Generali CER 1 Sem. 2020'!BL107="","",'Dati Generali CER 1 Sem. 2020'!BL107) -> 0.3552195406 | I114: ='Dati Generali CER 1 Sem. 2020'!D107 -> 950 | J114: =IF('Dati Generali CER 1 Sem. 2020'!BN107="","",'Dati Generali CER 1 Sem. 2020'!BN107) -> 2020-07-20T20:25:33
A115: 106 | B115: ='Dati Generali CER 1 Sem. 2020'!C108 -> VALDINA | C115: =IF('Dati Generali CER 1 Sem. 2020'!E108="","",'Dati Generali CER 1 Sem. 2020'!E108) -> 117300 | D115: =IF(C115="","",'Dati Generali CER 1 Sem. 2020'!BI108) -> 56390 | E115: ='Dati Generali CER 1 Sem. 2020'!W108 -> 0.324658875 | F115: =IF('Dati Generali CER 1 Sem. 2020'!BJ108="","",'Dati Generali CER 1 Sem. 2020'!BJ108) -> 0.7330888156 | G115: =IF('Dati Generali CER 1 Sem. 2020'!BK108="","",'Dati Generali CER 1 Sem. 2020'!BK108) -> 0.4950850255 | H115: =IF('Dati Generali CER 1 Sem. 2020'!BL108="","",'Dati Generali CER 1 Sem. 2020'!BL108) -> 0.2380037902 | I115: ='Dati Generali CER 1 Sem. 2020'!D108 -> 1309 | J115: =IF('Dati Generali CER 1 Sem. 2020'!BN108="","",'Dati Generali CER 1 Sem. 2020'!BN108) -> 2020-10-06T12:07:24
A116: 107 | B116: ='Dati Generali CER 1 Sem. 2020'!C109 -> VENETICO | C116: =IF('Dati Generali CER 1 Sem. 2020'!E109="","",'Dati Generali CER 1 Sem. 2020'!E109) -> 418500 | D116: =IF(C116="","",'Dati Generali CER 1 Sem. 2020'!BI109) -> 212327 | E116: ='Dati Generali CER 1 Sem. 2020'!W109 -> 0.3284624559 | F116: =IF('Dati Generali CER 1 Sem. 2020'!BJ109="","",'Dati Generali CER 1 Sem. 2020'!BJ109) -> 0.8897408793 | G116: =IF('Dati Generali CER 1 Sem. 2020'!BK109="","",'Dati Generali CER 1 Sem. 2020'!BK109) -> 0.576022595 | H116: =IF('Dati Generali CER 1 Sem. 2020'!BL109="","",'Dati Generali CER 1 Sem. 2020'!BL109) -> 0.2922464744 | I116: ='Dati Generali CER 1 Sem. 2020'!D109 -> 4014 | J116: =IF('Dati Generali CER 1 Sem. 2020'!BN109="","",'Dati Generali CER 1 Sem. 2020'!BN109) -> 2020-07-20T20:46:42
A117: 108 | B117: ='Dati Generali CER 1 Sem. 2020'!C110 -> VILLAFRANCA TIRRENA | C117: =IF('Dati Generali CER 1 Sem. 2020'!E110="","",'Dati Generali CER 1 Sem. 2020'!E110) -> 329100 | D117: =IF(C117="","",'Dati Generali CER 1 Sem. 2020'!BI110) -> 1142611 | E117: ='Dati Generali CER 1 Sem. 2020'!W110 -> 0.7763827273 | F117: =IF('Dati Generali CER 1 Sem. 2020'!BJ110="","",'Dati Generali CER 1 Sem. 2020'!BJ110) -> 0.9728403924 | G117: =IF('Dati Generali CER 1 Sem. 2020'!BK110="","",'Dati Generali CER 1 Sem. 2020'!BK110) -> 0.2175439153 | H117: =IF('Dati Generali CER 1 Sem. 2020'!BL110="","",'Dati Generali CER 1 Sem. 2020'!BL110) -> 0.7552964771 | I117: ='Dati Generali CER 1 Sem. 2020'!D110 -> 8358 | J117: =IF('Dati Generali CER 1 Sem. 2020'!BN110="","",'Dati Generali CER 1 Sem. 2020'!BN110) -> 2020-07-20T20:36:40
B118: Percentuale media dei 108 Comuni: | F118: ='Dati Generali CER 1 Sem. 2020'!W111 -> 0.3698662289

Sheet Grafico 1 Semestre 2020

Sheet Dati Generali CER 2 Sem. 2020
A1: Produzione di Rifiuti Urbani e Raccolta Differenziata 2° Semestre 2020.
A2: =COUNTA(E3:E110) -> 108 | B2: ID COMUNE | C2: COMUNE | D2: ABITANTI AL 31/12/2020 | E2: R.S.U. + R.S.A. (Kg/2°Sem.) 200301 | F2: Toner per stampa esauriti, contenenti sostanze pericolose 080317* | G2: Altri oli per motori, ingranaggi e lubrificazione 130208* | H2: Legno da demolizione 170201 | I2: Miscele bituminose (diverse da quelle 170301*) 170302 | J2: Alluminio 170402 | K2: Ferro e acciaio 170405 | L2: Materiali da costruzione contenenti amianto 170605* | M2: percolato di discarica,(diverso dalla voce 190702) 190703 | N2: Residui di vagliatura 190801 | O2: FANGHI DI DEPURAZIONE (Kg/anno) prodotti dal trattamento delle acque reflue urbane 190805 | P2: Altri rifiuti (compresi materiali misti) prodotti dal trattamento meccanico dei rifiuti,(diversi dalla voce 191211) 191212 | Q2: Rifiuti della pulizia delle fognature 200306 | R2: Residui della pulizia stradale 200303 Smaltimento | S2: Ingombranti - 200307 Smaltimento | T2: Rifiuti urbani non specificati altrimenti 200399 | U2: RACCOL. DIFFEREN. (Kg/2°Sem.) | V2: R.S.U. + R.S.A. + RACC. DIFF. (Kg/2°Sem.) | W2: % RACC. DIFF. (2°Sem.) | X2: Compostaggio Domestico | Y2: Toner per stampa esauriti,(diversi dalla voce 080317) 080318 | Z2: Imballaggi Carta e Cartone (Raccolta Selettiva) 150101 | AA2: Imballaggi in Plastica 150102 | AB2: Imballaggi in Legno 150103 | AC2: Imballaaggi in metallo 150104 | AD2: Imball. in materiali misti 150106 | AE2: Imballaggi in Vetro 150107 | AF2: Imballaggi contenenti residui di sostanze pericolose o contaminati da tali sostanze 150110* | AG2: Imballaggi metallici contenenti matrici solide porose pericolose (ad esempio amianto) 150111* | AH2: Pneumatici usati 160103 | AI2: Filtri dell'olio 160107* | AJ2: Apparecchiature fuori uso, contenenti clorofluorocarburi, HCFC, HFC 160211* | AK2: Componenti rimossi da apparecchiature fuori uso,(diversi dalla voce 160215) 160216 | AL2: Miscugli o frazioni separate di cemento, mattoni, mattonelle e ceramiche(diverse dalla voce 170106) 170107 | AM2: Rifiuti misti dell'attività di costruzione e demolizione, (diversi dalle voci 170901, 170902 e 170903) 170904 | AN2: Carta e Cartone (Raccolta Congiunta) 200101 | AO2: Vetro 200102 | AP2: Rifiuti biodegradabili di cucine e mense 200108 | AQ2: Abbigliamento 200110 | AR2: Prodotti tessili 200111 | AS2: Tubi fluorescenti ed altri rifiuti contenenti Mercurio 200121* | AT2: Apparec. Fuori uso conten. CFC e mat. peric. 200123* | AU2: Oli e Grassi commestibili 200125 | AV2: Oli e grassi (diversi dalla voce 200125) 200126* | AW2: Medicinali citotossici e citostatici 200131* | AX2: Medicinali (diversi dlla voce 200131*) 200132 | AY2: Batterie ed Accumulatori (diversi dalle voci 160601, 160602 e 160603) 200133* | AZ2: Batterie ed accumulatori (diversi dlla voce 200133*) 200134 | BA2: Apparecc. elettr. ed elettroniche fuori uso contenenti Mat. Peric. 200135* | BB2: Apparecc. eletr. ed elettroniche fuori uso(diverse da 200121, 200123 e 200135) 200136 | BC2: Legno 200138 | BD2: Plastica 200139 | BE2: Metallo 200140 | BF2: Rifiuti biodegradabili 200201 | BG2: Residui della pulizia stradale - 200303 Recupero | BH2: Ingombranti - 200307 Recupero | BI2: TOTALE RD (Kg/2°Sem.) | BJ2: R.S.U. + R.S.A.+ R.D. - (R.T. Kg. pro capite/g) | BK2: R.S.U. + R.S.A. 200301 - (R.I. Kg. pro capite/g) | BL2: R.D. - (Kg. pro capite/g)
A3: 1 | B3: M211 | C3: ='Dati Generali CER 1 Sem. 2020'!C3 -> ACQUEDOLCI | D3: 5493 | E3: 212360 | U3: =IF(BI3=0,"",BI3) -> 728370 | V3: =IF(E3=0,"",SUM(U3,E3,R3,S3,T3)) -> 940730 | W3: =IFERROR(IF(E3<>0,IF(U3=0,0,(U3/V3*100)/100),IF(U3=0,"","")),0) -> 0.7742604148 | Z3: 29640 | AA3: 103610 | AE3: 133600 | AN3: 99500 | AP3: 327020 | AT3: 2100 | BA3: 2200 | BB3: 1000 | BH3: 29700 | BI3: =IF(SUM(X3:BH3)=0,"",SUM(X3:BH3)) -> 728370 | BJ3: =IF(SUM(E3)=0,"",V3/D3/184) -> 0.9307597021 | BK3: =IF(E3=0,"",E3/D3/184) -> 0.2101093091 | BL3: =IF(SUM(Y3:BH3)=0,"",BI3/D3/184) -> 0.720650393 | BN3: 2021-05-29T17:37:04
A4: 2 | B4: A177 | C4: ='Dati Generali CER 1 Sem. 2020'!C4 -> ALCARA LI FUSI | D4: 1792 | E4: 34620 | M4: 4540 | U4: =IF(BI4=0,"",BI4) -> 171628 | V4: 206248 | W4: 0.8321438268 | AA4: 22120 | AE4: 39090 | AN4: 23450 | AP4: 71090 | AQ4: 7268 | AT4: 760 | BA4: 1140 | BB4: 2570 | BH4: 4140 | BI4: 171628 | BJ4: 0.6255095109 | BK4: =IF(E4=0,"",E4/D4/184) -> 0.1049956328 | BL4: 0.5205138781 | BN4: 2021-05-29T17:37:04
A5: 3 | B5: A194 | C5: ='Dati Generali CER 1 Sem. 2020'!C5 -> ALI' | D5: 694 | E5: 19560 | U5: =IF(BI5=0,"",BI5) -> 64520 | V5: 84080 | W5: 0.7673644148 | AD5: 8500 | AE5: 9010 | AN5: 8580 | AP5: 29500 | BF5: 3440 | BH5: 5490 | BI5: 64520 | BJ5: 0.6584387921 | BK5: 0.1531762937 | BL5: 0.5052624984 | BN5: 2021-05-29T17:37:04
A6: 4 | B6: A201 | C6: ='Dati Generali CER 1 Sem. 2020'!C6 -> ALI' TERME | D6: 2386 | E6: 153320 | U6: =IF(BI6=0,"",BI6) -> 347865 | V6: 501185 | W6: 0.6940850185 | Y6: 80 | Z6: 12655 | AD6: 45420 | AE6: 44030 | AM6: 5880 | AN6: 43600 | AP6: 169350 | BF6: 3290 | BH6: 23560 | BI6: 347865 | BJ6: 1.14158907 | BK6: 0.3492291993 | BL6: 0.792359871 | BN6: 2021-05-29T17:37:04
A7: 5 | B7: A313 | C7: ='Dati Generali CER 1 Sem. 2020'!C7 -> ANTILLO | D7: 836 | E7: 19770 | S7: 1663 | U7: 70077 | V7: 91510 | W7: 0.7657851601 | AD7: 12210 | AE7: 8110 | AN7: 10300 | AP7: 34590 | AT7: 650 | BA7: 230 | BB7: 1710 | BD7: 40 | BH7: 2237 | BI7: 70077 | BJ7: 0.5949006657 | BK7: 0.1285235074 | BL7: 0.4555661015 | BN7: 2021-05-29T17:37:04
A8: 6 | B8: A638 | C8: ='Dati Generali CER 1 Sem. 2020'!C8 -> BARCELLONA P.G. | D8: 40263 | E8: 6589130 | U8: 3591664 | V8: 10180794 | W8: 0.352788201 | X8: 130907 | Z8: 341480 | AA8: 347550 | AC8: 12440 | AE8: 330000 | AG8: 920 | AH8: 10100 | AK8: 580 | AN8: 464100 | AP8: 509900 | AQ8: 1850 | AS8: 320 | AT8: 24780 | AU8: 1700 | AX8: 1540 | AY8: 5727 | AZ8: 100 | BA8: 29220 | BB8: 47940 | BC8: 460960 | BD8: 8040 | BE8: 52140 | BF8: 176660 | BG8: 100040 | BH8: 532670 | BI8: 3591664 | BJ8: 1.374224528 | BK8: 0.889414329 | BL8: 0.484810199 | BN8: 2021-05-29T17:37:04
A9: 7 | B9: A698 | C9: ='Dati Generali CER 1 Sem. 2020'!C9 -> BASICO' | D9: 554 | E9: 60920 | U9: 48710 | V9: 109630 | W9: 0.4443126881 | X9: 12090 | AA9: 12460 | AE9: 13200 | AN9: 10960 | BI9: 48710 | BJ9: 1.075478732 | BK9: 0.5976298854 | BL9: 0.4778488463 | BN9: 2021-05-29T17:37:04
A10: 8 | B10: B198 | C10: ='Dati Generali CER 1 Sem. 2020'!C10 -> BROLO | D10: 5777 | E10: 458500 | U10: 958990 | V10: 1417490 | W10: 0.676540928 | X10: 45570 | Z10: 119440 | AA10: 99600 | AE10: 103680 | AK10: 1340 | AN10: 67850 | AP10: 362960 | AT10: 14580 | AU10: 170 | AX10: 100 | AZ10: 10 | BA10: 11220 | BB10: 19760 | BC10: 26670 | BE10: 13840 | BF10: 59100 | BH10: 13100 | BI10: 958990 | BJ10: 1.333520859 | BK10: 0.4313394194 | BL10: 0.9021814391 | BN10: 2021-05-29T17:37:04
A11: 9 | B11: B660 | C11: ='Dati Generali CER 1 Sem. 2020'!C11 -> CAPIZZI | D11: 2846 | E11: 131180 | U11: 208426 | V11: 339606 | W11: 0.6137288505 | AA11: 27400 | AE11: 42400 | AN11: 35946 | AP11: 97100 | AT11: 530 | AU11: 120 | BA11: 1070 | BB11: 1340 | BH11: 2520 | BI11: 208426 | BJ11: 0.6485188976 | BK11: 0.2505041401 | BL11: 0.3980147576 | BN11: 2021-05-29T17:37:04
A12: 10 | B12: B666 | C12: ='Dati Generali CER 1 Sem. 2020'!C12 -> CAPO D'ORLANDO | D12: 13157 | E12: 1169690 | K12: 5460 | O12: 32080 | U12: 2130486 | V12: 3300176 | W12: 0.6455673879 | Z12: 203320 | AA12: 237680 | AB12: 11330 | AD12: 900 | AE12: 407270 | AF12: 86 | AN12: 407500 | AP12: 652900 | AQ12: 3320 | AS12: 60 | AT12: 26400 | AU12: 940 | BA12: 19420 | BB12: 17820 | BF12: 51160 | BH12: 90380 | BI12: 2130486 | BJ12: 1.363208872 | BK12: 0.4831656814 | BL12: 0.8800431908 | BN12: 2021-05-29T17:37:04
A13: 11 | B13: B695 | C13: ='Dati Generali CER 1 Sem. 2020'!C13 -> CAPRILEONE | D13: 4354 | E13: 212130 | U13: 305510 | V13: 517640 | W13: 0.5901978209 | Z13: 35250 | AA13: 61110 | AB13: 8330 | AE13: 98420 | AN13: 69330 | BH13: 33070 | BI13: 305510 | BJ13: 0.6461324919 | BK13: 0.2647865032 | BL13: 0.3813459887 | BN13: 2021-05-29T17:37:04
A14: 12 | B14: B804 | C14: ='Dati Generali CER 1 Sem. 2020'!C14 -> CARONIA | D14: 3104 | E14: 221260 | U14: 418730 | V14: 639990 | W14: 0.6542758481 | Z14: 42510 | AA14: 24490 | AD14: 78580 | AE14: 42760 | AP14: 206960 | AU14: 250 | BF14: 11840 | BH14: 11340 | BI14: 418730 | BJ14: 1.120556225 | BK14: 0.3874033505 | BL14: 0.7331528743 | BN14: 2021-05-29T17:37:04
A15: 13 | B15: B918 | C15: ='Dati Generali CER 1 Sem. 2020'!C15 -> CASALVECCHIO SICULO | D15: 747 | E15: 56680 | K15: 900 | U15: 23220 | V15: 79900 | W15: 0.2906132666 | AD15: 7900 | AE15: 9610 | AN15: 4080 | AQ15: 1120 | AT15: 190 | BH15: 320 | BI15: 23220 | BJ15: 0.5813107502 | BK15: 0.4123741342 | BL15: 0.168936616 | BN15: 2021-05-29T17:37:04
A16: 14 | B16: C094 | C16: ='Dati Generali CER 1 Sem. 2020'!C16 -> CASTEL DI LUCIO | D16: 1186 | E16: 23000 | U16: 152920 | V16: 175920 | W16: 0.869258754 | Y16: 60 | Z16: 5800 | AD16: 16550 | AE16: 21100 | AN16: 19770 | AP16: 75540 | AQ16: 9710 | AX16: 70 | AZ16: 20 | BH16: 4300 | BI16: 152920 | BJ16: 0.8061441455 | BK16: 0.1053962901 | BL16: 0.7007478554 | BN16: 2021-05-29T17:37:04
A17: 15 | B17: C051 | C17: ='Dati Generali CER 1 Sem. 2020'!C17 -> CASTELL'UMBERTO | D17: 2923 | E17: 250540 | U17: 195520 | V17: 446060 | W17: 0.4383266825 | AA17: 20770 | AE17: 50650 | AN17: 43460 | AP17: 74810 | BA17: 2850 | BH17: 2980 | BI17: 195520 | BJ17: 0.8293667911 | BK17: 0.465833197 | BL17: 0.3635335941 | BN17: 2021-05-29T17:37:04
A18: 16 | B18: C210 | C18: ='Dati Generali CER 1 Sem. 2020'!C18 -> CASTELMOLA | D18: 1089 | E18: 78830 | S18: 2882 | U18: 86718 | V18: 168430 | W18: 0.514860773 | AD18: 16570 | AE18: 25130 | AN18: 12880 | AP18: 27060 | AT18: 730 | BA18: 250 | BB18: 530 | BH18: 3568 | BI18: 86718 | BJ18: 0.8405697289 | BK18: 0.3934103885 | BL18: 0.4327763804 | BN18: 2021-05-29T17:37:04
A19: 17 | B19: C347 | C19: ='Dati Generali CER 1 Sem. 2020'!C19 -> CASTROREALE | D19: 2240 | E19: 97170 | K19: 1960 | U19: 175910 | V19: 273080 | W19: 0.6441702065 | Z19: 7580 | AA19: 28180 | AE19: 32090 | AN19: 19960 | AP19: 82540 | AT19: 1200 | AW19: 10 | AZ19: 30 | BA19: 870 | BB19: 700 | BH19: 2750 | BI19: 175910 | BJ19: 0.6625582298 | BK19: 0.2357579581 | BL19: 0.4268002717 | BN19: 2021-05-29T17:37:04
A20: 18 | B20: C568 | C20: ='Dati Generali CER 1 Sem. 2020'!C20 -> CESARO' | D20: 2167 | E20: 195860 | U20: 165200 | V20: 361060 | W20: 0.4575416828 | AA20: 21820 | AE20: 27820 | AN20: 36320 | AP20: 74380 | AQ20: 2720 | BH20: 2140 | BI20: 165200 | BJ20: 0.9055295841 | BK20: 0.4912120543 | BL20: 0.4143175297 | BN20: 2021-05-29T17:37:04
A21: 19 | B21: C956 | C21: ='Dati Generali CER 1 Sem. 2020'!C21 -> CONDRO' | D21: 447 | E21: 150660 | U21: 20040 | V21: 170700 | W21: 0.1173989455 | AA21: 4980 | AE21: 4020 | AN21: 7560 | AT21: 620 | BA21: 720 | BB21: 150 | BH21: 1990 | BI21: 20040 | BJ21: 2.075430406 | BK21: 1.831777064 | BL21: 0.2436533411 | BN21: 2021-05-29T17:37:04
A22: 20 | B22: D474 | C22: ='Dati Generali CER 1 Sem. 2020'!C22 -> FALCONE | D22: 2717 | E22: 502940 | U22: 204280 | V22: 707220 | W22: 0.2888492972 | Z22: 10740 | AA22: 37660 | AE22: 48200 | AN22: 63240 | BH22: 44440 | BI22: 204280 | BJ22: 1.414643709 | BK22: 1.006024868 | BL22: 0.4086188411 | BN22: 2021-05-29T17:37:04
A23: 21 | B23: D569 | C23: ='Dati Generali CER 1 Sem. 2020'!C23 -> FICARRA | D23: 1338 | E23: 134320 | U23: 86210 | V23: 220530 | W23: 0.39092187 | X23: 12000 | Z23: 4150 | AA23: 13930 | AB23: 1070 | AE23: 28100 | AN23: 14380 | AQ23: 250 | AT23: 300 | BH23: 12030 | BI23: 86210 | BJ23: 0.8957642815 | BK23: 0.5455904335 | BL23: 0.3501738481 | BN23: 2021-05-29T17:37:04
A24: 22 | B24: D622 | C24: ='Dati Generali CER 1 Sem. 2020'!C24 -> FIUMEDINISI | D24: 1316 | E24: 40450 | U24: 106320 | V24: 146770 | W24: 0.7243987191 | AD24: 17380 | AE24: 17150 | AM24: 3390 | AN24: 18580 | AP24: 30690 | AX24: 60 | AZ24: 120 | BF24: 13470 | BH24: 5480 | BI24: 106320 | BJ24: 0.6061269327 | BK24: 0.1670493591 | BL24: 0.4390775737 | BN24: 2021-05-29T17:37:04
A25: 23 | B25: D635 | C25: ='Dati Generali CER 1 Sem. 2020'!C25 -> FLORESTA | D25: 441 | E25: 88360 | U25: 20660 | V25: 109020 | W25: 0.1895065126 | Z25: 4800 | AA25: 5840 | AE25: 7180 | BC25: 1000 | BH25: 1840 | BI25: 20660 | BJ25: 1.343537415 | BK25: 1.088928325 | BL25: 0.25460909 | BN25: 2021-05-29T17:37:04
A26: 24 | B26: D661 | C26: ='Dati Generali CER 1 Sem. 2020'!C26 -> FONDACHELLI FANTINA | D26: 983 | E26: 71230 | U26: 36420 | V26: 107650 | W26: 0.3383186252 | AA26: 5790 | AD26: 100 | AN26: 5510 | AP26: 23600 | BH26: 1420 | BI26: 36420 | BJ26: 0.5951722765 | BK26: 0.3938144102 | BL26: 0.2013578663 | BN26: 2021-05-29T17:37:04
A27: 25 | B27: D733 | C27: ='Dati Generali CER 1 Sem. 2020'!C27 -> FORZA D'AGRO' | D27: 868 | E27: 63835 | U27: 162587 | V27: 226422 | W27: 0.7180706822 | Z27: 100 | AD27: 20770 | AE27: 18410 | AN27: 16890 | AP27: 97380 | AT27: 560 | BA27: 660 | BB27: 600 | BH27: 7217 | BI27: 162587 | BJ27: 1.417689341 | BK27: 0.3996881887 | BL27: 1.018001152 | BN27: 2021-05-29T17:37:04
A28: 26 | B28: D765 | C28: ='Dati Generali CER 1 Sem. 2020'!C28 -> FRANCAVILLA DI SICILIA | D28: 3619 | E28: 428020 | K28: 17780 | U28: 323920 | V28: 751940 | W28: 0.4307790515 | X28: 90000 | AC28: 3760 | AD28: 84120 | AE28: 53100 | AN28: 62600 | AQ28: 400 | AT28: 4500 | BA28: 4200 | BC28: 7800 | BH28: 13440 | BI28: 323920 | BJ28: 1.129215373 | BK28: 0.6427730456 | BL28: 0.4864423273 | BN28: 2021-05-29T17:37:04
A29: 27 | B29: D793 | C29: ='Dati Generali CER 1 Sem. 2020'!C29 -> FRAZZANO' | D29: 594 | E29: 38860 | U29: 43970 | V29: 82830 | W29: 0.5308463117 | Z29: 5940 | AA29: 3730 | AE29: 14890 | AN29: 960 | AP29: 15610 | BH29: 2840 | BI29: 43970 | BJ29: 0.7578502415 | BK29: 0.355548236 | BL29: 0.4023020056 | BN29: 2021-05-29T17:37:04
A30: 28 | B30: D824 | C30: ='Dati Generali CER 1 Sem. 2020'!C30 -> FURCI SICULO | D30: 3185 | E30: 199970 | U30: 465740 | V30: 665710 | W30: 0.699613946 | Z30: 12710 | AD30: 62060 | AE30: 57780 | AN30: 53520 | AP30: 186430 | AX30: 60 | BF30: 22480 | BH30: 70700 | BI30: 465740 | BJ30: 1.135946352 | BK30: 0.3412224422 | BL30: 0.7947239096 | BN30: 2021-05-29T17:37:04
A31: 29 | B31: D825 | C31: ='Dati Generali CER 1 Sem. 2020'!C31 -> FURNARI | D31: 3863 | E31: 574090 | U31: 607290 | V31: 1181380 | W31: 0.5140513637 | Z31: 58980 | AD31: 106540 | AE31: 136340 | AN31: 58380 | AP31: 64340 | AU31: 240 | BC31: 4280 | BF31: 81410 | BH31: 96780 | BI31: 607290 | BJ31: 1.662061475 | BK31: 0.8076765073 | BL31: 0.8543849678 | BN31: 2021-05-29T17:37:04
A32: 30 | B32: D844 | C32: ='Dati Generali CER 1 Sem. 2020'!C32 -> GAGGI | D32: 3116 | E32: 233180 | U32: 295800 | V32: 528980 | W32: 0.5591893833 | Z32: 1040 | AD32: 36300 | AE32: 46820 | AN32: 44650 | AP32: 152390 | AT32: 1130 | BA32: 410 | BB32: 740 | BH32: 12320 | BI32: 295800 | BJ32: 0.9226223698 | BK32: 0.4067017358 | BL32: 0.515920634 | BN32: 2021-05-29T17:37:04
A33: 31 | B33: D861 | C33: ='Dati Generali CER 1 Sem. 2020'!C33 -> GALATI MAMERTINO | D33: 2373 | E33: 141180 | U33: 214150 | V33: 355330 | W33: 0.6026791996 | AA33: 28700 | AE33: 49200 | AH33: 1220 | AN33: 32980 | AP33: 90710 | BH33: 11340 | BI33: 214150 | BJ33: 0.8137974312 | BK33: 0.3233386467 | BL33: 0.4904587845 | BN33: 2021-05-29T17:37:04
A34: 32 | B34: D885 | C34: ='Dati Generali CER 1 Sem. 2020'!C34 -> GALLODORO | D34: 344 | E34: 21225 | S34: 669 | U34: 33031 | V34: 54925 | W34: 0.6013837051 | AD34: 6450 | AE34: 6210 | AN34: 3420 | AP34: 15550 | AT34: 220 | BA34: 20 | BB34: 190 | BH34: 971 | BI34: 33031 | BJ34: 0.8677483569 | BK34: 0.3353292467 | BL34: 0.5218497219 | BN34: 2021-05-29T17:37:04
A35: 33 | B35: E014 | C35: ='Dati Generali CER 1 Sem. 2020'!C35 -> GIARDINI NAXOS | D35: 9147 | E35: 1955930 | S35: 127742 | U35: 1467168 | V35: =IF(E35=0,"",SUM(U35,E35,R35,S35,T35)) -> 3550840 | W35: =IFERROR(IF(E35<>0,IF(U35=0,0,(U35/V35*100)/100),IF(U35=0,"","")),0) -> 0.4131889919 | Z35: 102610 | AA35: 152120 | AD35: 16910 | AE35: 263110 | AN35: 123900 | AP35: 513160 | AT35: 15540 | BA35: 11820 | BB35: 186310 | BF35: 23100 | BH35: 58588 | BI35: =IF(SUM(X35:BH35)=0,"",SUM(X35:BH35)) -> 1467168 | BJ35: 2.109767517 | BK35: 1.162135602 | BL35: =IF(SUM(Y35:BH35)=0,"",BI35/D35/184) -> 0.8717327135 | BN35: 2021-05-29T17:37:04
A36: 34 | B36: E043 | C36: ='Dati Generali CER 1 Sem. 2020'!C36 -> GIOIOSA MAREA | D36: 6844 | E36: 1317710 | U36: 495390 | V36: 1813100 | W36: 0.2732281727 | Z36: 105860 | AD36: 75220 | AE36: 111960 | AN36: 67020 | AQ36: 2650 | AU36: 490 | BB36: 440 | BC36: 3980 | BF36: 61310 | BH36: 66460 | BI36: 495390 | BJ36: 1.439772698 | BK36: 1.046386235 | BL36: 0.3933864635 | BN36: 2021-05-29T17:37:04
A37: 35 | B37: E142 | C37: ='Dati Generali CER 1 Sem. 2020'!C37 -> GRANITI | D37: 1446 | E37: 258460 | U37: 28281 | V37: 286741 | W37: 0.09862907641 | AA37: 6960 | AE37: 8800 | AN37: 7501 | AT37: 180 | BA37: 480 | BB37: 560 | BH37: 3800 | BI37: 28281 | BJ37: =IF(E37=0,"",V37/D37/184) -> 1.077714385 | BK37: 0.9714204101 | BL37: 0.1062939744 | BN37: 2021-05-29T17:37:04
A38: 36 | B38: E233 | C38: ='Dati Generali CER 1 Sem. 2020'!C38 -> GUALTIERI SICAMINO | D38: 1624 | E38: 85530 | U38: 143740 | V38: 229270 | W38: 0.6269463951 | X38: 15360 | AD38: 19540 | AE38: 49020 | AN38: 23440 | AS38: 100 | AT38: 5680 | BA38: 11400 | BB38: 8320 | BC38: 2100 | BD38: 1200 | BF38: 6200 | BH38: 1380 | BI38: 143740 | BJ38: =IF(SUM(E38)=0,"",V38/D38/184) -> 0.7672614586 | BK38: 0.286229653 | BL38: 0.4810318055 | BN38: 2021-05-29T17:37:04
A39: 37 | B39: E374 | C39: ='Dati Generali CER 1 Sem. 2020'!C39 -> ITALA | D39: 1508 | E39: 82003 | U39: 173575 | V39: 255578 | W39: 0.6791468749 | Z39: 4230 | AD39: 23630 | AE39: 23700 | AH39: 250 | AN39: 19210 | AP39: 91308 | AT39: 470 | BA39: 570 | BB39: 510 | BF39: 4990 | BH39: 4707 | BI39: 173575 | BJ39: 0.9210947411 | BK39: 0.2955361262 | BL39: 0.6255586149 | BN39: 2021-05-29T17:37:04
A40: 38 | B40: E523 | C40: ='Dati Generali CER 1 Sem. 2020'!C40 -> LENI | D40: 684 | E40: 108860 | L40: 4630 | U40: 68740 | V40: 177600 | W40: 0.3870495495 | Z40: 6040 | AA40: 9900 | AE40: 35740 | AN40: 3160 | AT40: 2040 | BA40: 2600 | BB40: 260 | BC40: 3180 | BD40: 1140 | BE40: 3560 | BH40: 1120 | BI40: 68740 | BJ40: 1.411136537 | BK40: 0.864956776 | BL40: 0.546179761 | BN40: 2021-05-29T17:37:04
A41: 39 | B41: E555 | C41: ='Dati Generali CER 1 Sem. 2020'!C41 -> LETOJANNI | D41: 2722 | E41: 660440 | S41: 10600 | U41: 467490 | V41: 1138530 | W41: 0.4106084161 | Y41: 60 | Z41: 3520 | AD41: 75010 | AE41: 95540 | AN41: 70290 | AP41: 204740 | AT41: 1380 | BA41: 1050 | BB41: 530 | BF41: 1720 | BH41: 13650 | BI41: 467490 | BJ41: 2.273204645 | BK41: 1.31864358 | BL41: 0.9333969588 | BN41: 2021-05-29T17:37:05
A42: 40 | B42: E571 | C42: ='Dati Generali CER 1 Sem. 2020'!C42 -> LIBRIZZI | D42: 1609 | E42: 207500 | U42: 104900 | V42: 312400 | W42: 0.335787452 | X42: 56040 | Z42: 11800 | AA42: 10820 | AE42: 20940 | AT42: 800 | BB42: 1340 | BH42: 3160 | BI42: 104900 | BJ42: 1.055205772 | BK42: 0.7008809144 | BL42: 0.3543248575 | BN42: 2021-05-29T17:37:05
A43: 41 | B43: E594 | C43: ='Dati Generali CER 1 Sem. 2020'!C43 -> LIMINA | D43: 727 | E43: 29430 | U43: 71288 | V43: 100718 | W43: 0.7077980103 | AA43: 9250 | AE43: 9720 | AN43: 8610 | AP43: 32600 | AQ43: 2108 | BF43: 1600 | BH43: 7400 | BI43: 71288 | BJ43: 0.7529304467 | BK43: 0.2200077747 | BL43: 0.5329226721 | BN43: 2021-05-29T17:37:05
A44: 42 | B44: E606 | C44: ='Dati Generali CER 1 Sem. 2020'!C44 -> LIPARI | D44: 12334 | E44: 3920500 | U44: 1183370 | V44: 5103870 | W44: 0.2318573945 | Z44: 361930 | AA44: 129070 | AE44: 320730 | AH44: 16320 | AT44: 31740 | BA44: 25100 | BB44: 47600 | BC44: 110180 | BE44: 74580 | BF44: 33560 | BH44: 32560 | BI44: 1183370 | BJ44: 2.248939834 | BK44: 1.727506504 | BL44: 0.5214333303 | BN44: 2021-05-29T17:37:05
A45: 43 | B45: E674 | C45: ='Dati Generali CER 1 Sem. 2020'!C45 -> LONGI | D45: 1359 | E45: 13380 | U45: 179071 | V45: 192451 | W45: 0.9304758094 | AA45: 20890 | AE45: 42210 | AN45: 25120 | AP45: 70630 | AQ45: 9611 | AX45: 300 | BB45: 3970 | BE45: 1000 | BH45: 5340 | BI45: 179071 | BJ45: 0.7696316025 | BK45: 0.0535080142 | BL45: 0.7161235883 | BN45: 2021-05-29T17:37:05
A46: 44 | B46: E855 | C46: ='Dati Generali CER 1 Sem. 2020'!C46 -> MALFA | D46: 976 | E46: 167360 | U46: 140260 | V46: 307620 | W46: 0.4559521488 | Z46: 27960 | AA46: 16920 | AC46: 1440 | AE46: 69600 | AN46: 7020 | AP46: 6720 | BB46: 1980 | BC46: 1700 | BD46: 4900 | BE46: 2020 | BI46: 140260 | BJ46: 1.712958838 | BK46: 0.9319315752 | BL46: 0.781027263 | BN46: 2021-05-29T17:37:05
A47: 45 | B47: E869 | C47: ='Dati Generali CER 1 Sem. 2020'!C47 -> MALVAGNA | D47: 650 | E47: 84880 | U47: 15900 | V47: 100780 | W47: 0.1577693987 | AA47: 5240 | AE47: 6020 | AN47: 3160 | BH47: 1480 | BI47: 15900 | BJ47: 0.8426421405 | BK47: 0.7096989967 | BL47: 0.1329431438 | BN47: 2021-05-29T17:37:05
A48: 46 | B48: E876 | C48: ='Dati Generali CER 1 Sem. 2020'!C48 -> MANDANICI | D48: 558 | E48: 29770 | R48: 2040 | U48: 60990 | V48: 92800 | W48: 0.6572198276 | Y48: 120 | AD48: 8900 | AE48: 9420 | AN48: 7450 | AP48: 30730 | AT48: 470 | AY48: 90 | BA48: 520 | BB48: 470 | BH48: 2820 | BI48: 60990 | BJ48: 0.9038491507 | BK48: 0.28995247 | BL48: 0.594027583 | BN48: 2021-05-29T17:37:05
A49: 47 | B49: F066 | C49: ='Dati Generali CER 1 Sem. 2020'!C49 -> MAZZARRA' S. ANDREA | D49: 1411 | E49: 47560 | U49: 162836 | V49: 210396 | W49: 0.7739500751 | X49: 20766 | AA49: 21300 | AE49: 20560 | AN49: 16660 | AP49: 76300 | BH49: 7250 | BI49: 162836 | BJ49: 0.8103873294 | BK49: 0.1831879949 | BL49: 0.6271993344 | BN49: 2021-05-29T17:37:05
A50: 48 | B50: F147 | C50: ='Dati Generali CER 1 Sem. 2020'!C50 -> MERI' | D50: 2346 | E50: 257980 | U50: 83903 | V50: 341883 | W50: 0.2454143669 | Z50: 6100 | AA50: 24430 | AE50: 25226 | AN50: 22800 | AT50: 630 | BA50: 790 | BB50: 1720 | BH50: 2207 | BI50: 83903 | BJ50: 0.7920118425 | BK50: 0.5976407576 | BL50: 0.1943710849 | BN50: 2021-05-29T17:37:05
A51: 49 | B51: F158 | C51: ='Dati Generali CER 1 Sem. 2020'!C51 -> MESSINA | D51: 225546 | E51: 33515590 | L51: 10420 | U51: 17340562 | V51: 50856152 | W51: 0.34097275 | X51: 270093 | Y51: 1095 | Z51: 2891383 | AA51: 301141 | AC51: 14447 | AD51: 1717790 | AE51: 2307968 | AM51: 242400 | AN51: 2052417 | AP51: 4226110 | AQ51: 91164 | AS51: 1411 | AT51: 80797 | AU51: 10503 | AV51: 23 | AX51: 7781 | AY51: 24444 | AZ51: 2348 | BA51: 97133 | BB51: 108160 | BC51: 1313140 | BE51: 62361 | BF51: 830605 | BH51: 685848 | BI51: 17340562 | BJ51: 1.225435745 | BK51: 0.8075955488 | BL51: 0.4178401957 | BN51: 2021-05-29T17:37:05
A52: 50 | B52: F206 | C52: ='Dati Generali CER 1 Sem. 2020'!C52 -> MILAZZO | D52: 29884 | E52: 6698290 | U52: 1834240 | V52: 8532530 | W52: 0.2149702374 | Z52: 235340 | AA52: 253880 | AE52: 319180 | AN52: 248780 | AP52: 318190 | AT52: 5200 | AX52: 320 | BA52: 1080 | BB52: 1220 | BC52: 82090 | BF52: 163740 | BH52: 205220 | BI52: 1834240 | BJ52: 1.551748282 | BK52: 1.218168585 | BL52: 0.3335796966 | BN52: 2021-05-29T17:37:05
A53: 51 | B53: F210 | C53: ='Dati Generali CER 1 Sem. 2020'!C53 -> MILITELLO ROSMARINO | D53: 1221 | E53: 52020 | U53: 123911 | V53: 175931 | W53: 0.7043158966 | Z53: 4330 | AA53: 19890 | AE53: 27370 | AN53: 21690 | AP53: 42940 | AQ53: 2361 | AT53: 1240 | BA53: 410 | BH53: 3680 | BI53: 123911 | BJ53: 0.7830849624 | BK53: 0.231545775 | BL53: 0.5515391874 | BN53: 2021-05-29T17:37:05
A54: 52 | B54: F242 | C54: ='Dati Generali CER 1 Sem. 2020'!C54 -> MIRTO | D54: 911 | E54: 28880 | U54: 144579 | V54: 173459 | W54: 0.833505324 | AA54: 18210 | AE54: 30240 | AN54: 24790 | AP54: 57290 | AQ54: 2719 | AT54: 2150 | BA54: 1880 | BB54: 1210 | BH54: 6090 | BI54: 144579 | BJ54: 1.034810051 | BK54: 0.1722903641 | BL54: 0.8625196869 | BN54: 2021-05-29T17:37:05
A55: 53 | B55: F251 | C55: ='Dati Generali CER 1 Sem. 2020'!C55 -> MISTRETTA | D55: 4509 | E55: 376180 | U55: 503950 | V55: 880130 | W55: 0.572585868 | Z55: 36290 | AA55: 38420 | AE55: 91490 | AN55: 40520 | AP55: 249580 | AT55: 4840 | AU55: 200 | BA55: 9380 | BB55: 8500 | BH55: 24730 | BI55: 503950 | BJ55: 1.060837263 | BK55: 0.4534168378 | BL55: 0.6074204249 | BN55: 2021-05-29T17:37:05
A56: 54 | B56: F277 | C56: ='Dati Generali CER 1 Sem. 2020'!C56 -> MOJO ALCANTARA | D56: 675 | E56: 88180 | U56: 18040 | V56: 106220 | W56: 0.169836189 | AA56: 6660 | AE56: 4740 | AN56: 4600 | BH56: 2040 | BI56: 18040 | BJ56: 0.8552334944 | BK56: 0.7099838969 | BL56: 0.1452495974 | BN56: 2021-05-29T17:37:05
A57: 55 | B57: F359 | C57: ='Dati Generali CER 1 Sem. 2020'!C57 -> MONFORTE S. GIORGIO | D57: 2581 | E57: 388720 | U57: 196699 | V57: 585419 | W57: 0.3359969526 | AA57: 26160 | AE57: 35340 | AN57: 34900 | AP57: 90210 | AT57: 1570 | BA57: 1760 | BB57: 2060 | BH57: 4699 | BI57: 196699 | BJ57: 1.23271019 | BK57: 0.8185233226 | BL57: 0.4141868672 | BN57: 2021-05-29T17:37:05
A58: 56 | B58: F368 | C58: ='Dati Generali CER 1 Sem. 2020'!C58 -> MONGIUFFI MELIA | D58: 543 | E58: 32090 | U58: 49980 | V58: 82070 | W58: 0.6089923236 | AD58: 8200 | AE58: 8890 | AN58: 4580 | AP58: 24710 | AT58: 350 | BA58: 150 | BB58: 400 | BH58: 2700 | BI58: 49980 | BJ58: 0.8214228521 | BK58: 0.3211826407 | BL58: 0.5002402114 | BN58: 2021-05-29T17:37:05
A59: 57 | B59: F395 | C59: ='Dati Generali CER 1 Sem. 2020'!C59 -> MONTAGNAREALE | D59: 1450 | E59: 165700 | U59: 93120 | V59: 258820 | W59: 0.3597867244 | AA59: 26320 | AE59: 29320 | AN59: 24560 | BC59: 1720 | BE59: 780 | BH59: 10420 | BI59: 93120 | BJ59: 0.970089955 | BK59: 0.6210644678 | BL59: 0.3490254873 | BN59: 2021-05-29T17:37:05
A60: 58 | B60: F400 | C60: ='Dati Generali CER 1 Sem. 2020'!C60 -> MONTALBANO ELICONA | D60: 2054 | E60: 84880 | U60: 282635 | V60: 367515 | W60: 0.7690434404 | Z60: 15440 | AA60: 52490 | AC60: 1120 | AE60: 44860 | AN60: 35750 | AP60: 113382 | AQ60: 9843 | AT60: 670 | AU60: 60 | AX60: 20 | BA60: 600 | BB60: 620 | BH60: 7780 | BI60: 282635 | BJ60: 0.9724265484 | BK60: 0.2245882901 | BL60: 0.7478382583 | BN60: 2021-05-29T17:37:05
A61: 59 | B61: F772 | C61: ='Dati Generali CER 1 Sem. 2020'!C61 -> MOTTA CAMASTRA | D61: 794 | E61: 163210 | U61: 15160 | V61: 178370 | W61: 0.08499187083 | AA61: 4660 | AE61: 4120 | AN61: 3400 | AT61: 320 | BH61: 2660 | BI61: 15160 | BJ61: 1.220909539 | BK61: 1.117142153 | BL61: 0.1037673858 | BN61: 2021-05-29T17:37:05
A62: 60 | B62: F773 | C62: ='Dati Generali CER 1 Sem. 2020'!C62 -> MOTTA D'AFFERMO | D62: 664 | E62: 25900 | U62: 62010 | V62: 87910 | W62: 0.7053805028 | AA62: 7250 | AE62: 7360 | AN62: 6420 | AP62: 37240 | AT62: 550 | AX62: 10 | AZ62: 10 | BH62: 3170 | BI62: 62010 | BJ62: 0.7195357517 | BK62: 0.2119892614 | BL62: 0.5075464903 | BN62: 2021-05-29T17:37:05
A63: 61 | B63: F848 | C63: ='Dati Generali CER 1 Sem. 2020'!C63 -> NASO | D63: 3556 | E63: 174330 | U63: 442634 | V63: 616964 | W63: 0.717438943 | X63: 32004 | Z63: 10000 | AA63: 67370 | AE63: 84390 | AN63: 82220 | AP63: 157190 | BF63: 3960 | BH63: 5500 | BI63: 442634 | BJ63: 0.9429317259 | BK63: 0.2664357852 | BL63: 0.6764959407 | BN63: 2021-05-29T17:37:05
A64: 62 | B64: F901 | C64: ='Dati Generali CER 1 Sem. 2020'!C64 -> NIZZA DI SICILIA | D64: 3539 | E64: 213350 | U64: 445035 | V64: 658385 | W64: 0.6759494824 | Z64: 4455 | AD64: 60140 | AE64: 69710 | AN64: 100600 | AP64: 170830 | AX64: 8810 | AZ64: 20 | BF64: 3900 | BH64: 26570 | BI64: 445035 | BJ64: 1.01107074 | BK64: 0.3276379965 | BL64: 0.6834327432 | BN64: 2021-05-29T17:37:05
A65: 63 | B65: F951 | C65: ='Dati Generali CER 1 Sem. 2020'!C65 -> NOVARA DI SICILIA | D65: 1206 | E65: 169360 | U65: 67180 | V65: 236540 | W65: 0.2840111609 | AD65: 21400 | AE65: 21460 | AN65: 16700 | BH65: 7620 | BI65: 67180 | BJ65: 1.06595645 | BK65: 0.7632129209 | BL65: 0.3027435287 | BN65: 2021-05-29T17:37:05
A66: 64 | B66: G036 | C66: ='Dati Generali CER 1 Sem. 2020'!C66 -> OLIVERI | D66: 2062 | E66: 457020 | K66: 1700 | U66: 322568 | V66: 779588 | W66: 0.4137672719 | Z66: 31780 | AA66: 61280 | AB66: 1320 | AD66: 1540 | AE66: 85480 | AK66: 300 | AM66: 27240 | AN66: 23020 | AP66: 10848 | BC66: 8880 | BF66: 27500 | BH66: 43380 | BI66: 322568 | BJ66: 2.05474845 | BK66: 1.204560789 | BL66: 0.8501876608 | BN66: 2021-05-29T17:37:05
A67: 65 | B67: G209 | C67: ='Dati Generali CER 1 Sem. 2020'!C67 -> PACE DEL MELA | D67: 6152 | E67: 436340 | U67: 913430 | V67: =IF(E67=0,"",SUM(U67,E67,R67,S67,T67)) -> 1349770 | W67: =IFERROR(IF(E67<>0,IF(U67=0,0,(U67/V67*100)/100),IF(U67=0,"","")),0) -> 0.6767301096 | AD67: 122560 | AE67: 72030 | AH67: 500 | AN67: 175760 | AP67: 440740 | AQ67: 9180 | AT67: 3820 | AX67: 380 | BA67: 6500 | BB67: 4900 | BC67: 24360 | BD67: 8000 | BE67: 9620 | BF67: 11960 | BH67: 23120 | BI67: =IF(SUM(X67:BH67)=0,"",SUM(X67:BH67)) -> 913430 | BJ67: 1.192410033 | BK67: 0.3854702606 | BL67: =IF(SUM(Y67:BH67)=0,"",BI67/D67/184) -> 0.8069397721 | BN67: 2021-05-29T17:37:05
A68: 66 | B68: G234 | C68: ='Dati Generali CER 1 Sem. 2020'!C68 -> PAGLIARA | D68: 1114 | E68: 41000 | S68: 2446 | U68: =IF(BI68=0,"",BI68) -> 109024 | V68: 152470 | W68: 0.7150521414 | Y68: 70 | AD68: 15850 | AE68: 15160 | AN68: 13430 | AP68: 59310 | AT68: 530 | AW68: 110 | AY68: 100 | BA68: 420 | BB68: 690 | BH68: 3354 | BI68: 109024 | BJ68: 0.7438431816 | BK68: =IF(E68=0,"",E68/D68/184) -> 0.2000234174 | BL68: 0.5318866599 | BN68: 2021-05-29T17:37:05
A69: 67 | B69: G377 | C69: ='Dati Generali CER 1 Sem. 2020'!C69 -> PATTI | D69: 12842 | E69: 1566600 | U69: 1666630 | V69: 3233230 | W69: 0.5154690511 | Z69: 193040 | AB69: 11700 | AD69: 349240 | AE69: 281600 | AN69: 201810 | AP69: 433520 | AX69: 120 | BB69: 1240 | BC69: 20560 | BF69: 58320 | BH69: 115480 | BI69: 1666630 | BJ69: 1.368315074 | BK69: 0.662991001 | BL69: 0.7053240725 | BN69: 2021-05-29T17:37:05
A70: 68 | B70: G522 | C70: ='Dati Generali CER 1 Sem. 2020'!C70 -> PETTINEO | D70: 1260 | E70: 46860 | U70: 108780 | V70: 155640 | W70: 0.698920586 | Z70: 5010 | AA70: 9820 | AE70: 26070 | AP70: 59800 | AT70: 1220 | BH70: 6860 | BI70: 108780 | BJ70: =IF(SUM(E70)=0,"",V70/D70/184) -> 0.6713250518 | BK70: 0.2021221532 | BL70: 0.4692028986 | BN70: 2021-05-29T17:37:05
A71: 69 | B71: G699 | C71: ='Dati Generali CER 1 Sem. 2020'!C71 -> PIRAINO | D71: 3832 | E71: 495570 | U71: 418318 | V71: 913888 | W71: 0.457734427 | X71: 24448 | Z71: 15420 | AA71: 68870 | AE71: 84560 | AN71: 76680 | AP71: 122260 | AT71: 4200 | AX71: 130 | AZ71: 30 | BA71: 3820 | BB71: 3930 | BH71: 13970 | BI71: 418318 | BJ71: 1.296133249 | BK71: 0.7028484388 | BL71: 0.5932848098 | BN71: 2021-05-29T17:37:05
A72: 70 | B72: H151 | C72: ='Dati Generali CER 1 Sem. 2020'!C72 -> RACCUJA | D72: 895 | E72: 107120 | U72: 37540 | V72: 144660 | W72: 0.2595050463 | Z72: 6380 | AA72: 8160 | AE72: 18980 | AN72: 780 | BB72: 440 | BC72: 620 | BH72: 2180 | BI72: 37540 | BJ72: 0.8784308963 | BK72: 0.6504736459 | BL72: 0.2279572504 | BN72: 2021-05-29T17:37:05
A73: 71 | B73: H228 | C73: ='Dati Generali CER 1 Sem. 2020'!C73 -> REITANO | D73: 719 | E73: 79440 | U73: 165690 | V73: 245130 | W73: 0.6759270591 | Z73: 10960 | AA73: 6670 | AD73: 37520 | AE73: 30120 | AP73: 74640 | BH73: 5780 | BI73: 165690 | BJ73: 1.852890488 | BK73: 0.6004716696 | BL73: 1.252418818 | BN73: 2021-05-29T17:37:05
A74: 72 | B74: H405 | C74: ='Dati Generali CER 1 Sem. 2020'!C74 -> ROCCAFIORITA | D74: 181 | E74: 5760 | U74: 20916 | V74: 26676 | W74: 0.7840755735 | AA74: 2440 | AE74: 2090 | AN74: 1970 | AP74: 7500 | AQ74: 2496 | BF74: 2900 | BH74: 1520 | BI74: 20916 | BJ74: 0.8009848667 | BK74: 0.1729521979 | BL74: 0.6280326687 | BN74: 2021-05-29T17:37:05
A75: 73 | B75: H418 | C75: ='Dati Generali CER 1 Sem. 2020'!C75 -> ROCCALUMERA | D75: 3932 | E75: 394590 | U75: 776100 | V75: 1170690 | W75: 0.6629423673 | Y75: 180 | Z75: 43000 | AD75: 85050 | AE75: 96700 | AN75: 97550 | AP75: 347850 | AU75: 70 | AX75: 80 | BA75: 3700 | BB75: 11700 | BF75: 220 | BG75: 90000 | BI75: 776100 | BJ75: 1.618119444 | BK75: 0.545399509 | BL75: 1.072719935 | BN75: 2021-05-29T17:37:05
A76: 74 | B76: H380 | C76: ='Dati Generali CER 1 Sem. 2020'!C76 -> ROCCAVALDINA | D76: 1008 | E76: 133360 | U76: 65740 | V76: 199100 | W76: 0.3301858363 | AA76: 12660 | AE76: 7380 | AN76: 12080 | AP76: 28200 | AT76: 220 | BA76: 1120 | BH76: 4080 | BI76: 65740 | BJ76: 1.073477398 | BK76: 0.7190303658 | BL76: 0.3544470324 | BN76: 2021-05-29T17:37:05
A77: 75 | B77: H455 | C77: ='Dati Generali CER 1 Sem. 2020'!C77 -> ROCCELLA VALDEMONE | D77: 580 | E77: 81660 | U77: 13300 | V77: 94960 | W77: 0.1400589722 | AA77: 5720 | AE77: 4920 | AN77: 2660 | BI77: 13300 | BJ77: 0.8898050975 | BK77: 0.76517991 | BL77: 0.1246251874 | BN77: 2021-05-29T17:37:05
A78: 76 | B78: H479 | C78: ='Dati Generali CER 1 Sem. 2020'!C78 -> RODI' MILICI | D78: 1968 | E78: 91460 | R78: 4980 | U78: 227700 | V78: 324140 | W78: 0.7024742395 | X78: 28020 | Z78: 8800 | AA78: 25570 | AE78: 33720 | AN78: 21900 | AP78: 86020 | AT78: 3710 | BA78: 1300 | BB78: 5310 | BC78: 10000 | BH78: 3350 | BI78: 227700 | BJ78: 0.895137416 | BK78: 0.2525737893 | BL78: 0.6288109756 | BN78: 2021-05-29T17:37:05
A79: 77 | B79: H519 | C79: ='Dati Generali CER 1 Sem. 2020'!C79 -> ROMETTA | D79: 6429 | E79: 172980 | U79: 980270 | V79: 1153250 | W79: 0.8500065034 | X79: 79620 | Z79: 13200 | AA79: 113520 | AE79: 108760 | AN79: 118790 | AP79: 408040 | AT79: 820 | BF79: 45860 | BH79: 91660 | BI79: 980270 | BJ79: 0.9749048131 | BK79: 0.1462293818 | BL79: 0.8286754313 | BN79: 2021-05-29T17:37:05
A80: 78 | B80: I184 | C80: ='Dati Generali CER 1 Sem. 2020'!C80 -> S. DOMENICA VITTORIA | D80: 869 | E80: 95560 | U80: 29820 | V80: 125380 | W80: 0.2378369756 | Z80: 9340 | AA80: 10460 | AE80: 10020 | BI80: 29820 | BJ80: 0.7841346875 | BK80: 0.597638465 | BL80: 0.1864962225 | BN80: 2021-05-29T17:37:05
A81: 79 | B81: I370 | C81: ='Dati Generali CER 1 Sem. 2020'!C81 -> S. STEF. DI CAMASTRA | D81: 4489 | E81: 344160 | U81: 772426 | V81: 1116586 | W81: 0.6917747491 | Z81: 95650 | AA81: 38080 | AD81: 79440 | AE81: 25780 | AH81: 200 | AM81: 48180 | AN81: 36440 | AO81: 92680 | AP81: 285960 | AQ81: 5810 | AT81: 7050 | AU81: 640 | AX81: 340 | AZ81: 176 | BA81: 5960 | BF81: 34720 | BH81: 15320 | BI81: 772426 | BJ81: 1.35183831 | BK81: 0.4166707023 | BL81: 0.9351676078 | BN81: 2021-05-29T17:37:05
A82: 80 | B82: I199 | C82: ='Dati Generali CER 1 Sem. 2020'!C82 -> S. AGATA DI MILITELLO | D82: 12190 | E82: 1452480 | U82: 1238461 | V82: 2690941 | W82: 0.4602334276 | Z82: 112240 | AA82: 151820 | AB82: 7230 | AE82: 227920 | AN82: 190770 | AP82: 338060 | AS82: 80 | AT82: 25080 | AU82: 576 | AX82: 350 | AZ82: 85 | BA82: 27080 | BB82: 12220 | BH82: 144950 | BI82: 1238461 | BJ82: 1.199727592 | BK82: 0.6475728502 | BL82: 0.5521547419 | BN82: 2021-05-29T17:37:05
A83: 81 | B83: I220 | C83: ='Dati Generali CER 1 Sem. 2020'!C83 -> SANTA LUCIA DEL MELA | D83: 4505 | E83: 446130 | U83: 324568 | V83: 770698 | W83: 0.4211351269 | X83: 66078 | Z83: 15410 | AA83: 61700 | AE83: 45320 | AN83: 61020 | AP83: 53870 | AQ83: 590 | AT83: 1730 | AU83: 80 | AZ83: 40 | BA83: 2470 | BB83: 2070 | BG83: 9940 | BH83: 4250 | BI83: 324568 | BJ83: 0.9297616175 | BK83: 0.5382063408 | BL83: 0.3915552767 | BN83: 2021-05-29T17:37:05
A84: 82 | B84: I311 | C84: ='Dati Generali CER 1 Sem. 2020'!C84 -> S. TERESA DI RIVA | D84: 9414 | E84: 489820 | U84: 1447790 | V84: 1937610 | W84: 0.7472040297 | X84: 39000 | Z84: 146390 | AD84: 214780 | AE84: 163370 | AN84: 183530 | AP84: 582680 | AT84: 7260 | AU84: 200 | BA84: 2620 | BB84: 5700 | BC84: 28700 | BD84: 9000 | BE84: 8360 | BF84: 13020 | BH84: 43180 | BI84: 1447790 | BJ84: 1.118598803 | BK84: 0.2827772697 | BL84: 0.8358215331 | BN84: 2021-05-29T17:37:05
A85: 83 | B85: H842 | C85: ='Dati Generali CER 1 Sem. 2020'!C85 -> S. FILIPPO DEL MELA | D85: 6770 | E85: 1028400 | U85: 352250 | V85: 1380650 | W85: 0.2551334516 | Z85: 25900 | AA85: 98660 | AD85: 3560 | AE85: 44640 | AN85: 103550 | AP85: 21730 | AT85: 1430 | AX85: 70 | BA85: 1320 | BB85: 1940 | BC85: 6200 | BF85: 12050 | BG85: 13600 | BH85: 17600 | BI85: 352250 | BJ85: 1.108350459 | BK85: 0.8255731809 | BL85: 0.2827772783 | BN85: 2021-05-29T17:37:05
A86: 84 | B86: H8450 | C86: ='Dati Generali CER 1 Sem. 2020'!C86 -> SAN FRATELLO | D86: 3379 | E86: 173660 | U86: 248270 | V86: 421930 | W86: 0.58841514 | Z86: 45080 | AD86: 40280 | AE86: 44580 | AP86: 103150 | BH86: 15180 | BI86: 248270 | BJ86: 0.6786320882 | BK86: 0.2793146931 | BL86: 0.3993173952 | BN86: 2021-05-29T17:37:05
A87: 85 | B87: H982 | C87: ='Dati Generali CER 1 Sem. 2020'!C87 -> SAN MARCO D'ALUNZIO | D87: 1815 | E87: 67595 | N87: 580 | Q87: 20000 | U87: 233610 | V87: 301205 | W87: 0.7755847346 | Z87: 13160 | AA87: 28880 | AE87: 39180 | AN87: 30010 | AP87: 83800 | AQ87: 250 | AT87: 1700 | BA87: 1720 | BE87: 23300 | BH87: 11610 | BI87: 233610 | BJ87: 0.9019193915 | BK87: 0.2024044796 | BL87: 0.699514912 | BN87: 2021-05-29T17:37:05
A88: 86 | B88: I084 | C88: ='Dati Generali CER 1 Sem. 2020'!C88 -> SAN PIER NICETO | D88: 2638 | E88: 335120 | R88: 11280 | U88: 219400 | V88: 565800 | W88: 0.3877695299 | X88: 129600 | AA88: 26420 | AE88: 29700 | AN88: 24940 | AT88: 980 | AZ88: 40 | BA88: 1790 | BB88: 120 | BH88: 5810 | BI88: 219400 | BJ88: 1.1656558 | BK88: 0.6904110492 | BL88: 0.4520058015 | BN88: 2021-05-29T17:37:05
A89: 87 | B89: I086 | C89: ='Dati Generali CER 1 Sem. 2020'!C89 -> SAN PIERO PATTI | D89: 2657 | E89: 317400 | U89: 252765 | V89: 570165 | W89: 0.4433190392 | X89: 112695 | Z89: 13400 | AD89: 49540 | AE89: 47860 | AH89: 440 | AU89: 190 | BB89: 4680 | BC89: 9520 | BH89: 14440 | BI89: 252765 | BJ89: 1.166248711 | BK89: 0.6492284531 | BL89: 0.5170202582 | BN89: 2021-05-29T17:37:05
A90: 88 | B90: I147 | C90: ='Dati Generali CER 1 Sem. 2020'!C90 -> S. SALVAT. DI FITALIA | D90: 1180 | E90: 112700 | U90: 43290 | V90: 155990 | W90: 0.2775177896 | AA90: 11120 | AE90: 16720 | AN90: 11850 | BF90: 3600 | BI90: 43290 | BJ90: 0.7184506264 | BK90: 0.5190677966 | BL90: 0.1993828298 | BN90: 2021-05-29T17:37:05
A91: 89 | B91: I328 | C91: ='Dati Generali CER 1 Sem. 2020'!C91 -> SAN TEODORO | D91: 1278 | E91: 107440 | U91: 66920 | V91: 174360 | W91: 0.3838036247 | AA91: 13380 | AE91: 27240 | AN91: 25240 | AQ91: 1060 | BI91: 66920 | BJ91: 0.7414778526 | BK91: 0.4568959652 | BL91: 0.2845818875 | BN91: 2021-05-29T17:37:05
A92: 90 | B92: I283 | C92: ='Dati Generali CER 1 Sem. 2020'!C92 -> S. ANGELO DI BROLO | D92: 2883 | E92: 527460 | U92: 126020 | V92: 653480 | W92: 0.1928444635 | Z92: 22900 | AA92: 27260 | AE92: 29440 | AN92: 15620 | BB92: 3740 | BH92: 27060 | BI92: 126020 | BJ92: 1.231884058 | BK92: 0.9943220377 | BL92: 0.2375620202 | BN92: 2021-05-29T17:37:05
A93: 91 | B93: I215 | C93: ='Dati Generali CER 1 Sem. 2020'!C93 -> S. ALESSIO SICULO | D93: 1487 | E93: 330550 | S93: 4116 | U93: 225414 | V93: 560080 | W93: 0.4024675046 | Y93: 40 | Z93: 370 | AD93: 40310 | AE93: 48840 | AN93: 34590 | AP93: 93590 | AS93: 20 | AT93: 980 | AW93: 50 | BA93: 510 | BB93: 540 | BH93: 5574 | BI93: 225414 | BJ93: 2.047016169 | BK93: 1.20811526 | BL93: 0.8238574895 | BN93: 2021-05-29T17:37:05
A94: 92 | B94: I254 | C94: ='Dati Generali CER 1 Sem. 2020'!C94 -> SANTA MARINA SALINA | D94: 843 | E94: 241400 | U94: 120400 | V94: 361800 | W94: 0.3327805417 | Z94: 33060 | AA94: 13200 | AE94: 53340 | AT94: 2000 | BA94: 600 | BB94: 2500 | BC94: 4260 | BD94: 3560 | BE94: 6820 | BH94: 1060 | BI94: 120400 | BJ94: 2.332508123 | BK94: 1.556294806 | BL94: 0.7762133168 | BN94: 2021-05-29T17:37:05
A95: 93 | B95: I420 | C95: ='Dati Generali CER 1 Sem. 2020'!C95 -> SAPONARA | D95: 3726 | E95: 231100 | U95: 403260 | V95: 634360 | W95: 0.6356958194 | AA95: 70230 | AC95: 2250 | AE95: 52710 | AN95: 85800 | AP95: 130900 | AT95: 1280 | BA95: 900 | BC95: 7340 | BF95: 40930 | BH95: 10920 | BI95: 403260 | BJ95: 0.9252841373 | BK95: 0.3370848795 | BL95: 0.5881992579 | BN95: 2021-05-29T17:37:05
A96: 94 | B96: I477 | C96: ='Dati Generali CER 1 Sem. 2020'!C96 -> SAVOCA | D96: 1693 | E96: 128840 | U96: 165870 | V96: 294710 | W96: 0.5628244715 | Z96: 100 | AD96: 29810 | AE96: 31510 | AN96: 19790 | AP96: 72020 | AT96: 900 | BA96: 780 | BB96: 1280 | BH96: 9680 | BI96: 165870 | BJ96: 0.946063073 | BK96: 0.4135956239 | BL96: 0.5324674491 | BN96: 2021-05-29T17:37:05
A97: 95 | B97: I492 | C97: ='Dati Generali CER 1 Sem. 2020'!C97 -> SCALETTA ZANCLEA | D97: 1916 | E97: 124850 | S97: 3432 | U97: 235858 | V97: 364140 | W97: 0.6477124183 | Y97: 110 | Z97: 5780 | AD97: 33540 | AE97: 40120 | AN97: 35540 | AP97: 114220 | AT97: 640 | BA97: 580 | BB97: 650 | BH97: 4678 | BI97: 235858 | BJ97: 1.032892348 | BK97: 0.3541401924 | BL97: 0.6690172007 | BN97: 2021-05-29T17:37:05
A98: 96 | B98: I747 | C98: ='Dati Generali CER 1 Sem. 2020'!C98 -> SINAGRA | D98: 2552 | E98: 115980 | U98: 339300 | V98: 455280 | W98: 0.7452556668 | AA98: 30120 | AB98: 8600 | AE98: 64060 | AN98: 42480 | AP98: 145390 | AQ98: 16550 | BH98: 32100 | BI98: 339300 | BJ98: 0.9695720322 | BK98: 0.2469929808 | BL98: 0.7225790514 | BN98: 2021-05-29T17:37:05
A99: 97 | B99: I881 | C99: ='Dati Generali CER 1 Sem. 2020'!C99 -> SPADAFORA | D99: 4793 | E99: 323872 | S99: 3232 | U99: 683878 | V99: =IF(E99=0,"",SUM(U99,E99,R99,S99,T99)) -> 1010982 | W99: =IFERROR(IF(E99<>0,IF(U99=0,0,(U99/V99*100)/100),IF(U99=0,"","")),0) -> 0.6764492345 | Z99: 15800 | AA99: 92590 | AE99: 87150 | AN99: 100550 | AP99: 370820 | BH99: 16968 | BI99: =IF(SUM(X99:BH99)=0,"",SUM(X99:BH99)) -> 683878 | BJ99: 1.146352471 | BK99: 0.3672384546 | BL99: =IF(SUM(Y99:BH99)=0,"",BI99/D99/184) -> 0.7754492512 | BN99: 2021-05-29T17:37:05
A100: 98 | B100: L042 | C100: ='Dati Generali CER 1 Sem. 2020'!C100 -> TAORMINA | D100: 10514 | E100: 1341235 | U100: 1906214 | V100: 3247449 | W100: 0.5869881251 | Z100: 117280 | AD100: 235800 | AE100: 423870 | AH100: 360 | AN100: 165420 | AP100: 832180 | AT100: 2780 | AU100: 400 | AX100: 320 | AZ100: 44 | BA100: 2520 | BB100: 600 | BF100: 67340 | BH100: 57300 | BI100: 1906214 | BJ100: 1.678636042 | BK100: 0.693296619 | BL100: 0.9853394232 | BN100: 2021-05-29T17:37:05
A101: 99 | B101: M210 | C101: ='Dati Generali CER 1 Sem. 2020'!C101 -> TERME VIGLIATORE | D101: 7223 | E101: 420160 | R101: 66500 | U101: 1139940 | V101: 1626600 | W101: 0.7008115087 | X101: 25800 | Z101: 117720 | AA101: 159370 | AE101: 131000 | AH101: 1140 | AK101: 50 | AN101: 99320 | AP101: 492480 | AT101: 6500 | AX101: 80 | AY101: 1590 | AZ101: 270 | BA101: 3700 | BB101: 8180 | BC101: 20780 | BE101: 1500 | BF101: 34580 | BH101: 35880 | BI101: 1139940 | BJ101: 1.223898296 | BK101: 0.3161398672 | BL101: 0.8577220112 | BN101: 2021-05-29T17:37:05
A102: 100 | B102: L271 | C102: ='Dati Generali CER 1 Sem. 2020'!C102 -> TORREGROTTA | D102: 7215 | E102: 1023440 | S102: 4976 | U102: 416924 | V102: 1445340 | W102: 0.2884608466 | X102: 24900 | Z102: 69060 | AA102: 98640 | AE102: 48740 | AN102: 126280 | AT102: 2280 | BA102: 1560 | BB102: 3080 | BF102: 16260 | BH102: 26124 | BI102: 416924 | BJ102: =IF(SUM(E102)=0,"",V102/D102/184) -> 1.088719154 | BK102: 0.7709180753 | BL102: 0.3140528488 | BN102: 2021-05-29T17:37:05
A103: 101 | B103: M286 | C103: ='Dati Generali CER 1 Sem. 2020'!C103 -> TORRENOVA | D103: 4495 | E103: 250600 | U103: 667260 | V103: 917860 | W103: 0.7269736125 | Z103: 91470 | AA103: 113860 | AE103: 87520 | AN103: 80890 | AP103: 270060 | BH103: 23460 | BI103: 667260 | BJ103: 1.109759636 | BK103: 0.3029936645 | BL103: 0.8067659719 | BN103: 2021-05-29T17:37:05
A104: 102 | B104: L308 | C104: ='Dati Generali CER 1 Sem. 2020'!C104 -> TORTORICI | D104: 5952 | E104: 353660 | U104: 306450 | V104: 660110 | W104: 0.4642408084 | AA104: 39890 | AE104: 88990 | AN104: 64190 | AP104: 94720 | BA104: 4880 | BH104: 13780 | BI104: 306450 | BJ104: 0.6027477063 | BK104: 0.3229276239 | BL104: 0.2798200824 | BN104: 2021-05-29T17:37:05
A105: 103 | B105: L431 | C105: ='Dati Generali CER 1 Sem. 2020'!C105 -> TRIPI | D105: 766 | E105: 142520 | U105: 51258 | V105: 193778 | W105: 0.2645191921 | Z105: 1560 | AD105: 10440 | AE105: 10460 | AN105: 6100 | AP105: 19298 | BH105: 3400 | BI105: 51258 | BJ105: 1.3748581 | BK105: 1.011181746 | BL105: 0.3636763537 | BN105: 2021-05-29T17:37:05
A106: 104 | B106: L478 | C106: ='Dati Generali CER 1 Sem. 2020'!C106 -> TUSA | D106: 2703 | E106: 198480 | U106: 387370 | V106: 585850 | W106: 0.6612102074 | AA106: 34860 | AE106: 73640 | AH106: 580 | AN106: 61690 | AP106: 171400 | BH106: 45200 | BI106: 387370 | BJ106: 1.177938362 | BK106: 0.3990734932 | BL106: 0.7788648683 | BN106: 2021-05-29T17:37:05
A107: 105 | B107: L482 | C107: ='Dati Generali CER 1 Sem. 2020'!C107 -> UCRIA | D107: 937 | E107: 56780 | U107: 112230 | V107: 169010 | W107: 0.6640435477 | X107: 31000 | AA107: 9680 | AE107: 19020 | AN107: 12940 | AP107: 32290 | BB107: 2420 | BC107: 2120 | BH107: 2760 | BI107: 112230 | BJ107: 0.9802909378 | BK107: 0.3293350657 | BL107: 0.6509558721 | BN107: 2021-05-29T17:37:05
A108: 106 | B108: L561 | C108: ='Dati Generali CER 1 Sem. 2020'!C108 -> VALDINA | D108: 1298 | E108: 192900 | U108: 60216 | V108: 253116 | W108: 0.237898829 | Z108: 20940 | AA108: 13520 | AE108: 18300 | AT108: 1996 | BH108: 5460 | BI108: 60216 | BJ108: 1.059807731 | BK108: 0.8076807128 | BL108: 0.2521270182 | BN108: 2021-05-29T17:37:05
A109: 107 | B109: L735 | C109: ='Dati Generali CER 1 Sem. 2020'!C109 -> VENETICO | D109: 3940 | E109: 72120 | U109: 41540 | V109: 113660 | W109: 0.365475981 | Z109: 5320 | AA109: 10680 | AE109: 7880 | AN109: 12260 | AT109: 1400 | BH109: 4000 | BI109: 41540 | BJ109: 0.1567810638 | BK109: 0.0994813507 | BL109: 0.05729971309 | BN109: 2021-05-29T17:37:05
A110: 108 | B110: L950 | C110: ='Dati Generali CER 1 Sem. 2020'!C110 -> VILLAFRANCA TIRRENA | D110: 8236 | E110: 437720 | U110: 1241178 | V110: 1678898 | W110: 0.7392813619 | X110: 8358 | Z110: 137570 | AA110: 144470 | AE110: 141270 | AN110: 140150 | AP110: 513380 | AQ110: 5020 | AT110: 6180 | AU110: 640 | AX110: 180 | BA110: 6720 | BB110: 1080 | BC110: 58020 | BF110: 29660 | BH110: 48480 | BI110: 1241178 | BJ110: 1.10787344 | BK110: 0.2888432544 | BL110: 0.8190301856 | BN110: 2021-05-29T17:37:05
C111: T O T A L I | D111: =SUM(D3:D110) -> 609220 | E111: =SUM(E3:E110) -> 79670705 | F111: 0 | G111: 0 | H111: 0 | I111: 0 | J111: 0 | K111: 27800 | L111: 15050 | M111: 4540 | N111: 580 | O111: 32080 | P111: 0 | Q111: 20000 | R111: 84800 | S111: 161758 | T111: 0 | U111: 58617675 | V111: =SUM(U111,E111) -> 138288380 | W111: =IF(BI111=0,"",(U111/V111*100)/100) -> 0.4238799746 | X111: =SUM(X3:X110) -> 1254349 | Y111: =SUM(Y3:Y110) -> 1815 | Z111: =SUM(Z3:Z110) -> 6166513 | AA111: 3950371 | AB111: 49580 | AC111: 35457 | AD111: 3896350 | AE111: 9171864 | AF111: 86 | AH111: =SUM(AH3:AH110) -> 31110 | AI111: 0 | AJ111: 0 | AK111: 2270 | AL111: =SUM(AL3:AL110) -> 0 | AM111: =SUM(AM3:AM110) -> 327090 | AN111: 7384914 | AO111: 92680 | AP111: 16886986 | AQ111: 188050 | AR111: 0 | AS111: 1991 | AT111: 322553 | AU111: 17469 | AV111: 23 | AW111: 170 | AX111: 21121 | AY111: 31951 | AZ111: 3343 | BA111: 323773 | BB111: 550240 | BC111: 2220160 | BD111: 35880 | BE111: 259881 | BF111: =SUM(BF3:BF110) -> 1956455 | BG111: =SUM(BG3:BG110) -> 213580 | BH111: 3218680 | BI111: =SUM(BI3:BI110) -> 58617675

Sheet Riep. Dati RSU e RD 2 Sem. 2020
B3: CITTA' METROPOLITANA DI MESSINA
B4: DATI RIFIUTI SOLIDI URBANI E RACCOLTA DIFFERENZIATA
B5: SECONDO SEMESTRE ANNO 2020
A6: ='Dati Generali CER 2 Sem. 2020'!A2 -> 108 | B6: COMUNE | C6: QUANTITA' (KG) | D6: QUANTITA' (KG) | E6: PERCENTUALE | F6: RSU+RSA+RD | G6: RSU+RSA | H6: R.D. | I6: ='Dati Generali CER 2 Sem. 2020'!D2 -> ABITANTI AL 31/12/2020
C7: R.S.U. (Cod.200301) | D7: RACCOLTA | E7: RACCOLTA | F7: R.T. (Kg.) | G7: 200301 (kg.) | H7: (Kg.)
C8: PRODOTTI | D8: DIFFERENZIATA | E8: DIFFERENZIATA | F8: Pro Capite/g | G8: RI Pro Capite/g | H8: Pro Capite/g
B9: CTRL + "q" per ordinare in % | D9: CTRL + "w" per Alfabetico
A10: 1 | B10: ='Dati Generali CER 1 Sem. 2020'!C3 -> ACQUEDOLCI | C10: =IF('Dati Generali CER 2 Sem. 2020'!E3="","",'Dati Generali CER 2 Sem. 2020'!E3) -> 212360 | D10: =IF(C10="","",'Dati Generali CER 2 Sem. 2020'!BI3) -> 728370 | E10: ='Dati Generali CER 2 Sem. 2020'!W3 -> 0.7742604148 | F10: =IF('Dati Generali CER 2 Sem. 2020'!BJ3="","",'Dati Generali CER 2 Sem. 2020'!BJ3) -> 0.9307597021 | G10: =IF('Dati Generali CER 2 Sem. 2020'!BK3="","",'Dati Generali CER 2 Sem. 2020'!BK3) -> 0.2101093091 | H10: =IF('Dati Generali CER 2 Sem. 2020'!BL3="","",'Dati Generali CER 2 Sem. 2020'!BL3) -> 0.720650393 | I10: ='Dati Generali CER 2 Sem. 2020'!D3 -> 5493 | J10: =IF('Dati Generali CER 2 Sem. 2020'!BN3="","",'Dati Generali CER 2 Sem. 2020'!BN3) -> 2021-05-29T17:37:04
A11: 2 | B11: ='Dati Generali CER 1 Sem. 2020'!C4 -> ALCARA LI FUSI | C11: =IF('Dati Generali CER 2 Sem. 2020'!E4="","",'Dati Generali CER 2 Sem. 2020'!E4) -> 34620 | D11: =IF(C11="","",'Dati Generali CER 2 Sem. 2020'!BI4) -> 171628 | E11: ='Dati Generali CER 2 Sem. 2020'!W4 -> 0.8321438268 | F11: =IF('Dati Generali CER 2 Sem. 2020'!BJ4="","",'Dati Generali CER 2 Sem. 2020'!BJ4) -> 0.6255095109 | G11: =IF('Dati Generali CER 2 Sem. 2020'!BK4="","",'Dati Generali CER 2 Sem. 2020'!BK4) -> 0.1049956328 | H11: =IF('Dati Generali CER 2 Sem. 2020'!BL4="","",'Dati Generali CER 2 Sem. 2020'!BL4) -> 0.5205138781 | I11: ='Dati Generali CER 2 Sem. 2020'!D4 -> 1792 | J11: =IF('Dati Generali CER 2 Sem. 2020'!BN4="","",'Dati Generali CER 2 Sem. 2020'!BN4) -> 2021-05-29T17:37:04
A12: 3 | B12: ='Dati Generali CER 1 Sem. 2020'!C5 -> ALI' | C12: =IF('Dati Generali CER 2 Sem. 2020'!E5="","",'Dati Generali CER 2 Sem. 2020'!E5) -> 19560 | D12: =IF(C12="","",'Dati Generali CER 2 Sem. 2020'!BI5) -> 64520 | E12: ='Dati Generali CER 2 Sem. 2020'!W5 -> 0.7673644148 | F12: =IF('Dati Generali CER 2 Sem. 2020'!BJ5="","",'Dati Generali CER 2 Sem. 2020'!BJ5) -> 0.6584387921 | G12: =IF('Dati Generali CER 2 Sem. 2020'!BK5="","",'Dati Generali CER 2 Sem. 2020'!BK5) -> 0.1531762937 | H12: =IF('Dati Generali CER 2 Sem. 2020'!BL5="","",'Dati Generali CER 2 Sem. 2020'!BL5) -> 0.5052624984 | I12: ='Dati Generali CER 2 Sem. 2020'!D5 -> 694 | J12: =IF('Dati Generali CER 2 Sem. 2020'!BN5="","",'Dati Generali CER 2 Sem. 2020'!BN5) -> 2021-05-29T17:37:04
A13: 4 | B13: ='Dati Generali CER 1 Sem. 2020'!C6 -> ALI' TERME | C13: =IF('Dati Generali CER 2 Sem. 2020'!E6="","",'Dati Generali CER 2 Sem. 2020'!E6) -> 153320 | D13: =IF(C13="","",'Dati Generali CER 2 Sem. 2020'!BI6) -> 347865 | E13: ='Dati Generali CER 2 Sem. 2020'!W6 -> 0.6940850185 | F13: =IF('Dati Generali CER 2 Sem. 2020'!BJ6="","",'Dati Generali CER 2 Sem. 2020'!BJ6) -> 1.14158907 | G13: =IF('Dati Generali CER 2 Sem. 2020'!BK6="","",'Dati Generali CER 2 Sem. 2020'!BK6) -> 0.3492291993 | H13: =IF('Dati Generali CER 2 Sem. 2020'!BL6="","",'Dati Generali CER 2 Sem. 2020'!BL6) -> 0.792359871 | I13: ='Dati Generali CER 2 Sem. 2020'!D6 -> 2386 | J13: =IF('Dati Generali CER 2 Sem. 2020'!BN6="","",'Dati Generali CER 2 Sem. 2020'!BN6) -> 2021-05-29T17:37:04
A14: 5 | B14: ='Dati Generali CER 1 Sem. 2020'!C7 -> ANTILLO | C14: =IF('Dati Generali CER 2 Sem. 2020'!E7="","",'Dati Generali CER 2 Sem. 2020'!E7) -> 19770 | D14: =IF(C14="","",'Dati Generali CER 2 Sem. 2020'!BI7) -> 70077 | E14: ='Dati Generali CER 2 Sem. 2020'!W7 -> 0.7657851601 | F14: =IF('Dati Generali CER 2 Sem. 2020'!BJ7="","",'Dati Generali CER 2 Sem. 2020'!BJ7) -> 0.5949006657 | G14: =IF('Dati Generali CER 2 Sem. 2020'!BK7="","",'Dati Generali CER 2 Sem. 2020'!BK7) -> 0.1285235074 | H14: =IF('Dati Generali CER 2 Sem. 2020'!BL7="","",'Dati Generali CER 2 Sem. 2020'!BL7) -> 0.4555661015 | I14: ='Dati Generali CER 2 Sem. 2020'!D7 -> 836 | J14: =IF('Dati Generali CER 2 Sem. 2020'!BN7="","",'Dati Generali CER 2 Sem. 2020'!BN7) -> 2021-05-29T17:37:04
A15: 6 | B15: ='Dati Generali CER 1 Sem. 2020'!C8 -> BARCELLONA P.G. | C15: =IF('Dati Generali CER 2 Sem. 2020'!E8="","",'Dati Generali CER 2 Sem. 2020'!E8) -> 6589130 | D15: =IF(C15="","",'Dati Generali CER 2 Sem. 2020'!BI8) -> 3591664 | E15: ='Dati Generali CER 2 Sem. 2020'!W8 -> 0.352788201 | F15: =IF('Dati Generali CER 2 Sem. 2020'!BJ8="","",'Dati Generali CER 2 Sem. 2020'!BJ8) -> 1.374224528 | G15: =IF('Dati Generali CER 2 Sem. 2020'!BK8="","",'Dati Generali CER 2 Sem. 2020'!BK8) -> 0.889414329 | H15: =IF('Dati Generali CER 2 Sem. 2020'!BL8="","",'Dati Generali CER 2 Sem. 2020'!BL8) -> 0.484810199 | I15: ='Dati Generali CER 2 Sem. 2020'!D8 -> 40263 | J15: =IF('Dati Generali CER 2 Sem. 2020'!BN8="","",'Dati Generali CER 2 Sem. 2020'!BN8) -> 2021-05-29T17:37:04
A16: 7 | B16: ='Dati Generali CER 1 Sem. 2020'!C9 -> BASICO' | C16: =IF('Dati Generali CER 2 Sem. 2020'!E9="","",'Dati Generali CER 2 Sem. 2020'!E9) -> 60920 | D16: =IF(C16="","",'Dati Generali CER 2 Sem. 2020'!BI9) -> 48710 | E16: ='Dati Generali CER 2 Sem. 2020'!W9 -> 0.4443126881 | F16: =IF('Dati Generali CER 2 Sem. 2020'!BJ9="","",'Dati Generali CER 2 Sem. 2020'!BJ9) -> 1.075478732 | G16: =IF('Dati Generali CER 2 Sem. 2020'!BK9="","",'Dati Generali CER 2 Sem. 2020'!BK9) -> 0.5976298854 | H16: =IF('Dati Generali CER 2 Sem. 2020'!BL9="","",'Dati Generali CER 2 Sem. 2020'!BL9) -> 0.4778488463 | I16: ='Dati Generali CER 2 Sem. 2020'!D9 -> 554 | J16: =IF('Dati Generali CER 2 Sem. 2020'!BN9="","",'Dati Generali CER 2 Sem. 2020'!BN9) -> 2021-05-29T17:37:04
A17: 8 | B17: ='Dati Generali CER 1 Sem. 2020'!C10 -> BROLO | C17: =IF('Dati Generali CER 2 Sem. 2020'!E10="","",'Dati Generali CER 2 Sem. 2020'!E10) -> 458500 | D17: =IF(C17="","",'Dati Generali CER 2 Sem. 2020'!BI10) -> 958990 | E17: ='Dati Generali CER 2 Sem. 2020'!W10 -> 0.676540928 | F17: =IF('Dati Generali CER 2 Sem. 2020'!BJ10="","",'Dati Generali CER 2 Sem. 2020'!BJ10) -> 1.333520859 | G17: =IF('Dati Generali CER 2 Sem. 2020'!BK10="","",'Dati Generali CER 2 Sem. 2020'!BK10) -> 0.4313394194 | H17: =IF('Dati Generali CER 2 Sem. 2020'!BL10="","",'Dati Generali CER 2 Sem. 2020'!BL10) -> 0.9021814391 | I17: ='Dati Generali CER 2 Sem. 2020'!D10 -> 5777 | J17: =IF('Dati Generali CER 2 Sem. 2020'!BN10="","",'Dati Generali CER 2 Sem. 2020'!BN10) -> 2021-05-29T17:37:04
A18: 9 | B18: ='Dati Generali CER 1 Sem. 2020'!C11 -> CAPIZZI | C18: =IF('Dati Generali CER 2 Sem. 2020'!E11="","",'Dati Generali CER 2 Sem. 2020'!E11) -> 131180 | D18: =IF(C18="","",'Dati Generali CER 2 Sem. 2020'!BI11) -> 208426 | E18: ='Dati Generali CER 2 Sem. 2020'!W11 -> 0.6137288505 | F18: =IF('Dati Generali CER 2 Sem. 2020'!BJ11="","",'Dati Generali CER 2 Sem. 2020'!BJ11) -> 0.6485188976 | G18: =IF('Dati Generali CER 2 Sem. 2020'!BK11="","",'Dati Generali CER 2 Sem. 2020'!BK11) -> 0.2505041401 | H18: =IF('Dati Generali CER 2 Sem. 2020'!BL11="","",'Dati Generali CER 2 Sem. 2020'!BL11) -> 0.3980147576 | I18: ='Dati Generali CER 2 Sem. 2020'!D11 -> 2846 | J18: =IF('Dati Generali CER 2 Sem. 2020'!BN11="","",'Dati Generali CER 2 Sem. 2020'!BN11) -> 2021-05-29T17:37:04
A19: 10 | B19: ='Dati Generali CER 1 Sem. 2020'!C12 -> CAPO D'ORLANDO | C19: =IF('Dati Generali CER 2 Sem. 2020'!E12="","",'Dati Generali CER 2 Sem. 2020'!E12) -> 1169690 | D19: =IF(C19="","",'Dati Generali CER 2 Sem. 2020'!BI12) -> 2130486 | E19: ='Dati Generali CER 2 Sem. 2020'!W12 -> 0.6455673879 | F19: =IF('Dati Generali CER 2 Sem. 2020'!BJ12="","",'Dati Generali CER 2 Sem. 2020'!BJ12) -> 1.363208872 | G19: =IF('Dati Generali CER 2 Sem. 2020'!BK12="","",'Dati Generali CER 2 Sem. 2020'!BK12) -> 0.4831656814 | H19: =IF('Dati Generali CER 2 Sem. 2020'!BL12="","",'Dati Generali CER 2 Sem. 2020'!BL12) -> 0.8800431908 | I19: ='Dati Generali CER 2 Sem. 2020'!D12 -> 13157 | J19: =IF('Dati Generali CER 2 Sem. 2020'!BN12="","",'Dati Generali CER 2 Sem. 2020'!BN12) -> 2021-05-29T17:37:04
A20: 11 | B20: ='Dati Generali CER 1 Sem. 2020'!C13 -> CAPRILEONE | C20: =IF('Dati Generali CER 2 Sem. 2020'!E13="","",'Dati Generali CER 2 Sem. 2020'!E13) -> 212130 | D20: =IF(C20="","",'Dati Generali CER 2 Sem. 2020'!BI13) -> 305510 | E20: ='Dati Generali CER 2 Sem. 2020'!W13 -> 0.5901978209 | F20: =IF('Dati Generali CER 2 Sem. 2020'!BJ13="","",'Dati Generali CER 2 Sem. 2020'!BJ13) -> 0.6461324919 | G20: =IF('Dati Generali CER 2 Sem. 2020'!BK13="","",'Dati Generali CER 2 Sem. 2020'!BK13) -> 0.2647865032 | H20: =IF('Dati Generali CER 2 Sem. 2020'!BL13="","",'Dati Generali CER 2 Sem. 2020'!BL13) -> 0.3813459887 | I20: ='Dati Generali CER 2 Sem. 2020'!D13 -> 4354 | J20: =IF('Dati Generali CER 2 Sem. 2020'!BN13="","",'Dati Generali CER 2 Sem. 2020'!BN13) -> 2021-05-29T17:37:04
A21: 12 | B21: ='Dati Generali CER 1 Sem. 2020'!C14 -> CARONIA | C21: =IF('Dati Generali CER 2 Sem. 2020'!E14="","",'Dati Generali CER 2 Sem. 2020'!E14) -> 221260 | D21: =IF(C21="","",'Dati Generali CER 2 Sem. 2020'!BI14) -> 418730 | E21: ='Dati Generali CER 2 Sem. 2020'!W14 -> 0.6542758481 | F21: =IF('Dati Generali CER 2 Sem. 2020'!BJ14="","",'Dati Generali CER 2 Sem. 2020'!BJ14) -> 1.120556225 | G21: =IF('Dati Generali CER 2 Sem. 2020'!BK14="","",'Dati Generali CER 2 Sem. 2020'!BK14) -> 0.3874033505 | H21: =IF('Dati Generali CER 2 Sem. 2020'!BL14="","",'Dati Generali CER 2 Sem. 2020'!BL14) -> 0.7331528743 | I21: ='Dati Generali CER 2 Sem. 2020'!D14 -> 3104 | J21: =IF('Dati Generali CER 2 Sem. 2020'!BN14="","",'Dati Generali CER 2 Sem. 2020'!BN14) -> 2021-05-29T17:37:04
A22: 13 | B22: ='Dati Generali CER 1 Sem. 2020'!C15 -> CASALVECCHIO SICULO | C22: =IF('Dati Generali CER 2 Sem. 2020'!E15="","",'Dati Generali CER 2 Sem. 2020'!E15) -> 56680 | D22: =IF(C22="","",'Dati Generali CER 2 Sem. 2020'!BI15) -> 23220 | E22: ='Dati Generali CER 2 Sem. 2020'!W15 -> 0.2906132666 | F22: =IF('Dati Generali CER 2 Sem. 2020'!BJ15="","",'Dati Generali CER 2 Sem. 2020'!BJ15) -> 0.5813107502 | G22: =IF('Dati Generali CER 2 Sem. 2020'!BK15="","",'Dati Generali CER 2 Sem. 2020'!BK15) -> 0.4123741342 | H22: =IF('Dati Generali CER 2 Sem. 2020'!BL15="","",'Dati Generali CER 2 Sem. 2020'!BL15) -> 0.168936616 | I22: ='Dati Generali CER 2 Sem. 2020'!D15 -> 747 | J22: =IF('Dati Generali CER 2 Sem. 2020'!BN15="","",'Dati Generali CER 2 Sem. 2020'!BN15) -> 2021-05-29T17:37:04
A23: 14 | B23: ='Dati Generali CER 1 Sem. 2020'!C16 -> CASTEL DI LUCIO | C23: =IF('Dati Generali CER 2 Sem. 2020'!E16="","",'Dati Generali CER 2 Sem. 2020'!E16) -> 23000 | D23: =IF(C23="","",'Dati Generali CER 2 Sem. 2020'!BI16) -> 152920 | E23: ='Dati Generali CER 2 Sem. 2020'!W16 -> 0.869258754 | F23: =IF('Dati Generali CER 2 Sem. 2020'!BJ16="","",'Dati Generali CER 2 Sem. 2020'!BJ16) -> 0.8061441455 | G23: =IF('Dati Generali CER 2 Sem. 2020'!BK16="","",'Dati Generali CER 2 Sem. 2020'!BK16) -> 0.1053962901 | H23: =IF('Dati Generali CER 2 Sem. 2020'!BL16="","",'Dati Generali CER 2 Sem. 2020'!BL16) -> 0.7007478554 | I23: ='Dati Generali CER 2 Sem. 2020'!D16 -> 1186 | J23: =IF('Dati Generali CER 2 Sem. 2020'!BN16="","",'Dati Generali CER 2 Sem. 2020'!BN16) -> 2021-05-29T17:37:04
A24: 15 | B24: ='Dati Generali CER 1 Sem. 2020'!C17 -> CASTELL'UMBERTO | C24: =IF('Dati Generali CER 2 Sem. 2020'!E17="","",'Dati Generali CER 2 Sem. 2020'!E17) -> 250540 | D24: =IF(C24="","",'Dati Generali CER 2 Sem. 2020'!BI17) -> 195520 | E24: ='Dati Generali CER 2 Sem. 2020'!W17 -> 0.4383266825 | F24: =IF('Dati Generali CER 2 Sem. 2020'!BJ17="","",'Dati Generali CER 2 Sem. 2020'!BJ17) -> 0.8293667911 | G24: =IF('Dati Generali CER 2 Sem. 2020'!BK17="","",'Dati Generali CER 2 Sem. 2020'!BK17) -> 0.465833197 | H24: =IF('Dati Generali CER 2 Sem. 2020'!BL17="","",'Dati Generali CER 2 Sem. 2020'!BL17) -> 0.3635335941 | I24: ='Dati Generali CER 2 Sem. 2020'!D17 -> 2923 | J24: =IF('Dati Generali CER 2 Sem. 2020'!BN17="","",'Dati Generali CER 2 Sem. 2020'!BN17) -> 2021-05-29T17:37:04
A25: 16 | B25: ='Dati Generali CER 1 Sem. 2020'!C18 -> CASTELMOLA | C25: =IF('Dati Generali CER 2 Sem. 2020'!E18="","",'Dati Generali CER 2 Sem. 2020'!E18) -> 78830 | D25: =IF(C25="","",'Dati Generali CER 2 Sem. 2020'!BI18) -> 86718 | E25: ='Dati Generali CER 2 Sem. 2020'!W18 -> 0.514860773 | F25: =IF('Dati Generali CER 2 Sem. 2020'!BJ18="","",'Dati Generali CER 2 Sem. 2020'!BJ18) -> 0.8405697289 | G25: =IF('Dati Generali CER 2 Sem. 2020'!BK18="","",'Dati Generali CER 2 Sem. 2020'!BK18) -> 0.3934103885 | H25: =IF('Dati Generali CER 2 Sem. 2020'!BL18="","",'Dati Generali CER 2 Sem. 2020'!BL18) -> 0.4327763804 | I25: ='Dati Generali CER 2 Sem. 2020'!D18 -> 1089 | J25: =IF('Dati Generali CER 2 Sem. 2020'!BN18="","",'Dati Generali CER 2 Sem. 2020'!BN18) -> 2021-05-29T17:37:04
A26: 17 | B26: ='Dati Generali CER 1 Sem. 2020'!C19 -> CASTROREALE | C26: =IF('Dati Generali CER 2 Sem. 2020'!E19="","",'Dati Generali CER 2 Sem. 2020'!E19) -> 97170 | D26: =IF(C26="","",'Dati Generali CER 2 Sem. 2020'!BI19) -> 175910 | E26: ='Dati Generali CER 2 Sem. 2020'!W19 -> 0.6441702065 | F26: =IF('Dati Generali CER 2 Sem. 2020'!BJ19="","",'Dati Generali CER 2 Sem. 2020'!BJ19) -> 0.6625582298 | G26: =IF('Dati Generali CER 2 Sem. 2020'!BK19="","",'Dati Generali CER 2 Sem. 2020'!BK19) -> 0.2357579581 | H26: =IF('Dati Generali CER 2 Sem. 2020'!BL19="","",'Dati Generali CER 2 Sem. 2020'!BL19) -> 0.4268002717 | I26: ='Dati Generali CER 2 Sem. 2020'!D19 -> 2240 | J26: =IF('Dati Generali CER 2 Sem. 2020'!BN19="","",'Dati Generali CER 2 Sem. 2020'!BN19) -> 2021-05-29T17:37:04
A27: 18 | B27: ='Dati Generali CER 1 Sem. 2020'!C20 -> CESARO' | C27: =IF('Dati Generali CER 2 Sem. 2020'!E20="","",'Dati Generali CER 2 Sem. 2020'!E20) -> 195860 | D27: =IF(C27="","",'Dati Generali CER 2 Sem. 2020'!BI20) -> 165200 | E27: ='Dati Generali CER 2 Sem. 2020'!W20 -> 0.4575416828 | F27: =IF('Dati Generali CER 2 Sem. 2020'!BJ20="","",'Dati Generali CER 2 Sem. 2020'!BJ20) -> 0.9055295841 | G27: =IF('Dati Generali CER 2 Sem. 2020'!BK20="","",'Dati Generali CER 2 Sem. 2020'!BK20) -> 0.4912120543 | H27: =IF('Dati Generali CER 2 Sem. 2020'!BL20="","",'Dati Generali CER 2 Sem. 2020'!BL20) -> 0.4143175297 | I27: ='Dati Generali CER 2 Sem. 2020'!D20 -> 2167 | J27: =IF('Dati Generali CER 2 Sem. 2020'!BN20="","",'Dati Generali CER 2 Sem. 2020'!BN20) -> 2021-05-29T17:37:04
A28: 19 | B28: ='Dati Generali CER 1 Sem. 2020'!C21 -> CONDRO' | C28: =IF('Dati Generali CER 2 Sem. 2020'!E21="","",'Dati Generali CER 2 Sem. 2020'!E21) -> 150660 | D28: =IF(C28="","",'Dati Generali CER 2 Sem. 2020'!BI21) -> 20040 | E28: ='Dati Generali CER 2 Sem. 2020'!W21 -> 0.1173989455 | F28: =IF('Dati Generali CER 2 Sem. 2020'!BJ21="","",'Dati Generali CER 2 Sem. 2020'!BJ21) -> 2.075430406 | G28: =IF('Dati Generali CER 2 Sem. 2020'!BK21="","",'Dati Generali CER 2 Sem. 2020'!BK21) -> 1.831777064 | H28: =IF('Dati Generali CER 2 Sem. 2020'!BL21="","",'Dati Generali CER 2 Sem. 2020'!BL21) -> 0.2436533411 | I28: ='Dati Generali CER 2 Sem. 2020'!D21 -> 447 | J28: =IF('Dati Generali CER 2 Sem. 2020'!BN21="","",'Dati Generali CER 2 Sem. 2020'!BN21) -> 2021-05-29T17:37:04
A29: 20 | B29: ='Dati Generali CER 1 Sem. 2020'!C22 -> FALCONE | C29: =IF('Dati Generali CER 2 Sem. 2020'!E22="","",'Dati Generali CER 2 Sem. 2020'!E22) -> 502940 | D29: =IF(C29="","",'Dati Generali CER 2 Sem. 2020'!BI22) -> 204280 | E29: ='Dati Generali CER 2 Sem. 2020'!W22 -> 0.2888492972 | F29: =IF('Dati Generali CER 2 Sem. 2020'!BJ22="","",'Dati Generali CER 2 Sem. 2020'!BJ22) -> 1.414643709 | G29: =IF('Dati Generali CER 2 Sem. 2020'!BK22="","",'Dati Generali CER 2 Sem. 2020'!BK22) -> 1.006024868 | H29: =IF('Dati Generali CER 2 Sem. 2020'!BL22="","",'Dati Generali CER 2 Sem. 2020'!BL22) -> 0.4086188411 | I29: ='Dati Generali CER 2 Sem. 2020'!D22 -> 2717 | J29: =IF('Dati Generali CER 2 Sem. 2020'!BN22="","",'Dati Generali CER 2 Sem. 2020'!BN22) -> 2021-05-29T17:37:04
A30: 21 | B30: ='Dati Generali CER 1 Sem. 2020'!C23 -> FICARRA | C30: =IF('Dati Generali CER 2 Sem. 2020'!E23="","",'Dati Generali CER 2 Sem. 2020'!E23) -> 134320 | D30: =IF(C30="","",'Dati Generali CER 2 Sem. 2020'!BI23) -> 86210 | E30: ='Dati Generali CER 2 Sem. 2020'!W23 -> 0.39092187 | F30: =IF('Dati Generali CER 2 Sem. 2020'!BJ23="","",'Dati Generali CER 2 Sem. 2020'!BJ23) -> 0.8957642815 | G30: =IF('Dati Generali CER 2 Sem. 2020'!BK23="","",'Dati Generali CER 2 Sem. 2020'!BK23) -> 0.5455904335 | H30: =IF('Dati Generali CER 2 Sem. 2020'!BL23="","",'Dati Generali CER 2 Sem. 2020'!BL23) -> 0.3501738481 | I30: ='Dati Generali CER 2 Sem. 2020'!D23 -> 1338 | J30: =IF('Dati Generali CER 2 Sem. 2020'!BN23="","",'Dati Generali CER 2 Sem. 2020'!BN23) -> 2021-05-29T17:37:04
A31: 22 | B31: ='Dati Generali CER 1 Sem. 2020'!C24 -> FIUMEDINISI | C31: =IF('Dati Generali CER 2 Sem. 2020'!E24="","",'Dati Generali CER 2 Sem. 2020'!E24) -> 40450 | D31: =IF(C31="","",'Dati Generali CER 2 Sem. 2020'!BI24) -> 106320 | E31: ='Dati Generali CER 2 Sem. 2020'!W24 -> 0.7243987191 | F31: =IF('Dati Generali CER 2 Sem. 2020'!BJ24="","",'Dati Generali CER 2 Sem. 2020'!BJ24) -> 0.6061269327 | G31: =IF('Dati Generali CER 2 Sem. 2020'!BK24="","",'Dati Generali CER 2 Sem. 2020'!BK24) -> 0.1670493591 | H31: =IF('Dati Generali CER 2 Sem. 2020'!BL24="","",'Dati Generali CER 2 Sem. 2020'!BL24) -> 0.4390775737 | I31: ='Dati Generali CER 2 Sem. 2020'!D24 -> 1316 | J31: =IF('Dati Generali CER 2 Sem. 2020'!BN24="","",'Dati Generali CER 2 Sem. 2020'!BN24) -> 2021-05-29T17:37:04
A32: 23 | B32: ='Dati Generali CER 1 Sem. 2020'!C25 -> FLORESTA | C32: =IF('Dati Generali CER 2 Sem. 2020'!E25="","",'Dati Generali CER 2 Sem. 2020'!E25) -> 88360 | D32: =IF(C32="","",'Dati Generali CER 2 Sem. 2020'!BI25) -> 20660 | E32: ='Dati Generali CER 2 Sem. 2020'!W25 -> 0.1895065126 | F32: =IF('Dati Generali CER 2 Sem. 2020'!BJ25="","",'Dati Generali CER 2 Sem. 2020'!BJ25) -> 1.343537415 | G32: =IF('Dati Generali CER 2 Sem. 2020'!BK25="","",'Dati Generali CER 2 Sem. 2020'!BK25) -> 1.088928325 | H32: =IF('Dati Generali CER 2 Sem. 2020'!BL25="","",'Dati Generali CER 2 Sem. 2020'!BL25) -> 0.25460909 | I32: ='Dati Generali CER 2 Sem. 2020'!D25 -> 441 | J32: =IF('Dati Generali CER 2 Sem. 2020'!BN25="","",'Dati Generali CER 2 Sem. 2020'!BN25) -> 2021-05-29T17:37:04
A33: 24 | B33: ='Dati Generali CER 1 Sem. 2020'!C26 -> FONDACHELLI FANTINA | C33: =IF('Dati Generali CER 2 Sem. 2020'!E26="","",'Dati Generali CER 2 Sem. 2020'!E26) -> 71230 | D33: =IF(C33="","",'Dati Generali CER 2 Sem. 2020'!BI26) -> 36420 | E33: ='Dati Generali CER 2 Sem. 2020'!W26 -> 0.3383186252 | F33: =IF('Dati Generali CER 2 Sem. 2020'!BJ26="","",'Dati Generali CER 2 Sem. 2020'!BJ26) -> 0.5951722765 | G33: =IF('Dati Generali CER 2 Sem. 2020'!BK26="","",'Dati Generali CER 2 Sem. 2020'!BK26) -> 0.3938144102 | H33: =IF('Dati Generali CER 2 Sem. 2020'!BL26="","",'Dati Generali CER 2 Sem. 2020'!BL26) -> 0.2013578663 | I33: ='Dati Generali CER 2 Sem. 2020'!D26 -> 983 | J33: =IF('Dati Generali CER 2 Sem. 2020'!BN26="","",'Dati Generali CER 2 Sem. 2020'!BN26) -> 2021-05-29T17:37:04
A34: 25 | B34: ='Dati Generali CER 1 Sem. 2020'!C27 -> FORZA D'AGRO' | C34: =IF('Dati Generali CER 2 Sem. 2020'!E27="","",'Dati Generali CER 2 Sem. 2020'!E27) -> 63835 | D34: =IF(C34="","",'Dati Generali CER 2 Sem. 2020'!BI27) -> 162587 | E34: ='Dati Generali CER 2 Sem. 2020'!W27 -> 0.7180706822 | F34: =IF('Dati Generali CER 2 Sem. 2020'!BJ27="","",'Dati Generali CER 2 Sem. 2020'!BJ27) -> 1.417689341 | G34: =IF('Dati Generali CER 2 Sem. 2020'!BK27="","",'Dati Generali CER 2 Sem. 2020'!BK27) -> 0.3996881887 | H34: =IF('Dati Generali CER 2 Sem. 2020'!BL27="","",'Dati Generali CER 2 Sem. 2020'!BL27) -> 1.018001152 | I34: ='Dati Generali CER 2 Sem. 2020'!D27 -> 868 | J34: =IF('Dati Generali CER 2 Sem. 2020'!BN27="","",'Dati Generali CER 2 Sem. 2020'!BN27) -> 2021-05-29T17:37:04
A35: 26 | B35: ='Dati Generali CER 1 Sem. 2020'!C28 -> FRANCAVILLA DI SICILIA | C35: =IF('Dati Generali CER 2 Sem. 2020'!E28="","",'Dati Generali CER 2 Sem. 2020'!E28) -> 428020 | D35: =IF(C35="","",'Dati Generali CER 2 Sem. 2020'!BI28) -> 323920 | E35: ='Dati Generali CER 2 Sem. 2020'!W28 -> 0.4307790515 | F35: =IF('Dati Generali CER 2 Sem. 2020'!BJ28="","",'Dati Generali CER 2 Sem. 2020'!BJ28) -> 1.129215373 | G35: =IF('Dati Generali CER 2 Sem. 2020'!BK28="","",'Dati Generali CER 2 Sem. 2020'!BK28) -> 0.6427730456 | H35: =IF('Dati Generali CER 2 Sem. 2020'!BL28="","",'Dati Generali CER 2 Sem. 2020'!BL28) -> 0.4864423273 | I35: ='Dati Generali CER 2 Sem. 2020'!D28 -> 3619 | J35: =IF('Dati Generali CER 2 Sem. 2020'!BN28="","",'Dati Generali CER 2 Sem. 2020'!BN28) -> 2021-05-29T17:37:04
A36: 27 | B36: ='Dati Generali CER 1 Sem. 2020'!C29 -> FRAZZANO' | C36: =IF('Dati Generali CER 2 Sem. 2020'!E29="","",'Dati Generali CER 2 Sem. 2020'!E29) -> 38860 | D36: =IF(C36="","",'Dati Generali CER 2 Sem. 2020'!BI29) -> 43970 | E36: ='Dati Generali CER 2 Sem. 2020'!W29 -> 0.5308463117 | F36: =IF('Dati Generali CER 2 Sem. 2020'!BJ29="","",'Dati Generali CER 2 Sem. 2020'!BJ29) -> 0.7578502415 | G36: =IF('Dati Generali CER 2 Sem. 2020'!BK29="","",'Dati Generali CER 2 Sem. 2020'!BK29) -> 0.355548236 | H36: =IF('Dati Generali CER 2 Sem. 2020'!BL29="","",'Dati Generali CER 2 Sem. 2020'!BL29) -> 0.4023020056 | I36: ='Dati Generali CER 2 Sem. 2020'!D29 -> 594 | J36: =IF('Dati Generali CER 2 Sem. 2020'!BN29="","",'Dati Generali CER 2 Sem. 2020'!BN29) -> 2021-05-29T17:37:04
A37: 28 | B37: ='Dati Generali CER 1 Sem. 2020'!C30 -> FURCI SICULO | C37: =IF('Dati Generali CER 2 Sem. 2020'!E30="","",'Dati Generali CER 2 Sem. 2020'!E30) -> 199970 | D37: =IF(C37="","",'Dati Generali CER 2 Sem. 2020'!BI30) -> 465740 | E37: ='Dati Generali CER 2 Sem. 2020'!W30 -> 0.699613946 | F37: =IF('Dati Generali CER 2 Sem. 2020'!BJ30="","",'Dati Generali CER 2 Sem. 2020'!BJ30) -> 1.135946352 | G37: =IF('Dati Generali CER 2 Sem. 2020'!BK30="","",'Dati Generali CER 2 Sem. 2020'!BK30) -> 0.3412224422 | H37: =IF('Dati Generali CER 2 Sem. 2020'!BL30="","",'Dati Generali CER 2 Sem. 2020'!BL30) -> 0.7947239096 | I37: ='Dati Generali CER 2 Sem. 2020'!D30 -> 3185 | J37: =IF('Dati Generali CER 2 Sem. 2020'!BN30="","",'Dati Generali CER 2 Sem. 2020'!BN30) -> 2021-05-29T17:37:04
A38: 29 | B38: ='Dati Generali CER 1 Sem. 2020'!C31 -> FURNARI | C38: =IF('Dati Generali CER 2 Sem. 2020'!E31="","",'Dati Generali CER 2 Sem. 2020'!E31) -> 574090 | D38: =IF(C38="","",'Dati Generali CER 2 Sem. 2020'!BI31) -> 607290 | E38: ='Dati Generali CER 2 Sem. 2020'!W31 -> 0.5140513637 | F38: =IF('Dati Generali CER 2 Sem. 2020'!BJ31="","",'Dati Generali CER 2 Sem. 2020'!BJ31) -> 1.662061475 | G38: =IF('Dati Generali CER 2 Sem. 2020'!BK31="","",'Dati Generali CER 2 Sem. 2020'!BK31) -> 0.8076765073 | H38: =IF('Dati Generali CER 2 Sem. 2020'!BL31="","",'Dati Generali CER 2 Sem. 2020'!BL31) -> 0.8543849678 | I38: ='Dati Generali CER 2 Sem. 2020'!D31 -> 3863 | J38: =IF('Dati Generali CER 2 Sem. 2020'!BN31="","",'Dati Generali CER 2 Sem. 2020'!BN31) -> 2021-05-29T17:37:04
A39: 30 | B39: ='Dati Generali CER 1 Sem. 2020'!C32 -> GAGGI | C39: =IF('Dati Generali CER 2 Sem. 2020'!E32="","",'Dati Generali CER 2 Sem. 2020'!E32) -> 233180 | D39: =IF(C39="","",'Dati Generali CER 2 Sem. 2020'!BI32) -> 295800 | E39: ='Dati Generali CER 2 Sem. 2020'!W32 -> 0.5591893833 | F39: =IF('Dati Generali CER 2 Sem. 2020'!BJ32="","",'Dati Generali CER 2 Sem. 2020'!BJ32) -> 0.9226223698 | G39: =IF('Dati Generali CER 2 Sem. 2020'!BK32="","",'Dati Generali CER 2 Sem. 2020'!BK32) -> 0.4067017358 | H39: =IF('Dati Generali CER 2 Sem. 2020'!BL32="","",'Dati Generali CER 2 Sem. 2020'!BL32) -> 0.515920634 | I39: ='Dati Generali CER 2 Sem. 2020'!D32 -> 3116 | J39: =IF('Dati Generali CER 2 Sem. 2020'!BN32="","",'Dati Generali CER 2 Sem. 2020'!BN32) -> 2021-05-29T17:37:04
A40: 31 | B40: ='Dati Generali CER 1 Sem. 2020'!C33 -> GALATI MAMERTINO | C40: =IF('Dati Generali CER 2 Sem. 2020'!E33="","",'Dati Generali CER 2 Sem. 2020'!E33) -> 141180 | D40: =IF(C40="","",'Dati Generali CER 2 Sem. 2020'!BI33) -> 214150 | E40: ='Dati Generali CER 2 Sem. 2020'!W33 -> 0.6026791996 | F40: =IF('Dati Generali CER 2 Sem. 2020'!BJ33="","",'Dati Generali CER 2 Sem. 2020'!BJ33) -> 0.8137974312 | G40: =IF('Dati Generali CER 2 Sem. 2020'!BK33="","",'Dati Generali CER 2 Sem. 2020'!BK33) -> 0.3233386467 | H40: =IF('Dati Generali CER 2 Sem. 2020'!BL33="","",'Dati Generali CER 2 Sem. 2020'!BL33) -> 0.4904587845 | I40: ='Dati Generali CER 2 Sem. 2020'!D33 -> 2373 | J40: =IF('Dati Generali CER 2 Sem. 2020'!BN33="","",'Dati Generali CER 2 Sem. 2020'!BN33) -> 2021-05-29T17:37:04
A41: 32 | B41: ='Dati Generali CER 1 Sem. 2020'!C34 -> GALLODORO | C41: =IF('Dati Generali CER 2 Sem. 2020'!E34="","",'Dati Generali CER 2 Sem. 2020'!E34) -> 21225 | D41: =IF(C41="","",'Dati Generali CER 2 Sem. 2020'!BI34) -> 33031 | E41: ='Dati Generali CER 2 Sem. 2020'!W34 -> 0.6013837051 | F41: =IF('Dati Generali CER 2 Sem. 2020'!BJ34="","",'Dati Generali CER 2 Sem. 2020'!BJ34) -> 0.8677483569 | G41: =IF('Dati Generali CER 2 Sem. 2020'!BK34="","",'Dati Generali CER 2 Sem. 2020'!BK34) -> 0.3353292467 | H41: =IF('Dati Generali CER 2 Sem. 2020'!BL34="","",'Dati Generali CER 2 Sem. 2020'!BL34) -> 0.5218497219 | I41: ='Dati Generali CER 2 Sem. 2020'!D34 -> 344 | J41: =IF('Dati Generali CER 2 Sem. 2020'!BN34="","",'Dati Generali CER 2 Sem. 2020'!BN34) -> 2021-05-29T17:37:04
A42: 33 | B42: ='Dati Generali CER 1 Sem. 2020'!C35 -> GIARDINI NAXOS | C42: =IF('Dati Generali CER 2 Sem. 2020'!E35="","",'Dati Generali CER 2 Sem. 2020'!E35) -> 1955930 | D42: =IF(C42="","",'Dati Generali CER 2 Sem. 2020'!BI35) -> 1467168 | E42: ='Dati Generali CER 2 Sem. 2020'!W35 -> 0.4131889919 | F42: =IF('Dati Generali CER 2 Sem. 2020'!BJ35="","",'Dati Generali CER 2 Sem. 2020'!BJ35) -> 2.109767517 | G42: =IF('Dati Generali CER 2 Sem. 2020'!BK35="","",'Dati Generali CER 2 Sem. 2020'!BK35) -> 1.162135602 | H42: =IF('Dati Generali CER 2 Sem. 2020'!BL35="","",'Dati Generali CER 2 Sem. 2020'!BL35) -> 0.8717327135 | I42: ='Dati Generali CER 2 Sem. 2020'!D35 -> 9147 | J42: =IF('Dati Generali CER 2 Sem. 2020'!BN35="","",'Dati Generali CER 2 Sem. 2020'!BN35) -> 2021-05-29T17:37:04
A43: 34 | B43: ='Dati Generali CER 1 Sem. 2020'!C36 -> GIOIOSA MAREA | C43: =IF('Dati Generali CER 2 Sem. 2020'!E36="","",'Dati Generali CER 2 Sem. 2020'!E36) -> 1317710 | D43: =IF(C43="","",'Dati Generali CER 2 Sem. 2020'!BI36) -> 495390 | E43: ='Dati Generali CER 2 Sem. 2020'!W36 -> 0.2732281727 | F43: =IF('Dati Generali CER 2 Sem. 2020'!BJ36="","",'Dati Generali CER 2 Sem. 2020'!BJ36) -> 1.439772698 | G43: =IF('Dati Generali CER 2 Sem. 2020'!BK36="","",'Dati Generali CER 2 Sem. 2020'!BK36) -> 1.046386235 | H43: =IF('Dati Generali CER 2 Sem. 2020'!BL36="","",'Dati Generali CER 2 Sem. 2020'!BL36) -> 0.3933864635 | I43: ='Dati Generali CER 2 Sem. 2020'!D36 -> 6844 | J43: =IF('Dati Generali CER 2 Sem. 2020'!BN36="","",'Dati Generali CER 2 Sem. 2020'!BN36) -> 2021-05-29T17:37:04
A44: 35 | B44: ='Dati Generali CER 1 Sem. 2020'!C37 -> GRANITI | C44: =IF('Dati Generali CER 2 Sem. 2020'!E37="","",'Dati Generali CER 2 Sem. 2020'!E37) -> 258460 | D44: =IF(C44="","",'Dati Generali CER 2 Sem. 2020'!BI37) -> 28281 | E44: ='Dati Generali CER 2 Sem. 2020'!W37 -> 0.09862907641 | F44: =IF('Dati Generali CER 2 Sem. 2020'!BJ37="","",'Dati Generali CER 2 Sem. 2020'!BJ37) -> 1.077714385 | G44: =IF('Dati Generali CER 2 Sem. 2020'!BK37="","",'Dati Generali CER 2 Sem. 2020'!BK37) -> 0.9714204101 | H44: =IF('Dati Generali CER 2 Sem. 2020'!BL37="","",'Dati Generali CER 2 Sem. 2020'!BL37) -> 0.1062939744 | I44: ='Dati Generali CER 2 Sem. 2020'!D37 -> 1446 | J44: =IF('Dati Generali CER 2 Sem. 2020'!BN37="","",'Dati Generali CER 2 Sem. 2020'!BN37) -> 2021-05-29T17:37:04
A45: 36 | B45: ='Dati Generali CER 1 Sem. 2020'!C38 -> GUALTIERI SICAMINO | C45: =IF('Dati Generali CER 2 Sem. 2020'!E38="","",'Dati Generali CER 2 Sem. 2020'!E38) -> 85530 | D45: =IF(C45="","",'Dati Generali CER 2 Sem. 2020'!BI38) -> 143740 | E45: ='Dati Generali CER 2 Sem. 2020'!W38 -> 0.6269463951 | F45: =IF('Dati Generali CER 2 Sem. 2020'!BJ38="","",'Dati Generali CER 2 Sem. 2020'!BJ38) -> 0.7672614586 | G45: =IF('Dati Generali CER 2 Sem. 2020'!BK38="","",'Dati Generali CER 2 Sem. 2020'!BK38) -> 0.286229653 | H45: =IF('Dati Generali CER 2 Sem. 2020'!BL38="","",'Dati Generali CER 2 Sem. 2020'!BL38) -> 0.4810318055 | I45: ='Dati Generali CER 2 Sem. 2020'!D38 -> 1624 | J45: =IF('Dati Generali CER 2 Sem. 2020'!BN38="","",'Dati Generali CER 2 Sem. 2020'!BN38) -> 2021-05-29T17:37:04
A46: 37 | B46: ='Dati Generali CER 1 Sem. 2020'!C39 -> ITALA | C46: =IF('Dati Generali CER 2 Sem. 2020'!E39="","",'Dati Generali CER 2 Sem. 2020'!E39) -> 82003 | D46: =IF(C46="","",'Dati Generali CER 2 Sem. 2020'!BI39) -> 173575 | E46: ='Dati Generali CER 2 Sem. 2020'!W39 -> 0.6791468749 | F46: =IF('Dati Generali CER 2 Sem. 2020'!BJ39="","",'Dati Generali CER 2 Sem. 2020'!BJ39) -> 0.9210947411 | G46: =IF('Dati Generali CER 2 Sem. 2020'!BK39="","",'Dati Generali CER 2 Sem. 2020'!BK39) -> 0.2955361262 | H46: =IF('Dati Generali CER 2 Sem. 2020'!BL39="","",'Dati Generali CER 2 Sem. 2020'!BL39) -> 0.6255586149 | I46: ='Dati Generali CER 2 Sem. 2020'!D39 -> 1508 | J46: =IF('Dati Generali CER 2 Sem. 2020'!BN39="","",'Dati Generali CER 2 Sem. 2020'!BN39) -> 2021-05-29T17:37:04
A47: 38 | B47: ='Dati Generali CER 1 Sem. 2020'!C40 -> LENI | C47: =IF('Dati Generali CER 2 Sem. 2020'!E40="","",'Dati Generali CER 2 Sem. 2020'!E40) -> 108860 | D47: =IF(C47="","",'Dati Generali CER 2 Sem. 2020'!BI40) -> 68740 | E47: ='Dati Generali CER 2 Sem. 2020'!W40 -> 0.3870495495 | F47: =IF('Dati Generali CER 2 Sem. 2020'!BJ40="","",'Dati Generali CER 2 Sem. 2020'!BJ40) -> 1.411136537 | G47: =IF('Dati Generali CER 2 Sem. 2020'!BK40="","",'Dati Generali CER 2 Sem. 2020'!BK40) -> 0.864956776 | H47: =IF('Dati Generali CER 2 Sem. 2020'!BL40="","",'Dati Generali CER 2 Sem. 2020'!BL40) -> 0.546179761 | I47: ='Dati Generali CER 2 Sem. 2020'!D40 -> 684 | J47: =IF('Dati Generali CER 2 Sem. 2020'!BN40="","",'Dati Generali CER 2 Sem. 2020'!BN40) -> 2021-05-29T17:37:04
A48: 39 | B48: ='Dati Generali CER 1 Sem. 2020'!C41 -> LETOJANNI | C48: =IF('Dati Generali CER 2 Sem. 2020'!E41="","",'Dati Generali CER 2 Sem. 2020'!E41) -> 660440 | D48: =IF(C48="","",'Dati Generali CER 2 Sem. 2020'!BI41) -> 467490 | E48: ='Dati Generali CER 2 Sem. 2020'!W41 -> 0.4106084161 | F48: =IF('Dati Generali CER 2 Sem. 2020'!BJ41="","",'Dati Generali CER 2 Sem. 2020'!BJ41) -> 2.273204645 | G48: =IF('Dati Generali CER 2 Sem. 2020'!BK41="","",'Dati Generali CER 2 Sem. 2020'!BK41) -> 1.31864358 | H48: =IF('Dati Generali CER 2 Sem. 2020'!BL41="","",'Dati Generali CER 2 Sem. 2020'!BL41) -> 0.9333969588 | I48: ='Dati Generali CER 2 Sem. 2020'!D41 -> 2722 | J48: =IF('Dati Generali CER 2 Sem. 2020'!BN41="","",'Dati Generali CER 2 Sem. 2020'!BN41) -> 2021-05-29T17:37:05
A49: 40 | B49: ='Dati Generali CER 1 Sem. 2020'!C42 -> LIBRIZZI | C49: =IF('Dati Generali CER 2 Sem. 2020'!E42="","",'Dati Generali CER 2 Sem. 2020'!E42) -> 207500 | D49: =IF(C49="","",'Dati Generali CER 2 Sem. 2020'!BI42) -> 104900 | E49: ='Dati Generali CER 2 Sem. 2020'!W42 -> 0.335787452 | F49: =IF('Dati Generali CER 2 Sem. 2020'!BJ42="","",'Dati Generali CER 2 Sem. 2020'!BJ42) -> 1.055205772 | G49: =IF('Dati Generali CER 2 Sem. 2020'!BK42="","",'Dati Generali CER 2 Sem. 2020'!BK42) -> 0.7008809144 | H49: =IF('Dati Generali CER 2 Sem. 2020'!BL42="","",'Dati Generali CER 2 Sem. 2020'!BL42) -> 0.3543248575 | I49: ='Dati Generali CER 2 Sem. 2020'!D42 -> 1609 | J49: =IF('Dati Generali CER 2 Sem. 2020'!BN42="","",'Dati Generali CER 2 Sem. 2020'!BN42) -> 2021-05-29T17:37:05
A50: 41 | B50: ='Dati Generali CER 1 Sem. 2020'!C43 -> LIMINA | C50: =IF('Dati Generali CER 2 Sem. 2020'!E43="","",'Dati Generali CER 2 Sem. 2020'!E43) -> 29430 | D50: =IF(C50="","",'Dati Generali CER 2 Sem. 2020'!BI43) -> 71288 | E50: ='Dati Generali CER 2 Sem. 2020'!W43 -> 0.7077980103 | F50: =IF('Dati Generali CER 2 Sem. 2020'!BJ43="","",'Dati Generali CER 2 Sem. 2020'!BJ43) -> 0.7529304467 | G50: =IF('Dati Generali CER 2 Sem. 2020'!BK43="","",'Dati Generali CER 2 Sem. 2020'!BK43) -> 0.2200077747 | H50: =IF('Dati Generali CER 2 Sem. 2020'!BL43="","",'Dati Generali CER 2 Sem. 2020'!BL43) -> 0.5329226721 | I50: ='Dati Generali CER 2 Sem. 2020'!D43 -> 727 | J50: =IF('Dati Generali CER 2 Sem. 2020'!BN43="","",'Dati Generali CER 2 Sem. 2020'!BN43) -> 2021-05-29T17:37:05
A51: 42 | B51: ='Dati Generali CER 1 Sem. 2020'!C44 -> LIPARI | C51: =IF('Dati Generali CER 2 Sem. 2020'!E44="","",'Dati Generali CER 2 Sem. 2020'!E44) -> 3920500 | D51: =IF(C51="","",'Dati Generali CER 2 Sem. 2020'!BI44) -> 1183370 | E51: ='Dati Generali CER 2 Sem. 2020'!W44 -> 0.2318573945 | F51: =IF('Dati Generali CER 2 Sem. 2020'!BJ44="","",'Dati Generali CER 2 Sem. 2020'!BJ44) -> 2.248939834 | G51: =IF('Dati Generali CER 2 Sem. 2020'!BK44="","",'Dati Generali CER 2 Sem. 2020'!BK44) -> 1.727506504 | H51: =IF('Dati Generali CER 2 Sem. 2020'!BL44="","",'Dati Generali CER 2 Sem. 2020'!BL44) -> 0.5214333303 | I51: ='Dati Generali CER 2 Sem. 2020'!D44 -> 12334 | J51: =IF('Dati Generali CER 2 Sem. 2020'!BN44="","",'Dati Generali CER 2 Sem. 2020'!BN44) -> 2021-05-29T17:37:05
A52: 43 | B52: ='Dati Generali CER 1 Sem. 2020'!C45 -> LONGI | C52: =IF('Dati Generali CER 2 Sem. 2020'!E45="","",'Dati Generali CER 2 Sem. 2020'!E45) -> 13380 | D52: =IF(C52="","",'Dati Generali CER 2 Sem. 2020'!BI45) -> 179071 | E52: ='Dati Generali CER 2 Sem. 2020'!W45 -> 0.9304758094 | F52: =IF('Dati Generali CER 2 Sem. 2020'!BJ45="","",'Dati Generali CER 2 Sem. 2020'!BJ45) -> 0.7696316025 | G52: =IF('Dati Generali CER 2 Sem. 2020'!BK45="","",'Dati Generali CER 2 Sem. 2020'!BK45) -> 0.0535080142 | H52: =IF('Dati Generali CER 2 Sem. 2020'!BL45="","",'Dati Generali CER 2 Sem. 2020'!BL45) -> 0.7161235883 | I52: ='Dati Generali CER 2 Sem. 2020'!D45 -> 1359 | J52: =IF('Dati Generali CER 2 Sem. 2020'!BN45="","",'Dati Generali CER 2 Sem. 2020'!BN45) -> 2021-05-29T17:37:05
A53: 44 | B53: ='Dati Generali CER 1 Sem. 2020'!C46 -> MALFA | C53: =IF('Dati Generali CER 2 Sem. 2020'!E46="","",'Dati Generali CER 2 Sem. 2020'!E46) -> 167360 | D53: =IF(C53="","",'Dati Generali CER 2 Sem. 2020'!BI46) -> 140260 | E53: ='Dati Generali CER 2 Sem. 2020'!W46 -> 0.4559521488 | F53: =IF('Dati Generali CER 2 Sem. 2020'!BJ46="","",'Dati Generali CER 2 Sem. 2020'!BJ46) -> 1.712958838 | G53: =IF('Dati Generali CER 2 Sem. 2020'!BK46="","",'Dati Generali CER 2 Sem. 2020'!BK46) -> 0.9319315752 | H53: =IF('Dati Generali CER 2 Sem. 2020'!BL46="","",'Dati Generali CER 2 Sem. 2020'!BL46) -> 0.781027263 | I53: ='Dati Generali CER 2 Sem. 2020'!D46 -> 976 | J53: =IF('Dati Generali CER 2 Sem. 2020'!BN46="","",'Dati Generali CER 2 Sem. 2020'!BN46) -> 2021-05-29T17:37:05
A54: 45 | B54: ='Dati Generali CER 1 Sem. 2020'!C47 -> MALVAGNA | C54: =IF('Dati Generali CER 2 Sem. 2020'!E47="","",'Dati Generali CER 2 Sem. 2020'!E47) -> 84880 | D54: =IF(C54="","",'Dati Generali CER 2 Sem. 2020'!BI47) -> 15900 | E54: ='Dati Generali CER 2 Sem. 2020'!W47 -> 0.1577693987 | F54: =IF('Dati Generali CER 2 Sem. 2020'!BJ47="","",'Dati Generali CER 2 Sem. 2020'!BJ47) -> 0.8426421405 | G54: =IF('Dati Generali CER 2 Sem. 2020'!BK47="","",'Dati Generali CER 2 Sem. 2020'!BK47) -> 0.7096989967 | H54: =IF('Dati Generali CER 2 Sem. 2020'!BL47="","",'Dati Generali CER 2 Sem. 2020'!BL47) -> 0.1329431438 | I54: ='Dati Generali CER 2 Sem. 2020'!D47 -> 650 | J54: =IF('Dati Generali CER 2 Sem. 2020'!BN47="","",'Dati Generali CER 2 Sem. 2020'!BN47) -> 2021-05-29T17:37:05
A55: 46 | B55: ='Dati Generali CER 1 Sem. 2020'!C48 -> MANDANICI | C55: =IF('Dati Generali CER 2 Sem. 2020'!E48="","",'Dati Generali CER 2 Sem. 2020'!E48) -> 29770 | D55: =IF(C55="","",'Dati Generali CER 2 Sem. 2020'!BI48) -> 60990 | E55: ='Dati Generali CER 2 Sem. 2020'!W48 -> 0.6572198276 | F55: =IF('Dati Generali CER 2 Sem. 2020'!BJ48="","",'Dati Generali CER 2 Sem. 2020'!BJ48) -> 0.9038491507 | G55: =IF('Dati Generali CER 2 Sem. 2020'!BK48="","",'Dati Generali CER 2 Sem. 2020'!BK48) -> 0.28995247 | H55: =IF('Dati Generali CER 2 Sem. 2020'!BL48="","",'Dati Generali CER 2 Sem. 2020'!BL48) -> 0.594027583 | I55: ='Dati Generali CER 2 Sem. 2020'!D48 -> 558 | J55: =IF('Dati Generali CER 2 Sem. 2020'!BN48="","",'Dati Generali CER 2 Sem. 2020'!BN48) -> 2021-05-29T17:37:05
A56: 47 | B56: ='Dati Generali CER 1 Sem. 2020'!C49 -> MAZZARRA' S. ANDREA | C56: =IF('Dati Generali CER 2 Sem. 2020'!E49="","",'Dati Generali CER 2 Sem. 2020'!E49) -> 47560 | D56: =IF(C56="","",'Dati Generali CER 2 Sem. 2020'!BI49) -> 162836 | E56: ='Dati Generali CER 2 Sem. 2020'!W49 -> 0.7739500751 | F56: =IF('Dati Generali CER 2 Sem. 2020'!BJ49="","",'Dati Generali CER 2 Sem. 2020'!BJ49) -> 0.8103873294 | G56: =IF('Dati Generali CER 2 Sem. 2020'!BK49="","",'Dati Generali CER 2 Sem. 2020'!BK49) -> 0.1831879949 | H56: =IF('Dati Generali CER 2 Sem. 2020'!BL49="","",'Dati Generali CER 2 Sem. 2020'!BL49) -> 0.6271993344 | I56: ='Dati Generali CER 2 Sem. 2020'!D49 -> 1411 | J56: =IF('Dati Generali CER 2 Sem. 2020'!BN49="","",'Dati Generali CER 2 Sem. 2020'!BN49) -> 2021-05-29T17:37:05
A57: 48 | B57: ='Dati Generali CER 1 Sem. 2020'!C50 -> MERI' | C57: =IF('Dati Generali CER 2 Sem. 2020'!E50="","",'Dati Generali CER 2 Sem. 2020'!E50) -> 257980 | D57: =IF(C57="","",'Dati Generali CER 2 Sem. 2020'!BI50) -> 83903 | E57: ='Dati Generali CER 2 Sem. 2020'!W50 -> 0.2454143669 | F57: =IF('Dati Generali CER 2 Sem. 2020'!BJ50="","",'Dati Generali CER 2 Sem. 2020'!BJ50) -> 0.7920118425 | G57: =IF('Dati Generali CER 2 Sem. 2020'!BK50="","",'Dati Generali CER 2 Sem. 2020'!BK50) -> 0.5976407576 | H57: =IF('Dati Generali CER 2 Sem. 2020'!BL50="","",'Dati Generali CER 2 Sem. 2020'!BL50) -> 0.1943710849 | I57: ='Dati Generali CER 2 Sem. 2020'!D50 -> 2346 | J57: =IF('Dati Generali CER 2 Sem. 2020'!BN50="","",'Dati Generali CER 2 Sem. 2020'!BN50) -> 2021-05-29T17:37:05
A58: 49 | B58: ='Dati Generali CER 1 Sem. 2020'!C51 -> MESSINA | C58: =IF('Dati Generali CER 2 Sem. 2020'!E51="","",'Dati Generali CER 2 Sem. 2020'!E51) -> 33515590 | D58: =IF(C58="","",'Dati Generali CER 2 Sem. 2020'!BI51) -> 17340562 | E58: ='Dati Generali CER 2 Sem. 2020'!W51 -> 0.34097275 | F58: =IF('Dati Generali CER 2 Sem. 2020'!BJ51="","",'Dati Generali CER 2 Sem. 2020'!BJ51) -> 1.225435745 | G58: =IF('Dati Generali CER 2 Sem. 2020'!BK51="","",'Dati Generali CER 2 Sem. 2020'!BK51) -> 0.8075955488 | H58: =IF('Dati Generali CER 2 Sem. 2020'!BL51="","",'Dati Generali CER 2 Sem. 2020'!BL51) -> 0.4178401957 | I58: ='Dati Generali CER 2 Sem. 2020'!D51 -> 225546 | J58: =IF('Dati Generali CER 2 Sem. 2020'!BN51="","",'Dati Generali CER 2 Sem. 2020'!BN51) -> 2021-05-29T17:37:05
A59: 50 | B59: ='Dati Generali CER 1 Sem. 2020'!C52 -> MILAZZO | C59: =IF('Dati Generali CER 2 Sem. 2020'!E52="","",'Dati Generali CER 2 Sem. 2020'!E52) -> 6698290 | D59: =IF(C59="","",'Dati Generali CER 2 Sem. 2020'!BI52) -> 1834240 | E59: ='Dati Generali CER 2 Sem. 2020'!W52 -> 0.2149702374 | F59: =IF('Dati Generali CER 2 Sem. 2020'!BJ52="","",'Dati Generali CER 2 Sem. 2020'!BJ52) -> 1.551748282 | G59: =IF('Dati Generali CER 2 Sem. 2020'!BK52="","",'Dati Generali CER 2 Sem. 2020'!BK52) -> 1.218168585 | H59: =IF('Dati Generali CER 2 Sem. 2020'!BL52="","",'Dati Generali CER 2 Sem. 2020'!BL52) -> 0.3335796966 | I59: ='Dati Generali CER 2 Sem. 2020'!D52 -> 29884 | J59: =IF('Dati Generali CER 2 Sem. 2020'!BN52="","",'Dati Generali CER 2 Sem. 2020'!BN52) -> 2021-05-29T17:37:05
A60: 51 | B60: ='Dati Generali CER 1 Sem. 2020'!C53 -> MILITELLO ROSMARINO | C60: =IF('Dati Generali CER 2 Sem. 2020'!E53="","",'Dati Generali CER 2 Sem. 2020'!E53) -> 52020 | D60: =IF(C60="","",'Dati Generali CER 2 Sem. 2020'!BI53) -> 123911 | E60: ='Dati Generali CER 2 Sem. 2020'!W53 -> 0.7043158966 | F60: =IF('Dati Generali CER 2 Sem. 2020'!BJ53="","",'Dati Generali CER 2 Sem. 2020'!BJ53) -> 0.7830849624 | G60: =IF('Dati Generali CER 2 Sem. 2020'!BK53="","",'Dati Generali CER 2 Sem. 2020'!BK53) -> 0.231545775 | H60: =IF('Dati Generali CER 2 Sem. 2020'!BL53="","",'Dati Generali CER 2 Sem. 2020'!BL53) -> 0.5515391874 | I60: ='Dati Generali CER 2 Sem. 2020'!D53 -> 1221 | J60: =IF('Dati Generali CER 2 Sem. 2020'!BN53="","",'Dati Generali CER 2 Sem. 2020'!BN53) -> 2021-05-29T17:37:05
A61: 52 | B61: ='Dati Generali CER 1 Sem. 2020'!C54 -> MIRTO | C61: =IF('Dati Generali CER 2 Sem. 2020'!E54="","",'Dati Generali CER 2 Sem. 2020'!E54) -> 28880 | D61: =IF(C61="","",'Dati Generali CER 2 Sem. 2020'!BI54) -> 144579 | E61: ='Dati Generali CER 2 Sem. 2020'!W54 -> 0.833505324 | F61: =IF('Dati Generali CER 2 Sem. 2020'!BJ54="","",'Dati Generali CER 2 Sem. 2020'!BJ54) -> 1.034810051 | G61: =IF('Dati Generali CER 2 Sem. 2020'!BK54="","",'Dati Generali CER 2 Sem. 2020'!BK54) -> 0.1722903641 | H61: =IF('Dati Generali CER 2 Sem. 2020'!BL54="","",'Dati Generali CER 2 Sem. 2020'!BL54) -> 0.8625196869 | I61: ='Dati Generali CER 2 Sem. 2020'!D54 -> 911 | J61: =IF('Dati Generali CER 2 Sem. 2020'!BN54="","",'Dati Generali CER 2 Sem. 2020'!BN54) -> 2021-05-29T17:37:05
A62: 53 | B62: ='Dati Generali CER 1 Sem. 2020'!C55 -> MISTRETTA | C62: =IF('Dati Generali CER 2 Sem. 2020'!E55="","",'Dati Generali CER 2 Sem. 2020'!E55) -> 376180 | D62: =IF(C62="","",'Dati Generali CER 2 Sem. 2020'!BI55) -> 503950 | E62: ='Dati Generali CER 2 Sem. 2020'!W55 -> 0.572585868 | F62: =IF('Dati Generali CER 2 Sem. 2020'!BJ55="","",'Dati Generali CER 2 Sem. 2020'!BJ55) -> 1.060837263 | G62: =IF('Dati Generali CER 2 Sem. 2020'!BK55="","",'Dati Generali CER 2 Sem. 2020'!BK55) -> 0.4534168378 | H62: =IF('Dati Generali CER 2 Sem. 2020'!BL55="","",'Dati Generali CER 2 Sem. 2020'!BL55) -> 0.6074204249 | I62: ='Dati Generali CER 2 Sem. 2020'!D55 -> 4509 | J62: =IF('Dati Generali CER 2 Sem. 2020'!BN55="","",'Dati Generali CER 2 Sem. 2020'!BN55) -> 2021-05-29T17:37:05
A63: 54 | B63: ='Dati Generali CER 1 Sem. 2020'!C56 -> MOJO ALCANTARA | C63: =IF('Dati Generali CER 2 Sem. 2020'!E56="","",'Dati Generali CER 2 Sem. 2020'!E56) -> 88180 | D63: =IF(C63="","",'Dati Generali CER 2 Sem. 2020'!BI56) -> 18040 | E63: ='Dati Generali CER 2 Sem. 2020'!W56 -> 0.169836189 | F63: =IF('Dati Generali CER 2 Sem. 2020'!BJ56="","",'Dati Generali CER 2 Sem. 2020'!BJ56) -> 0.8552334944 | G63: =IF('Dati Generali CER 2 Sem. 2020'!BK56="","",'Dati Generali CER 2 Sem. 2020'!BK56) -> 0.7099838969 | H63: =IF('Dati Generali CER 2 Sem. 2020'!BL56="","",'Dati Generali CER 2 Sem. 2020'!BL56) -> 0.1452495974 | I63: ='Dati Generali CER 2 Sem. 2020'!D56 -> 675 | J63: =IF('Dati Generali CER 2 Sem. 2020'!BN56="","",'Dati Generali CER 2 Sem. 2020'!BN56) -> 2021-05-29T17:37:05
A64: 55 | B64: ='Dati Generali CER 1 Sem. 2020'!C57 -> MONFORTE S. GIORGIO | C64: =IF('Dati Generali CER 2 Sem. 2020'!E57="","",'Dati Generali CER 2 Sem. 2020'!E57) -> 388720 | D64: =IF(C64="","",'Dati Generali CER 2 Sem. 2020'!BI57) -> 196699 | E64: ='Dati Generali CER 2 Sem. 2020'!W57 -> 0.3359969526 | F64: =IF('Dati Generali CER 2 Sem. 2020'!BJ57="","",'Dati Generali CER 2 Sem. 2020'!BJ57) -> 1.23271019 | G64: =IF('Dati Generali CER 2 Sem. 2020'!BK57="","",'Dati Generali CER 2 Sem. 2020'!BK57) -> 0.8185233226 | H64: =IF('Dati Generali CER 2 Sem. 2020'!BL57="","",'Dati Generali CER 2 Sem. 2020'!BL57) -> 0.4141868672 | I64: ='Dati Generali CER 2 Sem. 2020'!D57 -> 2581 | J64: =IF('Dati Generali CER 2 Sem. 2020'!BN57="","",'Dati Generali CER 2 Sem. 2020'!BN57) -> 2021-05-29T17:37:05
A65: 56 | B65: ='Dati Generali CER 1 Sem. 2020'!C58 -> MONGIUFFI MELIA | C65: =IF('Dati Generali CER 2 Sem. 2020'!E58="","",'Dati Generali CER 2 Sem. 2020'!E58) -> 32090 | D65: =IF(C65="","",'Dati Generali CER 2 Sem. 2020'!BI58) -> 49980 | E65: ='Dati Generali CER 2 Sem. 2020'!W58 -> 0.6089923236 | F65: =IF('Dati Generali CER 2 Sem. 2020'!BJ58="","",'Dati Generali CER 2 Sem. 2020'!BJ58) -> 0.8214228521 | G65: =IF('Dati Generali CER 2 Sem. 2020'!BK58="","",'Dati Generali CER 2 Sem. 2020'!BK58) -> 0.3211826407 | H65: =IF('Dati Generali CER 2 Sem. 2020'!BL58="","",'Dati Generali CER 2 Sem. 2020'!BL58) -> 0.5002402114 | I65: ='Dati Generali CER 2 Sem. 2020'!D58 -> 543 | J65: =IF('Dati Generali CER 2 Sem. 2020'!BN58="","",'Dati Generali CER 2 Sem. 2020'!BN58) -> 2021-05-29T17:37:05
A66: 57 | B66: ='Dati Generali CER 1 Sem. 2020'!C59 -> MONTAGNAREALE | C66: =IF('Dati Generali CER 2 Sem. 2020'!E59="","",'Dati Generali CER 2 Sem. 2020'!E59) -> 165700 | D66: =IF(C66="","",'Dati Generali CER 2 Sem. 2020'!BI59) -> 93120 | E66: ='Dati Generali CER 2 Sem. 2020'!W59 -> 0.3597867244 | F66: =IF('Dati Generali CER 2 Sem. 2020'!BJ59="","",'Dati Generali CER 2 Sem. 2020'!BJ59) -> 0.970089955 | G66: =IF('Dati Generali CER 2 Sem. 2020'!BK59="","",'Dati Generali CER 2 Sem. 2020'!BK59) -> 0.6210644678 | H66: =IF('Dati Generali CER 2 Sem. 2020'!BL59="","",'Dati Generali CER 2 Sem. 2020'!BL59) -> 0.3490254873 | I66: ='Dati Generali CER 2 Sem. 2020'!D59 -> 1450 | J66: =IF('Dati Generali CER 2 Sem. 2020'!BN59="","",'Dati Generali CER 2 Sem. 2020'!BN59) -> 2021-05-29T17:37:05
A67: 58 | B67: ='Dati Generali CER 1 Sem. 2020'!C60 -> MONTALBANO ELICONA | C67: =IF('Dati Generali CER 2 Sem. 2020'!E60="","",'Dati Generali CER 2 Sem. 2020'!E60) -> 84880 | D67: =IF(C67="","",'Dati Generali CER 2 Sem. 2020'!BI60) -> 282635 | E67: ='Dati Generali CER 2 Sem. 2020'!W60 -> 0.7690434404 | F67: =IF('Dati Generali CER 2 Sem. 2020'!BJ60="","",'Dati Generali CER 2 Sem. 2020'!BJ60) -> 0.9724265484 | G67: =IF('Dati Generali CER 2 Sem. 2020'!BK60="","",'Dati Generali CER 2 Sem. 2020'!BK60) -> 0.2245882901 | H67: =IF('Dati Generali CER 2 Sem. 2020'!BL60="","",'Dati Generali CER 2 Sem. 2020'!BL60) -> 0.7478382583 | I67: ='Dati Generali CER 2 Sem. 2020'!D60 -> 2054 | J67: =IF('Dati Generali CER 2 Sem. 2020'!BN60="","",'Dati Generali CER 2 Sem. 2020'!BN60) -> 2021-05-29T17:37:05
A68: 59 | B68: ='Dati Generali CER 1 Sem. 2020'!C61 -> MOTTA CAMASTRA | C68: =IF('Dati Generali CER 2 Sem. 2020'!E61="","",'Dati Generali CER 2 Sem. 2020'!E61) -> 163210 | D68: =IF(C68="","",'Dati Generali CER 2 Sem. 2020'!BI61) -> 15160 | E68: ='Dati Generali CER 2 Sem. 2020'!W61 -> 0.08499187083 | F68: =IF('Dati Generali CER 2 Sem. 2020'!BJ61="","",'Dati Generali CER 2 Sem. 2020'!BJ61) -> 1.220909539 | G68: =IF('Dati Generali CER 2 Sem. 2020'!BK61="","",'Dati Generali CER 2 Sem. 2020'!BK61) -> 1.117142153 | H68: =IF('Dati Generali CER 2 Sem. 2020'!BL61="","",'Dati Generali CER 2 Sem. 2020'!BL61) -> 0.1037673858 | I68: ='Dati Generali CER 2 Sem. 2020'!D61 -> 794 | J68: =IF('Dati Generali CER 2 Sem. 2020'!BN61="","",'Dati Generali CER 2 Sem. 2020'!BN61) -> 2021-05-29T17:37:05
A69: 60 | B69: ='Dati Generali CER 1 Sem. 2020'!C62 -> MOTTA D'AFFERMO | C69: =IF('Dati Generali CER 2 Sem. 2020'!E62="","",'Dati Generali CER 2 Sem. 2020'!E62) -> 25900 | D69: =IF(C69="","",'Dati Generali CER 2 Sem. 2020'!BI62) -> 62010 | E69: ='Dati Generali CER 2 Sem. 2020'!W62 -> 0.7053805028 | F69: =IF('Dati Generali CER 2 Sem. 2020'!BJ62="","",'Dati Generali CER 2 Sem. 2020'!BJ62) -> 0.7195357517 | G69: =IF('Dati Generali CER 2 Sem. 2020'!BK62="","",'Dati Generali CER 2 Sem. 2020'!BK62) -> 0.2119892614 | H69: =IF('Dati Generali CER 2 Sem. 2020'!BL62="","",'Dati Generali CER 2 Sem. 2020'!BL62) -> 0.5075464903 | I69: ='Dati Generali CER 2 Sem. 2020'!D62 -> 664 | J69: =IF('Dati Generali CER 2 Sem. 2020'!BN62="","",'Dati Generali CER 2 Sem. 2020'!BN62) -> 2021-05-29T17:37:05
A70: 61 | B70: ='Dati Generali CER 1 Sem. 2020'!C63 -> NASO | C70: =IF('Dati Generali CER 2 Sem. 2020'!E63="","",'Dati Generali CER 2 Sem. 2020'!E63) -> 174330 | D70: =IF(C70="","",'Dati Generali CER 2 Sem. 2020'!BI63) -> 442634 | E70: ='Dati Generali CER 2 Sem. 2020'!W63 -> 0.717438943 | F70: =IF('Dati Generali CER 2 Sem. 2020'!BJ63="","",'Dati Generali CER 2 Sem. 2020'!BJ63) -> 0.9429317259 | G70: =IF('Dati Generali CER 2 Sem. 2020'!BK63="","",'Dati Generali CER 2 Sem. 2020'!BK63) -> 0.2664357852 | H70: =IF('Dati Generali CER 2 Sem. 2020'!BL63="","",'Dati Generali CER 2 Sem. 2020'!BL63) -> 0.6764959407 | I70: ='Dati Generali CER 2 Sem. 2020'!D63 -> 3556 | J70: =IF('Dati Generali CER 2 Sem. 2020'!BN63="","",'Dati Generali CER 2 Sem. 2020'!BN63) -> 2021-05-29T17:37:05
A71: 62 | B71: ='Dati Generali CER 1 Sem. 2020'!C64 -> NIZZA DI SICILIA | C71: =IF('Dati Generali CER 2 Sem. 2020'!E64="","",'Dati Generali CER 2 Sem. 2020'!E64) -> 213350 | D71: =IF(C71="","",'Dati Generali CER 2 Sem. 2020'!BI64) -> 445035 | E71: ='Dati Generali CER 2 Sem. 2020'!W64 -> 0.6759494824 | F71: =IF('Dati Generali CER 2 Sem. 2020'!BJ64="","",'Dati Generali CER 2 Sem. 2020'!BJ64) -> 1.01107074 | G71: =IF('Dati Generali CER 2 Sem. 2020'!BK64="","",'Dati Generali CER 2 Sem. 2020'!BK64) -> 0.3276379965 | H71: =IF('Dati Generali CER 2 Sem. 2020'!BL64="","",'Dati Generali CER 2 Sem. 2020'!BL64) -> 0.6834327432 | I71: ='Dati Generali CER 2 Sem. 2020'!D64 -> 3539 | J71: =IF('Dati Generali CER 2 Sem. 2020'!BN64="","",'Dati Generali CER 2 Sem. 2020'!BN64) -> 2021-05-29T17:37:05
A72: 63 | B72: ='Dati Generali CER 1 Sem. 2020'!C65 -> NOVARA DI SICILIA | C72: =IF('Dati Generali CER 2 Sem. 2020'!E65="","",'Dati Generali CER 2 Sem. 2020'!E65) -> 169360 | D72: =IF(C72="","",'Dati Generali CER 2 Sem. 2020'!BI65) -> 67180 | E72: ='Dati Generali CER 2 Sem. 2020'!W65 -> 0.2840111609 | F72: =IF('Dati Generali CER 2 Sem. 2020'!BJ65="","",'Dati Generali CER 2 Sem. 2020'!BJ65) -> 1.06595645 | G72: =IF('Dati Generali CER 2 Sem. 2020'!BK65="","",'Dati Generali CER 2 Sem. 2020'!BK65) -> 0.7632129209 | H72: =IF('Dati Generali CER 2 Sem. 2020'!BL65="","",'Dati Generali CER 2 Sem. 2020'!BL65) -> 0.3027435287 | I72: ='Dati Generali CER 2 Sem. 2020'!D65 -> 1206 | J72: =IF('Dati Generali CER 2 Sem. 2020'!BN65="","",'Dati Generali CER 2 Sem. 2020'!BN65) -> 2021-05-29T17:37:05
A73: 64 | B73: ='Dati Generali CER 1 Sem. 2020'!C66 -> OLIVERI | C73: =IF('Dati Generali CER 2 Sem. 2020'!E66="","",'Dati Generali CER 2 Sem. 2020'!E66) -> 457020 | D73: =IF(C73="","",'Dati Generali CER 2 Sem. 2020'!BI66) -> 322568 | E73: ='Dati Generali CER 2 Sem. 2020'!W66 -> 0.4137672719 | F73: =IF('Dati Generali CER 2 Sem. 2020'!BJ66="","",'Dati Generali CER 2 Sem. 2020'!BJ66) -> 2.05474845 | G73: =IF('Dati Generali CER 2 Sem. 2020'!BK66="","",'Dati Generali CER 2 Sem. 2020'!BK66) -> 1.204560789 | H73: =IF('Dati Generali CER 2 Sem. 2020'!BL66="","",'Dati Generali CER 2 Sem. 2020'!BL66) -> 0.8501876608 | I73: ='Dati Generali CER 2 Sem. 2020'!D66 -> 2062 | J73: =IF('Dati Generali CER 2 Sem. 2020'!BN66="","",'Dati Generali CER 2 Sem. 2020'!BN66) -> 2021-05-29T17:37:05
A74: 65 | B74: ='Dati Generali CER 1 Sem. 2020'!C67 -> PACE DEL MELA | C74: =IF('Dati Generali CER 2 Sem. 2020'!E67="","",'Dati Generali CER 2 Sem. 2020'!E67) -> 436340 | D74: =IF(C74="","",'Dati Generali CER 2 Sem. 2020'!BI67) -> 913430 | E74: ='Dati Generali CER 2 Sem. 2020'!W67 -> 0.6767301096 | F74: =IF('Dati Generali CER 2 Sem. 2020'!BJ67="","",'Dati Generali CER 2 Sem. 2020'!BJ67) -> 1.192410033 | G74: =IF('Dati Generali CER 2 Sem. 2020'!BK67="","",'Dati Generali CER 2 Sem. 2020'!BK67) -> 0.3854702606 | H74: =IF('Dati Generali CER 2 Sem. 2020'!BL67="","",'Dati Generali CER 2 Sem. 2020'!BL67) -> 0.8069397721 | I74: ='Dati Generali CER 2 Sem. 2020'!D67 -> 6152 | J74: =IF('Dati Generali CER 2 Sem. 2020'!BN67="","",'Dati Generali CER 2 Sem. 2020'!BN67) -> 2021-05-29T17:37:05
A75: 66 | B75: ='Dati Generali CER 1 Sem. 2020'!C68 -> PAGLIARA | C75: =IF('Dati Generali CER 2 Sem. 2020'!E68="","",'Dati Generali CER 2 Sem. 2020'!E68) -> 41000 | D75: =IF(C75="","",'Dati Generali CER 2 Sem. 2020'!BI68) -> 109024 | E75: ='Dati Generali CER 2 Sem. 2020'!W68 -> 0.7150521414 | F75: =IF('Dati Generali CER 2 Sem. 2020'!BJ68="","",'Dati Generali CER 2 Sem. 2020'!BJ68) -> 0.7438431816 | G75: =IF('Dati Generali CER 2 Sem. 2020'!BK68="","",'Dati Generali CER 2 Sem. 2020'!BK68) -> 0.2000234174 | H75: =IF('Dati Generali CER 2 Sem. 2020'!BL68="","",'Dati Generali CER 2 Sem. 2020'!BL68) -> 0.5318866599 | I75: ='Dati Generali CER 2 Sem. 2020'!D68 -> 1114 | J75: =IF('Dati Generali CER 2 Sem. 2020'!BN68="","",'Dati Generali CER 2 Sem. 2020'!BN68) -> 2021-05-29T17:37:05
A76: 67 | B76: ='Dati Generali CER 1 Sem. 2020'!C69 -> PATTI | C76: =IF('Dati Generali CER 2 Sem. 2020'!E69="","",'Dati Generali CER 2 Sem. 2020'!E69) -> 1566600 | D76: =IF(C76="","",'Dati Generali CER 2 Sem. 2020'!BI69) -> 1666630 | E76: ='Dati Generali CER 2 Sem. 2020'!W69 -> 0.5154690511 | F76: =IF('Dati Generali CER 2 Sem. 2020'!BJ69="","",'Dati Generali CER 2 Sem. 2020'!BJ69) -> 1.368315074 | G76: =IF('Dati Generali CER 2 Sem. 2020'!BK69="","",'Dati Generali CER 2 Sem. 2020'!BK69) -> 0.662991001 | H76: =IF('Dati Generali CER 2 Sem. 2020'!BL69="","",'Dati Generali CER 2 Sem. 2020'!BL69) -> 0.7053240725 | I76: ='Dati Generali CER 2 Sem. 2020'!D69 -> 12842 | J76: =IF('Dati Generali CER 2 Sem. 2020'!BN69="","",'Dati Generali CER 2 Sem. 2020'!BN69) -> 2021-05-29T17:37:05
A77: 68 | B77: ='Dati Generali CER 1 Sem. 2020'!C70 -> PETTINEO | C77: =IF('Dati Generali CER 2 Sem. 2020'!E70="","",'Dati Generali CER 2 Sem. 2020'!E70) -> 46860 | D77: =IF(C77="","",'Dati Generali CER 2 Sem. 2020'!BI70) -> 108780 | E77: ='Dati Generali CER 2 Sem. 2020'!W70 -> 0.698920586 | F77: =IF('Dati Generali CER 2 Sem. 2020'!BJ70="","",'Dati Generali CER 2 Sem. 2020'!BJ70) -> 0.6713250518 | G77: =IF('Dati Generali CER 2 Sem. 2020'!BK70="","",'Dati Generali CER 2 Sem. 2020'!BK70) -> 0.2021221532 | H77: =IF('Dati Generali CER 2 Sem. 2020'!BL70="","",'Dati Generali CER 2 Sem. 2020'!BL70) -> 0.4692028986 | I77: ='Dati Generali CER 2 Sem. 2020'!D70 -> 1260 | J77: =IF('Dati Generali CER 2 Sem. 2020'!BN70="","",'Dati Generali CER 2 Sem. 2020'!BN70) -> 2021-05-29T17:37:05
A78: 69 | B78: ='Dati Generali CER 1 Sem. 2020'!C71 -> PIRAINO | C78: =IF('Dati Generali CER 2 Sem. 2020'!E71="","",'Dati Generali CER 2 Sem. 2020'!E71) -> 495570 | D78: =IF(C78="","",'Dati Generali CER 2 Sem. 2020'!BI71) -> 418318 | E78: ='Dati Generali CER 2 Sem. 2020'!W71 -> 0.457734427 | F78: =IF('Dati Generali CER 2 Sem. 2020'!BJ71="","",'Dati Generali CER 2 Sem. 2020'!BJ71) -> 1.296133249 | G78: =IF('Dati Generali CER 2 Sem. 2020'!BK71="","",'Dati Generali CER 2 Sem. 2020'!BK71) -> 0.7028484388 | H78: =IF('Dati Generali CER 2 Sem. 2020'!BL71="","",'Dati Generali CER 2 Sem. 2020'!BL71) -> 0.5932848098 | I78: ='Dati Generali CER 2 Sem. 2020'!D71 -> 3832 | J78: =IF('Dati Generali CER 2 Sem. 2020'!BN71="","",'Dati Generali CER 2 Sem. 2020'!BN71) -> 2021-05-29T17:37:05
A79: 70 | B79: ='Dati Generali CER 1 Sem. 2020'!C72 -> RACCUJA | C79: =IF('Dati Generali CER 2 Sem. 2020'!E72="","",'Dati Generali CER 2 Sem. 2020'!E72) -> 107120 | D79: =IF(C79="","",'Dati Generali CER 2 Sem. 2020'!BI72) -> 37540 | E79: ='Dati Generali CER 2 Sem. 2020'!W72 -> 0.2595050463 | F79: =IF('Dati Generali CER 2 Sem. 2020'!BJ72="","",'Dati Generali CER 2 Sem. 2020'!BJ72) -> 0.8784308963 | G79: =IF('Dati Generali CER 2 Sem. 2020'!BK72="","",'Dati Generali CER 2 Sem. 2020'!BK72) -> 0.6504736459 | H79: =IF('Dati Generali CER 2 Sem. 2020'!BL72="","",'Dati Generali CER 2 Sem. 2020'!BL72) -> 0.2279572504 | I79: ='Dati Generali CER 2 Sem. 2020'!D72 -> 895 | J79: =IF('Dati Generali CER 2 Sem. 2020'!BN72="","",'Dati Generali CER 2 Sem. 2020'!BN72) -> 2021-05-29T17:37:05
A80: 71 | B80: ='Dati Generali CER 1 Sem. 2020'!C73 -> REITANO | C80: =IF('Dati Generali CER 2 Sem. 2020'!E73="","",'Dati Generali CER 2 Sem. 2020'!E73) -> 79440 | D80: =IF(C80="","",'Dati Generali CER 2 Sem. 2020'!BI73) -> 165690 | E80: ='Dati Generali CER 2 Sem. 2020'!W73 -> 0.6759270591 | F80: =IF('Dati Generali CER 2 Sem. 2020'!BJ73="","",'Dati Generali CER 2 Sem. 2020'!BJ73) -> 1.852890488 | G80: =IF('Dati Generali CER 2 Sem. 2020'!BK73="","",'Dati Generali CER 2 Sem. 2020'!BK73) -> 0.6004716696 | H80: =IF('Dati Generali CER 2 Sem. 2020'!BL73="","",'Dati Generali CER 2 Sem. 2020'!BL73) -> 1.252418818 | I80: ='Dati Generali CER 2 Sem. 2020'!D73 -> 719 | J80: =IF('Dati Generali CER 2 Sem. 2020'!BN73="","",'Dati Generali CER 2 Sem. 2020'!BN73) -> 2021-05-29T17:37:05
A81: 72 | B81: ='Dati Generali CER 1 Sem. 2020'!C74 -> ROCCAFIORITA | C81: =IF('Dati Generali CER 2 Sem. 2020'!E74="","",'Dati Generali CER 2 Sem. 2020'!E74) -> 5760 | D81: =IF(C81="","",'Dati Generali CER 2 Sem. 2020'!BI74) -> 20916 | E81: ='Dati Generali CER 2 Sem. 2020'!W74 -> 0.7840755735 | F81: =IF('Dati Generali CER 2 Sem. 2020'!BJ74="","",'Dati Generali CER 2 Sem. 2020'!BJ74) -> 0.8009848667 | G81: =IF('Dati Generali CER 2 Sem. 2020'!BK74="","",'Dati Generali CER 2 Sem. 2020'!BK74) -> 0.1729521979 | H81: =IF('Dati Generali CER 2 Sem. 2020'!BL74="","",'Dati Generali CER 2 Sem. 2020'!BL74) -> 0.6280326687 | I81: ='Dati Generali CER 2 Sem. 2020'!D74 -> 181 | J81: =IF('Dati Generali CER 2 Sem. 2020'!BN74="","",'Dati Generali CER 2 Sem. 2020'!BN74) -> 2021-05-29T17:37:05
A82: 73 | B82: ='Dati Generali CER 1 Sem. 2020'!C75 -> ROCCALUMERA | C82: =IF('Dati Generali CER 2 Sem. 2020'!E75="","",'Dati Generali CER 2 Sem. 2020'!E75) -> 394590 | D82: =IF(C82="","",'Dati Generali CER 2 Sem. 2020'!BI75) -> 776100 | E82: ='Dati Generali CER 2 Sem. 2020'!W75 -> 0.6629423673 | F82: =IF('Dati Generali CER 2 Sem. 2020'!BJ75="","",'Dati Generali CER 2 Sem. 2020'!BJ75) -> 1.618119444 | G82: =IF('Dati Generali CER 2 Sem. 2020'!BK75="","",'Dati Generali CER 2 Sem. 2020'!BK75) -> 0.545399509 | H82: =IF('Dati Generali CER 2 Sem. 2020'!BL75="","",'Dati Generali CER 2 Sem. 2020'!BL75) -> 1.072719935 | I82: ='Dati Generali CER 2 Sem. 2020'!D75 -> 3932 | J82: =IF('Dati Generali CER 2 Sem. 2020'!BN75="","",'Dati Generali CER 2 Sem. 2020'!BN75) -> 2021-05-29T17:37:05
A83: 74 | B83: ='Dati Generali CER 1 Sem. 2020'!C76 -> ROCCAVALDINA | C83: =IF('Dati Generali CER 2 Sem. 2020'!E76="","",'Dati Generali CER 2 Sem. 2020'!E76) -> 133360 | D83: =IF(C83="","",'Dati Generali CER 2 Sem. 2020'!BI76) -> 65740 | E83: ='Dati Generali CER 2 Sem. 2020'!W76 -> 0.3301858363 | F83: =IF('Dati Generali CER 2 Sem. 2020'!BJ76="","",'Dati Generali CER 2 Sem. 2020'!BJ76) -> 1.073477398 | G83: =IF('Dati Generali CER 2 Sem. 2020'!BK76="","",'Dati Generali CER 2 Sem. 2020'!BK76) -> 0.7190303658 | H83: =IF('Dati Generali CER 2 Sem. 2020'!BL76="","",'Dati Generali CER 2 Sem. 2020'!BL76) -> 0.3544470324 | I83: ='Dati Generali CER 2 Sem. 2020'!D76 -> 1008 | J83: =IF('Dati Generali CER 2 Sem. 2020'!BN76="","",'Dati Generali CER 2 Sem. 2020'!BN76) -> 2021-05-29T17:37:05
A84: 75 | B84: ='Dati Generali CER 1 Sem. 2020'!C77 -> ROCCELLA VALDEMONE | C84: =IF('Dati Generali CER 2 Sem. 2020'!E77="","",'Dati Generali CER 2 Sem. 2020'!E77) -> 81660 | D84: =IF(C84="","",'Dati Generali CER 2 Sem. 2020'!BI77) -> 13300 | E84: ='Dati Generali CER 2 Sem. 2020'!W77 -> 0.1400589722 | F84: =IF('Dati Generali CER 2 Sem. 2020'!BJ77="","",'Dati Generali CER 2 Sem. 2020'!BJ77) -> 0.8898050975 | G84: =IF('Dati Generali CER 2 Sem. 2020'!BK77="","",'Dati Generali CER 2 Sem. 2020'!BK77) -> 0.76517991 | H84: =IF('Dati Generali CER 2 Sem. 2020'!BL77="","",'Dati Generali CER 2 Sem. 2020'!BL77) -> 0.1246251874 | I84: ='Dati Generali CER 2 Sem. 2020'!D77 -> 580 | J84: =IF('Dati Generali CER 2 Sem. 2020'!BN77="","",'Dati Generali CER 2 Sem. 2020'!BN77) -> 2021-05-29T17:37:05
A85: 76 | B85: ='Dati Generali CER 1 Sem. 2020'!C78 -> RODI' MILICI | C85: =IF('Dati Generali CER 2 Sem. 2020'!E78="","",'Dati Generali CER 2 Sem. 2020'!E78) -> 91460 | D85: =IF(C85="","",'Dati Generali CER 2 Sem. 2020'!BI78) -> 227700 | E85: ='Dati Generali CER 2 Sem. 2020'!W78 -> 0.7024742395 | F85: =IF('Dati Generali CER 2 Sem. 2020'!BJ78="","",'Dati Generali CER 2 Sem. 2020'!BJ78) -> 0.895137416 | G85: =IF('Dati Generali CER 2 Sem. 2020'!BK78="","",'Dati Generali CER 2 Sem. 2020'!BK78) -> 0.2525737893 | H85: =IF('Dati Generali CER 2 Sem. 2020'!BL78="","",'Dati Generali CER 2 Sem. 2020'!BL78) -> 0.6288109756 | I85: ='Dati Generali CER 2 Sem. 2020'!D78 -> 1968 | J85: =IF('Dati Generali CER 2 Sem. 2020'!BN78="","",'Dati Generali CER 2 Sem. 2020'!BN78) -> 2021-05-29T17:37:05
A86: 77 | B86: ='Dati Generali CER 1 Sem. 2020'!C79 -> ROMETTA | C86: =IF('Dati Generali CER 2 Sem. 2020'!E79="","",'Dati Generali CER 2 Sem. 2020'!E79) -> 172980 | D86: =IF(C86="","",'Dati Generali CER 2 Sem. 2020'!BI79) -> 980270 | E86: ='Dati Generali CER 2 Sem. 2020'!W79 -> 0.8500065034 | F86: =IF('Dati Generali CER 2 Sem. 2020'!BJ79="","",'Dati Generali CER 2 Sem. 2020'!BJ79) -> 0.9749048131 | G86: =IF('Dati Generali CER 2 Sem. 2020'!BK79="","",'Dati Generali CER 2 Sem. 2020'!BK79) -> 0.1462293818 | H86: =IF('Dati Generali CER 2 Sem. 2020'!BL79="","",'Dati Generali CER 2 Sem. 2020'!BL79) -> 0.8286754313 | I86: ='Dati Generali CER 2 Sem. 2020'!D79 -> 6429 | J86: =IF('Dati Generali CER 2 Sem. 2020'!BN79="","",'Dati Generali CER 2 Sem. 2020'!BN79) -> 2021-05-29T17:37:05
A87: 78 | B87: ='Dati Generali CER 1 Sem. 2020'!C82 -> S. AGATA DI MILITELLO | C87: =IF('Dati Generali CER 2 Sem. 2020'!E82="","",'Dati Generali CER 2 Sem. 2020'!E82) -> 1452480 | D87: =IF(C87="","",'Dati Generali CER 2 Sem. 2020'!BI82) -> 1238461 | E87: ='Dati Generali CER 2 Sem. 2020'!W82 -> 0.4602334276 | F87: =IF('Dati Generali CER 2 Sem. 2020'!BJ82="","",'Dati Generali CER 2 Sem. 2020'!BJ82) -> 1.199727592 | G87: =IF('Dati Generali CER 2 Sem. 2020'!BK82="","",'Dati Generali CER 2 Sem. 2020'!BK82) -> 0.6475728502 | H87: =IF('Dati Generali CER 2 Sem. 2020'!BL82="","",'Dati Generali CER 2 Sem. 2020'!BL82) -> 0.5521547419 | I87: ='Dati Generali CER 2 Sem. 2020'!D82 -> 12190 | J87: =IF('Dati Generali CER 2 Sem. 2020'!BN80="","",'Dati Generali CER 2 Sem. 2020'!BN80) -> 2021-05-29T17:37:05
A88: 79 | B88: ='Dati Generali CER 1 Sem. 2020'!C93 -> S. ALESSIO SICULO | C88: =IF('Dati Generali CER 2 Sem. 2020'!E93="","",'Dati Generali CER 2 Sem. 2020'!E93) -> 330550 | D88: =IF(C88="","",'Dati Generali CER 2 Sem. 2020'!BI93) -> 225414 | E88: ='Dati Generali CER 2 Sem. 2020'!W93 -> 0.4024675046 | F88: =IF('Dati Generali CER 2 Sem. 2020'!BJ93="","",'Dati Generali CER 2 Sem. 2020'!BJ93) -> 2.047016169 | G88: =IF('Dati Generali CER 2 Sem. 2020'!BK93="","",'Dati Generali CER 2 Sem. 2020'!BK93) -> 1.20811526 | H88: =IF('Dati Generali CER 2 Sem. 2020'!BL93="","",'Dati Generali CER 2 Sem. 2020'!BL93) -> 0.8238574895 | I88: ='Dati Generali CER 2 Sem. 2020'!D93 -> 1487 | J88: =IF('Dati Generali CER 2 Sem. 2020'!BN81="","",'Dati Generali CER 2 Sem. 2020'!BN81) -> 2021-05-29T17:37:05
A89: 80 | B89: ='Dati Generali CER 1 Sem. 2020'!C92 -> S. ANGELO DI BROLO | C89: =IF('Dati Generali CER 2 Sem. 2020'!E92="","",'Dati Generali CER 2 Sem. 2020'!E92) -> 527460 | D89: =IF(C89="","",'Dati Generali CER 2 Sem. 2020'!BI92) -> 126020 | E89: ='Dati Generali CER 2 Sem. 2020'!W92 -> 0.1928444635 | F89: =IF('Dati Generali CER 2 Sem. 2020'!BJ92="","",'Dati Generali CER 2 Sem. 2020'!BJ92) -> 1.231884058 | G89: =IF('Dati Generali CER 2 Sem. 2020'!BK92="","",'Dati Generali CER 2 Sem. 2020'!BK92) -> 0.9943220377 | H89: =IF('Dati Generali CER 2 Sem. 2020'!BL92="","",'Dati Generali CER 2 Sem. 2020'!BL92) -> 0.2375620202 | I89: ='Dati Generali CER 2 Sem. 2020'!D92 -> 2883 | J89: =IF('Dati Generali CER 2 Sem. 2020'!BN82="","",'Dati Generali CER 2 Sem. 2020'!BN82) -> 2021-05-29T17:37:05
A90: 81 | B90: ='Dati Generali CER 1 Sem. 2020'!C80 -> S. DOMENICA VITTORIA | C90: =IF('Dati Generali CER 2 Sem. 2020'!E80="","",'Dati Generali CER 2 Sem. 2020'!E80) -> 95560 | D90: =IF(C90="","",'Dati Generali CER 2 Sem. 2020'!BI80) -> 29820 | E90: ='Dati Generali CER 2 Sem. 2020'!W80 -> 0.2378369756 | F90: =IF('Dati Generali CER 2 Sem. 2020'!BJ80="","",'Dati Generali CER 2 Sem. 2020'!BJ80) -> 0.7841346875 | G90: =IF('Dati Generali CER 2 Sem. 2020'!BK80="","",'Dati Generali CER 2 Sem. 2020'!BK80) -> 0.597638465 | H90: =IF('Dati Generali CER 2 Sem. 2020'!BL80="","",'Dati Generali CER 2 Sem. 2020'!BL80) -> 0.1864962225 | I90: ='Dati Generali CER 2 Sem. 2020'!D80 -> 869 | J90: =IF('Dati Generali CER 2 Sem. 2020'!BN83="","",'Dati Generali CER 2 Sem. 2020'!BN83) -> 2021-05-29T17:37:05
A91: 82 | B91: ='Dati Generali CER 1 Sem. 2020'!C85 -> S. FILIPPO DEL MELA | C91: =IF('Dati Generali CER 2 Sem. 2020'!E85="","",'Dati Generali CER 2 Sem. 2020'!E85) -> 1028400 | D91: =IF(C91="","",'Dati Generali CER 2 Sem. 2020'!BI85) -> 352250 | E91: ='Dati Generali CER 2 Sem. 2020'!W85 -> 0.2551334516 | F91: =IF('Dati Generali CER 2 Sem. 2020'!BJ85="","",'Dati Generali CER 2 Sem. 2020'!BJ85) -> 1.108350459 | G91: =IF('Dati Generali CER 2 Sem. 2020'!BK85="","",'Dati Generali CER 2 Sem. 2020'!BK85) -> 0.8255731809 | H91: =IF('Dati Generali CER 2 Sem. 2020'!BL85="","",'Dati Generali CER 2 Sem. 2020'!BL85) -> 0.2827772783 | I91: ='Dati Generali CER 2 Sem. 2020'!D85 -> 6770 | J91: =IF('Dati Generali CER 2 Sem. 2020'!BN84="","",'Dati Generali CER 2 Sem. 2020'!BN84) -> 2021-05-29T17:37:05
A92: 83 | B92: ='Dati Generali CER 1 Sem. 2020'!C90 -> S. SALVAT. DI FITALIA | C92: =IF('Dati Generali CER 2 Sem. 2020'!E90="","",'Dati Generali CER 2 Sem. 2020'!E90) -> 112700 | D92: =IF(C92="","",'Dati Generali CER 2 Sem. 2020'!BI90) -> 43290 | E92: ='Dati Generali CER 2 Sem. 2020'!W90 -> 0.2775177896 | F92: =IF('Dati Generali CER 2 Sem. 2020'!BJ90="","",'Dati Generali CER 2 Sem. 2020'!BJ90) -> 0.7184506264 | G92: =IF('Dati Generali CER 2 Sem. 2020'!BK90="","",'Dati Generali CER 2 Sem. 2020'!BK90) -> 0.5190677966 | H92: =IF('Dati Generali CER 2 Sem. 2020'!BL90="","",'Dati Generali CER 2 Sem. 2020'!BL90) -> 0.1993828298 | I92: ='Dati Generali CER 2 Sem. 2020'!D90 -> 1180 | J92: =IF('Dati Generali CER 2 Sem. 2020'!BN85="","",'Dati Generali CER 2 Sem. 2020'!BN85) -> 2021-05-29T17:37:05
A93: 84 | B93: ='Dati Generali CER 1 Sem. 2020'!C81 -> S. STEF. DI CAMASTRA | C93: =IF('Dati Generali CER 2 Sem. 2020'!E81="","",'Dati Generali CER 2 Sem. 2020'!E81) -> 344160 | D93: =IF(C93="","",'Dati Generali CER 2 Sem. 2020'!BI81) -> 772426 | E93: ='Dati Generali CER 2 Sem. 2020'!W81 -> 0.6917747491 | F93: =IF('Dati Generali CER 2 Sem. 2020'!BJ81="","",'Dati Generali CER 2 Sem. 2020'!BJ81) -> 1.35183831 | G93: =IF('Dati Generali CER 2 Sem. 2020'!BK81="","",'Dati Generali CER 2 Sem. 2020'!BK81) -> 0.4166707023 | H93: =IF('Dati Generali CER 2 Sem. 2020'!BL81="","",'Dati Generali CER 2 Sem. 2020'!BL81) -> 0.9351676078 | I93: ='Dati Generali CER 2 Sem. 2020'!D81 -> 4489 | J93: =IF('Dati Generali CER 2 Sem. 2020'!BN86="","",'Dati Generali CER 2 Sem. 2020'!BN86) -> 2021-05-29T17:37:05
A94: 85 | B94: ='Dati Generali CER 1 Sem. 2020'!C84 -> S. TERESA DI RIVA | C94: =IF('Dati Generali CER 2 Sem. 2020'!E84="","",'Dati Generali CER 2 Sem. 2020'!E84) -> 489820 | D94: =IF(C94="","",'Dati Generali CER 2 Sem. 2020'!BI84) -> 1447790 | E94: ='Dati Generali CER 2 Sem. 2020'!W84 -> 0.7472040297 | F94: =IF('Dati Generali CER 2 Sem. 2020'!BJ84="","",'Dati Generali CER 2 Sem. 2020'!BJ84) -> 1.118598803 | G94: =IF('Dati Generali CER 2 Sem. 2020'!BK84="","",'Dati Generali CER 2 Sem. 2020'!BK84) -> 0.2827772697 | H94: =IF('Dati Generali CER 2 Sem. 2020'!BL84="","",'Dati Generali CER 2 Sem. 2020'!BL84) -> 0.8358215331 | I94: ='Dati Generali CER 2 Sem. 2020'!D84 -> 9414 | J94: =IF('Dati Generali CER 2 Sem. 2020'!BN87="","",'Dati Generali CER 2 Sem. 2020'!BN87) -> 2021-05-29T17:37:05
A95: 86 | B95: ='Dati Generali CER 1 Sem. 2020'!C86 -> SAN FRATELLO | C95: =IF('Dati Generali CER 2 Sem. 2020'!E86="","",'Dati Generali CER 2 Sem. 2020'!E86) -> 173660 | D95: =IF(C95="","",'Dati Generali CER 2 Sem. 2020'!BI86) -> 248270 | E95: ='Dati Generali CER 2 Sem. 2020'!W86 -> 0.58841514 | F95: =IF('Dati Generali CER 2 Sem. 2020'!BJ86="","",'Dati Generali CER 2 Sem. 2020'!BJ86) -> 0.6786320882 | G95: =IF('Dati Generali CER 2 Sem. 2020'!BK86="","",'Dati Generali CER 2 Sem. 2020'!BK86) -> 0.2793146931 | H95: =IF('Dati Generali CER 2 Sem. 2020'!BL86="","",'Dati Generali CER 2 Sem. 2020'!BL86) -> 0.3993173952 | I95: ='Dati Generali CER 2 Sem. 2020'!D86 -> 3379 | J95: =IF('Dati Generali CER 2 Sem. 2020'!BN88="","",'Dati Generali CER 2 Sem. 2020'!BN88) -> 2021-05-29T17:37:05
A96: 87 | B96: ='Dati Generali CER 1 Sem. 2020'!C87 -> SAN MARCO D'ALUNZIO | C96: =IF('Dati Generali CER 2 Sem. 2020'!E87="","",'Dati Generali CER 2 Sem. 2020'!E87) -> 67595 | D96: =IF(C96="","",'Dati Generali CER 2 Sem. 2020'!BI87) -> 233610 | E96: ='Dati Generali CER 2 Sem. 2020'!W87 -> 0.7755847346 | F96: =IF('Dati Generali CER 2 Sem. 2020'!BJ87="","",'Dati Generali CER 2 Sem. 2020'!BJ87) -> 0.9019193915 | G96: =IF('Dati Generali CER 2 Sem. 2020'!BK87="","",'Dati Generali CER 2 Sem. 2020'!BK87) -> 0.2024044796 | H96: =IF('Dati Generali CER 2 Sem. 2020'!BL87="","",'Dati Generali CER 2 Sem. 2020'!BL87) -> 0.699514912 | I96: ='Dati Generali CER 2 Sem. 2020'!D87 -> 1815 | J96: =IF('Dati Generali CER 2 Sem. 2020'!BN89="","",'Dati Generali CER 2 Sem. 2020'!BN89) -> 2021-05-29T17:37:05
A97: 88 | B97: ='Dati Generali CER 1 Sem. 2020'!C88 -> SAN PIER NICETO | C97: =IF('Dati Generali CER 2 Sem. 2020'!E88="","",'Dati Generali CER 2 Sem. 2020'!E88) -> 335120 | D97: =IF(C97="","",'Dati Generali CER 2 Sem. 2020'!BI88) -> 219400 | E97: ='Dati Generali CER 2 Sem. 2020'!W88 -> 0.3877695299 | F97: =IF('Dati Generali CER 2 Sem. 2020'!BJ88="","",'Dati Generali CER 2 Sem. 2020'!BJ88) -> 1.1656558 | G97: =IF('Dati Generali CER 2 Sem. 2020'!BK88="","",'Dati Generali CER 2 Sem. 2020'!BK88) -> 0.6904110492 | H97: =IF('Dati Generali CER 2 Sem. 2020'!BL88="","",'Dati Generali CER 2 Sem. 2020'!BL88) -> 0.4520058015 | I97: ='Dati Generali CER 2 Sem. 2020'!D88 -> 2638 | J97: =IF('Dati Generali CER 2 Sem. 2020'!BN90="","",'Dati Generali CER 2 Sem. 2020'!BN90) -> 2021-05-29T17:37:05
A98: 89 | B98: ='Dati Generali CER 1 Sem. 2020'!C89 -> SAN PIERO PATTI | C98: =IF('Dati Generali CER 2 Sem. 2020'!E89="","",'Dati Generali CER 2 Sem. 2020'!E89) -> 317400 | D98: =IF(C98="","",'Dati Generali CER 2 Sem. 2020'!BI89) -> 252765 | E98: ='Dati Generali CER 2 Sem. 2020'!W89 -> 0.4433190392 | F98: =IF('Dati Generali CER 2 Sem. 2020'!BJ89="","",'Dati Generali CER 2 Sem. 2020'!BJ89) -> 1.166248711 | G98: =IF('Dati Generali CER 2 Sem. 2020'!BK89="","",'Dati Generali CER 2 Sem. 2020'!BK89) -> 0.6492284531 | H98: =IF('Dati Generali CER 2 Sem. 2020'!BL89="","",'Dati Generali CER 2 Sem. 2020'!BL89) -> 0.5170202582 | I98: ='Dati Generali CER 2 Sem. 2020'!D89 -> 2657 | J98: =IF('Dati Generali CER 2 Sem. 2020'!BN91="","",'Dati Generali CER 2 Sem. 2020'!BN91) -> 2021-05-29T17:37:05
A99: 90 | B99: ='Dati Generali CER 1 Sem. 2020'!C91 -> SAN TEODORO | C99: =IF('Dati Generali CER 2 Sem. 2020'!E91="","",'Dati Generali CER 2 Sem. 2020'!E91) -> 107440 | D99: =IF(C99="","",'Dati Generali CER 2 Sem. 2020'!BI91) -> 66920 | E99: ='Dati Generali CER 2 Sem. 2020'!W91 -> 0.3838036247 | F99: =IF('Dati Generali CER 2 Sem. 2020'!BJ91="","",'Dati Generali CER 2 Sem. 2020'!BJ91) -> 0.7414778526 | G99: =IF('Dati Generali CER 2 Sem. 2020'!BK91="","",'Dati Generali CER 2 Sem. 2020'!BK91) -> 0.4568959652 | H99: =IF('Dati Generali CER 2 Sem. 2020'!BL91="","",'Dati Generali CER 2 Sem. 2020'!BL91) -> 0.2845818875 | I99: ='Dati Generali CER 2 Sem. 2020'!D91 -> 1278 | J99: =IF('Dati Generali CER 2 Sem. 2020'!BN92="","",'Dati Generali CER 2 Sem. 2020'!BN92) -> 2021-05-29T17:37:05
A100: 91 | B100: ='Dati Generali CER 1 Sem. 2020'!C83 -> SANTA LUCIA DEL MELA | C100: =IF('Dati Generali CER 2 Sem. 2020'!E83="","",'Dati Generali CER 2 Sem. 2020'!E83) -> 446130 | D100: =IF(C100="","",'Dati Generali CER 2 Sem. 2020'!BI83) -> 324568 | E100: ='Dati Generali CER 2 Sem. 2020'!W83 -> 0.4211351269 | F100: =IF('Dati Generali CER 2 Sem. 2020'!BJ83="","",'Dati Generali CER 2 Sem. 2020'!BJ83) -> 0.9297616175 | G100: =IF('Dati Generali CER 2 Sem. 2020'!BK83="","",'Dati Generali CER 2 Sem. 2020'!BK83) -> 0.5382063408 | H100: =IF('Dati Generali CER 2 Sem. 2020'!BL83="","",'Dati Generali CER 2 Sem. 2020'!BL83) -> 0.3915552767 | I100: ='Dati Generali CER 2 Sem. 2020'!D83 -> 4505 | J100: =IF('Dati Generali CER 2 Sem. 2020'!BN93="","",'Dati Generali CER 2 Sem. 2020'!BN93) -> 2021-05-29T17:37:05
A101: 92 | B101: ='Dati Generali CER 1 Sem. 2020'!C94 -> SANTA MARINA SALINA | C101: =IF('Dati Generali CER 2 Sem. 2020'!E94="","",'Dati Generali CER 2 Sem. 2020'!E94) -> 241400 | D101: =IF(C101="","",'Dati Generali CER 2 Sem. 2020'!BI94) -> 120400 | E101: ='Dati Generali CER 2 Sem. 2020'!W94 -> 0.3327805417 | F101: =IF('Dati Generali CER 2 Sem. 2020'!BJ94="","",'Dati Generali CER 2 Sem. 2020'!BJ94) -> 2.332508123 | G101: =IF('Dati Generali CER 2 Sem. 2020'!BK94="","",'Dati Generali CER 2 Sem. 2020'!BK94) -> 1.556294806 | H101: =IF('Dati Generali CER 2 Sem. 2020'!BL94="","",'Dati Generali CER 2 Sem. 2020'!BL94) -> 0.7762133168 | I101: ='Dati Generali CER 2 Sem. 2020'!D94 -> 843 | J101: =IF('Dati Generali CER 2 Sem. 2020'!BN94="","",'Dati Generali CER 2 Sem. 2020'!BN94) -> 2021-05-29T17:37:05
A102: 93 | B102: ='Dati Generali CER 1 Sem. 2020'!C95 -> SAPONARA | C102: =IF('Dati Generali CER 2 Sem. 2020'!E95="","",'Dati Generali CER 2 Sem. 2020'!E95) -> 231100 | D102: =IF(C102="","",'Dati Generali CER 2 Sem. 2020'!BI95) -> 403260 | E102: ='Dati Generali CER 2 Sem. 2020'!W95 -> 0.6356958194 | F102: =IF('Dati Generali CER 2 Sem. 2020'!BJ95="","",'Dati Generali CER 2 Sem. 2020'!BJ95) -> 0.9252841373 | G102: =IF('Dati Generali CER 2 Sem. 2020'!BK95="","",'Dati Generali CER 2 Sem. 2020'!BK95) -> 0.3370848795 | H102: =IF('Dati Generali CER 2 Sem. 2020'!BL95="","",'Dati Generali CER 2 Sem. 2020'!BL95) -> 0.5881992579 | I102: ='Dati Generali CER 2 Sem. 2020'!D95 -> 3726 | J102: =IF('Dati Generali CER 2 Sem. 2020'!BN95="","",'Dati Generali CER 2 Sem. 2020'!BN95) -> 2021-05-29T17:37:05
A103: 94 | B103: ='Dati Generali CER 1 Sem. 2020'!C96 -> SAVOCA | C103: =IF('Dati Generali CER 2 Sem. 2020'!E96="","",'Dati Generali CER 2 Sem. 2020'!E96) -> 128840 | D103: =IF(C103="","",'Dati Generali CER 2 Sem. 2020'!BI96) -> 165870 | E103: ='Dati Generali CER 2 Sem. 2020'!W96 -> 0.5628244715 | F103: =IF('Dati Generali CER 2 Sem. 2020'!BJ96="","",'Dati Generali CER 2 Sem. 2020'!BJ96) -> 0.946063073 | G103: =IF('Dati Generali CER 2 Sem. 2020'!BK96="","",'Dati Generali CER 2 Sem. 2020'!BK96) -> 0.4135956239 | H103: =IF('Dati Generali CER 2 Sem. 2020'!BL96="","",'Dati Generali CER 2 Sem. 2020'!BL96) -> 0.5324674491 | I103: ='Dati Generali CER 2 Sem. 2020'!D96 -> 1693 | J103: =IF('Dati Generali CER 2 Sem. 2020'!BN96="","",'Dati Generali CER 2 Sem. 2020'!BN96) -> 2021-05-29T17:37:05
A104: 95 | B104: ='Dati Generali CER 1 Sem. 2020'!C97 -> SCALETTA ZANCLEA | C104: =IF('Dati Generali CER 2 Sem. 2020'!E97="","",'Dati Generali CER 2 Sem. 2020'!E97) -> 124850 | D104: =IF(C104="","",'Dati Generali CER 2 Sem. 2020'!BI97) -> 235858 | E104: ='Dati Generali CER 2 Sem. 2020'!W97 -> 0.6477124183 | F104: =IF('Dati Generali CER 2 Sem. 2020'!BJ97="","",'Dati Generali CER 2 Sem. 2020'!BJ97) -> 1.032892348 | G104: =IF('Dati Generali CER 2 Sem. 2020'!BK97="","",'Dati Generali CER 2 Sem. 2020'!BK97) -> 0.3541401924 | H104: =IF('Dati Generali CER 2 Sem. 2020'!BL97="","",'Dati Generali CER 2 Sem. 2020'!BL97) -> 0.6690172007 | I104: ='Dati Generali CER 2 Sem. 2020'!D97 -> 1916 | J104: =IF('Dati Generali CER 2 Sem. 2020'!BN97="","",'Dati Generali CER 2 Sem. 2020'!BN97) -> 2021-05-29T17:37:05
A105: 96 | B105: ='Dati Generali CER 1 Sem. 2020'!C98 -> SINAGRA | C105: =IF('Dati Generali CER 2 Sem. 2020'!E98="","",'Dati Generali CER 2 Sem. 2020'!E98) -> 115980 | D105: =IF(C105="","",'Dati Generali CER 2 Sem. 2020'!BI98) -> 339300 | E105: ='Dati Generali CER 2 Sem. 2020'!W98 -> 0.7452556668 | F105: =IF('Dati Generali CER 2 Sem. 2020'!BJ98="","",'Dati Generali CER 2 Sem. 2020'!BJ98) -> 0.9695720322 | G105: =IF('Dati Generali CER 2 Sem. 2020'!BK98="","",'Dati Generali CER 2 Sem. 2020'!BK98) -> 0.2469929808 | H105: =IF('Dati Generali CER 2 Sem. 2020'!BL98="","",'Dati Generali CER 2 Sem. 2020'!BL98) -> 0.7225790514 | I105: ='Dati Generali CER 2 Sem. 2020'!D98 -> 2552 | J105: =IF('Dati Generali CER 2 Sem. 2020'!BN98="","",'Dati Generali CER 2 Sem. 2020'!BN98) -> 2021-05-29T17:37:05
A106: 97 | B106: ='Dati Generali CER 1 Sem. 2020'!C99 -> SPADAFORA | C106: =IF('Dati Generali CER 2 Sem. 2020'!E99="","",'Dati Generali CER 2 Sem. 2020'!E99) -> 323872 | D106: =IF(C106="","",'Dati Generali CER 2 Sem. 2020'!BI99) -> 683878 | E106: ='Dati Generali CER 2 Sem. 2020'!W99 -> 0.6764492345 | F106: =IF('Dati Generali CER 2 Sem. 2020'!BJ99="","",'Dati Generali CER 2 Sem. 2020'!BJ99) -> 1.146352471 | G106: =IF('Dati Generali CER 2 Sem. 2020'!BK99="","",'Dati Generali CER 2 Sem. 2020'!BK99) -> 0.3672384546 | H106: =IF('Dati Generali CER 2 Sem. 2020'!BL99="","",'Dati Generali CER 2 Sem. 2020'!BL99) -> 0.7754492512 | I106: ='Dati Generali CER 2 Sem. 2020'!D99 -> 4793 | J106: =IF('Dati Generali CER 2 Sem. 2020'!BN99="","",'Dati Generali CER 2 Sem. 2020'!BN99) -> 2021-05-29T17:37:05
A107: 98 | B107: ='Dati Generali CER 1 Sem. 2020'!C100 -> TAORMINA | C107: =IF('Dati Generali CER 2 Sem. 2020'!E100="","",'Dati Generali CER 2 Sem. 2020'!E100) -> 1341235 | D107: =IF(C107="","",'Dati Generali CER 2 Sem. 2020'!BI100) -> 1906214 | E107: ='Dati Generali CER 2 Sem. 2020'!W100 -> 0.5869881251 | F107: =IF('Dati Generali CER 2 Sem. 2020'!BJ100="","",'Dati Generali CER 2 Sem. 2020'!BJ100) -> 1.678636042 | G107: =IF('Dati Generali CER 2 Sem. 2020'!BK100="","",'Dati Generali CER 2 Sem. 2020'!BK100) -> 0.693296619 | H107: =IF('Dati Generali CER 2 Sem. 2020'!BL100="","",'Dati Generali CER 2 Sem. 2020'!BL100) -> 0.9853394232 | I107: ='Dati Generali CER 2 Sem. 2020'!D100 -> 10514 | J107: =IF('Dati Generali CER 2 Sem. 2020'!BN100="","",'Dati Generali CER 2 Sem. 2020'!BN100) -> 2021-05-29T17:37:05
A108: 99 | B108: ='Dati Generali CER 1 Sem. 2020'!C101 -> TERME VIGLIATORE | C108: =IF('Dati Generali CER 2 Sem. 2020'!E101="","",'Dati Generali CER 2 Sem. 2020'!E101) -> 420160 | D108: =IF(C108="","",'Dati Generali CER 2 Sem. 2020'!BI101) -> 1139940 | E108: ='Dati Generali CER 2 Sem. 2020'!W101 -> 0.7008115087 | F108: =IF('Dati Generali CER 2 Sem. 2020'!BJ101="","",'Dati Generali CER 2 Sem. 2020'!BJ101) -> 1.223898296 | G108: =IF('Dati Generali CER 2 Sem. 2020'!BK101="","",'Dati Generali CER 2 Sem. 2020'!BK101) -> 0.3161398672 | H108: =IF('Dati Generali CER 2 Sem. 2020'!BL101="","",'Dati Generali CER 2 Sem. 2020'!BL101) -> 0.8577220112 | I108: ='Dati Generali CER 2 Sem. 2020'!D101 -> 7223 | J108: =IF('Dati Generali CER 2 Sem. 2020'!BN101="","",'Dati Generali CER 2 Sem. 2020'!BN101) -> 2021-05-29T17:37:05
A109: 100 | B109: ='Dati Generali CER 1 Sem. 2020'!C102 -> TORREGROTTA | C109: =IF('Dati Generali CER 2 Sem. 2020'!E102="","",'Dati Generali CER 2 Sem. 2020'!E102) -> 1023440 | D109: =IF(C109="","",'Dati Generali CER 2 Sem. 2020'!BI102) -> 416924 | E109: ='Dati Generali CER 2 Sem. 2020'!W102 -> 0.2884608466 | F109: =IF('Dati Generali CER 2 Sem. 2020'!BJ102="","",'Dati Generali CER 2 Sem. 2020'!BJ102) -> 1.088719154 | G109: =IF('Dati Generali CER 2 Sem. 2020'!BK102="","",'Dati Generali CER 2 Sem. 2020'!BK102) -> 0.7709180753 | H109: =IF('Dati Generali CER 2 Sem. 2020'!BL102="","",'Dati Generali CER 2 Sem. 2020'!BL102) -> 0.3140528488 | I109: ='Dati Generali CER 2 Sem. 2020'!D102 -> 7215 | J109: =IF('Dati Generali CER 2 Sem. 2020'!BN102="","",'Dati Generali CER 2 Sem. 2020'!BN102) -> 2021-05-29T17:37:05
A110: 101 | B110: ='Dati Generali CER 1 Sem. 2020'!C103 -> TORRENOVA | C110: =IF('Dati Generali CER 2 Sem. 2020'!E103="","",'Dati Generali CER 2 Sem. 2020'!E103) -> 250600 | D110: =IF(C110="","",'Dati Generali CER 2 Sem. 2020'!BI103) -> 667260 | E110: ='Dati Generali CER 2 Sem. 2020'!W103 -> 0.7269736125 | F110: =IF('Dati Generali CER 2 Sem. 2020'!BJ103="","",'Dati Generali CER 2 Sem. 2020'!BJ103) -> 1.109759636 | G110: =IF('Dati Generali CER 2 Sem. 2020'!BK103="","",'Dati Generali CER 2 Sem. 2020'!BK103) -> 0.3029936645 | H110: =IF('Dati Generali CER 2 Sem. 2020'!BL103="","",'Dati Generali CER 2 Sem. 2020'!BL103) -> 0.8067659719 | I110: ='Dati Generali CER 2 Sem. 2020'!D103 -> 4495 | J110: =IF('Dati Generali CER 2 Sem. 2020'!BN103="","",'Dati Generali CER 2 Sem. 2020'!BN103) -> 2021-05-29T17:37:05
A111: 102 | B111: ='Dati Generali CER 1 Sem. 2020'!C104 -> TORTORICI | C111: =IF('Dati Generali CER 2 Sem. 2020'!E104="","",'Dati Generali CER 2 Sem. 2020'!E104) -> 353660 | D111: =IF(C111="","",'Dati Generali CER 2 Sem. 2020'!BI104) -> 306450 | E111: ='Dati Generali CER 2 Sem. 2020'!W104 -> 0.4642408084 | F111: =IF('Dati Generali CER 2 Sem. 2020'!BJ104="","",'Dati Generali CER 2 Sem. 2020'!BJ104) -> 0.6027477063 | G111: =IF('Dati Generali CER 2 Sem. 2020'!BK104="","",'Dati Generali CER 2 Sem. 2020'!BK104) -> 0.3229276239 | H111: =IF('Dati Generali CER 2 Sem. 2020'!BL104="","",'Dati Generali CER 2 Sem. 2020'!BL104) -> 0.2798200824 | I111: ='Dati Generali CER 2 Sem. 2020'!D104 -> 5952 | J111: =IF('Dati Generali CER 2 Sem. 2020'!BN104="","",'Dati Generali CER 2 Sem. 2020'!BN104) -> 2021-05-29T17:37:05
A112: 103 | B112: ='Dati Generali CER 1 Sem. 2020'!C105 -> TRIPI | C112: =IF('Dati Generali CER 2 Sem. 2020'!E105="","",'Dati Generali CER 2 Sem. 2020'!E105) -> 142520 | D112: =IF(C112="","",'Dati Generali CER 2 Sem. 2020'!BI105) -> 51258 | E112: ='Dati Generali CER 2 Sem. 2020'!W105 -> 0.2645191921 | F112: =IF('Dati Generali CER 2 Sem. 2020'!BJ105="","",'Dati Generali CER 2 Sem. 2020'!BJ105) -> 1.3748581 | G112: =IF('Dati Generali CER 2 Sem. 2020'!BK105="","",'Dati Generali CER 2 Sem. 2020'!BK105) -> 1.011181746 | H112: =IF('Dati Generali CER 2 Sem. 2020'!BL105="","",'Dati Generali CER 2 Sem. 2020'!BL105) -> 0.3636763537 | I112: ='Dati Generali CER 2 Sem. 2020'!D105 -> 766 | J112: =IF('Dati Generali CER 2 Sem. 2020'!BN105="","",'Dati Generali CER 2 Sem. 2020'!BN105) -> 2021-05-29T17:37:05
A113: 104 | B113: ='Dati Generali CER 1 Sem. 2020'!C106 -> TUSA | C113: =IF('Dati Generali CER 2 Sem. 2020'!E106="","",'Dati Generali CER 2 Sem. 2020'!E106) -> 198480 | D113: =IF(C113="","",'Dati Generali CER 2 Sem. 2020'!BI106) -> 387370 | E113: ='Dati Generali CER 2 Sem. 2020'!W106 -> 0.6612102074 | F113: =IF('Dati Generali CER 2 Sem. 2020'!BJ106="","",'Dati Generali CER 2 Sem. 2020'!BJ106) -> 1.177938362 | G113: =IF('Dati Generali CER 2 Sem. 2020'!BK106="","",'Dati Generali CER 2 Sem. 2020'!BK106) -> 0.3990734932 | H113: =IF('Dati Generali CER 2 Sem. 2020'!BL106="","",'Dati Generali CER 2 Sem. 2020'!BL106) -> 0.7788648683 | I113: ='Dati Generali CER 2 Sem. 2020'!D106 -> 2703 | J113: =IF('Dati Generali CER 2 Sem. 2020'!BN106="","",'Dati Generali CER 2 Sem. 2020'!BN106) -> 2021-05-29T17:37:05
A114: 105 | B114: ='Dati Generali CER 1 Sem. 2020'!C107 -> UCRIA | C114: =IF('Dati Generali CER 2 Sem. 2020'!E107="","",'Dati Generali CER 2 Sem. 2020'!E107) -> 56780 | D114: =IF(C114="","",'Dati Generali CER 2 Sem. 2020'!BI107) -> 112230 | E114: ='Dati Generali CER 2 Sem. 2020'!W107 -> 0.6640435477 | F114: =IF('Dati Generali CER 2 Sem. 2020'!BJ107="","",'Dati Generali CER 2 Sem. 2020'!BJ107) -> 0.9802909378 | G114: =IF('Dati Generali CER 2 Sem. 2020'!BK107="","",'Dati Generali CER 2 Sem. 2020'!BK107) -> 0.3293350657 | H114: =IF('Dati Generali CER 2 Sem. 2020'!BL107="","",'Dati Generali CER 2 Sem. 2020'!BL107) -> 0.6509558721 | I114: ='Dati Generali CER 2 Sem. 2020'!D107 -> 937 | J114: =IF('Dati Generali CER 2 Sem. 2020'!BN107="","",'Dati Generali CER 2 Sem. 2020'!BN107) -> 2021-05-29T17:37:05
A115: 106 | B115: ='Dati Generali CER 1 Sem. 2020'!C108 -> VALDINA | C115: =IF('Dati Generali CER 2 Sem. 2020'!E108="","",'Dati Generali CER 2 Sem. 2020'!E108) -> 192900 | D115: =IF(C115="","",'Dati Generali CER 2 Sem. 2020'!BI108) -> 60216 | E115: ='Dati Generali CER 2 Sem. 2020'!W108 -> 0.237898829 | F115: =IF('Dati Generali CER 2 Sem. 2020'!BJ108="","",'Dati Generali CER 2 Sem. 2020'!BJ108) -> 1.059807731 | G115: =IF('Dati Generali CER 2 Sem. 2020'!BK108="","",'Dati Generali CER 2 Sem. 2020'!BK108) -> 0.8076807128 | H115: =IF('Dati Generali CER 2 Sem. 2020'!BL108="","",'Dati Generali CER 2 Sem. 2020'!BL108) -> 0.2521270182 | I115: ='Dati Generali CER 2 Sem. 2020'!D108 -> 1298 | J115: =IF('Dati Generali CER 2 Sem. 2020'!BN108="","",'Dati Generali CER 2 Sem. 2020'!BN108) -> 2021-05-29T17:37:05
A116: 107 | B116: ='Dati Generali CER 1 Sem. 2020'!C109 -> VENETICO | C116: =IF('Dati Generali CER 2 Sem. 2020'!E109="","",'Dati Generali CER 2 Sem. 2020'!E109) -> 72120 | D116: =IF(C116="","",'Dati Generali CER 2 Sem. 2020'!BI109) -> 41540 | E116: ='Dati Generali CER 2 Sem. 2020'!W109 -> 0.365475981 | F116: =IF('Dati Generali CER 2 Sem. 2020'!BJ109="","",'Dati Generali CER 2 Sem. 2020'!BJ109) -> 0.1567810638 | G116: =IF('Dati Generali CER 2 Sem. 2020'!BK109="","",'Dati Generali CER 2 Sem. 2020'!BK109) -> 0.0994813507 | H116: =IF('Dati Generali CER 2 Sem. 2020'!BL109="","",'Dati Generali CER 2 Sem. 2020'!BL109) -> 0.05729971309 | I116: ='Dati Generali CER 2 Sem. 2020'!D109 -> 3940 | J116: =IF('Dati Generali CER 2 Sem. 2020'!BN109="","",'Dati Generali CER 2 Sem. 2020'!BN109) -> 2021-05-29T17:37:05
A117: 108 | B117: ='Dati Generali CER 1 Sem. 2020'!C110 -> VILLAFRANCA TIRRENA | C117: =IF('Dati Generali CER 2 Sem. 2020'!E110="","",'Dati Generali CER 2 Sem. 2020'!E110) -> 437720 | D117: =IF(C117="","",'Dati Generali CER 2 Sem. 2020'!BI110) -> 1241178 | E117: ='Dati Generali CER 2 Sem. 2020'!W110 -> 0.7392813619 | F117: =IF('Dati Generali CER 2 Sem. 2020'!BJ110="","",'Dati Generali CER 2 Sem. 2020'!BJ110) -> 1.10787344 | G117: =IF('Dati Generali CER 2 Sem. 2020'!BK110="","",'Dati Generali CER 2 Sem. 2020'!BK110) -> 0.2888432544 | H117: =IF('Dati Generali CER 2 Sem. 2020'!BL110="","",'Dati Generali CER 2 Sem. 2020'!BL110) -> 0.8190301856 | I117: ='Dati Generali CER 2 Sem. 2020'!D110 -> 8236 | J117: =IF('Dati Generali CER 2 Sem. 2020'!BN110="","",'Dati Generali CER 2 Sem. 2020'!BN110) -> 2021-05-29T17:37:05
B118: Percentuale media dei 108 Comuni: | F118: ='Dati Generali CER 2 Sem. 2020'!W111 -> 0.4238799746

Sheet Grafico 2 Semestre 2020

Sheet Dati Generali anno 2020
A1: Produzione di Rifiuti Urbani e Raccolta Differenziata ANNO 2020.
A2: =COUNT(E3:E110) -> 108 | B2: ID COMUNE | C2: COMUNE | D2: ABITANTI AL 31/12/2020 | E2: R.S.U. + R.S.A. (Ton/anno) 200301 | F2: Toner per stampa esauriti, contenenti sostanze pericolose (Ton/anno) 080317* | G2: Altri oli per motori, ingranaggi e lubrificazione (Ton/anno) 130208* | H2: Legno da demolizione (Ton/anno) 170201 | I2: Miscele bituminose (diverse da quelle 170301*) (Ton/anno) 170302 | J2: Alluminio (Ton/anno) 170402 | K2: Ferro e acciaio (Ton/anno) 170405 | L2: Materiali da costruzione contenenti amianto (Ton/anno) 170605* | M2: percolato di discarica,(diverso dalla voce 190702) (Ton/anno) 190703 | N2: Residui di vagliatura (Ton/anno) 190801 | O2: FANGHI DI DEPURAZIONE prodotti dal trattamento delle acque reflue urbane (Ton/anno) 190805 | P2: Altri rifiuti (compresi materiali misti) prodotti dal trattamento meccanico dei rifiuti,(diversi dalla voce 191211) (Ton/anno) 191212 | Q2: Rifiuti della pulizia delle fognature (Ton/anno) 200306 | R2: Residui della pulizia stradale (Ton/anno) 200303 Smaltimento | S2: Ingombranti (Ton/anno) - 200307 Smaltimento | T2: Rifiuti urbani non specificati altrimenti 200399 | U2: RACCOL. DIFFEREN. (Kg/anno) | V2: R.S.U. + R.S.A. + RACC. DIFF. (Kg/anno) | W2: % RACC. DIFF. | X2: Compostaggio Domestico | Y2: Toner per stampa esauriti,(diversi dalla voce 080317) (Ton/anno) 080318 | Z2: Imballaggi Carta e Cartone (Raccolta Selettiva) (Ton/anno) 150101 | AA2: Imballaggi in Plastica (Ton/anno) 150102 | AB2: Imballaggi in Legno (Ton/anno) 150103 | AC2: Imballaaggi in metallo (Ton/anno) 150104 | AD2: Imball. in materiali misti (Ton/anno) 150106 | AE2: Imballaggi in Vetro (Ton/anno) 150107 | AF2: Imballaggi contenenti residui di sostanze pericolose o contaminati da tali sostanze (Ton/anno) 150110* | AG2: Imballaggi metallici contenenti matrici solide porose pericolose (ad esempio amianto) 150111* | AH2: Pneumatici usati (Ton/anno) 160103 | AI2: Filtri dell'olio (Ton/anno) 160107* | AJ2: Apparecchiature fuori uso, contenenti clorofluorocarburi, HCFC, HFC (Ton/anno) 160211* | AK2: Componenti rimossi da apparecchiature fuori uso,(diversi dalla voce 160215) (Ton/anno) 160216 | AL2: Miscugli o frazioni separate di cemento, mattoni, mattonelle e ceramiche(diverse dalla voce 170106) (Ton/anno) 170107 | AM2: Rifiuti misti dell'attività di costruzione e demolizione, (diversi dalle voci 170901, 170902 e 170903) (Ton/anno) 170904 | AN2: Carta e Cartone (Raccolta Congiunta) (Ton/anno) 200101 | AO2: Vetro (Ton/anno) 200102 | AP2: Rifiuti biodegradabili di cucine e mense (Ton/anno) 200108 | AQ2: Abbigliamento (Ton/anno) 200110 | AR2: Prodotti tessili (Ton/anno) 200111 | AS2: Tubi fluorescenti ed altri rifiuti contenenti Mercurio (Ton/anno) 200121* | AT2: Apparec. Fuori uso conten. CFC e mat. peric. (Ton/anno) 200123* | AU2: Oli e Grassi commestibili (Ton/anno) 200125 | AV2: Oli e grassi (diversi dalla voce 200125) (Ton/anno) 200126* | AW2: Medicinali citotossici e citostatici 200131* | AX2: Medicinali (diversi dlla voce 200131*) (Ton/anno) 200132 | AY2: Batterie ed Accumulatori (diversi dalle voci 160601, 160602 e 160603) (Ton/anno) 200133* | AZ2: Batterie ed accumulatori (diversi dlla voce 200133*) (Ton/anno) 200134 | BA2: Apparecc. elettr. ed elettroniche fuori uso contenenti Mat. Peric. (Ton/anno) 200135* | BB2: Apparecc. eletr. ed elettroniche fuori uso(diverse da 200121, 200123 e 200135 (Ton/anno) 200136 | BC2: Legno (Ton/anno) 200138 | BD2: Plastica (Ton/anno) 200139 | BE2: Metallo (Ton/anno) 200140 | BF2: Rifiuti biodegradabili (Ton/anno) 200201 | BG2: Residui della pulizia stradale (Ton/anno) - 200303 Recupero | BH2: Ingombranti (Ton/anno) - 200307 Recupero | BI2: TOTALE RD | BJ2: CER R.D. utilizzati x Comune | BK2: R.S.U. + R.S.A.+ R.D. - (R.T. Kg. pro capite/g) | BL2: R.S.U. + R.S.A. 200301 - (R.I. Kg. pro capite/g) | BM2: R.D. - (Kg. pro capite/g)
A3: ='Dati Generali CER 1 Sem. 2020'!A3 -> 1 | B3: ='Dati Generali CER 1 Sem. 2020'!B3 -> M211 | C3: ='Dati Generali CER 1 Sem. 2020'!C3 -> ACQUEDOLCI | D3: ='Dati Generali CER 2 Sem. 2020'!D3 -> 5493 | E3: =IF(SUM('Dati Generali CER 1 Sem. 2020'!E3,'Dati Generali CER 2 Sem. 2020'!E3)=0,"",SUM('Dati Generali CER 1 Sem. 2020'!E3,'Dati Generali CER 2 Sem. 2020'!E3)/1000) -> 435.84 | F3: =IF(SUM('Dati Generali CER 1 Sem. 2020'!F3,'Dati Generali CER 2 Sem. 2020'!F3)=0,"",SUM('Dati Generali CER 1 Sem. 2020'!F3,'Dati Generali CER 2 Sem. 2020'!F3)/1000) ->  | G3: =IF(SUM('Dati Generali CER 1 Sem. 2020'!G3,'Dati Generali CER 2 Sem. 2020'!G3)=0,"",SUM('Dati Generali CER 1 Sem. 2020'!G3,'Dati Generali CER 2 Sem. 2020'!G3)/1000) ->  | H3: =IF(SUM('Dati Generali CER 1 Sem. 2020'!H3,'Dati Generali CER 2 Sem. 2020'!H3)=0,"",SUM('Dati Generali CER 1 Sem. 2020'!H3,'Dati Generali CER 2 Sem. 2020'!H3)/1000) ->  | I3: =IF(SUM('Dati Generali CER 1 Sem. 2020'!I3,'Dati Generali CER 2 Sem. 2020'!I3)=0,"",SUM('Dati Generali CER 1 Sem. 2020'!I3,'Dati Generali CER 2 Sem. 2020'!I3)/1000) ->  | J3: =IF(SUM('Dati Generali CER 1 Sem. 2020'!J3,'Dati Generali CER 2 Sem. 2020'!J3)=0,"",SUM('Dati Generali CER 1 Sem. 2020'!J3,'Dati Generali CER 2 Sem. 2020'!J3)/1000) ->  | K3: =IF(SUM('Dati Generali CER 1 Sem. 2020'!K3,'Dati Generali CER 2 Sem. 2020'!K3)=0,"",SUM('Dati Generali CER 1 Sem. 2020'!K3,'Dati Generali CER 2 Sem. 2020'!K3)/1000) ->  | L3: =IF(SUM('Dati Generali CER 1 Sem. 2020'!L3,'Dati Generali CER 2 Sem. 2020'!L3)=0,"",SUM('Dati Generali CER 1 Sem. 2020'!L3,'Dati Generali CER 2 Sem. 2020'!L3)/1000) ->  | M3: =IF(SUM('Dati Generali CER 1 Sem. 2020'!M3,'Dati Generali CER 2 Sem. 2020'!M3)=0,"",SUM('Dati Generali CER 1 Sem. 2020'!M3,'Dati Generali CER 2 Sem. 2020'!M3)/1000) ->  | N3: =IF(SUM('Dati Generali CER 1 Sem. 2020'!N3,'Dati Generali CER 2 Sem. 2020'!N3)=0,"",SUM('Dati Generali CER 1 Sem. 2020'!N3,'Dati Generali CER 2 Sem. 2020'!N3)/1000) ->  | O3: =IF(SUM('Dati Generali CER 1 Sem. 2020'!O3,'Dati Generali CER 2 Sem. 2020'!O3)=0,"",SUM('Dati Generali CER 1 Sem. 2020'!O3,'Dati Generali CER 2 Sem. 2020'!O3)/1000) ->  | P3: =IF(SUM('Dati Generali CER 1 Sem. 2020'!P3,'Dati Generali CER 2 Sem. 2020'!P3)=0,"",SUM('Dati Generali CER 1 Sem. 2020'!P3,'Dati Generali CER 2 Sem. 2020'!P3)/1000) ->  | Q3: =IF(SUM('Dati Generali CER 1 Sem. 2020'!Q3,'Dati Generali CER 2 Sem. 2020'!Q3)=0,"",SUM('Dati Generali CER 1 Sem. 2020'!Q3,'Dati Generali CER 2 Sem. 2020'!Q3)/1000) ->  | R3: =IF(SUM('Dati Generali CER 1 Sem. 2020'!R3,'Dati Generali CER 2 Sem. 2020'!R3)=0,"",SUM('Dati Generali CER 1 Sem. 2020'!R3,'Dati Generali CER 2 Sem. 2020'!R3)/1000) ->  | S3: =IF(SUM('Dati Generali CER 1 Sem. 2020'!S3,'Dati Generali CER 2 Sem. 2020'!S3)=0,"",SUM('Dati Generali CER 1 Sem. 2020'!S3,'Dati Generali CER 2 Sem. 2020'!S3)/1000) ->  | T3: =IF(SUM('Dati Generali CER 1 Sem. 2020'!T3,'Dati Generali CER 2 Sem. 2020'!T3)=0,"",SUM('Dati Generali CER 1 Sem. 2020'!T3,'Dati Generali CER 2 Sem. 2020'!T3)/1000) ->  | U3: =IF(E3="","",SUM('Dati Generali CER 1 Sem. 2020'!BI3,'Dati Generali CER 2 Sem. 2020'!BI3)/1000) -> 1292.5 | V3: =IF(SUM('Dati Generali CER 1 Sem. 2020'!V3,'Dati Generali CER 2 Sem. 2020'!V3)=0,"",SUM('Dati Generali CER 1 Sem. 2020'!V3,'Dati Generali CER 2 Sem. 2020'!V3)/1000) -> 1728.34 | W3: =IF(E3="","",U3/V3) -> 0.7478273951 | X3: =IF(SUM('Dati Generali CER 1 Sem. 2020'!X3,'Dati Generali CER 2 Sem. 2020'!X3)=0,"",SUM('Dati Generali CER 1 Sem. 2020'!X3,'Dati Generali CER 2 Sem. 2020'!X3)/1000) ->  | Y3: =IF(SUM('Dati Generali CER 1 Sem. 2020'!Y3,'Dati Generali CER 2 Sem. 2020'!Y3)=0,"",SUM('Dati Generali CER 1 Sem. 2020'!Y3,'Dati Generali CER 2 Sem. 2020'!Y3)/1000) ->  | Z3: =IF(SUM('Dati Generali CER 1 Sem. 2020'!Z3,'Dati Generali CER 2 Sem. 2020'!Z3)=0,"",SUM('Dati Generali CER 1 Sem. 2020'!Z3,'Dati Generali CER 2 Sem. 2020'!Z3)/1000) -> 29.64 | AA3: =IF(SUM('Dati Generali CER 1 Sem. 2020'!AA3,'Dati Generali CER 2 Sem. 2020'!AA3)=0,"",SUM('Dati Generali CER 1 Sem. 2020'!AA3,'Dati Generali CER 2 Sem. 2020'!AA3)/1000) -> 191.54 | AB3: =IF(SUM('Dati Generali CER 1 Sem. 2020'!AB3,'Dati Generali CER 2 Sem. 2020'!AB3)=0,"",SUM('Dati Generali CER 1 Sem. 2020'!AB3,'Dati Generali CER 2 Sem. 2020'!AB3)/1000) -> 0.19 | AC3: =IF(SUM('Dati Generali CER 1 Sem. 2020'!AC3,'Dati Generali CER 2 Sem. 2020'!AC3)=0,"",SUM('Dati Generali CER 1 Sem. 2020'!AC3,'Dati Generali CER 2 Sem. 2020'!AC3)/1000) ->  | AD3: =IF(SUM('Dati Generali CER 1 Sem. 2020'!AD3,'Dati Generali CER 2 Sem. 2020'!AD3)=0,"",SUM('Dati Generali CER 1 Sem. 2020'!AD3,'Dati Generali CER 2 Sem. 2020'!AD3)/1000) ->  | AE3: =IF(SUM('Dati Generali CER 1 Sem. 2020'!AE3,'Dati Generali CER 2 Sem. 2020'!AE3)=0,"",SUM('Dati Generali CER 1 Sem. 2020'!AE3,'Dati Generali CER 2 Sem. 2020'!AE3)/1000) -> 241.5 | AF3: =IF(SUM('Dati Generali CER 1 Sem. 2020'!AF3,'Dati Generali CER 2 Sem. 2020'!AF3)=0,"",SUM('Dati Generali CER 1 Sem. 2020'!AF3,'Dati Generali CER 2 Sem. 2020'!AF3)/1000) ->  | AG3: =IF(SUM('Dati Generali CER 1 Sem. 2020'!AG3,'Dati Generali CER 2 Sem. 2020'!AG3)=0,"",SUM('Dati Generali CER 1 Sem. 2020'!AG3,'Dati Generali CER 2 Sem. 2020'!AG3)/1000) ->  | AH3: =IF(SUM('Dati Generali CER 1 Sem. 2020'!AH3,'Dati Generali CER 2 Sem. 2020'!AH3)=0,"",SUM('Dati Generali CER 1 Sem. 2020'!AH3,'Dati Generali CER 2 Sem. 2020'!AH3)/1000) ->  | AI3: =IF(SUM('Dati Generali CER 1 Sem. 2020'!AI3,'Dati Generali CER 2 Sem. 2020'!AI3)=0,"",SUM('Dati Generali CER 1 Sem. 2020'!AI3,'Dati Generali CER 2 Sem. 2020'!AI3)/1000) ->  | AJ3: =IF(SUM('Dati Generali CER 1 Sem. 2020'!AJ3,'Dati Generali CER 2 Sem. 2020'!AJ3)=0,"",SUM('Dati Generali CER 1 Sem. 2020'!AJ3,'Dati Generali CER 2 Sem. 2020'!AJ3)/1000) ->  | AK3: =IF(SUM('Dati Generali CER 1 Sem. 2020'!AK3,'Dati Generali CER 2 Sem. 2020'!AK3)=0,"",SUM('Dati Generali CER 1 Sem. 2020'!AK3,'Dati Generali CER 2 Sem. 2020'!AK3)/1000) ->  | AL3: =IF(SUM('Dati Generali CER 1 Sem. 2020'!AL3,'Dati Generali CER 2 Sem. 2020'!AL3)=0,"",SUM('Dati Generali CER 1 Sem. 2020'!AL3,'Dati Generali CER 2 Sem. 2020'!AL3)/1000) ->  | AM3: =IF(SUM('Dati Generali CER 1 Sem. 2020'!AM3,'Dati Generali CER 2 Sem. 2020'!AM3)=0,"",SUM('Dati Generali CER 1 Sem. 2020'!AM3,'Dati Generali CER 2 Sem. 2020'!AM3)/1000) ->  | AN3: =IF(SUM('Dati Generali CER 1 Sem. 2020'!AN3,'Dati Generali CER 2 Sem. 2020'!AN3)=0,"",SUM('Dati Generali CER 1 Sem. 2020'!AN3,'Dati Generali CER 2 Sem. 2020'!AN3)/1000) -> 207.8 | AO3: =IF(SUM('Dati Generali CER 1 Sem. 2020'!AO3,'Dati Generali CER 2 Sem. 2020'!AO3)=0,"",SUM('Dati Generali CER 1 Sem. 2020'!AO3,'Dati Generali CER 2 Sem. 2020'!AO3)/1000) ->  | AP3: =IF(SUM('Dati Generali CER 1 Sem. 2020'!AP3,'Dati Generali CER 2 Sem. 2020'!AP3)=0,"",SUM('Dati Generali CER 1 Sem. 2020'!AP3,'Dati Generali CER 2 Sem. 2020'!AP3)/1000) -> 566.58 | AQ3: =IF(SUM('Dati Generali CER 1 Sem. 2020'!AQ3,'Dati Generali CER 2 Sem. 2020'!AQ3)=0,"",SUM('Dati Generali CER 1 Sem. 2020'!AQ3,'Dati Generali CER 2 Sem. 2020'!AQ3)/1000) -> 0.8 | AR3: =IF(SUM('Dati Generali CER 1 Sem. 2020'!AR3,'Dati Generali CER 2 Sem. 2020'!AR3)=0,"",SUM('Dati Generali CER 1 Sem. 2020'!AR3,'Dati Generali CER 2 Sem. 2020'!AR3)/1000) ->  | AS3: =IF(SUM('Dati Generali CER 1 Sem. 2020'!AS3,'Dati Generali CER 2 Sem. 2020'!AS3)=0,"",SUM('Dati Generali CER 1 Sem. 2020'!AS3,'Dati Generali CER 2 Sem. 2020'!AS3)/1000) ->  | AT3: =IF(SUM('Dati Generali CER 1 Sem. 2020'!AT3,'Dati Generali CER 2 Sem. 2020'!AT3)=0,"",SUM('Dati Generali CER 1 Sem. 2020'!AT3,'Dati Generali CER 2 Sem. 2020'!AT3)/1000) -> 3.9 | AU3: =IF(SUM('Dati Generali CER 1 Sem. 2020'!AU3,'Dati Generali CER 2 Sem. 2020'!AU3)=0,"",SUM('Dati Generali CER 1 Sem. 2020'!AU3,'Dati Generali CER 2 Sem. 2020'!AU3)/1000) ->  | AV3: =IF(SUM('Dati Generali CER 1 Sem. 2020'!AV3,'Dati Generali CER 2 Sem. 2020'!AV3)=0,"",SUM('Dati Generali CER 1 Sem. 2020'!AV3,'Dati Generali CER 2 Sem. 2020'!AV3)/1000) ->  | AW3: =IF(SUM('Dati Generali CER 1 Sem. 2020'!AW3,'Dati Generali CER 2 Sem. 2020'!AW3)=0,"",SUM('Dati Generali CER 1 Sem. 2020'!AW3,'Dati Generali CER 2 Sem. 2020'!AW3)/1000) ->  | AX3: =IF(SUM('Dati Generali CER 1 Sem. 2020'!AX3,'Dati Generali CER 2 Sem. 2020'!AX3)=0,"",SUM('Dati Generali CER 1 Sem. 2020'!AX3,'Dati Generali CER 2 Sem. 2020'!AX3)/1000) ->  | AY3: =IF(SUM('Dati Generali CER 1 Sem. 2020'!AY3,'Dati Generali CER 2 Sem. 2020'!AY3)=0,"",SUM('Dati Generali CER 1 Sem. 2020'!AY3,'Dati Generali CER 2 Sem. 2020'!AY3)/1000) ->  | AZ3: =IF(SUM('Dati Generali CER 1 Sem. 2020'!AZ3,'Dati Generali CER 2 Sem. 2020'!AZ3)=0,"",SUM('Dati Generali CER 1 Sem. 2020'!AZ3,'Dati Generali CER 2 Sem. 2020'!AZ3)/1000) ->  | BA3: =IF(SUM('Dati Generali CER 1 Sem. 2020'!BA3,'Dati Generali CER 2 Sem. 2020'!BA3)=0,"",SUM('Dati Generali CER 1 Sem. 2020'!BA3,'Dati Generali CER 2 Sem. 2020'!BA3)/1000) -> 3.8 | BB3: =IF(SUM('Dati Generali CER 1 Sem. 2020'!BB3,'Dati Generali CER 2 Sem. 2020'!BB3)=0,"",SUM('Dati Generali CER 1 Sem. 2020'!BB3,'Dati Generali CER 2 Sem. 2020'!BB3)/1000) -> 1.7 | BC3: =IF(SUM('Dati Generali CER 1 Sem. 2020'!BC3,'Dati Generali CER 2 Sem. 2020'!BC3)=0,"",SUM('Dati Generali CER 1 Sem. 2020'!BC3,'Dati Generali CER 2 Sem. 2020'!BC3)/1000) ->  | BD3: =IF(SUM('Dati Generali CER 1 Sem. 2020'!BD3,'Dati Generali CER 2 Sem. 2020'!BD3)=0,"",SUM('Dati Generali CER 1 Sem. 2020'!BD3,'Dati Generali CER 2 Sem. 2020'!BD3)/1000) ->  | BE3: =IF(SUM('Dati Generali CER 1 Sem. 2020'!BE3,'Dati Generali CER 2 Sem. 2020'!BE3)=0,"",SUM('Dati Generali CER 1 Sem. 2020'!BE3,'Dati Generali CER 2 Sem. 2020'!BE3)/1000) ->  | BF3: =IF(SUM('Dati Generali CER 1 Sem. 2020'!BF3,'Dati Generali CER 2 Sem. 2020'!BF3)=0,"",SUM('Dati Generali CER 1 Sem. 2020'!BF3,'Dati Generali CER 2 Sem. 2020'!BF3)/1000) ->  | BG3: =IF(SUM('Dati Generali CER 1 Sem. 2020'!BG3,'Dati Generali CER 2 Sem. 2020'!BG3)=0,"",SUM('Dati Generali CER 1 Sem. 2020'!BG3,'Dati Generali CER 2 Sem. 2020'!BG3)/1000) ->  | BH3: =IF(SUM('Dati Generali CER 1 Sem. 2020'!BH3,'Dati Generali CER 2 Sem. 2020'!BH3)=0,"",SUM('Dati Generali CER 1 Sem. 2020'!BH3,'Dati Generali CER 2 Sem. 2020'!BH3)/1000) -> 45.05 | BI3: =IF(SUM('Dati Generali CER 1 Sem. 2020'!BI3,'Dati Generali CER 2 Sem. 2020'!BI3)=0,"",SUM('Dati Generali CER 1 Sem. 2020'!BI3,'Dati Generali CER 2 Sem. 2020'!BI3)/1000) -> 1292.5 | BJ3: =IF(COUNT(X3:BH3,E3,R3,S3,T3)=0,"",COUNT(X3:BH3,E3,R3,S3,T3)) -> 12 | BK3: =IF(E3="","",V3/D3/0.365) -> 0.8620386095 | BL3: =IF(E3="","",E3/D3/0.365) -> 0.2173825217 | BM3: =IF(SUM(X3:BH3)=0,"",BI3/D3/0.365) -> 0.6446560878 | BN3: =SUM(E3,R3,S3,T3,X3:BH3) -> 1728.34
A4: ='Dati Generali CER 1 Sem. 2020'!A4 -> 2 | B4: ='Dati Generali CER 1 Sem. 2020'!B4 -> A177 | C4: ='Dati Generali CER 1 Sem. 2020'!C4 -> ALCARA LI FUSI | D4: ='Dati Generali CER 2 Sem. 2020'!D4 -> 1792 | E4: =IF(SUM('Dati Generali CER 1 Sem. 2020'!E4,'Dati Generali CER 2 Sem. 2020'!E4)=0,"",SUM('Dati Generali CER 1 Sem. 2020'!E4,'Dati Generali CER 2 Sem. 2020'!E4)/1000) -> 68.92 | F4: =IF(SUM('Dati Generali CER 1 Sem. 2020'!F4,'Dati Generali CER 2 Sem. 2020'!F4)=0,"",SUM('Dati Generali CER 1 Sem. 2020'!F4,'Dati Generali CER 2 Sem. 2020'!F4)/1000) ->  | G4: =IF(SUM('Dati Generali CER 1 Sem. 2020'!G4,'Dati Generali CER 2 Sem. 2020'!G4)=0,"",SUM('Dati Generali CER 1 Sem. 2020'!G4,'Dati Generali CER 2 Sem. 2020'!G4)/1000) ->  | H4: =IF(SUM('Dati Generali CER 1 Sem. 2020'!H4,'Dati Generali CER 2 Sem. 2020'!H4)=0,"",SUM('Dati Generali CER 1 Sem. 2020'!H4,'Dati Generali CER 2 Sem. 2020'!H4)/1000) ->  | I4: =IF(SUM('Dati Generali CER 1 Sem. 2020'!I4,'Dati Generali CER 2 Sem. 2020'!I4)=0,"",SUM('Dati Generali CER 1 Sem. 2020'!I4,'Dati Generali CER 2 Sem. 2020'!I4)/1000) ->  | J4: =IF(SUM('Dati Generali CER 1 Sem. 2020'!J4,'Dati Generali CER 2 Sem. 2020'!J4)=0,"",SUM('Dati Generali CER 1 Sem. 2020'!J4,'Dati Generali CER 2 Sem. 2020'!J4)/1000) ->  | K4: =IF(SUM('Dati Generali CER 1 Sem. 2020'!K4,'Dati Generali CER 2 Sem. 2020'!K4)=0,"",SUM('Dati Generali CER 1 Sem. 2020'!K4,'Dati Generali CER 2 Sem. 2020'!K4)/1000) ->  | L4: =IF(SUM('Dati Generali CER 1 Sem. 2020'!L4,'Dati Generali CER 2 Sem. 2020'!L4)=0,"",SUM('Dati Generali CER 1 Sem. 2020'!L4,'Dati Generali CER 2 Sem. 2020'!L4)/1000) ->  | M4: =IF(SUM('Dati Generali CER 1 Sem. 2020'!M4,'Dati Generali CER 2 Sem. 2020'!M4)=0,"",SUM('Dati Generali CER 1 Sem. 2020'!M4,'Dati Generali CER 2 Sem. 2020'!M4)/1000) -> 4.54 | N4: =IF(SUM('Dati Generali CER 1 Sem. 2020'!N4,'Dati Generali CER 2 Sem. 2020'!N4)=0,"",SUM('Dati Generali CER 1 Sem. 2020'!N4,'Dati Generali CER 2 Sem. 2020'!N4)/1000) ->  | O4: =IF(SUM('Dati Generali CER 1 Sem. 2020'!O4,'Dati Generali CER 2 Sem. 2020'!O4)=0,"",SUM('Dati Generali CER 1 Sem. 2020'!O4,'Dati Generali CER 2 Sem. 2020'!O4)/1000) ->  | P4: =IF(SUM('Dati Generali CER 1 Sem. 2020'!P4,'Dati Generali CER 2 Sem. 2020'!P4)=0,"",SUM('Dati Generali CER 1 Sem. 2020'!P4,'Dati Generali CER 2 Sem. 2020'!P4)/1000) ->  | Q4: =IF(SUM('Dati Generali CER 1 Sem. 2020'!Q4,'Dati Generali CER 2 Sem. 2020'!Q4)=0,"",SUM('Dati Generali CER 1 Sem. 2020'!Q4,'Dati Generali CER 2 Sem. 2020'!Q4)/1000) ->  | R4: =IF(SUM('Dati Generali CER 1 Sem. 2020'!R4,'Dati Generali CER 2 Sem. 2020'!R4)=0,"",SUM('Dati Generali CER 1 Sem. 2020'!R4,'Dati Generali CER 2 Sem. 2020'!R4)/1000) ->  | S4: =IF(SUM('Dati Generali CER 1 Sem. 2020'!S4,'Dati Generali CER 2 Sem. 2020'!S4)=0,"",SUM('Dati Generali CER 1 Sem. 2020'!S4,'Dati Generali CER 2 Sem. 2020'!S4)/1000) ->  | T4: =IF(SUM('Dati Generali CER 1 Sem. 2020'!T4,'Dati Generali CER 2 Sem. 2020'!T4)=0,"",SUM('Dati Generali CER 1 Sem. 2020'!T4,'Dati Generali CER 2 Sem. 2020'!T4)/1000) ->  | U4: =IF(E4="","",SUM('Dati Generali CER 1 Sem. 2020'!BI4,'Dati Generali CER 2 Sem. 2020'!BI4)/1000) -> 325.329 | V4: =IF(SUM('Dati Generali CER 1 Sem. 2020'!V4,'Dati Generali CER 2 Sem. 2020'!V4)=0,"",SUM('Dati Generali CER 1 Sem. 2020'!V4,'Dati Generali CER 2 Sem. 2020'!V4)/1000) -> 394.249 | W4: 0.8251866206 | X4: =IF(SUM('Dati Generali CER 1 Sem. 2020'!X4,'Dati Generali CER 2 Sem. 2020'!X4)=0,"",SUM('Dati Generali CER 1 Sem. 2020'!X4,'Dati Generali CER 2 Sem. 2020'!X4)/1000) ->  | Y4: =IF(SUM('Dati Generali CER 1 Sem. 2020'!Y4,'Dati Generali CER 2 Sem. 2020'!Y4)=0,"",SUM('Dati Generali CER 1 Sem. 2020'!Y4,'Dati Generali CER 2 Sem. 2020'!Y4)/1000) ->  | Z4: =IF(SUM('Dati Generali CER 1 Sem. 2020'!Z4,'Dati Generali CER 2 Sem. 2020'!Z4)=0,"",SUM('Dati Generali CER 1 Sem. 2020'!Z4,'Dati Generali CER 2 Sem. 2020'!Z4)/1000) ->  | AA4: =IF(SUM('Dati Generali CER 1 Sem. 2020'!AA4,'Dati Generali CER 2 Sem. 2020'!AA4)=0,"",SUM('Dati Generali CER 1 Sem. 2020'!AA4,'Dati Generali CER 2 Sem. 2020'!AA4)/1000) -> 41.37 | AB4: =IF(SUM('Dati Generali CER 1 Sem. 2020'!AB4,'Dati Generali CER 2 Sem. 2020'!AB4)=0,"",SUM('Dati Generali CER 1 Sem. 2020'!AB4,'Dati Generali CER 2 Sem. 2020'!AB4)/1000) ->  | AC4: =IF(SUM('Dati Generali CER 1 Sem. 2020'!AC4,'Dati Generali CER 2 Sem. 2020'!AC4)=0,"",SUM('Dati Generali CER 1 Sem. 2020'!AC4,'Dati Generali CER 2 Sem. 2020'!AC4)/1000) ->  | AD4: =IF(SUM('Dati Generali CER 1 Sem. 2020'!AD4,'Dati Generali CER 2 Sem. 2020'!AD4)=0,"",SUM('Dati Generali CER 1 Sem. 2020'!AD4,'Dati Generali CER 2 Sem. 2020'!AD4)/1000) -> 0.89 | AE4: =IF(SUM('Dati Generali CER 1 Sem. 2020'!AE4,'Dati Generali CER 2 Sem. 2020'!AE4)=0,"",SUM('Dati Generali CER 1 Sem. 2020'!AE4,'Dati Generali CER 2 Sem. 2020'!AE4)/1000) -> 70.96 | AF4: =IF(SUM('Dati Generali CER 1 Sem. 2020'!AF4,'Dati Generali CER 2 Sem. 2020'!AF4)=0,"",SUM('Dati Generali CER 1 Sem. 2020'!AF4,'Dati Generali CER 2 Sem. 2020'!AF4)/1000) ->  | AG4: =IF(SUM('Dati Generali CER 1 Sem. 2020'!AG4,'Dati Generali CER 2 Sem. 2020'!AG4)=0,"",SUM('Dati Generali CER 1 Sem. 2020'!AG4,'Dati Generali CER 2 Sem. 2020'!AG4)/1000) ->  | AH4: =IF(SUM('Dati Generali CER 1 Sem. 2020'!AH4,'Dati Generali CER 2 Sem. 2020'!AH4)=0,"",SUM('Dati Generali CER 1 Sem. 2020'!AH4,'Dati Generali CER 2 Sem. 2020'!AH4)/1000) ->  | AI4: =IF(SUM('Dati Generali CER 1 Sem. 2020'!AI4,'Dati Generali CER 2 Sem. 2020'!AI4)=0,"",SUM('Dati Generali CER 1 Sem. 2020'!AI4,'Dati Generali CER 2 Sem. 2020'!AI4)/1000) ->  | AJ4: =IF(SUM('Dati Generali CER 1 Sem. 2020'!AJ4,'Dati Generali CER 2 Sem. 2020'!AJ4)=0,"",SUM('Dati Generali CER 1 Sem. 2020'!AJ4,'Dati Generali CER 2 Sem. 2020'!AJ4)/1000) ->  | AK4: =IF(SUM('Dati Generali CER 1 Sem. 2020'!AK4,'Dati Generali CER 2 Sem. 2020'!AK4)=0,"",SUM('Dati Generali CER 1 Sem. 2020'!AK4,'Dati Generali CER 2 Sem. 2020'!AK4)/1000) ->  | AL4: =IF(SUM('Dati Generali CER 1 Sem. 2020'!AL4,'Dati Generali CER 2 Sem. 2020'!AL4)=0,"",SUM('Dati Generali CER 1 Sem. 2020'!AL4,'Dati Generali CER 2 Sem. 2020'!AL4)/1000) ->  | AM4: =IF(SUM('Dati Generali CER 1 Sem. 2020'!AM4,'Dati Generali CER 2 Sem. 2020'!AM4)=0,"",SUM('Dati Generali CER 1 Sem. 2020'!AM4,'Dati Generali CER 2 Sem. 2020'!AM4)/1000) ->  | AN4: =IF(SUM('Dati Generali CER 1 Sem. 2020'!AN4,'Dati Generali CER 2 Sem. 2020'!AN4)=0,"",SUM('Dati Generali CER 1 Sem. 2020'!AN4,'Dati Generali CER 2 Sem. 2020'!AN4)/1000) -> 45.47 | AO4: =IF(SUM('Dati Generali CER 1 Sem. 2020'!AO4,'Dati Generali CER 2 Sem. 2020'!AO4)=0,"",SUM('Dati Generali CER 1 Sem. 2020'!AO4,'Dati Generali CER 2 Sem. 2020'!AO4)/1000) ->  | AP4: =IF(SUM('Dati Generali CER 1 Sem. 2020'!AP4,'Dati Generali CER 2 Sem. 2020'!AP4)=0,"",SUM('Dati Generali CER 1 Sem. 2020'!AP4,'Dati Generali CER 2 Sem. 2020'!AP4)/1000) -> 140.24 | AQ4: =IF(SUM('Dati Generali CER 1 Sem. 2020'!AQ4,'Dati Generali CER 2 Sem. 2020'!AQ4)=0,"",SUM('Dati Generali CER 1 Sem. 2020'!AQ4,'Dati Generali CER 2 Sem. 2020'!AQ4)/1000) -> 12.559 | AR4: =IF(SUM('Dati Generali CER 1 Sem. 2020'!AR4,'Dati Generali CER 2 Sem. 2020'!AR4)=0,"",SUM('Dati Generali CER 1 Sem. 2020'!AR4,'Dati Generali CER 2 Sem. 2020'!AR4)/1000) ->  | AS4: =IF(SUM('Dati Generali CER 1 Sem. 2020'!AS4,'Dati Generali CER 2 Sem. 2020'!AS4)=0,"",SUM('Dati Generali CER 1 Sem. 2020'!AS4,'Dati Generali CER 2 Sem. 2020'!AS4)/1000) ->  | AT4: =IF(SUM('Dati Generali CER 1 Sem. 2020'!AT4,'Dati Generali CER 2 Sem. 2020'!AT4)=0,"",SUM('Dati Generali CER 1 Sem. 2020'!AT4,'Dati Generali CER 2 Sem. 2020'!AT4)/1000) -> 2.13 | AU4: =IF(SUM('Dati Generali CER 1 Sem. 2020'!AU4,'Dati Generali CER 2 Sem. 2020'!AU4)=0,"",SUM('Dati Generali CER 1 Sem. 2020'!AU4,'Dati Generali CER 2 Sem. 2020'!AU4)/1000) ->  | AV4: =IF(SUM('Dati Generali CER 1 Sem. 2020'!AV4,'Dati Generali CER 2 Sem. 2020'!AV4)=0,"",SUM('Dati Generali CER 1 Sem. 2020'!AV4,'Dati Generali CER 2 Sem. 2020'!AV4)/1000) ->  | AW4: =IF(SUM('Dati Generali CER 1 Sem. 2020'!AW4,'Dati Generali CER 2 Sem. 2020'!AW4)=0,"",SUM('Dati Generali CER 1 Sem. 2020'!AW4,'Dati Generali CER 2 Sem. 2020'!AW4)/1000) ->  | AX4: =IF(SUM('Dati Generali CER 1 Sem. 2020'!AX4,'Dati Generali CER 2 Sem. 2020'!AX4)=0,"",SUM('Dati Generali CER 1 Sem. 2020'!AX4,'Dati Generali CER 2 Sem. 2020'!AX4)/1000) ->  | AY4: =IF(SUM('Dati Generali CER 1 Sem. 2020'!AY4,'Dati Generali CER 2 Sem. 2020'!AY4)=0,"",SUM('Dati Generali CER 1 Sem. 2020'!AY4,'Dati Generali CER 2 Sem. 2020'!AY4)/1000) ->  | AZ4: =IF(SUM('Dati Generali CER 1 Sem. 2020'!AZ4,'Dati Generali CER 2 Sem. 2020'!AZ4)=0,"",SUM('Dati Generali CER 1 Sem. 2020'!AZ4,'Dati Generali CER 2 Sem. 2020'!AZ4)/1000) ->  | BA4: =IF(SUM('Dati Generali CER 1 Sem. 2020'!BA4,'Dati Generali CER 2 Sem. 2020'!BA4)=0,"",SUM('Dati Generali CER 1 Sem. 2020'!BA4,'Dati Generali CER 2 Sem. 2020'!BA4)/1000) -> 2.78 | BB4: =IF(SUM('Dati Generali CER 1 Sem. 2020'!BB4,'Dati Generali CER 2 Sem. 2020'!BB4)=0,"",SUM('Dati Generali CER 1 Sem. 2020'!BB4,'Dati Generali CER 2 Sem. 2020'!BB4)/1000) -> 3.99 | BC4: =IF(SUM('Dati Generali CER 1 Sem. 2020'!BC4,'Dati Generali CER 2 Sem. 2020'!BC4)=0,"",SUM('Dati Generali CER 1 Sem. 2020'!BC4,'Dati Generali CER 2 Sem. 2020'!BC4)/1000) ->  | BD4: =IF(SUM('Dati Generali CER 1 Sem. 2020'!BD4,'Dati Generali CER 2 Sem. 2020'!BD4)=0,"",SUM('Dati Generali CER 1 Sem. 2020'!BD4,'Dati Generali CER 2 Sem. 2020'!BD4)/1000) ->  | BE4: =IF(SUM('Dati Generali CER 1 Sem. 2020'!BE4,'Dati Generali CER 2 Sem. 2020'!BE4)=0,"",SUM('Dati Generali CER 1 Sem. 2020'!BE4,'Dati Generali CER 2 Sem. 2020'!BE4)/1000) ->  | BF4: =IF(SUM('Dati Generali CER 1 Sem. 2020'!BF4,'Dati Generali CER 2 Sem. 2020'!BF4)=0,"",SUM('Dati Generali CER 1 Sem. 2020'!BF4,'Dati Generali CER 2 Sem. 2020'!BF4)/1000) ->  | BG4: =IF(SUM('Dati Generali CER 1 Sem. 2020'!BG4,'Dati Generali CER 2 Sem. 2020'!BG4)=0,"",SUM('Dati Generali CER 1 Sem. 2020'!BG4,'Dati Generali CER 2 Sem. 2020'!BG4)/1000) ->  | BH4: =IF(SUM('Dati Generali CER 1 Sem. 2020'!BH4,'Dati Generali CER 2 Sem. 2020'!BH4)=0,"",SUM('Dati Generali CER 1 Sem. 2020'!BH4,'Dati Generali CER 2 Sem. 2020'!BH4)/1000) -> 4.94 | BI4: =IF(SUM('Dati Generali CER 1 Sem. 2020'!BI4,'Dati Generali CER 2 Sem. 2020'!BI4)=0,"",SUM('Dati Generali CER 1 Sem. 2020'!BI4,'Dati Generali CER 2 Sem. 2020'!BI4)/1000) -> 325.329 | BJ4: =IF(COUNT(X4:BH4,E4,R4,S4,T4)=0,"",COUNT(X4:BH4,E4,R4,S4,T4)) -> 11 | BK4: 0.6027534858 | BL4: =IF(E4="","",E4/D4/0.365) -> 0.1053693738 | BM4: =IF(SUM(X4:BH4)=0,"",BI4/D4/0.365) -> 0.497384112 | BN4: =SUM(E4,R4,S4,T4,X4:BH4) -> 394.249
A5: ='Dati Generali CER 1 Sem. 2020'!A5 -> 3 | B5: ='Dati Generali CER 1 Sem. 2020'!B5 -> A194 | C5: ='Dati Generali CER 1 Sem. 2020'!C5 -> ALI' | D5: ='Dati Generali CER 2 Sem. 2020'!D5 -> 694 | E5: =IF(SUM('Dati Generali CER 1 Sem. 2020'!E5,'Dati Generali CER 2 Sem. 2020'!E5)=0,"",SUM('Dati Generali CER 1 Sem. 2020'!E5,'Dati Generali CER 2 Sem. 2020'!E5)/1000) -> 65.88 | F5: =IF(SUM('Dati Generali CER 1 Sem. 2020'!F5,'Dati Generali CER 2 Sem. 2020'!F5)=0,"",SUM('Dati Generali CER 1 Sem. 2020'!F5,'Dati Generali CER 2 Sem. 2020'!F5)/1000) ->  | G5: =IF(SUM('Dati Generali CER 1 Sem. 2020'!G5,'Dati Generali CER 2 Sem. 2020'!G5)=0,"",SUM('Dati Generali CER 1 Sem. 2020'!G5,'Dati Generali CER 2 Sem. 2020'!G5)/1000) ->  | H5: =IF(SUM('Dati Generali CER 1 Sem. 2020'!H5,'Dati Generali CER 2 Sem. 2020'!H5)=0,"",SUM('Dati Generali CER 1 Sem. 2020'!H5,'Dati Generali CER 2 Sem. 2020'!H5)/1000) ->  | I5: =IF(SUM('Dati Generali CER 1 Sem. 2020'!I5,'Dati Generali CER 2 Sem. 2020'!I5)=0,"",SUM('Dati Generali CER 1 Sem. 2020'!I5,'Dati Generali CER 2 Sem. 2020'!I5)/1000) ->  | J5: =IF(SUM('Dati Generali CER 1 Sem. 2020'!J5,'Dati Generali CER 2 Sem. 2020'!J5)=0,"",SUM('Dati Generali CER 1 Sem. 2020'!J5,'Dati Generali CER 2 Sem. 2020'!J5)/1000) ->  | K5: =IF(SUM('Dati Generali CER 1 Sem. 2020'!K5,'Dati Generali CER 2 Sem. 2020'!K5)=0,"",SUM('Dati Generali CER 1 Sem. 2020'!K5,'Dati Generali CER 2 Sem. 2020'!K5)/1000) ->  | L5: =IF(SUM('Dati Generali CER 1 Sem. 2020'!L5,'Dati Generali CER 2 Sem. 2020'!L5)=0,"",SUM('Dati Generali CER 1 Sem. 2020'!L5,'Dati Generali CER 2 Sem. 2020'!L5)/1000) ->  | M5: =IF(SUM('Dati Generali CER 1 Sem. 2020'!M5,'Dati Generali CER 2 Sem. 2020'!M5)=0,"",SUM('Dati Generali CER 1 Sem. 2020'!M5,'Dati Generali CER 2 Sem. 2020'!M5)/1000) ->  | N5: =IF(SUM('Dati Generali CER 1 Sem. 2020'!N5,'Dati Generali CER 2 Sem. 2020'!N5)=0,"",SUM('Dati Generali CER 1 Sem. 2020'!N5,'Dati Generali CER 2 Sem. 2020'!N5)/1000) ->  | O5: =IF(SUM('Dati Generali CER 1 Sem. 2020'!O5,'Dati Generali CER 2 Sem. 2020'!O5)=0,"",SUM('Dati Generali CER 1 Sem. 2020'!O5,'Dati Generali CER 2 Sem. 2020'!O5)/1000) ->  | P5: =IF(SUM('Dati Generali CER 1 Sem. 2020'!P5,'Dati Generali CER 2 Sem. 2020'!P5)=0,"",SUM('Dati Generali CER 1 Sem. 2020'!P5,'Dati Generali CER 2 Sem. 2020'!P5)/1000) ->  | Q5: =IF(SUM('Dati Generali CER 1 Sem. 2020'!Q5,'Dati Generali CER 2 Sem. 2020'!Q5)=0,"",SUM('Dati Generali CER 1 Sem. 2020'!Q5,'Dati Generali CER 2 Sem. 2020'!Q5)/1000) ->  | R5: =IF(SUM('Dati Generali CER 1 Sem. 2020'!R5,'Dati Generali CER 2 Sem. 2020'!R5)=0,"",SUM('Dati Generali CER 1 Sem. 2020'!R5,'Dati Generali CER 2 Sem. 2020'!R5)/1000) ->  | S5: =IF(SUM('Dati Generali CER 1 Sem. 2020'!S5,'Dati Generali CER 2 Sem. 2020'!S5)=0,"",SUM('Dati Generali CER 1 Sem. 2020'!S5,'Dati Generali CER 2 Sem. 2020'!S5)/1000) ->  | T5: =IF(SUM('Dati Generali CER 1 Sem. 2020'!T5,'Dati Generali CER 2 Sem. 2020'!T5)=0,"",SUM('Dati Generali CER 1 Sem. 2020'!T5,'Dati Generali CER 2 Sem. 2020'!T5)/1000) ->  | U5: =IF(E5="","",SUM('Dati Generali CER 1 Sem. 2020'!BI5,'Dati Generali CER 2 Sem. 2020'!BI5)/1000) -> 101.15 | V5: =IF(SUM('Dati Generali CER 1 Sem. 2020'!V5,'Dati Generali CER 2 Sem. 2020'!V5)=0,"",SUM('Dati Generali CER 1 Sem. 2020'!V5,'Dati Generali CER 2 Sem. 2020'!V5)/1000) -> 167.03 | W5: 0.605579836 | X5: =IF(SUM('Dati Generali CER 1 Sem. 2020'!X5,'Dati Generali CER 2 Sem. 2020'!X5)=0,"",SUM('Dati Generali CER 1 Sem. 2020'!X5,'Dati Generali CER 2 Sem. 2020'!X5)/1000) ->  | Y5: =IF(SUM('Dati Generali CER 1 Sem. 2020'!Y5,'Dati Generali CER 2 Sem. 2020'!Y5)=0,"",SUM('Dati Generali CER 1 Sem. 2020'!Y5,'Dati Generali CER 2 Sem. 2020'!Y5)/1000) ->  | Z5: =IF(SUM('Dati Generali CER 1 Sem. 2020'!Z5,'Dati Generali CER 2 Sem. 2020'!Z5)=0,"",SUM('Dati Generali CER 1 Sem. 2020'!Z5,'Dati Generali CER 2 Sem. 2020'!Z5)/1000) ->  | AA5: =IF(SUM('Dati Generali CER 1 Sem. 2020'!AA5,'Dati Generali CER 2 Sem. 2020'!AA5)=0,"",SUM('Dati Generali CER 1 Sem. 2020'!AA5,'Dati Generali CER 2 Sem. 2020'!AA5)/1000) ->  | AB5: =IF(SUM('Dati Generali CER 1 Sem. 2020'!AB5,'Dati Generali CER 2 Sem. 2020'!AB5)=0,"",SUM('Dati Generali CER 1 Sem. 2020'!AB5,'Dati Generali CER 2 Sem. 2020'!AB5)/1000) ->  | AC5: =IF(SUM('Dati Generali CER 1 Sem. 2020'!AC5,'Dati Generali CER 2 Sem. 2020'!AC5)=0,"",SUM('Dati Generali CER 1 Sem. 2020'!AC5,'Dati Generali CER 2 Sem. 2020'!AC5)/1000) ->  | AD5: =IF(SUM('Dati Generali CER 1 Sem. 2020'!AD5,'Dati Generali CER 2 Sem. 2020'!AD5)=0,"",SUM('Dati Generali CER 1 Sem. 2020'!AD5,'Dati Generali CER 2 Sem. 2020'!AD5)/1000) -> 17.61 | AE5: =IF(SUM('Dati Generali CER 1 Sem. 2020'!AE5,'Dati Generali CER 2 Sem. 2020'!AE5)=0,"",SUM('Dati Generali CER 1 Sem. 2020'!AE5,'Dati Generali CER 2 Sem. 2020'!AE5)/1000) -> 16.05 | AF5: =IF(SUM('Dati Generali CER 1 Sem. 2020'!AF5,'Dati Generali CER 2 Sem. 2020'!AF5)=0,"",SUM('Dati Generali CER 1 Sem. 2020'!AF5,'Dati Generali CER 2 Sem. 2020'!AF5)/1000) ->  | AG5: =IF(SUM('Dati Generali CER 1 Sem. 2020'!AG5,'Dati Generali CER 2 Sem. 2020'!AG5)=0,"",SUM('Dati Generali CER 1 Sem. 2020'!AG5,'Dati Generali CER 2 Sem. 2020'!AG5)/1000) ->  | AH5: =IF(SUM('Dati Generali CER 1 Sem. 2020'!AH5,'Dati Generali CER 2 Sem. 2020'!AH5)=0,"",SUM('Dati Generali CER 1 Sem. 2020'!AH5,'Dati Generali CER 2 Sem. 2020'!AH5)/1000) ->  | AI5: =IF(SUM('Dati Generali CER 1 Sem. 2020'!AI5,'Dati Generali CER 2 Sem. 2020'!AI5)=0,"",SUM('Dati Generali CER 1 Sem. 2020'!AI5,'Dati Generali CER 2 Sem. 2020'!AI5)/1000) ->  | AJ5: =IF(SUM('Dati Generali CER 1 Sem. 2020'!AJ5,'Dati Generali CER 2 Sem. 2020'!AJ5)=0,"",SUM('Dati Generali CER 1 Sem. 2020'!AJ5,'Dati Generali CER 2 Sem. 2020'!AJ5)/1000) ->  | AK5: =IF(SUM('Dati Generali CER 1 Sem. 2020'!AK5,'Dati Generali CER 2 Sem. 2020'!AK5)=0,"",SUM('Dati Generali CER 1 Sem. 2020'!AK5,'Dati Generali CER 2 Sem. 2020'!AK5)/1000) ->  | AL5: =IF(SUM('Dati Generali CER 1 Sem. 2020'!AL5,'Dati Generali CER 2 Sem. 2020'!AL5)=0,"",SUM('Dati Generali CER 1 Sem. 2020'!AL5,'Dati Generali CER 2 Sem. 2020'!AL5)/1000) ->  | AM5: =IF(SUM('Dati Generali CER 1 Sem. 2020'!AM5,'Dati Generali CER 2 Sem. 2020'!AM5)=0,"",SUM('Dati Generali CER 1 Sem. 2020'!AM5,'Dati Generali CER 2 Sem. 2020'!AM5)/1000) ->  | AN5: =IF(SUM('Dati Generali CER 1 Sem. 2020'!AN5,'Dati Generali CER 2 Sem. 2020'!AN5)=0,"",SUM('Dati Generali CER 1 Sem. 2020'!AN5,'Dati Generali CER 2 Sem. 2020'!AN5)/1000) -> 16.55 | AO5: =IF(SUM('Dati Generali CER 1 Sem. 2020'!AO5,'Dati Generali CER 2 Sem. 2020'!AO5)=0,"",SUM('Dati Generali CER 1 Sem. 2020'!AO5,'Dati Generali CER 2 Sem. 2020'!AO5)/1000) ->  | AP5: =IF(SUM('Dati Generali CER 1 Sem. 2020'!AP5,'Dati Generali CER 2 Sem. 2020'!AP5)=0,"",SUM('Dati Generali CER 1 Sem. 2020'!AP5,'Dati Generali CER 2 Sem. 2020'!AP5)/1000) -> 38.28 | AQ5: =IF(SUM('Dati Generali CER 1 Sem. 2020'!AQ5,'Dati Generali CER 2 Sem. 2020'!AQ5)=0,"",SUM('Dati Generali CER 1 Sem. 2020'!AQ5,'Dati Generali CER 2 Sem. 2020'!AQ5)/1000) ->  | AR5: =IF(SUM('Dati Generali CER 1 Sem. 2020'!AR5,'Dati Generali CER 2 Sem. 2020'!AR5)=0,"",SUM('Dati Generali CER 1 Sem. 2020'!AR5,'Dati Generali CER 2 Sem. 2020'!AR5)/1000) ->  | AS5: =IF(SUM('Dati Generali CER 1 Sem. 2020'!AS5,'Dati Generali CER 2 Sem. 2020'!AS5)=0,"",SUM('Dati Generali CER 1 Sem. 2020'!AS5,'Dati Generali CER 2 Sem. 2020'!AS5)/1000) ->  | AT5: =IF(SUM('Dati Generali CER 1 Sem. 2020'!AT5,'Dati Generali CER 2 Sem. 2020'!AT5)=0,"",SUM('Dati Generali CER 1 Sem. 2020'!AT5,'Dati Generali CER 2 Sem. 2020'!AT5)/1000) ->  | AU5: =IF(SUM('Dati Generali CER 1 Sem. 2020'!AU5,'Dati Generali CER 2 Sem. 2020'!AU5)=0,"",SUM('Dati Generali CER 1 Sem. 2020'!AU5,'Dati Generali CER 2 Sem. 2020'!AU5)/1000) ->  | AV5: =IF(SUM('Dati Generali CER 1 Sem. 2020'!AV5,'Dati Generali CER 2 Sem. 2020'!AV5)=0,"",SUM('Dati Generali CER 1 Sem. 2020'!AV5,'Dati Generali CER 2 Sem. 2020'!AV5)/1000) ->  | AW5: =IF(SUM('Dati Generali CER 1 Sem. 2020'!AW5,'Dati Generali CER 2 Sem. 2020'!AW5)=0,"",SUM('Dati Generali CER 1 Sem. 2020'!AW5,'Dati Generali CER 2 Sem. 2020'!AW5)/1000) ->  | AX5: =IF(SUM('Dati Generali CER 1 Sem. 2020'!AX5,'Dati Generali CER 2 Sem. 2020'!AX5)=0,"",SUM('Dati Generali CER 1 Sem. 2020'!AX5,'Dati Generali CER 2 Sem. 2020'!AX5)/1000) ->  | AY5: =IF(SUM('Dati Generali CER 1 Sem. 2020'!AY5,'Dati Generali CER 2 Sem. 2020'!AY5)=0,"",SUM('Dati Generali CER 1 Sem. 2020'!AY5,'Dati Generali CER 2 Sem. 2020'!AY5)/1000) ->  | AZ5: =IF(SUM('Dati Generali CER 1 Sem. 2020'!AZ5,'Dati Generali CER 2 Sem. 2020'!AZ5)=0,"",SUM('Dati Generali CER 1 Sem. 2020'!AZ5,'Dati Generali CER 2 Sem. 2020'!AZ5)/1000) ->  | BA5: =IF(SUM('Dati Generali CER 1 Sem. 2020'!BA5,'Dati Generali CER 2 Sem. 2020'!BA5)=0,"",SUM('Dati Generali CER 1 Sem. 2020'!BA5,'Dati Generali CER 2 Sem. 2020'!BA5)/1000) ->  | BB5: =IF(SUM('Dati Generali CER 1 Sem. 2020'!BB5,'Dati Generali CER 2 Sem. 2020'!BB5)=0,"",SUM('Dati Generali CER 1 Sem. 2020'!BB5,'Dati Generali CER 2 Sem. 2020'!BB5)/1000) ->  | BC5: =IF(SUM('Dati Generali CER 1 Sem. 2020'!BC5,'Dati Generali CER 2 Sem. 2020'!BC5)=0,"",SUM('Dati Generali CER 1 Sem. 2020'!BC5,'Dati Generali CER 2 Sem. 2020'!BC5)/1000) ->  | BD5: =IF(SUM('Dati Generali CER 1 Sem. 2020'!BD5,'Dati Generali CER 2 Sem. 2020'!BD5)=0,"",SUM('Dati Generali CER 1 Sem. 2020'!BD5,'Dati Generali CER 2 Sem. 2020'!BD5)/1000) ->  | BE5: =IF(SUM('Dati Generali CER 1 Sem. 2020'!BE5,'Dati Generali CER 2 Sem. 2020'!BE5)=0,"",SUM('Dati Generali CER 1 Sem. 2020'!BE5,'Dati Generali CER 2 Sem. 2020'!BE5)/1000) ->  | BF5: =IF(SUM('Dati Generali CER 1 Sem. 2020'!BF5,'Dati Generali CER 2 Sem. 2020'!BF5)=0,"",SUM('Dati Generali CER 1 Sem. 2020'!BF5,'Dati Generali CER 2 Sem. 2020'!BF5)/1000) -> 6.27 | BG5: =IF(SUM('Dati Generali CER 1 Sem. 2020'!BG5,'Dati Generali CER 2 Sem. 2020'!BG5)=0,"",SUM('Dati Generali CER 1 Sem. 2020'!BG5,'Dati Generali CER 2 Sem. 2020'!BG5)/1000) ->  | BH5: =IF(SUM('Dati Generali CER 1 Sem. 2020'!BH5,'Dati Generali CER 2 Sem. 2020'!BH5)=0,"",SUM('Dati Generali CER 1 Sem. 2020'!BH5,'Dati Generali CER 2 Sem. 2020'!BH5)/1000) -> 6.39 | BI5: =IF(SUM('Dati Generali CER 1 Sem. 2020'!BI5,'Dati Generali CER 2 Sem. 2020'!BI5)=0,"",SUM('Dati Generali CER 1 Sem. 2020'!BI5,'Dati Generali CER 2 Sem. 2020'!BI5)/1000) -> 101.15 | BJ5: =IF(COUNT(X5:BH5,E5,R5,S5,T5)=0,"",COUNT(X5:BH5,E5,R5,S5,T5)) -> 7 | BK5: 0.6593896806 | BL5: =IF(E5="","",E5/D5/0.365) -> 0.260076586 | BM5: =IF(SUM(X5:BH5)=0,"",BI5/D5/0.365) -> 0.3993130946 | BN5: =SUM(E5,R5,S5,T5,X5:BH5) -> 167.03
